Workbook

Sheet Data
IJ1: Q-TOF ID | IK1: 1 | IL1: 2 | IM1: 3 | IN1: 4 | IO1: 5 | IP1: 6 | IQ1: 7 | IR1: 8 | IS1: 9 | IT1: 10 | IU1: 11 | IV1: 12 | IW1: 13 | IX1: 14 | IY1: 15 | IZ1: 16 | JA1: 17 | JB1: 18 | JC1: 19 | JD1: 20 | JE1: 21 | JF1: 22 | JG1: 23 | JH1: 24 | JI1: 25 | JJ1: 26 | JK1: 27 | JL1: 28 | JM1: 29 | JN1: 30 | JO1: 31 | JP1: 32 | JQ1: 33 | JR1: 34 | JS1: 35 | JT1: 36 | JU1: 37 | JV1: 38 | JW1: 39 | JX1: 40 | JY1: 41 | JZ1: 42 | KA1: 43 | KB1: 44 | KC1: 45 | KD1: 46 | KE1: 47 | KF1: 48 | KG1: 49 | KH1: 50 | KI1: 51 | KJ1: 52 | KK1: 53 | KL1: 54 | KM1: 55 | KN1: 56 | KO1: 57 | KP1: 58 | KQ1: 59 | KR1: 60 | KS1: 61 | KT1: 62 | KU1: 63 | KV1: 64 | KW1: 65 | KX1: 66 | KY1: 67 | KZ1: 68 | LA1: 69 | LB1: 70 | LC1: 71 | LD1: 72 | LE1: 73 | LF1: 74 | LG1: 75 | LH1: 76 | LI1: 77 | LJ1: 78 | LK1: 79 | LL1: 80 | LM1: 81 | LN1: 82 | LO1: 83 | LP1: 84 | LQ1: 85 | LR1: 86 | LS1: 87 | LT1: 88 | LU1: 89 | LV1: 90 | LW1: 91 | LX1: 92 | LY1: 93 | LZ1: 94 | MA1: 95 | MB1: 96 | MC1: 97 | MD1: 98 | ME1: 99 | MF1: 100 | MG1: 101 | MH1: 102 | MI1: 103 | MJ1: 104 | MK1: 105 | ML1: 106 | MM1: 107 | MN1: 108 | MO1: 109 | MP1: 110 | MQ1: 111 | MR1: 112 | MS1: 113 | MT1: 114 | MU1: 115 | MV1: 116 | MW1: 117 | MX1: 118 | MY1: 119 | MZ1: 120 | NA1: 121 | NB1: 122 | NC1: 123 | ND1: 124 | NE1: 125 | NF1: 126 | NG1: 127 | NH1: 128 | NI1: 129 | NJ1: 130 | NK1: 131 | NL1: 132 | NM1: 133 | NN1: 134 | NO1: 135 | NP1: 136 | NQ1: 137 | NR1: 138 | NS1: 139 | NT1: 140 | NU1: 141 | NV1: 142 | NW1: 143 | NX1: 144 | NY1: 145 | NZ1: 146 | OA1: 147 | OB1: 148 | OC1: 149 | OD1: 150 | OE1: 151 | OF1: 152 | OG1: 153 | OH1: 154 | OI1: 155 | OJ1: 156 | OK1: 157 | OL1: 158 | OM1: 159 | ON1: 160 | OO1: 161 | OP1: 162 | OQ1: 163 | OR1: 164 | OS1: 165 | OT1: 166 | OU1: 167 | OV1: 168 | OW1: 169 | OX1: 170 | OY1: 171 | OZ1: 172 | PA1: 173 | PB1: 174 | PC1: 175 | PD1: 176 | PE1: 177 | PF1: 178 | PG1: 179 | PH1: 180 | PI1: 181 | PJ1: 182 | PK1: 183 | PL1: 184 | PM1: 185 | PN1: 186 | PO1: 187 | PP1: 188 | PQ1: 189 | PR1: 190 | PS1: 191 | PT1: 192 | PU1: 193 | PV1: 194 | PW1: 195 | PX1: 196 | PY1: 197 | PZ1: 198 | QA1: 199 | QB1: 200 | QC1: 201 | QD1: 202 | QE1: 203 | QF1: 204
IJ2: Intervention | IK2: Wheat | IL2: Wheat | IM2: Wheat | IN2: Wheat | IO2: Wheat | IP2: Wheat | IQ2: Wheat | IR2: Rye | IS2: Rye | IT2: Wheat | IU2: Rye | IV2: Wheat | IW2: Rye | IX2: Wheat | IY2: Wheat | IZ2: Wheat | JA2: Wheat | JB2: Rye | JC2: Wheat | JD2: Rye | JE2: Wheat | JF2: Rye | JG2: Rye | JH2: Wheat | JI2: Wheat | JJ2: Wheat | JK2: Wheat | JL2: Rye | JM2: Wheat | JN2: Wheat | JO2: Rye | JP2: Wheat | JQ2: Rye | JR2: Wheat | JS2: Rye | JT2: Rye | JU2: Wheat | JV2: Wheat | JW2: Rye | JX2: Wheat | JY2: Wheat | JZ2: Rye | KA2: Wheat | KB2: Rye | KC2: Wheat | KD2: Wheat | KE2: Wheat | KF2: Rye | KG2: Wheat | KH2: Rye | KI2: Rye | KJ2: Rye | KK2: Wheat | KL2: Wheat | KM2: Wheat | KN2: Rye | KO2: Rye | KP2: Rye | KQ2: Rye | KR2: Rye | KS2: Rye | KT2: Rye | KU2: Rye | KV2: Wheat | KW2: Rye | KX2: Wheat | KY2: Wheat | KZ2: Rye | LA2: Wheat | LB2: Wheat | LC2: Rye | LD2: Rye | LE2: Wheat | LF2: Rye | LG2: Wheat | LH2: Rye | LI2: Rye | LJ2: Wheat | LK2: Wheat | LL2: Rye | LM2: Rye | LN2: Wheat | LO2: Wheat | LP2: Rye | LQ2: Wheat | LR2: Rye | LS2: Wheat | LT2: Rye | LU2: Rye | LV2: Rye | LW2: Rye | LX2: Rye | LY2: Wheat | LZ2: Wheat | MA2: Rye | MB2: Wheat | MC2: Rye | MD2: Wheat | ME2: Wheat | MF2: Rye | MG2: Rye | MH2: Wheat | MI2: Wheat | MJ2: Wheat | MK2: Rye | ML2: Wheat | MM2: Rye | MN2: Rye | MO2: Rye | MP2: Wheat | MQ2: Wheat | MR2: Rye | MS2: Wheat | MT2: Rye | MU2: Wheat | MV2: Rye | MW2: Wheat | MX2: Wheat | MY2: Rye | MZ2: Rye | NA2: Wheat | NB2: Wheat | NC2: Wheat | ND2: Rye | NE2: Wheat | NF2: Rye | NG2: Rye | NH2: Wheat | NI2: Wheat | NJ2: Rye | NK2: Wheat | NL2: Rye | NM2: Rye | NN2: Wheat | NO2: Rye | NP2: Rye | NQ2: Wheat | NR2: Wheat | NS2: Wheat | NT2: Wheat | NU2: Rye | NV2: Wheat | NW2: Wheat | NX2: Wheat | NY2: Wheat | NZ2: Rye | OA2: Wheat | OB2: Rye | OC2: Rye | OD2: Wheat | OE2: Wheat | OF2: Rye | OG2: Wheat | OH2: Wheat | OI2: Wheat | OJ2: Rye | OK2: Rye | OL2: Rye | OM2: Rye | ON2: Rye | OO2: Rye | OP2: Rye | OQ2: Rye | OR2: Wheat | OS2: Rye | OT2: Wheat | OU2: Wheat | OV2: Wheat | OW2: Rye | OX2: Wheat | OY2: Rye | OZ2: Rye | PA2: Rye | PB2: Wheat | PC2: Rye | PD2: Wheat | PE2: Wheat | PF2: Wheat | PG2: Wheat | PH2: Rye | PI2: Wheat | PJ2: Rye | PK2: Rye | PL2: Rye | PM2: Rye | PN2: Wheat | PO2: Rye | PP2: Rye | PQ2: Rye | PR2: Wheat | PS2: Wheat | PT2: Rye | PU2: Rye | PV2: Wheat | PW2: Rye | PX2: Wheat | PY2: Rye | PZ2: Wheat | QA2: Rye | QB2: Rye | QC2: Wheat | QD2: Wheat | QE2: Wheat | QF2: Rye
IJ3: Subject ID | IK3: GM103 | IL3: GM106 | IM3: GM132 | IN3: GM137 | IO3: GM162 | IP3: GM176 | IQ3: GM153 | IR3: GM168 | IS3: GM119 | IT3: GM159 | IU3: GM158 | IV3: GM164 | IW3: GM151 | IX3: GM112 | IY3: GM162 | IZ3: GM111 | JA3: GM141 | JB3: GM173 | JC3: GM107 | JD3: GM152 | JE3: GM138 | JF3: GM168 | JG3: GM156 | JH3: GM104 | JI3: GM153 | JJ3: GM171 | JK3: GM167 | JL3: GM125 | JM3: GM164 | JN3: GM112 | JO3: GM173 | JP3: GM183 | JQ3: GM115 | JR3: GM112 | JS3: GM177 | JT3: GM130 | JU3: GM145 | JV3: GM117 | JW3: GM172 | JX3: GM144 | JY3: GM128 | JZ3: GM156 | KA3: GM146 | KB3: GM179 | KC3: GM160 | KD3: GM153 | KE3: GM146 | KF3: GM143 | KG3: GM113 | KH3: GM120 | KI3: GM152 | KJ3: GM120 | KK3: GM165 | KL3: GM184 | KM3: GM107 | KN3: GM127 | KO3: GM101 | KP3: GM152 | KQ3: GM179 | KR3: GM179 | KS3: GM155 | KT3: GM114 | KU3: GM136 | KV3: GM103 | KW3: GM142 | KX3: GM162 | KY3: GM117 | KZ3: GM172 | LA3: GM107 | LB3: GM144 | LC3: GM115 | LD3: GM174 | LE3: GM138 | LF3: GM139 | LG3: GM104 | LH3: GM174 | LI3: GM102 | LJ3: GM128 | LK3: GM175 | LL3: GM155 | LM3: GM115 | LN3: GM175 | LO3: GM159 | LP3: GM122 | LQ3: GM184 | LR3: GM170 | LS3: GM111 | LT3: GM158 | LU3: GM102 | LV3: GM178 | LW3: GM125 | LX3: GM174 | LY3: GM105 | LZ3: GM111 | MA3: GM114 | MB3: GM183 | MC3: GM136 | MD3: GM176 | ME3: GM113 | MF3: GM139 | MG3: GM168 | MH3: GM116 | MI3: GM160 | MJ3: GM105 | MK3: GM178 | ML3: GM135 | MM3: GM101 | MN3: GM123 | MO3: GM119 | MP3: GM133 | MQ3: GM116 | MR3: GM140 | MS3: GM145 | MT3: GM122 | MU3: GM141 | MV3: GM142 | MW3: GM180 | MX3: GM135 | MY3: GM140 | MZ3: GM125 | NA3: GM137 | NB3: GM180 | NC3: GM138 | ND3: GM157 | NE3: GM166 | NF3: GM177 | NG3: GM119 | NH3: GM104 | NI3: GM105 | NJ3: GM158 | NK3: GM146 | NL3: GM108 | NM3: GM127 | NN3: GM183 | NO3: GM108 | NP3: GM142 | NQ3: GM135 | NR3: GM175 | NS3: GM164 | NT3: GM141 | NU3: GM140 | NV3: GM181 | NW3: GM132 | NX3: GM144 | NY3: GM180 | NZ3: GM126 | OA3: GM132 | OB3: GM139 | OC3: GM136 | OD3: GM106 | OE3: GM167 | OF3: GM126 | OG3: GM116 | OH3: GM165 | OI3: GM184 | OJ3: GM120 | OK3: GM123 | OL3: GM127 | OM3: GM143 | ON3: GM170 | OO3: GM102 | OP3: GM182 | OQ3: GM182 | OR3: GM106 | OS3: GM108 | OT3: GM145 | OU3: GM165 | OV3: GM103 | OW3: GM114 | OX3: GM181 | OY3: GM123 | OZ3: GM173 | PA3: GM151 | PB3: GM160 | PC3: GM130 | PD3: GM167 | PE3: GM128 | PF3: GM133 | PG3: GM133 | PH3: GM182 | PI3: GM166 | PJ3: GM157 | PK3: GM177 | PL3: GM130 | PM3: GM101 | PN3: GM117 | PO3: GM143 | PP3: GM155 | PQ3: GM122 | PR3: GM159 | PS3: GM166 | PT3: GM157 | PU3: GM151 | PV3: GM113 | PW3: GM156 | PX3: GM181 | PY3: GM170 | PZ3: GM137 | QA3: GM172 | QB3: GM126 | QC3: GM176 | QD3: GM171 | QE3: GM171 | QF3: GM178
IJ4: Visit | IK4: 5 | IL4: 3 | IM4: 1 | IN4: 1 | IO4: 1 | IP4: 5 | IQ4: 5 | IR4: 5 | IS4: 5 | IT4: 5 | IU4: 1 | IV4: 5 | IW4: 3 | IX4: 3 | IY4: 5 | IZ4: 3 | JA4: 1 | JB4: 1 | JC4: 5 | JD4: 1 | JE4: 3 | JF4: 1 | JG4: 3 | JH4: 3 | JI4: 3 | JJ4: 3 | JK4: 5 | JL4: 3 | JM4: 3 | JN4: 1 | JO4: 3 | JP4: 3 | JQ4: 5 | JR4: 5 | JS4: 5 | JT4: 5 | JU4: 1 | JV4: 1 | JW4: 5 | JX4: 5 | JY4: 3 | JZ4: 1 | KA4: 5 | KB4: 3 | KC4: 5 | KD4: 1 | KE4: 3 | KF4: 1 | KG4: 3 | KH4: 3 | KI4: 5 | KJ4: 1 | KK4: 3 | KL4: 1 | KM4: 1 | KN4: 5 | KO4: 5 | KP4: 3 | KQ4: 5 | KR4: 1 | KS4: 5 | KT4: 1 | KU4: 3 | KV4: 3 | KW4: 5 | KX4: 3 | KY4: 3 | KZ4: 1 | LA4: 3 | LB4: 3 | LC4: 1 | LD4: 3 | LE4: 1 | LF4: 1 | LG4: 1 | LH4: 1 | LI4: 3 | LJ4: 1 | LK4: 5 | LL4: 3 | LM4: 3 | LN4: 1 | LO4: 3 | LP4: 3 | LQ4: 3 | LR4: 5 | LS4: 5 | LT4: 5 | LU4: 5 | LV4: 3 | LW4: 1 | LX4: 5 | LY4: 5 | LZ4: 1 | MA4: 3 | MB4: 1 | MC4: 5 | MD4: 1 | ME4: 5 | MF4: 5 | MG4: 3 | MH4: 5 | MI4: 3 | MJ4: 3 | MK4: 1 | ML4: 3 | MM4: 3 | MN4: 1 | MO4: 1 | MP4: 5 | MQ4: 1 | MR4: 1 | MS4: 3 | MT4: 1 | MU4: 3 | MV4: 1 | MW4: 1 | MX4: 5 | MY4: 3 | MZ4: 5 | NA4: 5 | NB4: 5 | NC4: 5 | ND4: 3 | NE4: 1 | NF4: 3 | NG4: 3 | NH4: 5 | NI4: 1 | NJ4: 3 | NK4: 1 | NL4: 3 | NM4: 1 | NN4: 5 | NO4: 1 | NP4: 3 | NQ4: 1 | NR4: 3 | NS4: 1 | NT4: 5 | NU4: 5 | NV4: 5 | NW4: 5 | NX4: 1 | NY4: 3 | NZ4: 5 | OA4: 3 | OB4: 3 | OC4: 1 | OD4: 1 | OE4: 3 | OF4: 3 | OG4: 3 | OH4: 1 | OI4: 5 | OJ4: 5 | OK4: 5 | OL4: 3 | OM4: 5 | ON4: 3 | OO4: 1 | OP4: 3 | OQ4: 1 | OR4: 5 | OS4: 5 | OT4: 5 | OU4: 5 | OV4: 1 | OW4: 5 | OX4: 1 | OY4: 3 | OZ4: 5 | PA4: 1 | PB4: 1 | PC4: 1 | PD4: 1 | PE4: 5 | PF4: 3 | PG4: 1 | PH4: 5 | PI4: 5 | PJ4: 5 | PK4: 1 | PL4: 3 | PM4: 1 | PN4: 5 | PO4: 3 | PP4: 1 | PQ4: 5 | PR4: 1 | PS4: 3 | PT4: 1 | PU4: 5 | PV4: 1 | PW4: 5 | PX4: 3 | PY4: 1 | PZ4: 3 | QA4: 3 | QB4: 1 | QC4: 3 | QD4: 5 | QE4: 1 | QF4: 5
IJ5: Grain | IK5: 2 | IL5: 2 | IM5: 2 | IN5: 2 | IO5: 2 | IP5: 2 | IQ5: 2 | IR5: 1 | IS5: 1 | IT5: 2 | IU5: 1 | IV5: 2 | IW5: 1 | IX5: 2 | IY5: 2 | IZ5: 2 | JA5: 2 | JB5: 1 | JC5: 2 | JD5: 1 | JE5: 2 | JF5: 1 | JG5: 1 | JH5: 2 | JI5: 2 | JJ5: 2 | JK5: 2 | JL5: 1 | JM5: 2 | JN5: 2 | JO5: 1 | JP5: 2 | JQ5: 1 | JR5: 2 | JS5: 1 | JT5: 1 | JU5: 2 | JV5: 2 | JW5: 1 | JX5: 2 | JY5: 2 | JZ5: 1 | KA5: 2 | KB5: 1 | KC5: 2 | KD5: 2 | KE5: 2 | KF5: 1 | KG5: 2 | KH5: 1 | KI5: 1 | KJ5: 1 | KK5: 2 | KL5: 2 | KM5: 2 | KN5: 1 | KO5: 1 | KP5: 1 | KQ5: 1 | KR5: 1 | KS5: 1 | KT5: 1 | KU5: 1 | KV5: 2 | KW5: 1 | KX5: 2 | KY5: 2 | KZ5: 1 | LA5: 2 | LB5: 2 | LC5: 1 | LD5: 1 | LE5: 2 | LF5: 1 | LG5: 2 | LH5: 1 | LI5: 1 | LJ5: 2 | LK5: 2 | LL5: 1 | LM5: 1 | LN5: 2 | LO5: 2 | LP5: 1 | LQ5: 2 | LR5: 1 | LS5: 2 | LT5: 1 | LU5: 1 | LV5: 1 | LW5: 1 | LX5: 1 | LY5: 2 | LZ5: 2 | MA5: 1 | MB5: 2 | MC5: 1 | MD5: 2 | ME5: 2 | MF5: 1 | MG5: 1 | MH5: 2 | MI5: 2 | MJ5: 2 | MK5: 1 | ML5: 2 | MM5: 1 | MN5: 1 | MO5: 1 | MP5: 2 | MQ5: 2 | MR5: 1 | MS5: 2 | MT5: 1 | MU5: 2 | MV5: 1 | MW5: 2 | MX5: 2 | MY5: 1 | MZ5: 1 | NA5: 2 | NB5: 2 | NC5: 2 | ND5: 1 | NE5: 2 | NF5: 1 | NG5: 1 | NH5: 2 | NI5: 2 | NJ5: 1 | NK5: 2 | NL5: 1 | NM5: 1 | NN5: 2 | NO5: 1 | NP5: 1 | NQ5: 2 | NR5: 2 | NS5: 2 | NT5: 2 | NU5: 1 | NV5: 2 | NW5: 2 | NX5: 2 | NY5: 2 | NZ5: 1 | OA5: 2 | OB5: 1 | OC5: 1 | OD5: 2 | OE5: 2 | OF5: 1 | OG5: 2 | OH5: 2 | OI5: 2 | OJ5: 1 | OK5: 1 | OL5: 1 | OM5: 1 | ON5: 1 | OO5: 1 | OP5: 1 | OQ5: 1 | OR5: 2 | OS5: 1 | OT5: 2 | OU5: 2 | OV5: 2 | OW5: 1 | OX5: 2 | OY5: 1 | OZ5: 1 | PA5: 1 | PB5: 2 | PC5: 1 | PD5: 2 | PE5: 2 | PF5: 2 | PG5: 2 | PH5: 1 | PI5: 2 | PJ5: 1 | PK5: 1 | PL5: 1 | PM5: 1 | PN5: 2 | PO5: 1 | PP5: 1 | PQ5: 1 | PR5: 2 | PS5: 2 | PT5: 1 | PU5: 1 | PV5: 2 | PW5: 1 | PX5: 2 | PY5: 1 | PZ5: 2 | QA5: 1 | QB5: 1 | QC5: 2 | QD5: 2 | QE5: 2 | QF5: 1
IJ6: Tchol.mM | IK6: 6.5 | IL6: 4.1 | IM6: 4.1 | IN6: 7.2 | IO6: 4.7 | IP6: 5.6 | IQ6: 6.6 | IR6: 6.1 | IS6: 5.3 | IT6: 6.2 | IU6: 6.5 | IV6: 7.3 | IW6: 6.5 | IX6: 7.4 | IY6: 5 | IZ6: 4.6 | JA6: 4.9 | JB6: 5.9 | JC6: 4.4 | JD6: 4.9 | JE6: 6.7 | JF6: 6.3 | JG6: 7.2 | JH6: 7.1 | JI6: 7.2 | JJ6: 5.9 | JK6: 5.4 | JL6: 6.3 | JM6: 6.4 | JN6: 6.9 | JO6: 5.2 | JP6: 3.3 | JQ6: 6.2 | JR6: 5.4 | JS6: 5.7 | JT6: 6.1 | JU6: 5.9 | JV6: 6.8 | JW6: 5.2 | JX6: 5.7 | JY6: 5.7 | JZ6: 6.5 | KA6: 6.1 | KB6: 6.2 | KC6: 6.3 | KD6: 7.7 | KE6: 6 | KF6: 5 | KG6: 7.3 | KH6: 4.9 | KI6: 4.9 | KJ6: 6 | KK6: 5.6 | KL6: 5.1 | KM6: 4 | KN6: 4.2 | KO6: 5.2 | KP6: 4.6 | KQ6: 6.6 | KR6: 6.5 | KS6: 7.8 | KU6: 7.6 | KV6: 7.3 | KW6: 5.9 | KX6: 5.4 | KY6: 6.8 | KZ6: 5.6 | LA6: 4.4 | LB6: 5.4 | LC6: 6.2 | LD6: 5.2 | LE6: 6.7 | LF6: 5.3 | LG6: 6.1 | LH6: 5.6 | LI6: 5.5 | LJ6: 5.9 | LK6: 5.7 | LL6: 7.6 | LM6: 5.6 | LN6: 5.6 | LO6: 6.6 | LP6: 6.6 | LQ6: 5.6 | LR6: 5.7 | LS6: 4 | LT6: 6.8 | LU6: 4.7 | LV6: 7.7 | LW6: 7.2 | LX6: 5.3 | LY6: 5.6 | LZ6: 4.1 | MB6: 3.2 | MC6: 6.7 | MD6: 5.4 | ME6: 6.4 | MF6: 5.3 | MG6: 5.6 | MH6: 5.2 | MI6: 6 | MJ6: 5.9 | MK6: 7.8 | ML6: 5.5 | MM6: 5.4 | MN6: 6.6 | MO6: 5.4 | MP6: 5.9 | MQ6: 5.7 | MR6: 8 | MS6: 6.1 | MT6: 6.3 | MU6: 4.9 | MV6: 5.5 | MW6: 6.8 | MX6: 5.4 | MY6: 7.1 | MZ6: 6.3 | NA6: 7.4 | NB6: 6.6 | NC6: 7 | ND6: 5.1 | NE6: 5.5 | NF6: 5.2 | NG6: 5.3 | NH6: 6.2 | NI6: 6.8 | NJ6: 6.1 | NK6: 5.8 | NL6: 6.1 | NM6: 5 | NN6: 3.8 | NO6: 6.5 | NP6: 5.7 | NQ6: 5.8 | NR6: 5.2 | NS6: 7.6 | NT6: 5.2 | NU6: 6.6 | NV6: 7.2 | NW6: 4.1 | NX6: 5.1 | NY6: 6.8 | NZ6: 5.4 | OA6: 3.6 | OB6: 5.1 | OC6: 7 | OD6: 5 | OE6: 5.4 | OF6: 7.4 | OG6: 5.2 | OH6: 6.1 | OI6: 4.8 | OJ6: 4.8 | OK6: 6.9 | OL6: 4.7 | OM6: 4.7 | ON6: 5.9 | OO6: 5 | OP6: 6.2 | OQ6: 6.5 | OR6: 4.2 | OS6: 6 | OT6: 5.6 | OU6: 6.3 | OV6: 6.6 | OX6: 6.7 | OY6: 7.2 | OZ6: 5.7 | PA6: 7 | PB6: 6 | PC6: 6.3 | PD6: 5.1 | PE6: 5.4 | PF6: 6.3 | PG6: 7.2 | PH6: 6.3 | PI6: 5.7 | PJ6: 5.1 | PK6: 5.2 | PL6: 6.2 | PM6: 5.4 | PN6: 7 | PO6: 4.7 | PP6: 7.5 | PQ6: 6.8 | PR6: 6.5 | PS6: 5.3 | PT6: 5 | PU6: 6.3 | PV6: 6.8 | PW6: 6 | PX6: 6.4 | PY6: 5.6 | PZ6: 7.4 | QA6: 5.2 | QB6: 6.3 | QC6: 5.2 | QD6: 6 | QE6: 5.8 | QF6: 7.6
IJ7: LDL.mM | IK7: 4.2 | IL7: 2.6 | IM7: 1.8 | IN7: 5.1 | IO7: 2.5 | IP7: 2.4 | IQ7: 4.2 | IR7: 4.1 | IS7: 3.4 | IT7: 3.7 | IU7: 4.1 | IV7: 4.9 | IW7: 4.3 | IX7: 4.8 | IY7: 2.6 | IZ7: 2.5 | JA7: 2.9 | JB7: 4.2 | JC7: 2.3 | JD7: 2.3 | JE7: 4.5 | JF7: 4.2 | JG7: 5.3 | JH7: 4.9 | JI7: 4.9 | JJ7: 3.9 | JK7: 3.3 | JL7: 3.7 | JM7: 4.2 | JN7: 4.5 | JO7: 3.4 | JP7: 1.8 | JQ7: 4.1 | JR7: 3.5 | JS7: 3.3 | JT7: 3.9 | JU7: 3.6 | JV7: 4.4 | JW7: 3.3 | JX7: 3.3 | JY7: 3.4 | JZ7: 4.5 | KA7: 3.4 | KB7: 4.1 | KC7: 3.4 | KD7: 5.4 | KE7: 3.6 | KF7: 2.7 | KG7: 4.8 | KH7: 3.1 | KI7: 2.2 | KJ7: 4 | KK7: 3.5 | KL7: 3.4 | KM7: 2 | KN7: 2.6 | KO7: 2.8 | KP7: 2.3 | KQ7: 4.4 | KR7: 4.4 | KS7: 4.4 | KU7: 4.4 | KV7: 4.9 | KW7: 3.4 | KX7: 2.9 | KY7: 4 | KZ7: 3.6 | LA7: 2.4 | LB7: 3.2 | LC7: 4.2 | LD7: 2.8 | LE7: 4.5 | LF7: 3.4 | LG7: 4.1 | LH7: 3.3 | LI7: 3.7 | LJ7: 3.3 | LK7: 3.7 | LL7: 5 | LM7: 3.5 | LN7: 3.7 | LO7: 4.2 | LP7: 4.2 | LQ7: 3.7 | LR7: 3.6 | LS7: 2.1 | LT7: 4.1 | LU7: 2.6 | LV7: 5.3 | LW7: 4.3 | LX7: 3 | LY7: 3.9 | LZ7: 2.3 | MB7: 1.6 | MC7: 3.7 | MD7: 2.5 | ME7: 4.3 | MF7: 3.3 | MG7: 3.5 | MH7: 3.1 | MI7: 2.8 | MJ7: 4 | MK7: 5.4 | ML7: 2.8 | MN7: 4.4 | MO7: 3.4 | MP7: 3.3 | MQ7: 3.6 | MR7: 5.7 | MS7: 3.5 | MT7: 4 | MU7: 3 | MV7: 3.3 | MW7: 3.4 | MX7: 2.9 | MY7: 4.9 | MZ7: 3.6 | NA7: 5.1 | NB7: 2.9 | NC7: 4.7 | ND7: 2.4 | NE7: 3.2 | NF7: 2.9 | NG7: 3.5 | NH7: 4.1 | NI7: 4.9 | NJ7: 3.6 | NK7: 3.5 | NL7: 4.1 | NM7: 3.3 | NN7: 2.1 | NO7: 4.5 | NP7: 3.3 | NQ7: 3.1 | NR7: 3.3 | NS7: 5.1 | NT7: 3.2 | NU7: 4.1 | NV7: 4.7 | NW7: 2 | NX7: 2.9 | NY7: 3.3 | NZ7: 3.3 | OA7: 1.5 | OB7: 3 | OC7: 3.9 | OD7: 3.4 | OE7: 3.1 | OF7: 4.6 | OG7: 3.1 | OH7: 4.1 | OI7: 2.9 | OJ7: 2.9 | OK7: 5 | OL7: 2.8 | OM7: 2.4 | ON7: 3.1 | OO7: 3.1 | OP7: 3.7 | OQ7: 4 | OR7: 2.6 | OS7: 4.1 | OT7: 3.1 | OU7: 4.3 | OV7: 4.4 | OX7: 4.1 | OY7: 4.9 | OZ7: 3.8 | PA7: 4.8 | PB7: 2.9 | PC7: 4.5 | PD7: 2.7 | PE7: 2.6 | PF7: 3.8 | PG7: 4.3 | PH7: 3.6 | PI7: 3.5 | PJ7: 2.4 | PK7: 3.1 | PL7: 4.1 | PM7: 3 | PN7: 4.2 | PO7: 2.4 | PP7: 5 | PQ7: 4.6 | PR7: 4.1 | PS7: 2.9 | PT7: 2.3 | PU7: 4.2 | PV7: 4.5 | PW7: 3.9 | PX7: 4.1 | PY7: 2.9 | PZ7: 5.5 | QA7: 3.3 | QB7: 3.7 | QC7: 2.1 | QD7: 3.7 | QE7: 3.6 | QF7: 5.2
IJ8: HDL.mM | IK8: 1.8 | IL8: 1.1 | IM8: 1.9 | IN8: 1.6 | IO8: 1.9 | IP8: 2.8 | IQ8: 1.6 | IR8: 1.4 | IS8: 1.3 | IT8: 1.9 | IU8: 1.7 | IV8: 1.7 | IW8: 1.4 | IX8: 1.6 | IY8: 2.1 | IZ8: 1.5 | JA8: 1.4 | JB8: 1 | JC8: 1.8 | JD8: 2.3 | JE8: 1.7 | JF8: 1.4 | JG8: 1.3 | JH8: 1.7 | JI8: 1.8 | JJ8: 1.4 | JK8: 1.6 | JL8: 2.2 | JM8: 1.6 | JN8: 1.7 | JO8: 1 | JP8: 1.3 | JQ8: 1.6 | JR8: 1.1 | JS8: 2.1 | JT8: 1.4 | JU8: 1.6 | JV8: 1.4 | JW8: 1.7 | JX8: 2 | JY8: 1.4 | JZ8: 1.5 | KA8: 1.7 | KB8: 1.6 | KC8: 1.6 | KD8: 1.7 | KE8: 1.5 | KF8: 1.7 | KG8: 2 | KH8: 1.4 | KI8: 2.5 | KJ8: 1.6 | KK8: 1.6 | KL8: 1.2 | KM8: 1.7 | KN8: 1.2 | KO8: 1.7 | KP8: 2.1 | KQ8: 1.5 | KR8: 1.6 | KS8: 1.6 | KU8: 2.6 | KV8: 1.8 | KW8: 2 | KX8: 2.1 | KY8: 1.4 | KZ8: 1.7 | LA8: 1.7 | LB8: 1.9 | LC8: 1.7 | LD8: 1.9 | LE8: 1.7 | LF8: 1.2 | LG8: 1.6 | LH8: 1.8 | LI8: 1.4 | LJ8: 1.3 | LK8: 1.3 | LL8: 1.5 | LM8: 1.5 | LN8: 1.2 | LO8: 1.8 | LP8: 1.9 | LQ8: 1.4 | LR8: 1 | LS8: 1.4 | LT8: 1.6 | LU8: 1.6 | LV8: 1.6 | LW8: 2.5 | LX8: 1.7 | LY8: 1.2 | LZ8: 1.3 | MB8: 1.3 | MC8: 2.3 | MD8: 2.5 | ME8: 1.7 | MF8: 1.1 | MG8: 1.4 | MH8: 1.5 | MI8: 1.4 | MJ8: 1.2 | MK8: 1.7 | ML8: 2.3 | MM8: 1.5 | MN8: 1.6 | MO8: 1.4 | MP8: 2.4 | MQ8: 1.5 | MR8: 1.5 | MS8: 2 | MT8: 1.9 | MU8: 1.4 | MV8: 1.7 | MW8: 2.9 | MX8: 2.1 | MY8: 1.6 | MZ8: 2.4 | NA8: 1.3 | NB8: 3.1 | NC8: 1.8 | ND8: 2.2 | NE8: 1.6 | NF8: 2 | NG8: 1.3 | NH8: 1.6 | NI8: 1.3 | NJ8: 1.5 | NK8: 1.4 | NL8: 1.5 | NM8: 1.4 | NN8: 1.4 | NO8: 1.5 | NP8: 1.9 | NQ8: 2.3 | NR8: 1.3 | NS8: 1.9 | NT8: 1.5 | NU8: 1.7 | NV8: 1.8 | NW8: 1.8 | NX8: 1.8 | NY8: 3 | NZ8: 1.5 | OA8: 1.7 | OB8: 1.2 | OC8: 2.6 | OD8: 1.3 | OE8: 1.6 | OF8: 1.9 | OG8: 1.5 | OH8: 1.6 | OI8: 1.2 | OJ8: 1.5 | OK8: 1.4 | OL8: 1.5 | OM8: 1.8 | ON8: 1 | OO8: 1.5 | OP8: 2 | OQ8: 2.1 | OR8: 1.2 | OS8: 1.4 | OT8: 1.9 | OU8: 1.5 | OV8: 1.7 | OX8: 1.7 | OY8: 1.4 | OZ8: 1 | PA8: 1.6 | PB8: 1.3 | PC8: 1.2 | PD8: 1.6 | PE8: 1.3 | PF8: 2.2 | PG8: 2.6 | PH8: 2.2 | PI8: 1.6 | PJ8: 2.2 | PK8: 1.9 | PL8: 1.3 | PM8: 1.8 | PN8: 1.5 | PO8: 1.8 | PP8: 1.4 | PQ8: 1.9 | PR8: 1.9 | PS8: 1.7 | PT8: 2.2 | PU8: 1.4 | PV8: 1.8 | PW8: 1.5 | PX8: 1.5 | PY8: 1 | PZ8: 1.3 | QA8: 1.6 | QB8: 2 | QC8: 2.7 | QD8: 1.7 | QE8: 1.7 | QF8: 1.7
IJ9: Trigly.mM | IK9: 1.1 | IL9: 0.8 | IM9: 0.8 | IN9: 1.2 | IO9: 0.7 | IP9: 0.9 | IQ9: 1.7 | IR9: 1.3 | IS9: 1.3 | IT9: 1.4 | IU9: 1.5 | IV9: 1.5 | IW9: 1.7 | IX9: 2.2 | IY9: 0.7 | IZ9: 1.3 | JA9: 1.3 | JB9: 1.6 | JC9: 0.6 | JD9: 0.6 | JE9: 1.2 | JF9: 1.6 | JG9: 1.4 | JH9: 1.1 | JI9: 1.2 | JJ9: 1.3 | JK9: 1.1 | JL9: 0.9 | JM9: 1.4 | JN9: 1.5 | JO9: 1.8 | JP9: 0.5 | JQ9: 1.2 | JR9: 1.7 | JS9: 0.7 | JT9: 1.7 | JU9: 1.6 | JV9: 2.3 | JW9: 0.5 | JX9: 0.8 | JY9: 1.9 | JZ9: 1.1 | KA9: 2.2 | KB9: 1.1 | KC9: 2.9 | KD9: 1.4 | KE9: 2 | KF9: 1.3 | KG9: 1.1 | KH9: 0.9 | KI9: 0.5 | KJ9: 0.9 | KK9: 1 | KL9: 1.2 | KM9: 0.7 | KN9: 0.8 | KO9: 1.5 | KP9: 0.5 | KQ9: 1.6 | KR9: 1.2 | KS9: 3.9 | KU9: 1.3 | KV9: 1.4 | KW9: 1.1 | KX9: 0.8 | KY9: 3.1 | KZ9: 0.7 | LA9: 0.7 | LB9: 0.7 | LC9: 0.7 | LD9: 1.1 | LE9: 1.2 | LF9: 1.6 | LG9: 0.9 | LH9: 1.2 | LI9: 0.8 | LJ9: 2.9 | LK9: 1.5 | LL9: 2.4 | LM9: 1.4 | LN9: 1.6 | LO9: 1.4 | LP9: 1 | LQ9: 1.1 | LR9: 2.4 | LS9: 1 | LT9: 2.5 | LU9: 1 | LV9: 1.7 | LW9: 0.9 | LX9: 1.3 | LY9: 1 | LZ9: 1.2 | MB9: 0.6 | MC9: 1.5 | MD9: 0.8 | ME9: 0.9 | MF9: 2 | MG9: 1.6 | MH9: 1.3 | MI9: 4 | MJ9: 1.5 | MK9: 1.6 | ML9: 0.8 | MM9: 1.6 | MN9: 1.3 | MO9: 1.3 | MP9: 0.5 | MQ9: 1.3 | MR9: 1.7 | MS9: 1.4 | MT9: 0.8 | MU9: 1.2 | MV9: 1 | MW9: 1 | MX9: 0.8 | MY9: 1.4 | MZ9: 0.6 | NA9: 2.1 | NB9: 1.3 | NC9: 1.1 | ND9: 1.1 | NE9: 1.6 | NF9: 0.6 | NG9: 1.2 | NH9: 1.2 | NI9: 1.3 | NJ9: 2.2 | NK9: 2 | NL9: 1.2 | NM9: 0.7 | NN9: 0.7 | NO9: 1 | NP9: 1.1 | NQ9: 0.8 | NR9: 1.4 | NS9: 1.4 | NT9: 1.1 | NU9: 1.8 | NV9: 1.6 | NW9: 0.7 | NX9: 0.8 | NY9: 1.1 | NZ9: 1.4 | OA9: 0.8 | OB9: 1.9 | OC9: 1.1 | OD9: 0.7 | OE9: 1.6 | OF9: 1.9 | OG9: 1.4 | OH9: 0.8 | OI9: 1.5 | OJ9: 0.8 | OK9: 1.1 | OL9: 0.8 | OM9: 1.1 | ON9: 3.9 | OO9: 0.8 | OP9: 1 | OQ9: 0.8 | OR9: 0.9 | OS9: 1.1 | OT9: 1.4 | OU9: 1.2 | OV9: 1.2 | OX9: 1.9 | OY9: 1.9 | OZ9: 1.9 | PA9: 1.3 | PB9: 4.8 | PC9: 1.3 | PD9: 1.7 | PE9: 3.3 | PF9: 0.6 | PG9: 0.6 | PH9: 1.1 | PI9: 1.3 | PJ9: 1.2 | PK9: 0.5 | PL9: 1.7 | PM9: 1.4 | PN9: 2.9 | PO9: 1.1 | PP9: 2.4 | PQ9: 0.6 | PR9: 1.2 | PS9: 1.5 | PT9: 1 | PU9: 1.5 | PV9: 1.1 | PW9: 1.4 | PX9: 1.7 | PY9: 3.7 | PZ9: 1.4 | QA9: 0.6 | QB9: 1.3 | QC9: 0.9 | QD9: 1.3 | QE9: 1.1 | QF9: 1.6
IJ10: NonHDL.mM | IK10: 4.7 | IL10: 3 | IM10: 2.2 | IN10: 5.6 | IO10: 2.8 | IP10: 2.8 | IQ10: 5 | IR10: 4.7 | IS10: 4 | IT10: 4.3 | IU10: 4.8 | IV10: 5.6 | IW10: 5.1 | IX10: 5.8 | IY10: 2.9 | IZ10: 3.1 | JA10: 3.5 | JB10: 4.9 | JC10: 2.6 | JD10: 2.6 | JE10: 5 | JF10: 4.9 | JG10: 5.9 | JH10: 5.4 | JI10: 5.4 | JJ10: 4.5 | JK10: 3.8 | JL10: 4.1 | JM10: 4.8 | JN10: 5.2 | JO10: 4.2 | JP10: 2 | JQ10: 4.6 | JR10: 4.3 | JS10: 3.6 | JT10: 4.7 | JU10: 4.3 | JV10: 5.4 | JW10: 3.5 | JX10: 3.7 | JY10: 4.3 | JZ10: 5 | KA10: 4.4 | KB10: 4.6 | KC10: 4.7 | KD10: 6 | KE10: 4.5 | KF10: 3.3 | KG10: 5.3 | KH10: 3.5 | KI10: 2.4 | KJ10: 4.4 | KK10: 4 | KL10: 3.9 | KM10: 2.3 | KN10: 3 | KO10: 3.5 | KP10: 2.5 | KQ10: 5.1 | KR10: 4.9 | KS10: 6.2 | KU10: 5 | KV10: 5.5 | KW10: 3.9 | KX10: 3.3 | KY10: 5.4 | KZ10: 3.9 | LA10: 2.7 | LB10: 3.5 | LC10: 4.5 | LD10: 3.3 | LE10: 5 | LF10: 4.1 | LG10: 4.5 | LH10: 3.8 | LI10: 4.1 | LJ10: 4.6 | LK10: 4.4 | LL10: 6.1 | LM10: 4.1 | LN10: 4.4 | LO10: 4.8 | LP10: 4.7 | LQ10: 4.2 | LR10: 4.7 | LS10: 2.6 | LT10: 5.2 | LU10: 3.1 | LV10: 6.1 | LW10: 4.7 | LX10: 3.6 | LY10: 4.4 | LZ10: 2.8 | MB10: 1.9 | MC10: 4.4 | MD10: 2.9 | ME10: 4.7 | MF10: 4.2 | MG10: 4.2 | MH10: 3.7 | MI10: 4.6 | MJ10: 4.7 | MK10: 6.1 | ML10: 3.2 | MM10: 3.9 | MN10: 5 | MO10: 4 | MP10: 3.5 | MQ10: 4.2 | MR10: 6.5 | MS10: 4.1 | MT10: 4.4 | MU10: 3.5 | MV10: 3.8 | MW10: 3.9 | MX10: 3.3 | MY10: 5.5 | MZ10: 3.9 | NA10: 6.1 | NB10: 3.5 | NC10: 5.2 | ND10: 2.9 | NE10: 3.9 | NF10: 3.2 | NG10: 4 | NH10: 4.6 | NI10: 5.5 | NJ10: 4.6 | NK10: 4.4 | NL10: 4.6 | NM10: 3.6 | NN10: 2.4 | NO10: 5 | NP10: 3.8 | NQ10: 3.5 | NR10: 3.9 | NS10: 5.7 | NT10: 3.7 | NU10: 4.9 | NV10: 5.4 | NW10: 2.3 | NX10: 3.3 | NY10: 3.8 | NZ10: 3.9 | OA10: 1.9 | OB10: 3.9 | OC10: 4.4 | OD10: 3.7 | OE10: 3.8 | OF10: 5.5 | OG10: 3.7 | OH10: 4.5 | OI10: 3.6 | OJ10: 3.3 | OK10: 5.5 | OL10: 3.2 | OM10: 2.9 | ON10: 4.9 | OO10: 3.5 | OP10: 4.2 | OQ10: 4.4 | OR10: 3 | OS10: 4.6 | OT10: 3.7 | OU10: 4.8 | OV10: 4.9 | OX10: 5 | OY10: 5.8 | OZ10: 4.7 | PA10: 5.4 | PB10: 4.7 | PC10: 5.1 | PD10: 3.5 | PE10: 4.1 | PF10: 4.1 | PG10: 4.6 | PH10: 4.1 | PI10: 4.1 | PJ10: 2.9 | PK10: 3.3 | PL10: 4.9 | PM10: 3.6 | PN10: 5.5 | PO10: 2.9 | PP10: 6.1 | PQ10: 4.9 | PR10: 4.6 | PS10: 3.6 | PT10: 2.8 | PU10: 4.9 | PV10: 5 | PW10: 4.5 | PX10: 4.9 | PY10: 4.6 | PZ10: 6.1 | QA10: 3.6 | QB10: 4.3 | QC10: 2.5 | QD10: 4.3 | QE10: 4.1 | QF10: 5.9
IJ11: Gluc.mM | IK11: 4.4 | IL11: 4.6 | IM11: 5.2 | IN11: 5.5 | IO11: 4.3 | IP11: 4.7 | IQ11: 4.3 | IR11: 5.4 | IS11: 4.8 | IT11: 4.9 | IU11: 4.7 | IV11: 4.4 | IW11: 5.2 | IX11: 5.9 | IY11: 4.3 | IZ11: 4.9 | JA11: 5.1 | JB11: 6.2 | JC11: 4.7 | JD11: 4.4 | JE11: 5.1 | JF11: 6 | JG11: 5.1 | JH11: 4.8 | JI11: 4.5 | JJ11: 5.3 | JK11: 4.9 | JL11: 5.2 | JM11: 4.8 | JN11: 5.2 | JO11: 5.8 | JP11: 4.7 | JQ11: 4.7 | JR11: 5.3 | JS11: 4.5 | JT11: 4.4 | JU11: 5.2 | JV11: 4.9 | JW11: 4.7 | JX11: 4.8 | JY11: 4.6 | JZ11: 4.7 | KA11: 5.1 | KB11: 4.7 | KC11: 4.4 | KD11: 4.5 | KE11: 5.1 | KF11: 5 | KG11: 4.6 | KH11: 4.5 | KI11: 5.1 | KJ11: 4.7 | KL11: 5.5 | KM11: 5.1 | KN11: 4.5 | KO11: 4.9 | KP11: 4.7 | KQ11: 4.8 | KR11: 5.2 | KS11: 5.9 | KU11: 4.2 | KV11: 4.9 | KW11: 5.3 | KX11: 3.8 | KY11: 5.1 | KZ11: 4.8 | LA11: 4.3 | LB11: 4.8 | LC11: 5.2 | LD11: 5.2 | LE11: 5.2 | LF11: 4.5 | LG11: 4.8 | LH11: 5.1 | LI11: 5.5 | LJ11: 5 | LK11: 5.5 | LL11: 6 | LM11: 5.4 | LN11: 5.4 | LO11: 5.4 | LP11: 4.8 | LQ11: 5.2 | LR11: 5.1 | LS11: 4.9 | LT11: 4.7 | LU11: 5.8 | LV11: 4.8 | LW11: 4.5 | LX11: 5.1 | LY11: 4.7 | LZ11: 5.2 | MB11: 4.7 | MC11: 4.3 | MD11: 4.8 | ME11: 4.6 | MF11: 4.4 | MG11: 5.9 | MH11: 5.5 | MI11: 4.5 | MJ11: 5.2 | MK11: 5.1 | ML11: 5 | MM11: 5 | MN11: 5.2 | MO11: 4.7 | MP11: 4.2 | MQ11: 5.6 | MR11: 4.9 | MS11: 5.3 | MT11: 4.6 | MU11: 5.1 | MV11: 5.2 | MW11: 5.3 | MX11: 4.3 | MY11: 5.3 | MZ11: 4.7 | NA11: 5 | NB11: 5.4 | NC11: 4.8 | ND11: 5.4 | NE11: 4.9 | NF11: 5.1 | NG11: 5.7 | NH11: 4.7 | NI11: 5.1 | NJ11: 4.7 | NK11: 5.8 | NL11: 5 | NM11: 4.7 | NN11: 4.3 | NO11: 4.9 | NP11: 5.3 | NQ11: 5.4 | NR11: 5.8 | NS11: 4.8 | NT11: 4.8 | NU11: 4.9 | NV11: 5.5 | NW11: 5.5 | NX11: 4.9 | NY11: 5.5 | NZ11: 5.2 | OA11: 5 | OB11: 4.3 | OC11: 4.3 | OD11: 4.7 | OE11: 5.2 | OF11: 4.8 | OG11: 5.7 | OH11: 5.2 | OI11: 4.9 | OJ11: 4.8 | OK11: 4.6 | OL11: 4.8 | OM11: 4.9 | ON11: 5.6 | OO11: 5.1 | OP11: 5.3 | OQ11: 5.6 | OR11: 4.8 | OS11: 4.8 | OT11: 5.6 | OU11: 4.9 | OV11: 4.9 | OX11: 5.7 | OY11: 5 | OZ11: 5.9 | PA11: 4.6 | PB11: 5.1 | PC11: 5 | PD11: 5.1 | PE11: 4.6 | PF11: 4.4 | PG11: 4.2 | PH11: 4.9 | PI11: 5 | PJ11: 5.6 | PK11: 5.1 | PL11: 5 | PM11: 5.3 | PN11: 5.2 | PO11: 4.7 | PP11: 6 | PQ11: 4.5 | PR11: 5 | PS11: 5 | PT11: 5.4 | PU11: 5.1 | PV11: 4.9 | PW11: 4.9 | PX11: 5.9 | PY11: 6 | PZ11: 4.9 | QA11: 4.8 | QB11: 4.9 | QC11: 5.4 | QD11: 4.7 | QE11: 4.3 | QF11: 5
IJ12: Insulin.IUperL | IK12: 9.175 | IL12: 3.055 | IM12: 2.21 | IN12: 9.217 | IO12: 3.4685 | IP12: 4.14 | IQ12: 3.41 | IR12: 7.73 | IS12: 3.265 | IT12: 3.805 | IU12: 8.921 | IV12: 2.81 | IW12: 7.23 | IX12: 3.425 | IY12: 5.905 | IZ12: 16.835 | JA12: 4.0765 | JB12: 5.009 | JC12: 5.03 | JD12: 3.9585 | JE12: 8.59 | JF12: 6.344 | JG12: 8.27 | JH12: 13.935 | JI12: 4.12 | JJ12: 3.14 | JK12: 2.565 | JL12: 5.27 | JM12: 3.675 | JN12: 1.84 | JO12: 6.33 | JP12: 2.995 | JQ12: 4.405 | JR12: 1.785 | JS12: 2.43 | JT12: 6.64 | JU12: 10.2695 | JV12: 5.695 | JW12: 2.32 | JX12: 10.35 | JY12: 7.49 | JZ12: 3.8895 | KA12: 8.865 | KB12: 3.695 | KC12: 9.83 | KD12: 3.6855 | KE12: 5.56 | KF12: 5.909 | KG12: 4.685 | KH12: 3.425 | KI12: 4.39 | KJ12: 4.9 | KK12: 8.18 | KL12: 20.851 | KM12: 6.7205 | KN12: 5.27 | KO12: 4.41 | KP12: 3.335 | KQ12: 3.87 | KR12: 5.763 | KS12: 12.895 | KT12: 5.8065 | KU12: 3.195 | KV12: 7.62 | KW12: 6.22 | KX12: 4.235 | KY12: 3.63 | KZ12: 2.436 | LA12: 3.47 | LB12: 7.66 | LC12: 3.305 | LD12: 4.175 | LE12: 11.066 | LF12: 9.494 | LG12: 12.791 | LH12: 2.429 | LI12: 7.33 | LJ12: 9.55 | LK12: 6.865 | LL12: 7.31 | LM12: 3.635 | LN12: 4.7455 | LO12: 3.51 | LP12: 3.95 | LQ12: 17.195 | LR12: 11.185 | LS12: 9.275 | LT12: 10.855 | LU12: 10.15 | LV12: 1.43 | LW12: 2.95 | LX12: 3.66 | LY12: 3.525 | LZ12: 7.788 | MA12: 6.03 | MB12: 3.5195 | MC12: 2.71 | MD12: 4.178 | ME12: 7.165 | MF12: 11.87 | MG12: 6.12 | MH12: 5.185 | MI12: 9.21 | MJ12: 4.845 | MK12: 1.6475 | ML12: 4.815 | MM12: 6.535 | MN12: 4.055 | MO12: 3.475 | MP12: 2.865 | MQ12: 7.6385 | MR12: 9.025 | MS12: 12.27 | MT12: 2.47 | MU12: 5.25 | MV12: 5.5585 | MW12: 4.483 | MX12: 5.75 | MY12: 7.97 | MZ12: 3.315 | NA12: 14.4 | NB12: 8.87 | NC12: 6.025 | ND12: 7.235 | NE12: 6.077 | NF12: 1.78 | NG12: 5.585 | NH12: 13.255 | NI12: 4.42 | NJ12: 9.755 | NK12: 6.765 | NL12: 6.48 | NM12: 2.575 | NN12: 3.26 | NO12: 5.746 | NP12: 5.485 | NQ12: 6.026 | NR12: 6.515 | NS12: 3.64 | NT12: 4.935 | NU12: 4.815 | NV12: 14.09 | NW12: 2.945 | NX12: 6.7625 | NY12: 4.395 | NZ12: 2.68 | OA12: 1.365 | OB12: 8.595 | OC12: 5.2965 | OD12: 3 | OE12: 2.235 | OF12: 2.05 | OG12: 4.855 | OH12: 9.9205 | OI12: 21.69 | OJ12: 4.005 | OK12: 2.785 | OL12: 4.475 | OM12: 3.995 | ON12: 10.345 | OO12: 3.688 | OP12: 5.89 | OQ12: 3.747 | OR12: 2.575 | OS12: 4.02 | OT12: 12.185 | OU12: 8.235 | OV12: 10.836 | OW12: 7.34 | OX12: 12.2165 | OY12: 3.95 | OZ12: 7.44 | PA12: 4.856 | PB12: 13.7805 | PC12: 8.44 | PD12: 3.2215 | PE12: 8.805 | PF12: 3.035 | PG12: 6.313 | PH12: 2.865 | PI12: 7.08 | PJ12: 8.235 | PK12: 1.7345 | PL12: 7.755 | PM12: 3.917 | PN12: 7.115 | PO12: 4.23 | PP12: 7.776 | PQ12: 2.31 | PR12: 3.5525 | PS12: 3.47 | PT12: 7.015 | PU12: 5.635 | PV12: 3.908 | PW12: 6.625 | PX12: 10.7 | PY12: 12.807 | PZ12: 10.97 | QA12: 1.74 | QB12: 2.68 | QC12: 3.345 | QD12: 4.06 | QE12: 3.095 | QF12: 2.995
IJ13: CRP | IK13: 1.3 | IL13: 1.3 | IM13: 2.7 | IN13: 0.6 | IO13: 1.2 | IQ13: 0.9 | IR13: 1.1 | IS13: 0.9 | IT13: 0.6 | IU13: 4.7 | IV13: 0.7 | IW13: 0.6 | IX13: 1.3 | IY13: 2.1 | IZ13: 0.5 | JA13: 1 | JB13: 1.7 | JC13: 1.9 | JD13: 0.8 | JE13: 2.9 | JF13: 0.8 | JG13: 1 | JH13: 1.5 | JI13: 1.4 | JJ13: 2.4 | JL13: 0.7 | JM13: 0.6 | JN13: 0.2 | JO13: 1.6 | JP13: 0.2 | JQ13: 1.3 | JR13: 1.4 | JS13: 0.5 | JT13: 2.3 | JU13: 10.1 | JV13: 8.6 | JX13: 0.3 | JY13: 1.5 | JZ13: 0.6 | KA13: 0.5 | KB13: 0.6 | KC13: 3.4 | KD13: 0.8 | KE13: 0.7 | KF13: 1.3 | KG13: 2.4 | KH13: 7 | KI13: 0.5 | KJ13: 3.8 | KK13: 1.6 | KL13: 1.6 | KM13: 20.6 | KN13: 0.7 | KO13: 2.2 | KP13: 0.4 | KR13: 0.5 | KS13: 1.6 | KU13: 0.6 | KV13: 1.1 | KW13: 0.4 | KX13: 1.3 | KY13: 5.1 | KZ13: 1 | LA13: 2 | LB13: 0.4 | LC13: 1.5 | LD13: 0.4 | LE13: 2.2 | LF13: 0.6 | LG13: 1.3 | LH13: 0.4 | LI13: 0.2 | LJ13: 1.3 | LK13: 1 | LL13: 2.4 | LM13: 2.2 | LN13: 0.5 | LO13: 1.7 | LP13: 0.4 | LQ13: 0.8 | LR13: 2.5 | LS13: 0.3 | LT13: 7.3 | LU13: 0.3 | LV13: 1 | LW13: 1.1 | LX13: 0.5 | LY13: 1.3 | LZ13: 0.3 | MB13: 0.2 | MC13: 0.6 | MD13: 0.5 | ME13: 25.3 | MF13: 1.1 | MG13: 1.1 | MH13: 2.9 | MI13: 3.1 | MJ13: 2.7 | MK13: 0.9 | ML13: 0.3 | MM13: 2.7 | MN13: 0.9 | MO13: 0.4 | MP13: 1.6 | MQ13: 2.8 | MR13: 3.9 | MS13: 4 | MT13: 0.4 | MU13: 0.6 | MV13: 2.1 | MW13: 3.3 | MX13: 0.3 | MY13: 3 | MZ13: 0.6 | NA13: 0.5 | NB13: 3.4 | NC13: 3.2 | ND13: 0.9 | NE13: 3.1 | NF13: 0.6 | NG13: 0.3 | NH13: 1.2 | NI13: 1.9 | NJ13: 33.3 | NK13: 2.4 | NL13: 3.1 | NM13: 1.1 | NN13: 0.2 | NO13: 1.1 | NP13: 0.4 | NQ13: 0.3 | NR13: 1.2 | NS13: 1.1 | NT13: 1.1 | NU13: 5.8 | NV13: 2.2 | NW13: 2.2 | NX13: 0.3 | NY13: 2.1 | NZ13: 1.2 | OA13: 1.7 | OC13: 0.5 | OD13: 1.6 | OE13: 1.4 | OF13: 0.6 | OG13: 2 | OH13: 1.3 | OI13: 1 | OJ13: 3.3 | OK13: 1.8 | OL13: 0.9 | OM13: 2 | ON13: 1.6 | OO13: 0.3 | OP13: 0.9 | OQ13: 0.8 | OR13: 0.5 | OS13: 2 | OT13: 4.5 | OU13: 0.9 | OV13: 1.5 | OX13: 1.2 | OY13: 0.9 | OZ13: 1.5 | PA13: 0.3 | PB13: 3.3 | PC13: 1.2 | PD13: 1.1 | PE13: 1.8 | PF13: 0.8 | PG13: 0.6 | PJ13: 0.5 | PK13: 0.5 | PL13: 1.9 | PM13: 2 | PN13: 4.1 | PO13: 2.4 | PP13: 1 | PQ13: 0.5 | PR13: 1 | PS13: 0.7 | PT13: 0.4 | PU13: 1.6 | PV13: 1.7 | PW13: 2.1 | PX13: 1.7 | PZ13: 0.6 | QA13: 0.7 | QB13: 0.7 | QC13: 12.1 | QD13: 0.7 | QE13: 1.2 | QF13: 0.8
IJ14: HOMA | IK14: 1.79 | IL14: 0.66 | IM14: 0.5 | IN14: 2.28 | IO14: 0.7 | IP14: 0.86 | IQ14: 0.66 | IR14: 1.86 | IS14: 0.7 | IT14: 0.88 | IU14: 1.83 | IV14: 0.5 | IW14: 1.71 | IX14: 0.86 | IY14: 1.2 | IZ14: 3.79 | JA14: 0.92 | JB14: 1.37 | JC14: 1.05 | JD14: 0.82 | JE14: 1.97 | JF14: 1.68 | JG14: 1.86 | JH14: 2.92 | JI14: 0.83 | JJ14: 0.72 | JK14: 0.59 | JL14: 1.18 | JM14: 0.81 | JN14: 0.44 | JP14: 0.61 | JQ14: 0.91 | JR14: 0.43 | JS14: 0.52 | JT14: 1.31 | JU14: 2.37 | JV14: 1.24 | JW14: 0.49 | JX14: 2.19 | JY14: 1.52 | JZ14: 0.8 | KA14: 1.9 | KB14: 0.76 | KC14: 1.94 | KD14: 0.75 | KE14: 1.23 | KF14: 1.3 | KG14: 0.97 | KH14: 0.72 | KI14: 1 | KJ14: 1.09 | KL14: 5.26 | KM14: 1.43 | KN14: 1.07 | KO14: 0.94 | KP14: 0.75 | KQ14: 0.83 | KR14: 1.3 | KS14: 3.31 | KU14: 0.61 | KV14: 1.56 | KW14: 1.48 | KX14: 0.77 | KY14: 0.8 | KZ14: 0.53 | LA14: 0.65 | LB14: 1.62 | LC14: 0.79 | LD14: 0.97 | LE14: 2.53 | LF14: 1.88 | LG14: 2.73 | LH14: 0.55 | LI14: 1.74 | LJ14: 2.12 | LK14: 1.68 | LL14: 1.85 | LM14: 0.85 | LN14: 1.17 | LO14: 0.84 | LP14: 0.82 | LQ14: 4.01 | LR14: 2.45 | LS14: 2.04 | LT14: 2.27 | LU14: 2.57 | LV14: 0.32 | LW14: 0.63 | LX14: 0.83 | LY14: 0.75 | LZ14: 1.76 | MB14: 0.74 | MC14: 0.52 | MD14: 0.89 | ME14: 1.47 | MF14: 2.35 | MG14: 1.62 | MH14: 1.26 | MI14: 1.99 | MJ14: 1.09 | MK14: 0.37 | ML14: 1.03 | MM14: 1.47 | MN14: 0.93 | MO14: 0.75 | MP14: 0.57 | MQ14: 1.9 | MR14: 1.99 | MS14: 2.82 | MT14: 0.52 | MU14: 1.16 | MV14: 1.34 | MW14: 1.05 | MX14: 1.15 | MY14: 1.83 | MZ14: 0.69 | NA14: 3.31 | NB14: 2.11 | ND14: 1.71 | NE14: 1.32 | NF14: 0.4 | NG14: 1.37 | NH14: 2.71 | NI14: 0.98 | NJ14: 2.04 | NK14: 1.63 | NL14: 1.46 | NM14: 0.54 | NN14: 0.63 | NO14: 1.24 | NP14: 1.27 | NQ14: 1.39 | NR14: 1.65 | NS14: 0.76 | NT14: 1.06 | NU14: 1.01 | NV14: 3.48 | NW14: 0.69 | NX14: 1.5 | NY14: 1 | NZ14: 0.6 | OA14: 0.3 | OB14: 1.66 | OC14: 1.02 | OD14: 0.65 | OE14: 0.54 | OF14: 0.44 | OG14: 1.18 | OH14: 2.27 | OI14: 4.93 | OJ14: 0.83 | OK14: 0.61 | OL14: 0.96 | OM14: 0.86 | ON14: 2.44 | OO14: 0.84 | OP14: 1.35 | OQ14: 0.9 | OR14: 0.55 | OS14: 0.87 | OT14: 2.9 | OU14: 1.84 | OV14: 2.27 | OX14: 3 | OY14: 0.89 | OZ14: 1.98 | PA14: 1.01 | PB14: 3.12 | PC14: 1.83 | PD14: 0.7 | PE14: 1.84 | PF14: 0.6 | PG14: 1.23 | PH14: 0.61 | PI14: 1.59 | PJ14: 2.01 | PK14: 0.4 | PL14: 1.67 | PM14: 0.87 | PN14: 1.59 | PO14: 0.89 | PP14: 2.09 | PQ14: 0.47 | PR14: 0.87 | PS14: 0.76 | PT14: 1.63 | PU14: 1.26 | PV14: 0.85 | PW14: 1.43 | PX14: 2.66 | PY14: 3.33 | PZ14: 2.44 | QA14: 0.35 | QB14: 0.6 | QC14: 0.77 | QD14: 0.86 | QE14: 0.62 | QF14: 0.67
IJ15: E.selectin | IK15: 29.965 | IL15: 25.82 | IM15: 20.565 | IN15: 29.055 | IO15: 21.7 | IP15: 19.13 | IQ15: 8.875 | IR15: 8.14 | IS15: 28.955 | IT15: 13.405 | IU15: 29.015 | IV15: 23.34 | IW15: 15.765 | IX15: 15.125 | IY15: 22.805 | IZ15: 33.795 | JA15: 14.595 | JB15: 19.945 | JC15: 23.94 | JD15: 21.775 | JE15: 10.985 | JF15: 17.79 | JG15: 34.43 | JH15: 18.17 | JI15: 9.245 | JJ15: 8.815 | JK15: 24.42 | JL15: 24.76 | JM15: 18.17 | JN15: 10.735 | JO15: 17.33 | JP15: 25.84 | JQ15: 30.115 | JR15: 13.5 | JS15: 25.49 | JT15: 27.285 | JU15: 18.855 | JV15: 21.47 | JW15: 6.66 | JX15: 30.49 | JY15: 17.835 | JZ15: 28.855 | KA15: 19.11 | KB15: 18.67 | KC15: 48.39 | KD15: 8.685 | KE15: 20.37 | KF15: 20.695 | KG15: 15.66 | KH15: 12.69 | KI15: 21.39 | KJ15: 14.86 | KK15: 29.625 | KL15: 17.7 | KM15: 21.34 | KN15: 27.47 | KO15: 22.515 | KP15: 18.695 | KQ15: 19.28 | KR15: 18.755 | KS15: 19.025 | KT15: 71.85 | KU15: 10.78 | KV15: 12.475 | KW15: 31.07 | KX15: 24.56 | KY15: 19.565 | KZ15: 4.65 | LA15: 18.815 | LB15: 27.635 | LC15: 26.265 | LD15: 9.22 | LE15: 9.275 | LF15: 40.835 | LG15: 15.56333 | LH15: 10.115 | LI15: 24.42 | LJ15: 16.655 | LK15: 19.9 | LL15: 22.01 | LM15: 21.94 | LN15: 18.525 | LO15: 13.65 | LP15: 14 | LQ15: 18.26 | LR15: 29.415 | LS15: 17.42 | LT15: 29.165 | LU15: 28.185 | LV15: 35.695 | LW15: 22.69 | LX15: 10.855 | LY15: 46.675 | LZ15: 32.73 | MA15: 65.7 | MB15: 7.86 | MC15: 11.5 | MD15: 17.625 | ME15: 16.515 | MF15: 43.57 | MG15: 7.47 | MH15: 36.185 | MI15: 42.66 | MJ15: 36.645 | MK15: 39.035 | ML15: 7.925 | MM15: 22.41 | MN15: 16.965 | MO15: 22.565 | MP15: 16.825 | MQ15: 32.555 | MR15: 18.92 | MS15: 24.11 | MT15: 14.21 | MU15: 14.925 | MV15: 28.33 | MW15: 12.04 | MX15: 8.135 | MY15: 23.52 | MZ15: 30.32 | NA15: 21.695 | NB15: 12.03 | NC15: 11.625 | ND15: 23.11 | NE15: 12.895 | NF15: 23.4 | NG15: 23.38 | NH15: 14.78 | NI15: 35.235 | NJ15: 26.13 | NK15: 22.035 | NL15: 8.32 | NM15: 29.73 | NN15: 6.08 | NO15: 11.395 | NP15: 28.195 | NQ15: 8.155 | NR15: 20.49 | NS15: 14.27 | NT15: 14.15 | NU15: 25.51 | NV15: 28.69 | NW15: 20.26 | NX15: 27.125 | NY15: 11.59 | NZ15: 20.125 | OA15: 20.63 | OB15: 38.34 | OC15: 10.26 | OD15: 25.175 | OE15: 20.975 | OF15: 20.03 | OG15: 31.93 | OH15: 30.57 | OI15: 13.62 | OJ15: 15.7 | OK15: 16.965 | OL15: 28.94 | OM15: 22.51 | ON15: 30.775 | OO15: 27.185 | OP15: 19.07 | OQ15: 19.238 | OR15: 21.825 | OS15: 9.44 | OT15: 26.555 | OU15: 30.815 | OV15: 32.1 | OW15: 62.5 | OX15: 28.325 | OY15: 15.865 | OZ15: 21.075 | PA15: 15.55 | PB15: 40.43 | PC15: 25.01 | PD15: 25.205 | PE15: 17.585 | PF15: 20.035 | PG15: 18.325 | PH15: 18.735 | PI15: 13.98 | PJ15: 28.63 | PK15: 24.29 | PL15: 27.2 | PM15: 26.505 | PN15: 19.265 | PO15: 24.265 | PP15: 19.995 | PQ15: 14.07 | PR15: 14.495 | PS15: 14.17 | PT15: 28.505 | PU15: 14.97 | PV15: 34.295 | PW15: 37.96 | PX15: 27.7 | PY15: 32.01 | PZ15: 18.395 | QA15: 2.42 | QB15: 20.19 | QC15: 17.465 | QD15: 8.315 | QE15: 6.855 | QF15: 37.22
IJ16: ICAM | IK16: 126.04 | IL16: 156.48 | IM16: 129.64 | IN16: 112.12 | IO16: 114.16 | IP16: 76.12 | IQ16: 60.08 | IR16: 67.44 | IS16: 159.52 | IT16: 68.52 | IU16: 103.8 | IV16: 75.96 | IW16: 85.76 | IX16: 186.48 | IY16: 97.72 | IZ16: 131.8 | JA16: 133.4 | JB16: 93.72 | JC16: 182.72 | JD16: 110.28 | JE16: 118.4 | JF16: 62.4 | JG16: 86.72 | JH16: 119.32 | JI16: 65.28 | JJ16: 160.4 | JK16: 137.28 | JL16: 121.64 | JM16: 95 | JN16: 132.76 | JO16: 104.72 | JP16: 65 | JQ16: 167 | JR16: 246.36 | JS16: 97.56 | JT16: 54.44 | JU16: 144.4 | JV16: 179.8 | JW16: 80.88 | JX16: 146.96 | JY16: 95.16 | JZ16: 120.92 | KA16: 172.64 | KB16: 109.8 | KC16: 132.72 | KD16: 67.76 | KE16: 99.08 | KF16: 129.36 | KG16: 136.84 | KH16: 132.44 | KI16: 74.76 | KJ16: 132.2 | KK16: 117.84 | KL16: 98.84 | KM16: 168.84 | KN16: 93.04 | KO16: 144.2 | KP16: 85.36 | KQ16: 106.12 | KR16: 102.36 | KS16: 104.8 | KT16: 126.48 | KU16: 145.4 | KV16: 165.44 | KW16: 90.16 | KX16: 91.56 | KY16: 169.56 | KZ16: 81.6 | LA16: 195.56 | LB16: 123.72 | LC16: 143.32 | LD16: 94.84 | LE16: 126.88 | LF16: 266.52 | LG16: 113 | LH16: 110.2 | LI16: 114.4 | LJ16: 71.84 | LK16: 78.08 | LL16: 75.6 | LM16: 139.72 | LN16: 61.24 | LO16: 82.72 | LP16: 122.04 | LQ16: 98.56 | LR16: 102.48 | LS16: 131.24 | LT16: 102.92 | LU16: 112.08 | LV16: 118.08 | LW16: 120.44 | LX16: 107.36 | LY16: 158.52 | LZ16: 130.56 | MA16: 131 | MB16: 71.72 | MC16: 138.6 | MD16: 96.44 | ME16: 139.88 | MF16: 96.92 | MG16: 58.68 | MH16: 130.52 | MI16: 109 | MJ16: 144.08 | MK16: 93.68 | ML16: 99.16 | MM16: 142.88 | MN16: 100.52 | MO16: 151.68 | MP16: 121.92 | MQ16: 123.36 | MR16: 121.48 | MS16: 139.84 | MT16: 118.44 | MU16: 138.32 | MV16: 136.48 | MW16: 119.44 | MX16: 113.44 | MY16: 140.16 | MZ16: 114.92 | NA16: 116.76 | NB16: 132.88 | NC16: 120.84 | ND16: 73.56 | NE16: 74.68 | NF16: 103.44 | NG16: 153.96 | NH16: 109.48 | NI16: 152.96 | NJ16: 78.96 | NK16: 122.44 | NL16: 107.76 | NM16: 96.72 | NN16: 59.52 | NO16: 108.52 | NP16: 49.88 | NQ16: 92 | NR16: 69.96 | NS16: 79.36 | NT16: 131.64 | NU16: 148.04 | NV16: 130.28 | NW16: 138.08 | NX16: 160.32 | NY16: 84.48 | NZ16: 113.72 | OA16: 139.12 | OB16: 182 | OC16: 130.48 | OD16: 158.52 | OE16: 141.68 | OF16: 111 | OG16: 126.64 | OH16: 115.4 | OI16: 91.84 | OJ16: 137.64 | OK16: 102.32 | OL16: 101.36 | OM16: 133.08 | ON16: 146.2 | OO16: 120.4 | OP16: 78.92 | OQ16: 77.84 | OR16: 141.32 | OS16: 118.44 | OT16: 98.76 | OU16: 123.08 | OV16: 154.64 | OW16: 121.28 | OX16: 160.84 | OY16: 94.48 | OZ16: 101.12 | PA16: 102.64 | PB16: 99.8 | PC16: 90.84 | PD16: 117.72 | PE16: 118.12 | PF16: 132.56 | PG16: 124.72 | PH16: 94.6 | PI16: 114.84 | PJ16: 76.84 | PK16: 106.6 | PL16: 75.04 | PM16: 144.64 | PN16: 149.16 | PO16: 80.68 | PP16: 78.48 | PQ16: 120 | PR16: 78.52 | PS16: 79.16 | PT16: 99.4 | PU16: 127.4 | PV16: 122.28 | PW16: 73.48 | PX16: 141.52 | PY16: 128.12 | PZ16: 135.56 | QA16: 88.12 | QB16: 93.76 | QC16: 66.72 | QD16: 93.96 | QE16: 105.96 | QF16: 102.8
IJ17: VCAM | IK17: 135.13 | IL17: 129.05 | IM17: 128.82 | IN17: 177.99 | IO17: 166.59 | IP17: 247.68 | IQ17: 108.76 | IR17: 171.84 | IS17: 201.86 | IT17: 157.24 | IU17: 131.02 | IV17: 138.09 | IW17: 206.42 | IX17: 150.78 | IY17: 272.46 | IZ17: 208.62 | JA17: 144.78 | JB17: 280.14 | JC17: 171.61 | JD17: 284.32 | JE17: 163.17 | JF17: 195.85 | JG17: 249.51 | JH17: 172.37 | JI17: 198.59 | JJ17: 187.72 | JK17: 143.41 | JL17: 158.69 | JM17: 220.93 | JN17: 148.81 | JO17: 252.32 | JP17: 148.96 | JQ17: 141.97 | JR17: 107.08 | JS17: 239.48 | JT17: 142.12 | JU17: 157.32 | JV17: 215.08 | JW17: 171 | JX17: 308.94 | JY17: 103.13 | JZ17: 130.72 | KA17: 211.43 | KB17: 263.49 | KC17: 221.95 | KD17: 204.82 | KE17: 168.49 | KF17: 219.18 | KG17: 182.86 | KH17: 177.31 | KI17: 89.452 | KJ17: 190 | KK17: 260.6 | KL17: 154.28 | KM17: 138.85 | KN17: 181.79 | KO17: 173.28 | KP17: 212.8 | KQ17: 228.38 | KR17: 288.27 | KS17: 234.76 | KT17: 136.88 | KU17: 162.18 | KV17: 158.31 | KW17: 137.03 | KX17: 249.81 | KY17: 204.74 | KZ17: 192.28 | LA17: 180.35 | LB17: 241.07 | LC17: 166.9 | LD17: 440.88 | LE17: 174.34 | LF17: 169.25 | LG17: 190.91 | LH17: 275.5 | LI17: 198.44 | LJ17: 204.06 | LK17: 146.38 | LL17: 187.72 | LM17: 173.51 | LN17: 190.68 | LO17: 206.42 | LP17: 183.08 | LQ17: 128.67 | LR17: 85.196 | LS17: 182.7 | LT17: 157.24 | LU17: 189.39 | LV17: 212.12 | LW17: 142.27 | LX17: 449.77 | LY17: 153.9 | LZ17: 207.02 | MA17: 177.16 | MB17: 138.85 | MC17: 134.67 | MD17: 243.96 | ME17: 190.84 | MF17: 116.43 | MG17: 182.02 | MH17: 171.23 | MI17: 182.32 | MJ17: 172.29 | MK17: 163.32 | ML17: 84.132 | MM17: 221.31 | MN17: 116.96 | MO17: 149.04 | MP17: 148.35 | MQ17: 144.32 | MR17: 152.99 | MS17: 180.73 | MT17: 179.66 | MU17: 144.4 | MV17: 124.56 | MW17: 222.91 | MX17: 148.66 | MY17: 129.5 | MZ17: 136.65 | NA17: 126.54 | NB17: 228.3 | NC17: 146 | ND17: 113.85 | NE17: 100.4 | NF17: 108.6 | NG17: 122.36 | NH17: 172.44 | NI17: 189.39 | NJ17: 149.72 | NK17: 199.88 | NL17: 131.02 | NM17: 52.881 | NN17: 161.35 | NO17: 156.1 | NP17: 162.11 | NQ17: 92.492 | NR17: 196.38 | NS17: 117.88 | NT17: 127.6 | NU17: 129.12 | NV17: 169.71 | NW17: 150.25 | NX17: 130.04 | NY17: 226.63 | NZ17: 56.726 | OA17: 292.22 | OB17: 359.94 | OC17: 343.29 | OD17: 250.42 | OE17: 172.06 | OF17: 63.027 | OG17: 164.46 | OH17: 167.35 | OI17: 164.08 | OJ17: 179.13 | OK17: 209.91 | OL17: 211.43 | OM17: 146.6 | ON17: 178.07 | OO17: 196.92 | OP17: 165.68 | OQ17: 185.67 | OR17: 276.49 | OS17: 190.84 | OT17: 107.69 | OU17: 284.01 | OV17: 193.72 | OW17: 196 | OX17: 174.42 | OY17: 109.74 | OZ17: 287.13 | PA17: 220.25 | PB17: 178.22 | PC17: 273.6 | PD17: 149.34 | PE17: 204.9 | PF17: 153.29 | PG17: 163.93 | PH17: 211.43 | PI17: 129.43 | PJ17: 191.52 | PK17: 214.32 | PL17: 46.892 | PM17: 193.57 | PN17: 197.52 | PO17: 148.35 | PP17: 206.34 | PQ17: 220.78 | PR17: 220.25 | PS17: 121.83 | PT17: 126.46 | PU17: 180.5 | PV17: 158.46 | PW17: 185.14 | PX17: 148.43 | PY17: 184.98 | PZ17: 175.56 | QA17: 107.46 | QB17: 118.86 | QC17: 196.99 | QD17: 224.12 | QE17: 252.93 | QF17: 207.1
IJ18: Homocys.µM | IK18: 9.23 | IL18: 11.43 | IM18: 11.52 | IN18: 12.9 | IO18: 11.58 | IP18: 10.77 | IQ18: 14.15 | IR18: 10.76 | IS18: 13.81 | IT18: 13.53 | IU18: 18.73 | IV18: 11.28 | IW18: 15.62 | IX18: 14.05 | IY18: 12.23 | IZ18: 11.52 | JA18: 13.31 | JC18: 11.53 | JD18: 9.38 | JE18: 9.96 | JG18: 12.62 | JH18: 18.38 | JI18: 15.32 | JJ18: 12.41 | JK18: 10.95 | JL18: 9.96 | JM18: 11.5 | JN18: 10.75 | JP18: 10.82 | JQ18: 10.06 | JR18: 12.78 | JS18: 9.7 | JT18: 10.74 | JU18: 10.05 | JV18: 15.62 | JW18: 8.12 | JX18: 16.73 | JY18: 9.99 | JZ18: 13.92 | KA18: 15.31 | KC18: 13.22 | KD18: 13.99 | KE18: 13.48 | KF18: 31.69 | KG18: 9.54 | KH18: 12.97 | KI18: 9.48 | KJ18: 12.61 | KK18: 11.33 | KL18: 14.77 | KM18: 12.68 | KN18: 13.02 | KO18: 9.21 | KP18: 8.84 | KR18: 9.39 | KT18: 13.73 | KU18: 10.03 | KV18: 9.26 | KW18: 12.46 | KX18: 13.57 | KY18: 16.01 | KZ18: 8.4 | LA18: 11.49 | LB18: 14.46 | LC18: 10.32 | LD18: 15.43 | LE18: 8.78 | LF18: 11.09 | LG18: 17.98 | LH18: 15.01 | LI18: 9.61 | LJ18: 10.08 | LK18: 12.23 | LL18: 10.31 | LM18: 10.46 | LO18: 11.35 | LP18: 8.19 | LQ18: 13.21 | LR18: 12.34 | LS18: 10.73 | LT18: 18.84 | LU18: 9.83 | LV18: 15.76 | LW18: 11.14 | LX18: 14.21 | LY18: 19.4 | LZ18: 8.37 | MA18: 15.76 | MB18: 12.17 | MC18: 11.18 | ME18: 8.91 | MF18: 10.09 | MG18: 11.4 | MH18: 10.43 | MI18: 14.36 | MJ18: 21.12 | MK18: 12.47 | ML18: 12.06 | MM18: 8.99 | MN18: 10 | MO18: 13.48 | MP18: 10.74 | MQ18: 9.99 | MR18: 14.74 | MS18: 10.75 | MT18: 8.04 | MU18: 12.24 | MV18: 10.98 | MX18: 9.91 | MY18: 16.13 | MZ18: 10.61 | NA18: 12.71 | NC18: 10.58 | ND18: 20.38 | NE18: 9.18 | NF18: 7.91 | NG18: 13.27 | NH18: 17.48 | NI18: 20.15 | NJ18: 21.28 | NK18: 14.19 | NL18: 14.47 | NM18: 14.29 | NN18: 12.31 | NO18: 15.71 | NP18: 12.29 | NQ18: 11.4 | NR18: 11.9 | NS18: 10.89 | NT18: 12.56 | NU18: 18.54 | NV18: 11.95 | NW18: 10.77 | NX18: 15.34 | NY18: 9.19 | NZ18: 13.16 | OA18: 11.63 | OB18: 11.68 | OC18: 10.26 | OD18: 10.42 | OE18: 11.47 | OF18: 11.15 | OG18: 10.93 | OH18: 10.13 | OI18: 13.75 | OJ18: 12.7 | OK18: 9.84 | OL18: 14.46 | OM18: 23.16 | ON18: 10.24 | OO18: 10.2 | OR18: 10.62 | OS18: 16.9 | OT18: 8.11 | OU18: 9.46 | OV18: 9.06 | OW18: 15.03 | OX18: 12.82 | OY18: 10.2 | PA18: 16.07 | PB18: 13.02 | PC18: 10.06 | PD18: 12.68 | PE18: 9.83 | PF18: 11.8 | PG18: 13.62 | PI18: 9.82 | PJ18: 21.04 | PK18: 10.49 | PL18: 11.81 | PM18: 8.14 | PN18: 13.95 | PO18: 22.33 | PQ18: 8.49 | PR18: 11.66 | PS18: 10.07 | PT18: 20.12 | PU18: 16.37 | PV18: 9.3 | PW18: 14.71 | PX18: 13.9 | PY18: 7.44 | PZ18: 13.01 | QA18: 9.81 | QB18: 9.56 | QC18: 11.98 | QD18: 11.5 | QE18: 9.49 | QF18: 14.93
IJ19: Glycerol.µM | IK19: 159.59 | IL19: 152.83 | IM19: 119.85 | IN19: 95.05 | IO19: 47.44 | IP19: 122.87 | IQ19: 65.4 | IR19: 64.33 | IS19: 178.11 | IT19: 56.55 | IU19: 129.06 | IV19: 40.53 | IW19: 61.48 | IX19: 38.34 | IY19: 60.65 | IZ19: 57.89 | JA19: 37.38 | JB19: 30.64 | JC19: 100.1 | JD19: 261.08 | JE19: 103.92 | JF19: 65.33 | JG19: 66.84 | JH19: 89.92 | JI19: 66.07 | JJ19: 77.85 | JK19: 39.2 | JL19: 152.02 | JM19: 114.27 | JN19: 195.47 | JO19: 45.83 | JP19: 70.47 | JQ19: 54.5 | JR19: 44.93 | JS19: 88.49 | JT19: 54.7 | JU19: 143.96 | JV19: 60.48 | JW19: 58.17 | JX19: 114.9 | JY19: 186.62 | JZ19: 37.88 | KA19: 58.17 | KB19: 37.67 | KC19: 131.89 | KD19: 56.27 | KE19: 145.55 | KF19: 149.85 | KG19: 150.74 | KH19: 70.36 | KI19: 124.85 | KJ19: 162.5 | KK19: 65.09 | KL19: 49.98 | KM19: 103.29 | KN19: 33.32 | KO19: 68.91 | KP19: 108.72 | KQ19: 21.66 | KR19: 135.74 | KS19: 119 | KT19: 43.3 | KU19: 102.5 | KV19: 299.97 | KW19: 164.37 | KX19: 106.35 | KY19: 134.06 | KZ19: 19.98 | LA19: 141.59 | LB19: 114.35 | LC19: 44.91 | LD19: 254.46 | LE19: 90.53 | LF19: 111.79 | LG19: 54.92 | LH19: 179.31 | LI19: 68 | LJ19: 107.77 | LK19: 57.05 | LL19: 133.32 | LM19: 53.86 | LN19: 54.63 | LO19: 75.73 | LP19: 142.33 | LQ19: 108.16 | LR19: 86.47 | LS19: 39.12 | LT19: 126.61 | LU19: 93.26 | LV19: 83.74 | LW19: 251.5 | LX19: 70.14 | LY19: 99.83 | LZ19: 43.04 | MA19: 81.68 | MB19: 136.17 | MC19: 81.82 | MD19: 70.45 | ME19: 249.97 | MF19: 169.25 | MG19: 171.19 | MH19: 92.44 | MI19: 158.89 | MJ19: 213.48 | MK19: 55.52 | ML19: 99.13 | MM19: 66.65 | MN19: 93.59 | MO19: 152.17 | MP19: 84.96 | MQ19: 193.07 | MR19: 55.49 | MS19: 231.83 | MT19: 49.74 | MU19: 39.84 | MV19: 135.24 | MW19: 83.63 | MX19: 97.62 | MY19: 43.78 | MZ19: 96.9 | NA19: 49 | NB19: 177.73 | NC19: 85.21 | ND19: 107.88 | NE19: 76.85 | NF19: 55.73 | NG19: 100.41 | NH19: 61.79 | NI19: 196.32 | NJ19: 109.2 | NK19: 85.75 | NL19: 69.2 | NM19: 72.79 | NN19: 107.61 | NO19: 41.04 | NP19: 211.85 | NQ19: 101.92 | NR19: 46.02 | NS19: 174.91 | NT19: 128.04 | NU19: 100.99 | NV19: 82.74 | NW19: 54.58 | NX19: 73.39 | NY19: 151.59 | NZ19: 78.11 | OA19: 208.31 | OB19: 100.02 | OC19: 96.5 | OD19: 146.54 | OE19: 47.65 | OF19: 52.1 | OG19: 94.89 | OH19: 76.31 | OI19: 74.23 | OJ19: 78.72 | OK19: 100.78 | OL19: 217.84 | OM19: 56.66 | ON19: 100.45 | OO19: 92.39 | OP19: 92.56 | OQ19: 91.14 | OR19: 168.87 | OS19: 31.86 | OT19: 135.8 | OU19: 129.74 | OV19: 323.42 | OW19: 82.02 | OX19: 95.09 | OY19: 111.05 | OZ19: 34.8 | PA19: 293 | PB19: 183.86 | PC19: 72.68 | PD19: 71.87 | PE19: 201.88 | PF19: 198.74 | PG19: 254.83 | PH19: 65.23 | PI19: 68.53 | PJ19: 105.19 | PK19: 33.08 | PL19: 59.61 | PM19: 70.56 | PN19: 78.25 | PO19: 97.28 | PP19: 122.26 | PQ19: 54.45 | PR19: 57.56 | PS19: 97.14 | PT19: 118.65 | PU19: 112.42 | PV19: 146.14 | PW19: 65.94 | PX19: 85.36 | PY19: 137.58 | PZ19: 86.15 | QA19: 77.31 | QB19: 125.66 | QC19: 140.35 | QD19: 155.67 | QE19: 92.14 | QF19: 57.5
IJ20: FRAP.mM.FIE | IK20: 253.4027778 | IL20: 236.3897059 | IM20: 223 | IN20: 251.7132353 | IO20: 211.9444444 | IP20: 176.5069444 | IQ20: 249.4652778 | IR20: 220.3055556 | IS20: 243.75 | IT20: 205.4236111 | IU20: 223.75 | IV20: 237.0138889 | IW20: 247.8680556 | IX20: 338.9558824 | IY20: 218.2291667 | IZ20: 264.2708333 | JA20: 438.0955882 | JB20: 179.6875 | JC20: 250.9791667 | JD20: 222.3819444 | JE20: 195.5833333 | JF20: 246.8541667 | JG20: 275.3472222 | JH20: 367.1458333 | JI20: 262.2291667 | JJ20: 245.3263889 | JK20: 233.1041667 | JL20: 228.0220588 | JM20: 223.4236111 | JN20: 322.9264706 | JO20: 210.125 | JP20: 224.9930556 | JQ20: 282.1736111 | JR20: 290.125 | JS20: 175.4305556 | JT20: 232.4861111 | JU20: 215.4236111 | JV20: 287.7916667 | JW20: 210.9027778 | JX20: 274.2647059 | JY20: 268.7152778 | JZ20: 294.9791667 | KA20: 278.1458333 | KB20: 183.0486111 | KC20: 302.0416667 | KD20: 260.2708333 | KE20: 205.4097222 | KF20: 198.1388889 | KG20: 211.5 | KH20: 246.125 | KI20: 213.5138889 | KJ20: 245.9305556 | KK20: 172.2083333 | KL20: 250.0416667 | KM20: 201.4652778 | KN20: 262.4305556 | KO20: 269.25 | KP20: 199.4791667 | KQ20: 178.1319444 | KR20: 171.4861111 | KS20: 260.5416667 | KT20: 272.1944444 | KU20: 192.3611111 | KV20: 266.6180556 | KW20: 230.3680556 | KX20: 258.4930556 | KY20: 277.8194444 | KZ20: 190.5 | LA20: 252.0138889 | LB20: 270.9926471 | LC20: 250.3472222 | LD20: 270.9583333 | LE20: 188.7152778 | LF20: 261.8680556 | LG20: 354.9097222 | LH20: 266.5902778 | LI20: 277.9861111 | LJ20: 273.3333333 | LK20: 185.6805556 | LL20: 251.3958333 | LM20: 219.0208333 | LN20: 177.7569444 | LO20: 192.4166667 | LP20: 204.9930556 | LQ20: 240.8680556 | LR20: 263.9027778 | LS20: 251.1180556 | LT20: 246.8819444 | LU20: 282.6875 | LV20: 248.5972222 | LW20: 209.8235294 | LX20: 259.3263889 | LY20: 236.5588235 | LZ20: 247.4305556 | MA20: 238.8611111 | MB20: 233.9513889 | MC20: 197.8402778 | MD20: 159.5833333 | ME20: 215.8472222 | MF20: 230.4444444 | MG20: 233.6666667 | MH20: 222.1180556 | MI20: 319.5138889 | MJ20: 241.6102941 | MK20: 212 | ML20: 172 | MM20: 261.0138889 | MN20: 253.8472222 | MO20: 257.8680556 | MP20: 282.25 | MQ20: 325.5 | MR20: 302.7867647 | MS20: 221.2569444 | MT20: 209.0347222 | MU20: 387.1544118 | MV20: 221.0208333 | MW20: 200.3263889 | MX20: 187.1944444 | MY20: 281.3676471 | MZ20: 201.0367647 | NA20: 220.6764706 | NB20: 204.0138889 | NC20: 194.6041667 | ND20: 244.875 | NE20: 226.2222222 | NF20: 199.0069444 | NG20: 274.8611111 | NH20: 370.4930556 | NI20: 248.3676471 | NJ20: 246.2013889 | NK20: 234.7638889 | NL20: 233.1944444 | NM20: 308.6736111 | NN20: 235.6319444 | NO20: 281.9166667 | NP20: 215.1041667 | NQ20: 181.9305556 | NR20: 171.1597222 | NS20: 239.6319444 | NT20: 347.8529412 | NU20: 302.5808824 | NV20: 272.2986111 | NW20: 234.6911765 | NX20: 255.5588235 | NY20: 191.2569444 | NZ20: 235.9926471 | OA20: 196.1102941 | OB20: 205.1041667 | OC20: 215.9097222 | OD20: 225.8970588 | OE20: 251.7152778 | OF20: 234.2279412 | OG20: 273.1458333 | OH20: 181.3194444 | OI20: 229.7847222 | OJ20: 244.0347222 | OK20: 247.0694444 | OL20: 307.9236111 | OM20: 198.6041667 | ON20: 328.3333333 | OO20: 297.5972222 | OP20: 163.4166667 | OQ20: 191.2638889 | OR20: 194.5661765 | OS20: 270.0416667 | OT20: 204.7916667 | OU20: 168.3263889 | OV20: 264.7777778 | OW20: 252.8888889 | OX20: 252.3125 | OY20: 225.3611111 | OZ20: 213.9930556 | PA20: 314.1597222 | PB20: 247.7430556 | PC20: 215.2291667 | PD20: 221.4791667 | PE20: 258.7013889 | PF20: 278.2638889 | PG20: 236.3541667 | PH20: 178.7986111 | PI20: 217.8194444 | PJ20: 252.2152778 | PK20: 211.1597222 | PL20: 220.5555556 | PM20: 276.2569444 | PN20: 338.7638889 | PO20: 195.8194444 | PP20: 246.375 | PQ20: 198.0972222 | PR20: 210.7777778 | PS20: 215.8055556 | PT20: 259.2222222 | PU20: 277.25 | PV20: 258.6111111 | PW20: 226.0138889 | PX20: 272.7291667 | PY20: 285.0972222 | PZ20: 222.1544118 | QA20: 217.9930556 | QB20: 235.0220588 | QC20: 166.1666667 | QD20: 240.1875 | QE20: 203.1458333 | QF20: 221.4444444
CB21: Spearman correlations | DU21: Pearson correlations of log10-transformed intensities | FN21: Pearson correlations of nomalized intensities | IJ21: sample coordinates | IK21: P1-A1 | IL21: P1-A2 | IM21: P1-A3 | IN21: P1-A4 | IO21: P1-A5 | IP21: P1-A6 | IQ21: P1-A7 | IR21: P1-A8 | IS21: P1-A9 | IT21: P1-A10 | IU21: P1-A11 | IV21: P1-A12 | IW21: P1-B1 | IX21: P1-B2 | IY21: P1-B3 | IZ21: P1-B4 | JA21: P1-B5 | JB21: P1-B6 | JC21: P1-B7 | JD21: P1-B8 | JE21: P1-B9 | JF21: P1-B10 | JG21: P1-B11 | JH21: P1-B12 | JI21: P1-C1 | JJ21: P1-C2 | JK21: P1-C3 | JL21: P1-C4 | JM21: P1-C5 | JN21: P1-C6 | JO21: P1-C7 | JP21: P1-C8 | JQ21: P1-C9 | JR21: P1-C10 | JS21: P1-C11 | JT21: P1-C12 | JU21: P1-D1 | JV21: P1-D2 | JW21: P1-D3 | JX21: P1-D4 | JY21: P1-D5 | JZ21: P1-D6 | KA21: P1-D7 | KB21: P1-D8 | KC21: P1-D9 | KD21: P1-D10 | KE21: P1-D11 | KF21: P1-D12 | KG21: P1-E1 | KH21: P1-E2 | KI21: P1-E3 | KJ21: P1-E4 | KK21: P1-E5 | KL21: P1-E6 | KM21: P1-E7 | KN21: P1-E8 | KO21: P1-E9 | KP21: P1-E10 | KQ21: P1-E11 | KR21: P1-E12 | KS21: P1-F1 | KT21: P1-F2 | KU21: P1-F3 | KV21: P1-F4 | KW21: P1-F5 | KX21: P1-F6 | KY21: P1-F7 | KZ21: P1-F8 | LA21: P2-A1 | LB21: P2-A2 | LC21: P2-A3 | LD21: P2-A4 | LE21: P2-A5 | LF21: P2-A6 | LG21: P2-A7 | LH21: P2-A8 | LI21: P2-A9 | LJ21: P2-A10 | LK21: P2-A11 | LL21: P2-A12 | LM21: P2-B1 | LN21: P2-B2 | LO21: P2-B3 | LP21: P2-B4 | LQ21: P2-B5 | LR21: P2-B6 | LS21: P2-B7 | LT21: P2-B8 | LU21: P2-B9 | LV21: P2-B10 | LW21: P2-B11 | LX21: P2-B12 | LY21: P2-C1 | LZ21: P2-C2 | MA21: P2-C3 | MB21: P2-C4 | MC21: P2-C5 | MD21: P2-C6 | ME21: P2-C7 | MF21: P2-C8 | MG21: P2-C9 | MH21: P2-C10 | MI21: P2-C11 | MJ21: P2-C12 | MK21: P2-D1 | ML21: P2-D2 | MM21: P2-D3 | MN21: P2-D4 | MO21: P2-D5 | MP21: P2-D6 | MQ21: P2-D7 | MR21: P2-D8 | MS21: P2-D9 | MT21: P2-D10 | MU21: P2-D11 | MV21: P2-D12 | MW21: P2-E1 | MX21: P2-E2 | MY21: P2-E3 | MZ21: P2-E4 | NA21: P2-E5 | NB21: P2-E6 | NC21: P2-E7 | ND21: P2-E8 | NE21: P2-E9 | NF21: P2-E10 | NG21: P2-E11 | NH21: P2-E12 | NI21: P2-F1 | NJ21: P2-F2 | NK21: P2-F3 | NL21: P2-F4 | NM21: P2-F5 | NN21: P2-F6 | NO21: P2-F7 | NP21: P2-F8 | NQ21: P1-A1 | NR21: P1-A2 | NS21: P1-A3 | NT21: P1-A4 | NU21: P1-A5 | NV21: P1-A6 | NW21: P1-A7 | NX21: P1-A8 | NY21: P1-A9 | NZ21: P1-A10 | OA21: P1-A11 | OB21: P1-A12 | OC21: P1-B1 | OD21: P1-B2 | OE21: P1-B3 | OF21: P1-B4 | OG21: P1-B5 | OH21: P1-B6 | OI21: P1-B7 | OJ21: P1-B8 | OK21: P1-B9 | OL21: P1-B10 | OM21: P1-B11 | ON21: P1-B12 | OO21: P1-C1 | OP21: P1-C2 | OQ21: P1-C3 | OR21: P1-C4 | OS21: P1-C5 | OT21: P1-C6 | OU21: P1-C7 | OV21: P1-C8 | OW21: P1-C9 | OX21: P1-C10 | OY21: P1-C11 | OZ21: P1-C12 | PA21: P1-D1 | PB21: P1-D2 | PC21: P1-D3 | PD21: P1-D4 | PE21: P1-D5 | PF21: P1-D6 | PG21: P1-D7 | PH21: P1-D8 | PI21: P1-D9 | PJ21: P1-D10 | PK21: P1-D11 | PL21: P1-D12 | PM21: P1-E1 | PN21: P1-E2 | PO21: P1-E3 | PP21: P1-E4 | PQ21: P1-E5 | PR21: P1-E6 | PS21: P1-E7 | PT21: P1-E8 | PU21: P1-E9 | PV21: P1-E10 | PW21: P1-E11 | PX21: P1-E12 | PY21: P1-F1 | PZ21: P1-F2 | QA21: P1-F3 | QB21: P1-F4 | QC21: P1-F5 | QD21: P1-F6 | QE21: P1-F7 | QF21: P1-F8 | QG21: P2-H11 | QH21: P2-H11 | QI21: P2-H11 | QJ21: P2-H11 | QK21: P2-H11 | QL21: P2-H11 | QM21: P2-H11 | QN21: P2-H11 | QO21: P2-H11 | QP21: P2-H11 | QQ21: P2-H11 | QR21: P2-H11 | QS21: P2-H11 | QT21: P2-H11 | QU21: P2-H11 | QV21: P2-H11 | QW21: P2-H11 | QX21: P2-H11 | QY21: P2-H11 | QZ21: P2-H11 | RA21: P2-H11 | RB21: P2-H11 | RC21: P2-H11 | RD21: P2-H11 | RE21: P2-H11 | RF21: P2-H11 | RG21: P2-H11 | RH21: P2-H11 | RI21: P2-H11 | RJ21: P2-H11 | RK21: P2-H11
AF22: Change in WG wheat intervention | AM22: Change in WG rye intervention | AT22: 1 v 3 intervention:visit | AY22: 1 v 3 intervention (effect from whole grains) | BD22: 1 v 3 visit (difference between wheat and rye) | BK22: 1 v 5 intervention:visit | BP22: 1 v 5 intervention | BU22: 1 v 5 visit | CB22: Total cholesterol mM | CE22: LDL cholesterol mM | CH22: HDL cholesterol mM | CK22: Triglycerides mM | CN22: Non-HDL cholesterol mM | CQ22: Fasting glucose, mM | CT22: Fasting insulin, IU/L | CW22: CRP | CZ22: HOMA (Homeostasis model assessment) | DC22: E-selectin | DF22: ICAM-1 | DI22: VCAM-1 | DL22: Homocystein µM | DO22: Glycerol µM | DR22: FRAP (Ferric reducing ability of plasma) | DU22: Total cholesterol mM | DX22: LDL cholesterol mM | EA22: HDL cholesterol mM | ED22: Triglycerides mM | EG22: Non-HDL cholesterol mM | EJ22: Fasting glucose, mM | EM22: Fasting insulin, IU/L | EP22: CRP | ES22: HOMA (Homeostasis model assessment) | EV22: E-selectin | EY22: ICAM-1 | FB22: VCAM-1 | FE22: Homocystein µM | FH22: Glycerol µM | FK22: FRAP (Ferric reducing ability of plasma) | FN22: Total cholesterol mM | FQ22: LDL cholesterol mM | FT22: HDL cholesterol mM | FW22: Triglycerides mM | FZ22: Non-HDL cholesterol mM | GC22: Fasting glucose, mM | GF22: Fasting insulin, IU/L | GI22: CRP | GL22: HOMA (Homeostasis model assessment) | GO22: E-selectin | GR22: ICAM-1 | GU22: VCAM-1 | GX22: Homocystein µM | HA22: Glycerol µM | HD22: FRAP (Ferric reducing ability of plasma) | IJ22: Injection order | IK22: 11 | IL22: 12 | IM22: 13 | IN22: 14 | IO22: 15 | IP22: 16 | IQ22: 17 | IR22: 18 | IS22: 19 | IT22: 20 | IU22: 21 | IV22: 22 | IW22: 24 | IX22: 25 | IY22: 26 | IZ22: 27 | JA22: 28 | JB22: 29 | JC22: 30 | JD22: 31 | JE22: 32 | JF22: 33 | JG22: 34 | JH22: 35 | JI22: 37 | JJ22: 38 | JK22: 39 | JL22: 40 | JM22: 41 | JN22: 42 | JO22: 43 | JP22: 44 | JQ22: 45 | JR22: 46 | JS22: 47 | JT22: 48 | JU22: 50 | JV22: 51 | JW22: 52 | JX22: 53 | JY22: 54 | JZ22: 55 | KA22: 56 | KB22: 57 | KC22: 58 | KD22: 59 | KE22: 60 | KF22: 61 | KG22: 63 | KH22: 64 | KI22: 65 | KJ22: 66 | KK22: 67 | KL22: 68 | KM22: 69 | KN22: 70 | KO22: 71 | KP22: 72 | KQ22: 73 | KR22: 74 | KS22: 76 | KT22: 77 | KU22: 78 | KV22: 79 | KW22: 80 | KX22: 81 | KY22: 82 | KZ22: 83 | LA22: 85 | LB22: 86 | LC22: 87 | LD22: 88 | LE22: 89 | LF22: 90 | LG22: 91 | LH22: 92 | LI22: 93 | LJ22: 94 | LK22: 95 | LL22: 96 | LM22: 98 | LN22: 99 | LO22: 100 | LP22: 101 | LQ22: 102 | LR22: 103 | LS22: 104 | LT22: 105 | LU22: 106 | LV22: 107 | LW22: 108 | LX22: 109 | LY22: 111 | LZ22: 112 | MA22: 113 | MB22: 114 | MC22: 115 | MD22: 116 | ME22: 117 | MF22: 118 | MG22: 119 | MH22: 120 | MI22: 121 | MJ22: 122 | MK22: 124 | ML22: 125 | MM22: 126 | MN22: 127 | MO22: 128 | MP22: 129 | MQ22: 130 | MR22: 131 | MS22: 132 | MT22: 133 | MU22: 134 | MV22: 135 | MW22: 137 | MX22: 138 | MY22: 139 | MZ22: 140 | NA22: 141 | NB22: 142 | NC22: 143 | ND22: 144 | NE22: 145 | NF22: 146 | NG22: 147 | NH22: 148 | NI22: 150 | NJ22: 151 | NK22: 152 | NL22: 153 | NM22: 154 | NN22: 155 | NO22: 156 | NP22: 157 | NQ22: 159 | NR22: 160 | NS22: 161 | NT22: 162 | NU22: 163 | NV22: 164 | NW22: 165 | NX22: 166 | NY22: 167 | NZ22: 168 | OA22: 169 | OB22: 170 | OC22: 172 | OD22: 173 | OE22: 174 | OF22: 175 | OG22: 176 | OH22: 177 | OI22: 178 | OJ22: 179 | OK22: 180 | OL22: 181 | OM22: 182 | ON22: 183 | OO22: 185 | OP22: 186 | OQ22: 187 | OR22: 188 | OS22: 189 | OT22: 190 | OU22: 191 | OV22: 192 | OW22: 193 | OX22: 194 | OY22: 195 | OZ22: 196 | PA22: 198 | PB22: 199 | PC22: 200 | PD22: 201 | PE22: 202 | PF22: 203 | PG22: 204 | PH22: 205 | PI22: 206 | PJ22: 207 | PK22: 208 | PL22: 209 | PM22: 211 | PN22: 212 | PO22: 213 | PP22: 214 | PQ22: 215 | PR22: 216 | PS22: 217 | PT22: 218 | PU22: 219 | PV22: 220 | PW22: 221 | PX22: 222 | PY22: 224 | PZ22: 225 | QA22: 226 | QB22: 227 | QC22: 228 | QD22: 229 | QE22: 230 | QF22: 231 | QG22: 1 | QH22: 2 | QI22: 3 | QJ22: 4 | QK22: 5 | QL22: 6 | QM22: 7 | QN22: 8 | QO22: 9 | QP22: 10 | QQ22: 23 | QR22: 36 | QS22: 49 | QT22: 62 | QU22: 75 | QV22: 84 | QW22: 97 | QX22: 110 | QY22: 123 | QZ22: 136 | RA22: 149 | RB22: 158 | RC22: 171 | RD22: 184 | RE22: 197 | RF22: 210 | RG22: 223 | RH22: 232 | RI22: 233 | RJ22: 234 | RK22: 235
A23: Compound | B23: Mode | C23: Mode (edit) | D23: Alignment.ID | E23: RT [min] | F23: m/z | G23: Curated ID | H23: Compound class | I23: ID level | J23: HMDB ID | K23: Final table | L23: Metabolite.name | M23: Adduct.ion.name | N23: Post.curation.result | O23: Fill.. | P23: MS.MS.included | Q23: Formula | R23: Ontology | S23: INCHIKEY | T23: SMILES | U23: Comment | V23: Isotope.tracking.parent.ID | W23: Isotope.tracking.weight.number | X23: Dot.product | Y23: Reverse.dot.product | Z23: Fragment.presence.. | AA23: Spectrum.reference.file.name | AB23: MS1.isotopic.spectrum | AC23: MS.MS.spectrum | AD23: stage | AE23: Compound | AF23: Wheat_1v3_Estimate | AG23: Wheat_1v3_P | AH23: Wheat_1v3_P_FDR | AJ23: Wheat_1v5_Estimate | AK23: Wheat_1v5_P | AL23: Wheat_1v5_P_FDR | AM23: Rye_1v3_Estimate | AN23: Rye_1v3_P | AO23: Rye_1v3_P_FDR | AP23: log10FDR | AQ23: Rye_1v5_Estimate | AR23: Rye_1v5_P | AS23: Rye_1v5_P_FDR | AT23: 1v3_Intervention:Visit_Estimate | AU23: 1v3_Intervention:Visit_LCI95 | AV23: 1v3_Intervention:Visit_UCI95 | AW23: 1v3_Intervention:Visit_P | AX23: 1v3_Intervention:Visit_P_FDR | AY23: 1v3_Intervention_Estimate | AZ23: 1v3_Intervention_LCI95 | BA23: 1v3_Intervention_UCI95 | BB23: 1v3_Intervention_P | BC23: 1v3_Intervention_P_FDR | BD23: 1v3_Visit_Estimate | BE23: 1v3_Visit_LCI95 | BF23: 1v3_Visit_UCI95 | BG23: 1v3_Visit_P | BH23: 1v3_Visit_P_FDR | BI23: 1v3_Cohen_d_norm | BJ23: 1v3_Cohen_d_imputed | BK23: 1v5_Intervention:Visit_Estimate | BL23: 1v5_Intervention:Visit_LCI95 | BM23: 1v5_Intervention:Visit_UCI95 | BN23: 1v5_Intervention:Visit_P | BO23: 1v5_Intervention:Visit_P_FDR | BP23: 1v5_Intervention_Estimate | BQ23: 1v5_Intervention_LCI95 | BR23: 1v5_Intervention_UCI95 | BS23: 1v5_Intervention_P | BT23: 1v5_Intervention_P_FDR | BU23: 1v5_Visit_Estimate | BV23: 1v5_Visit_LCI95 | BW23: 1v5_Visit_UCI95 | BX23: 1v5_Visit_P | BY23: 1v5_Visit_P_FDR | BZ23: 1v5_Cohen_d_norm | CA23: 1v5_Cohen_d_imputed | CB23: tchol_Correlation_coefficient | CC23: tchol_Correlation_P | CD23: tchol_Correlation_P_FDR | CE23: LDL_Correlation_coefficient | CF23: LDL_Correlation_P | CG23: LDL_Correlation_P_FDR | CH23: HDL_Correlation_coefficient | CI23: HDL_Correlation_P | CJ23: HDL_Correlation_P_FDR | CK23: Trigly_Correlation_coefficient | CL23: Trigly_Correlation_P | CM23: Trigly_Correlation_P_FDR | CN23: NonHDL_Correlation_coefficient | CO23: NonHDL_Correlation_P | CP23: NonHDL_Correlation_P_FDR | CQ23: Gluc_Correlation_coefficient | CR23: Gluc_Correlation_P | CS23: Gluc_Correlation_P_FDR | CT23: Insulin_Correlation_coefficient | CU23: Insulin_Correlation_P | CV23: Insulin_Correlation_P_FDR | CW23: CRP_Correlation_coefficient | CX23: CRP_Correlation_P | CY23: CRP_Correlation_P_FDR | CZ23: HOMA_Correlation_coefficient | DA23: HOMA_Correlation_P | DB23: HOMA_Correlation_P_FDR | DC23: E.selectin_Correlation_coefficient | DD23: E.selectin_Correlation_P | DE23: E.selectin_Correlation_P_FDR | DF23: ICAM_Correlation_coefficient | DG23: ICAM_Correlation_P | DH23: ICAM_Correlation_P_FDR | DI23: VCAM_Correlation_coefficient | DJ23: VCAM_Correlation_P | DK23: VCAM_Correlation_P_FDR | DL23: Homocys_Correlation_coefficient | DM23: Homocys_Correlation_P | DN23: Homocys_Correlation_P_FDR | DO23: Glycerol_Correlation_coefficient | DP23: Glycerol_Correlation_P | DQ23: Glycerol_Correlation_P_FDR | DR23: FRAP_Correlation_coefficient | DS23: FRAP_Correlation_P | DT23: FRAP_Correlation_P_FDR | DU23: tchol_Correlation_coefficient | DV23: tchol_Correlation_P | DW23: tchol_Correlation_P_FDR | DX23: LDL_Correlation_coefficient | DY23: LDL_Correlation_P | DZ23: LDL_Correlation_P_FDR | EA23: HDL_Correlation_coefficient | EB23: HDL_Correlation_P | EC23: HDL_Correlation_P_FDR | ED23: Trigly_Correlation_coefficient | EE23: Trigly_Correlation_P | EF23: Trigly_Correlation_P_FDR | EG23: NonHDL_Correlation_coefficient | EH23: NonHDL_Correlation_P | EI23: NonHDL_Correlation_P_FDR | EJ23: Gluc_Correlation_coefficient | EK23: Gluc_Correlation_P | EL23: Gluc_Correlation_P_FDR | EM23: Insulin_Correlation_coefficient | EN23: Insulin_Correlation_P | EO23: Insulin_Correlation_P_FDR | EP23: CRP_Correlation_coefficient | EQ23: CRP_Correlation_P | ER23: CRP_Correlation_P_FDR | ES23: HOMA_Correlation_coefficient | ET23: HOMA_Correlation_P | EU23: HOMA_Correlation_P_FDR | EV23: E.selectin_Correlation_coefficient | EW23: E.selectin_Correlation_P | EX23: E.selectin_Correlation_P_FDR | EY23: ICAM_Correlation_coefficient | EZ23: ICAM_Correlation_P | FA23: ICAM_Correlation_P_FDR | FB23: VCAM_Correlation_coefficient | FC23: VCAM_Correlation_P | FD23: VCAM_Correlation_P_FDR | FE23: Homocys_Correlation_coefficient | FF23: Homocys_Correlation_P | FG23: Homocys_Correlation_P_FDR | FH23: Glycerol_Correlation_coefficient | FI23: Glycerol_Correlation_P | FJ23: Glycerol_Correlation_P_FDR | FK23: FRAP_Correlation_coefficient | FL23: FRAP_Correlation_P | FM23: FRAP_Correlation_P_FDR | FN23: tchol_Correlation_coefficient | FO23: tchol_Correlation_P | FP23: tchol_Correlation_P_FDR | FQ23: LDL_Correlation_coefficient | FR23: LDL_Correlation_P | FS23: LDL_Correlation_P_FDR | FT23: HDL_Correlation_coefficient | FU23: HDL_Correlation_P | FV23: HDL_Correlation_P_FDR | FW23: Trigly_Correlation_coefficient | FX23: Trigly_Correlation_P | FY23: Trigly_Correlation_P_FDR | FZ23: NonHDL_Correlation_coefficient | GA23: NonHDL_Correlation_P | GB23: NonHDL_Correlation_P_FDR | GC23: Gluc_Correlation_coefficient | GD23: Gluc_Correlation_P | GE23: Gluc_Correlation_P_FDR | GF23: Insulin_Correlation_coefficient | GG23: Insulin_Correlation_P | GH23: Insulin_Correlation_P_FDR | GI23: CRP_Correlation_coefficient | GJ23: CRP_Correlation_P | GK23: CRP_Correlation_P_FDR | GL23: HOMA_Correlation_coefficient | GM23: HOMA_Correlation_P | GN23: HOMA_Correlation_P_FDR | GO23: E.selectin_Correlation_coefficient | GP23: E.selectin_Correlation_P | GQ23: E.selectin_Correlation_P_FDR | GR23: ICAM_Correlation_coefficient | GS23: ICAM_Correlation_P | GT23: ICAM_Correlation_P_FDR | GU23: VCAM_Correlation_coefficient | GV23: VCAM_Correlation_P | GW23: VCAM_Correlation_P_FDR | GX23: Homocys_Correlation_coefficient | GY23: Homocys_Correlation_P | GZ23: Homocys_Correlation_P_FDR | HA23: Glycerol_Correlation_coefficient | HB23: Glycerol_Correlation_P | HC23: Glycerol_Correlation_P_FDR | HD23: FRAP_Correlation_coefficient | HE23: FRAP_Correlation_P | HF23: FRAP_Correlation_P_FDR | HG23: 1v3_Visit_P <0.05 | HH23: 1v5_Visit_P <0.05 | HI23: 1v3_Intervention:Visit_P <0.05 | HJ23: 1v5_Intervention:Visit_P <0.05 | HK23: 1v5_Visit_P <0.01 | HL23: 1v3_Visit_P <0.01 | HM23: 1v3_Intervention:Visit_P <0.01 | HN23: 1v5_Intervention:Visit_P <0.01 | HO23: Compound | HP23: Alignment.ID | HQ23: Average.Rt.min. | HR23: Average.Mz | HS23: Metabolite.name | HT23: Adduct.ion.name | HU23: Post.curation.result | HV23: Fill.. | HW23: MS.MS.included | HX23: Formula | HY23: Ontology | HZ23: INCHIKEY | IA23: SMILES | IB23: Comment | IC23: Isotope.tracking.parent.ID | ID23: Isotope.tracking.weight.number | IE23: Dot.product | IF23: Reverse.dot.product | IG23: Fragment.presence.. | IH23: Spectrum.reference.file.name | II23: MS1.isotopic.spectrum | IJ23: MS.MS.spectrum | IK23: 180709MR_Grainmark_Hilic_pos_011 | IL23: 180709MR_Grainmark_Hilic_pos_012 | IM23: 180709MR_Grainmark_Hilic_pos_013 | IN23: 180709MR_Grainmark_Hilic_pos_014 | IO23: 180709MR_Grainmark_Hilic_pos_015 | IP23: 180709MR_Grainmark_Hilic_pos_016 | IQ23: 180709MR_Grainmark_Hilic_pos_017 | IR23: 180709MR_Grainmark_Hilic_pos_018 | IS23: 180709MR_Grainmark_Hilic_pos_019 | IT23: 180709MR_Grainmark_Hilic_pos_020 | IU23: 180709MR_Grainmark_Hilic_pos_021 | IV23: 180709MR_Grainmark_Hilic_pos_022 | IW23: 180709MR_Grainmark_Hilic_pos_024 | IX23: 180709MR_Grainmark_Hilic_pos_025 | IY23: 180709MR_Grainmark_Hilic_pos_026 | IZ23: 180709MR_Grainmark_Hilic_pos_027 | JA23: 180709MR_Grainmark_Hilic_pos_028 | JB23: 180709MR_Grainmark_Hilic_pos_029 | JC23: 180709MR_Grainmark_Hilic_pos_030 | JD23: 180709MR_Grainmark_Hilic_pos_031 | JE23: 180709MR_Grainmark_Hilic_pos_032 | JF23: 180709MR_Grainmark_Hilic_pos_033 | JG23: 180709MR_Grainmark_Hilic_pos_034 | JH23: 180709MR_Grainmark_Hilic_pos_035 | JI23: 180709MR_Grainmark_Hilic_pos_037 | JJ23: 180709MR_Grainmark_Hilic_pos_038 | JK23: 180709MR_Grainmark_Hilic_pos_039 | JL23: 180709MR_Grainmark_Hilic_pos_040 | JM23: 180709MR_Grainmark_Hilic_pos_041 | JN23: 180709MR_Grainmark_Hilic_pos_042 | JO23: 180709MR_Grainmark_Hilic_pos_043 | JP23: 180709MR_Grainmark_Hilic_pos_044 | JQ23: 180709MR_Grainmark_Hilic_pos_045 | JR23: 180709MR_Grainmark_Hilic_pos_046 | JS23: 180709MR_Grainmark_Hilic_pos_047 | JT23: 180709MR_Grainmark_Hilic_pos_048 | JU23: 180709MR_Grainmark_Hilic_pos_050 | JV23: 180709MR_Grainmark_Hilic_pos_051 | JW23: 180709MR_Grainmark_Hilic_pos_052 | JX23: 180709MR_Grainmark_Hilic_pos_053 | JY23: 180709MR_Grainmark_Hilic_pos_054 | JZ23: 180709MR_Grainmark_Hilic_pos_055 | KA23: 180709MR_Grainmark_Hilic_pos_056 | KB23: 180709MR_Grainmark_Hilic_pos_057 | KC23: 180709MR_Grainmark_Hilic_pos_058 | KD23: 180709MR_Grainmark_Hilic_pos_059 | KE23: 180709MR_Grainmark_Hilic_pos_060 | KF23: 180709MR_Grainmark_Hilic_pos_061 | KG23: 180709MR_Grainmark_Hilic_pos_063 | KH23: 180709MR_Grainmark_Hilic_pos_064 | KI23: 180709MR_Grainmark_Hilic_pos_065 | KJ23: 180709MR_Grainmark_Hilic_pos_066 | KK23: 180709MR_Grainmark_Hilic_pos_067 | KL23: 180709MR_Grainmark_Hilic_pos_068 | KM23: 180709MR_Grainmark_Hilic_pos_069 | KN23: 180709MR_Grainmark_Hilic_pos_070 | KO23: 180709MR_Grainmark_Hilic_pos_071 | KP23: 180709MR_Grainmark_Hilic_pos_072 | KQ23: 180709MR_Grainmark_Hilic_pos_073 | KR23: 180709MR_Grainmark_Hilic_pos_074 | KS23: 180709MR_Grainmark_Hilic_pos_076 | KT23: 180709MR_Grainmark_Hilic_pos_077 | KU23: 180709MR_Grainmark_Hilic_pos_078 | KV23: 180709MR_Grainmark_Hilic_pos_079 | KW23: 180709MR_Grainmark_Hilic_pos_080 | KX23: 180709MR_Grainmark_Hilic_pos_081 | KY23: 180709MR_Grainmark_Hilic_pos_082 | KZ23: 180709MR_Grainmark_Hilic_pos_083 | LA23: 180709MR_Grainmark_Hilic_pos_085 | LB23: 180709MR_Grainmark_Hilic_pos_086 | LC23: 180709MR_Grainmark_Hilic_pos_087 | LD23: 180709MR_Grainmark_Hilic_pos_088 | LE23: 180709MR_Grainmark_Hilic_pos_089 | LF23: 180709MR_Grainmark_Hilic_pos_090 | LG23: 180709MR_Grainmark_Hilic_pos_091 | LH23: 180709MR_Grainmark_Hilic_pos_092 | LI23: 180709MR_Grainmark_Hilic_pos_093 | LJ23: 180709MR_Grainmark_Hilic_pos_094 | LK23: 180709MR_Grainmark_Hilic_pos_095 | LL23: 180709MR_Grainmark_Hilic_pos_096 | LM23: 180709MR_Grainmark_Hilic_pos_098 | LN23: 180709MR_Grainmark_Hilic_pos_099 | LO23: 180709MR_Grainmark_Hilic_pos_100 | LP23: 180709MR_Grainmark_Hilic_pos_101 | LQ23: 180709MR_Grainmark_Hilic_pos_102 | LR23: 180709MR_Grainmark_Hilic_pos_103 | LS23: 180709MR_Grainmark_Hilic_pos_104 | LT23: 180709MR_Grainmark_Hilic_pos_105 | LU23: 180709MR_Grainmark_Hilic_pos_106 | LV23: 180709MR_Grainmark_Hilic_pos_107 | LW23: 180709MR_Grainmark_Hilic_pos_108 | LX23: 180709MR_Grainmark_Hilic_pos_109 | LY23: 180709MR_Grainmark_Hilic_pos_111 | LZ23: 180709MR_Grainmark_Hilic_pos_112 | MA23: 180709MR_Grainmark_Hilic_pos_113 | MB23: 180709MR_Grainmark_Hilic_pos_114 | MC23: 180709MR_Grainmark_Hilic_pos_115 | MD23: 180709MR_Grainmark_Hilic_pos_116 | ME23: 180709MR_Grainmark_Hilic_pos_117 | MF23: 180709MR_Grainmark_Hilic_pos_118 | MG23: 180709MR_Grainmark_Hilic_pos_119 | MH23: 180709MR_Grainmark_Hilic_pos_120 | MI23: 180709MR_Grainmark_Hilic_pos_121 | MJ23: 180709MR_Grainmark_Hilic_pos_122 | MK23: 180709MR_Grainmark_Hilic_pos_124 | ML23: 180709MR_Grainmark_Hilic_pos_125 | MM23: 180709MR_Grainmark_Hilic_pos_126 | MN23: 180709MR_Grainmark_Hilic_pos_127 | MO23: 180709MR_Grainmark_Hilic_pos_128 | MP23: 180709MR_Grainmark_Hilic_pos_129 | MQ23: 180709MR_Grainmark_Hilic_pos_130 | MR23: 180709MR_Grainmark_Hilic_pos_131 | MS23: 180709MR_Grainmark_Hilic_pos_132 | MT23: 180709MR_Grainmark_Hilic_pos_133 | MU23: 180709MR_Grainmark_Hilic_pos_134 | MV23: 180709MR_Grainmark_Hilic_pos_135 | MW23: 180709MR_Grainmark_Hilic_pos_137 | MX23: 180709MR_Grainmark_Hilic_pos_138 | MY23: 180709MR_Grainmark_Hilic_pos_139 | MZ23: 180709MR_Grainmark_Hilic_pos_140 | NA23: 180709MR_Grainmark_Hilic_pos_141 | NB23: 180709MR_Grainmark_Hilic_pos_142 | NC23: 180709MR_Grainmark_Hilic_pos_143 | ND23: 180709MR_Grainmark_Hilic_pos_144 | NE23: 180709MR_Grainmark_Hilic_pos_145 | NF23: 180709MR_Grainmark_Hilic_pos_146 | NG23: 180709MR_Grainmark_Hilic_pos_147 | NH23: 180709MR_Grainmark_Hilic_pos_148 | NI23: 180709MR_Grainmark_Hilic_pos_150 | NJ23: 180709MR_Grainmark_Hilic_pos_151 | NK23: 180709MR_Grainmark_Hilic_pos_152 | NL23: 180709MR_Grainmark_Hilic_pos_153 | NM23: 180709MR_Grainmark_Hilic_pos_154 | NN23: 180709MR_Grainmark_Hilic_pos_155 | NO23: 180709MR_Grainmark_Hilic_pos_156 | NP23: 180709MR_Grainmark_Hilic_pos_157 | NQ23: 180709MR_Grainmark_Hilic_pos_159 | NR23: 180709MR_Grainmark_Hilic_pos_160 | NS23: 180709MR_Grainmark_Hilic_pos_161 | NT23: 180709MR_Grainmark_Hilic_pos_162 | NU23: 180709MR_Grainmark_Hilic_pos_163 | NV23: 180709MR_Grainmark_Hilic_pos_164 | NW23: 180709MR_Grainmark_Hilic_pos_165 | NX23: 180709MR_Grainmark_Hilic_pos_166 | NY23: 180709MR_Grainmark_Hilic_pos_167 | NZ23: 180709MR_Grainmark_Hilic_pos_168 | OA23: 180709MR_Grainmark_Hilic_pos_169 | OB23: 180709MR_Grainmark_Hilic_pos_170 | OC23: 180709MR_Grainmark_Hilic_pos_172 | OD23: 180709MR_Grainmark_Hilic_pos_173 | OE23: 180709MR_Grainmark_Hilic_pos_174 | OF23: 180709MR_Grainmark_Hilic_pos_175 | OG23: 180709MR_Grainmark_Hilic_pos_176 | OH23: 180709MR_Grainmark_Hilic_pos_177 | OI23: 180709MR_Grainmark_Hilic_pos_178 | OJ23: 180709MR_Grainmark_Hilic_pos_179 | OK23: 180709MR_Grainmark_Hilic_pos_180 | OL23: 180709MR_Grainmark_Hilic_pos_181 | OM23: 180709MR_Grainmark_Hilic_pos_182 | ON23: 180709MR_Grainmark_Hilic_pos_183 | OO23: 180709MR_Grainmark_Hilic_pos_185 | OP23: 180709MR_Grainmark_Hilic_pos_186 | OQ23: 180709MR_Grainmark_Hilic_pos_187 | OR23: 180709MR_Grainmark_Hilic_pos_188 | OS23: 180709MR_Grainmark_Hilic_pos_189 | OT23: 180709MR_Grainmark_Hilic_pos_190 | OU23: 180709MR_Grainmark_Hilic_pos_191 | OV23: 180709MR_Grainmark_Hilic_pos_192 | OW23: 180709MR_Grainmark_Hilic_pos_193 | OX23: 180709MR_Grainmark_Hilic_pos_194 | OY23: 180709MR_Grainmark_Hilic_pos_195 | OZ23: 180709MR_Grainmark_Hilic_pos_196 | PA23: 180709MR_Grainmark_Hilic_pos_198 | PB23: 180709MR_Grainmark_Hilic_pos_199 | PC23: 180709MR_Grainmark_Hilic_pos_200 | PD23: 180709MR_Grainmark_Hilic_pos_201 | PE23: 180709MR_Grainmark_Hilic_pos_202 | PF23: 180709MR_Grainmark_Hilic_pos_203 | PG23: 180709MR_Grainmark_Hilic_pos_204 | PH23: 180709MR_Grainmark_Hilic_pos_205 | PI23: 180709MR_Grainmark_Hilic_pos_206 | PJ23: 180709MR_Grainmark_Hilic_pos_207 | PK23: 180709MR_Grainmark_Hilic_pos_208 | PL23: 180709MR_Grainmark_Hilic_pos_209 | PM23: 180709MR_Grainmark_Hilic_pos_211 | PN23: 180709MR_Grainmark_Hilic_pos_212 | PO23: 180709MR_Grainmark_Hilic_pos_213 | PP23: 180709MR_Grainmark_Hilic_pos_214 | PQ23: 180709MR_Grainmark_Hilic_pos_215 | PR23: 180709MR_Grainmark_Hilic_pos_216 | PS23: 180709MR_Grainmark_Hilic_pos_217 | PT23: 180709MR_Grainmark_Hilic_pos_218 | PU23: 180709MR_Grainmark_Hilic_pos_219 | PV23: 180709MR_Grainmark_Hilic_pos_220 | PW23: 180709MR_Grainmark_Hilic_pos_221 | PX23: 180709MR_Grainmark_Hilic_pos_222 | PY23: 180709MR_Grainmark_Hilic_pos_224 | PZ23: 180709MR_Grainmark_Hilic_pos_225 | QA23: 180709MR_Grainmark_Hilic_pos_226 | QB23: 180709MR_Grainmark_Hilic_pos_227 | QC23: 180709MR_Grainmark_Hilic_pos_228 | QD23: 180709MR_Grainmark_Hilic_pos_229 | QE23: 180709MR_Grainmark_Hilic_pos_230 | QF23: 180709MR_Grainmark_Hilic_pos_231 | QG23: 180709MR_Grainmark_Hilic_pos_001 | QH23: 180709MR_Grainmark_Hilic_pos_002 | QI23: 180709MR_Grainmark_Hilic_pos_003 | QJ23: 180709MR_Grainmark_Hilic_pos_004 | QK23: 180709MR_Grainmark_Hilic_pos_005 | QL23: 180709MR_Grainmark_Hilic_pos_006 | QM23: 180709MR_Grainmark_Hilic_pos_007 | QN23: 180709MR_Grainmark_Hilic_pos_008 | QO23: 180709MR_Grainmark_Hilic_pos_009 | QP23: 180709MR_Grainmark_Hilic_pos_010 | QQ23: 180709MR_Grainmark_Hilic_pos_023 | QR23: 180709MR_Grainmark_Hilic_pos_036 | QS23: 180709MR_Grainmark_Hilic_pos_049 | QT23: 180709MR_Grainmark_Hilic_pos_062 | QU23: 180709MR_Grainmark_Hilic_pos_075 | QV23: 180709MR_Grainmark_Hilic_pos_084 | QW23: 180709MR_Grainmark_Hilic_pos_097 | QX23: 180709MR_Grainmark_Hilic_pos_110 | QY23: 180709MR_Grainmark_Hilic_pos_123 | QZ23: 180709MR_Grainmark_Hilic_pos_136 | RA23: 180709MR_Grainmark_Hilic_pos_149 | RB23: 180709MR_Grainmark_Hilic_pos_158 | RC23: 180709MR_Grainmark_Hilic_pos_171 | RD23: 180709MR_Grainmark_Hilic_pos_184 | RE23: 180709MR_Grainmark_Hilic_pos_197 | RF23: 180709MR_Grainmark_Hilic_pos_210 | RG23: 180709MR_Grainmark_Hilic_pos_223 | RH23: 180709MR_Grainmark_Hilic_pos_232 | RI23: 180709MR_Grainmark_Hilic_pos_233 | RJ23: 180709MR_Grainmark_Hilic_pos_234 | RK23: 180709MR_Grainmark_Hilic_pos_235 | RL23: Average QC
A24: COMPOUND_100_0759a0_61 | B24: HILIC_POS | D24: 38 | E24: 0.61 | F24: 100.0759 | G24: 5-Aminovaleric acid | H24: Amino acid | I24: 2 | J24: HMDB0003355 | K24: x | L24: 5-Aminovaleric acid | M24: [M+H]+ | N24: similar chromatogram in higher mz_908 | O24: 1 | P24: TRUE | Q24: C5H11NO2 | S24: JJMDCOVWQOJGCB-UHFFFAOYSA-N | T24: NCCCCC(O)=O | V24: -1 | W24: -1 | X24: 844.5112 | Y24: 417.8642 | Z24: 714.2857 | AA24: 180709MR_Grainmark_Hilic_pos_233 | AB24: 100.07571:12716 101.07906:3286 102.08242:216 | AC24: 44.01234:748 44.34557:23 55.05386:101 55.40784:69 57.06983:133 57.10636:29 72.36071:8 73.0597:14 79.17386:6 82.06502:196 82.10268:8 100.07626:1130 100.11666:40 100.21051:17 100.28355:26 100.40791:49 100.42477:34 | AD24: kept | AE24: COMPOUND_100_0759a0_61 | AF24: 0.1810635691 | AG24: 0.2328436821 | AH24: 0.9952167623 | AJ24: 0.1933743955 | AK24: 0.2029297031 | AL24: 0.5801296482 | AM24: 0.2630899906 | AN24: 0.04771951652 | AO24: 0.5933357382 | AP24: =-LOG10(AO24) -> 0.2266994922 | AQ24: 0.3455882232 | AR24: 0.01008633305 | AS24: 0.0916456707 | AT24: 0.08202642159 | AU24: -0.264744609 | AV24: 0.4287974522 | AW24: 0.6444477802 | AX24: 0.9890066555 | AY24: -0.03063458455 | AZ24: -0.48372121 | BA24: 0.4224520409 | BB24: 0.8948761764 | BC24: 0.9865515007 | BD24: 0.1810635691 | BE24: -0.06050772334 | BF24: 0.4226348615 | BG24: 0.1465723015 | BH24: 0.8881753782 | BI24: 0.1125941429 | BJ24: 0.1818305913 | BK24: 0.1522138277 | BL24: -0.3003954773 | BM24: 0.6048231327 | BN24: 0.5120981203 | BO24: 0.9759596019 | BP24: -0.03063458455 | BQ24: -0.5221398981 | BR24: 0.460870729 | BS24: 0.9030190159 | BT24: 0.9899556479 | BU24: 0.1933743955 | BV24: -0.1219270718 | BW24: 0.5086758627 | BX24: 0.2336409412 | BY24: 0.6197929812 | BZ24: 0.1613873129 | CA24: 0.01063778009 | CB24: 0.03091109649 | CC24: 0.7219156054 | CD24: 0.9957477122 | CE24: 0.02202658687 | CF24: 0.8005633828 | CG24: 0.9793247348 | CH24: 0.162829263 | CI24: 0.05917035108 | CJ24: 0.5257334537 | CK24: -0.1748857257 | CL24: 0.0424831534 | CM24: 0.3328851346 | CN24: -0.0217555294 | CO24: 0.8022351147 | CP24: 0.9996757019 | CQ24: -0.2034215404 | CR24: 0.01840253168 | CS24: 0.5478715531 | CT24: 0.004126443478 | CU24: 0.961830655 | CV24: 0.9978539389 | CW24: -0.03714739649 | CX24: 0.6784099194 | CY24: 0.9973863525 | CZ24: -0.0392693346 | DA24: 0.6548377768 | DB24: 0.9992844709 | DC24: 0.1089822727 | DD24: 0.2049063692 | DE24: 0.8413072848 | DF24: 0.01766798287 | DG24: 0.8376349304 | DH24: 0.9995798835 | DI24: 0.07399604064 | DJ24: 0.3901504376 | DK24: 0.8743432221 | DL24: -0.04358837831 | DM24: 0.6307351156 | DN24: 0.9986115224 | DO24: -0.04251610133 | DP24: 0.6217994327 | DQ24: 0.9144685248 | DR24: 0.04096262084 | DS24: 0.6346004691 | DT24: 0.9637285951 | DU24: 0.03091109649 | DV24: 0.7219156054 | DW24: 0.9957477122 | DX24: 0.02202658687 | DY24: 0.8005633828 | DZ24: 0.9793247348 | EA24: 0.162829263 | EB24: 0.05917035108 | EC24: 0.5257334537 | ED24: -0.1748857257 | EE24: 0.0424831534 | EF24: 0.3328851346 | EG24: -0.0217555294 | EH24: 0.8022351147 | EI24: 0.9996757019 | EJ24: -0.2034215404 | EK24: 0.01840253168 | EL24: 0.5478715531 | EM24: 0.004126443478 | EN24: 0.961830655 | EO24: 0.9978539389 | EP24: -0.03714739649 | EQ24: 0.6784099194 | ER24: 0.9973863525 | ES24: -0.0392693346 | ET24: 0.6548377768 | EU24: 0.9992844709 | EV24: 0.1089822727 | EW24: 0.2049063692 | EX24: 0.8413072848 | EY24: 0.01766798287 | EZ24: 0.8376349304 | FA24: 0.9995798835 | FB24: 0.07399604064 | FC24: 0.3901504376 | FD24: 0.8743432221 | FE24: -0.04358837831 | FF24: 0.6307351156 | FG24: 0.9986115224 | FH24: -0.04251610133 | FI24: 0.6217994327 | FJ24: 0.9144685248 | FK24: 0.04096262084 | FL24: 0.6346004691 | FM24: 0.9637285951 | FN24: -0.2262504829 | FO24: 0.00123949848 | FP24: 0.0154693206 | FQ24: -0.2408427575 | FR24: 0.0005916999244 | FS24: 0.03936987662 | FT24: 0.005068273769 | FU24: 0.9430734444 | FV24: 0.9702615909 | FW24: -0.02836521992 | FX24: 0.6893636793 | FY24: 0.8161800018 | FZ24: -0.2246789483 | GA24: 0.001343113178 | GB24: 0.01529810525 | GC24: -0.2846982912 | GD24: 4.390984288e-05 | GE24: 0.004280563948 | GF24: -0.1125395352 | GG24: 0.1090220498 | GH24: 0.2556445589 | GI24: -0.1693117984 | GJ24: 0.01857785576 | GK24: 0.2400635592 | GL24: -0.1541951072 | GM24: 0.03008509122 | GN24: 0.1009792758 | GO24: 0.02457644294 | GP24: 0.7271511927 | GQ24: 0.908801896 | GR24: -0.1935885915 | GS24: 0.005532040313 | GT24: 0.06311858044 | GU24: 0.02297086584 | GV24: 0.7443361497 | GW24: 0.9853203739 | GX24: 0.01624198701 | GY24: 0.8244511013 | GZ24: 0.9509738466 | HA24: 0.03382129337 | HB24: 0.6310611651 | HC24: 0.853163491 | HD24: 0.08265656829 | HE24: 0.2398627627 | HF24: 0.5225659662 | HO24: COMPOUND_100_0759a0_61 | HP24: 38 | HQ24: 0.61 | HR24: 100.0759 | HS24: 5-Aminovaleric acid | HT24: [M+H]+ | HU24: similar chromatogram in higher mz_908 | HV24: 1 | HW24: TRUE | HX24: C5H11NO2 | HZ24: JJMDCOVWQOJGCB-UHFFFAOYSA-N | IA24: NCCCCC(O)=O | IC24: -1 | ID24: -1 | IE24: 844.5112 | IF24: 417.8642 | IG24: 714.2857 | IH24: 180709MR_Grainmark_Hilic_pos_233 | II24: 100.07571:12716 101.07906:3286 102.08242:216 | IJ24: 44.01234:748 44.34557:23 55.05386:101 55.40784:69 57.06983:133 57.10636:29 72.36071:8 73.0597:14 79.17386:6 82.06502:196 82.10268:8 100.07626:1130 100.11666:40 100.21051:17 100.28355:26 100.40791:49 100.42477:34 | IK24: 308656 | IL24: 396408 | IM24: 112815 | IN24: 80690 | IO24: 210449 | IP24: 135632 | IQ24: 389300 | IR24: 110651 | IS24: 32462 | IT24: 60784 | IU24: 95344 | IV24: 710385 | IW24: 68718 | IX24: 50613 | IY24: 26693 | IZ24: 176407 | JA24: 301666 | JB24: 105084 | JC24: 266240 | JD24: 169469 | JE24: 24564 | JF24: 91669 | JG24: 208570 | JH24: 225702 | JI24: 504294 | JJ24: 140325 | JK24: 22518 | JL24: 61670 | JM24: 209041 | JN24: 49017 | JO24: 76065 | JP24: 1674149 | JQ24: 306165 | JR24: 44728 | JS24: 94848 | JT24: 45043 | JU24: 59580 | JV24: 34318 | JW24: 528761 | JX24: 38082 | JY24: 181074 | JZ24: 113937 | KA24: 658191 | KB24: 82528 | KC24: 2142162 | KD24: 373007 | KE24: 519667 | KF24: 163012 | KG24: 141747 | KH24: 33659 | KI24: 280040 | KJ24: 35419 | KK24: 380964 | KL24: 73203 | KM24: 58507 | KN24: 812912 | KO24: 359684 | KP24: 146992 | KQ24: 77974 | KR24: 95605 | KS24: 125085 | KT24: 152884 | KU24: 333696 | KV24: 261641 | KW24: 820387 | KX24: 175512 | KY24: 33672 | KZ24: 565450 | LA24: 140135 | LB24: 33928 | LC24: 82662 | LD24: 781404 | LE24: 15358 | LF24: 179329 | LG24: 321062 | LH24: 170254 | LI24: 237152 | LJ24: 176091 | LK24: 46497 | LL24: 70696 | LM24: 206036 | LN24: 61148 | LO24: 64567 | LP24: 173904 | LQ24: 53727 | LR24: 173009 | LS24: 160128 | LT24: 39541 | LU24: 243455 | LV24: 645440 | LW24: 111147 | LX24: 399674 | LY24: 62936 | LZ24: 273684 | MA24: 79965 | MB24: 1178468 | MC24: 424402 | MD24: 216254 | ME24: 58429 | MF24: 319952 | MG24: 122457 | MH24: 58163 | MI24: 323036 | MJ24: 97774 | MK24: 302078 | ML24: 1131156 | MM24: 92656 | MN24: 158815 | MO24: 31205 | MP24: 220202 | MQ24: 69524 | MR24: 88319 | MS24: 148313 | MT24: 76280 | MU24: 313816 | MV24: 87549 | MW24: 39973 | MX24: 917547 | MY24: 101750 | MZ24: 61535 | NA24: 89004 | NB24: 46772 | NC24: 20118 | ND24: 169428 | NE24: 40695 | NF24: 114658 | NG24: 34815 | NH24: 314868 | NI24: 15361 | NJ24: 99235 | NK24: 471840 | NL24: 112260 | NM24: 341364 | NN24: 1852399 | NO24: 49825 | NP24: 84550 | NQ24: 87756 | NR24: 51610 | NS24: 86934 | NT24: 356191 | NU24: 48021 | NV24: 18894 | NW24: 124082 | NX24: 32265 | NY24: 44880 | NZ24: 102820 | OA24: 80261 | OB24: 215558 | OC24: 58937 | OD24: 284771 | OE24: 140664 | OF24: 279960 | OG24: 75379 | OH24: 179555 | OI24: 121104 | OJ24: 33275 | OK24: 115624 | OL24: 994409 | OM24: 448234 | ON24: 50937 | OO24: 178085 | OP24: 69083 | OQ24: 69451 | OR24: 92152 | OS24: 41429 | OT24: 59654 | OU24: 170135 | OV24: 214691 | OW24: 196558 | OX24: 21875 | OY24: 73996 | OZ24: 92916 | PA24: 145978 | PB24: 575756 | PC24: 42016 | PD24: 342841 | PE24: 131739 | PF24: 71475 | PG24: 137837 | PH24: 48944 | PI24: 107010 | PJ24: 201695 | PK24: 97411 | PL24: 42007 | PM24: 19323 | PN24: 182553 | PO24: 391189 | PP24: 40955 | PQ24: 98535 | PR24: 57450 | PS24: 99431 | PT24: 180394 | PU24: 75507 | PV24: 55474 | PW24: 99735 | PX24: 16698 | PY24: 134779 | PZ24: 44092 | QA24: 314856 | QB24: 65527 | QC24: 151313 | QD24: 202232 | QE24: 326729 | QF24: 741481 | QG24: 237627 | QH24: 297451 | QI24: 326956 | QJ24: 314944 | QK24: 331715 | QL24: 306751 | QM24: 305335 | QN24: 28618 | QO24: 301742 | QP24: 309819 | QQ24: 306611 | QR24: 294153 | QS24: 277031 | QT24: 285233 | QU24: 279072 | QV24: 277304 | QW24: 269109 | QX24: 265645 | QY24: 253633 | QZ24: 276196 | RA24: 250075 | RB24: 252458 | RC24: 259273 | RD24: 258809 | RE24: 261294 | RF24: 269301 | RG24: 256314 | RH24: 250822 | RI24: 73262 | RJ24: 88501 | RK24: 115505 | RL24: =AVERAGE(QG24:RH24) -> 271546.1071
A25: COMPOUND_100_0759a2_03 | B25: RP_POS | D25: 333 | E25: 2.03 | F25: 100.0759 | G25: 2-Piperidinone | H25: Piperidine derivative | I25: 2 | J25: HMDB0011749 | K25: x | L25: 5-Aminovaleric acid | M25: [M+H]+ | N25: adduct linked to 784_[M+Na]+; adduct linked to 2353_[2M+H]+ | O25: 0.9702128 | P25: TRUE | Q25: C5H11NO2 | S25: JJMDCOVWQOJGCB-UHFFFAOYSA-N | T25: NCCCCC(O)=O | V25: -1 | W25: -1 | X25: 659.1103 | Y25: 507.5027 | Z25: 428.5714 | AA25: 180706MR_Grainmark_RP_pos_234 | AB25: 100.07552:9104 101.07887:429 102.08223:201 | AC25: 44.01178:59 55.05342:194 55.08476:13 56.04821:140 56.08136:9 75.50387:9 87.26083:7 88.81213:9 | AD25: kept | AE25: COMPOUND_100_0759a2_03 | AF25: 0.1132115292 | AG25: 0.3699326507 | AH25: 0.9970396117 | AJ25: 0.2468461369 | AK25: 0.05314824964 | AL25: 0.2945870184 | AM25: 0.1616554107 | AN25: 0.2036766797 | AO25: 0.8090496339 | AP25: =-LOG10(AO25) -> 0.09202483429 | AQ25: 0.3348895662 | AR25: 0.009849825345 | AS25: 0.0908129238 | AT25: 0.04844388152 | AU25: -0.2857073602 | AV25: 0.3825951233 | AW25: 0.7771868609 | AX25: 0.9907393313 | AY25: -0.009560973625 | AZ25: -0.4603045493 | BA25: 0.4411826021 | BB25: 0.9669341952 | BC25: 0.995403744 | BD25: 0.1132115292 | BE25: -0.1195684328 | BF25: 0.3459914912 | BG25: 0.343956738 | BH25: 0.9848066168 | BI25: 0.0689146643 | BJ25: 0.1120024213 | BK25: 0.08804342931 | BL25: -0.2841657162 | BM25: 0.4602525748 | BN25: 0.6444485765 | BO25: 0.9845700884 | BP25: -0.009560973625 | BQ25: -0.4945361437 | BR25: 0.4754141964 | BS25: 0.9692652557 | BT25: 0.9956972925 | BU25: 0.2468461369 | BV25: -0.01244612334 | BW25: 0.5061383972 | BX25: 0.06650215362 | BY25: 0.3431054018 | BZ25: 0.1126487202 | CA25: -0.002940197796 | CB25: 0.04352796795 | CC25: 0.6161712316 | CD25: 0.9956070676 | CE25: 0.03260868278 | CF25: 0.708377615 | CG25: 0.9640244828 | CH25: 0.1648460813 | CI25: 0.05605340943 | CJ25: 0.5172295445 | CK25: -0.1538283718 | CL25: 0.07485984578 | CM25: 0.4296428566 | CN25: -0.008451140556 | CO25: 0.9225024361 | CP25: 0.9996757019 | CQ25: -0.1924921242 | CR25: 0.0258629514 | CS25: 0.565737985 | CT25: 0.02155865193 | CU25: 0.80254517 | CV25: 0.9967977033 | CW25: -0.08253942625 | CX25: 0.3562414854 | CY25: 0.9973863525 | CZ25: -0.02204164814 | DA25: 0.8019214831 | DB25: 0.9992844709 | DC25: 0.1228078926 | DD25: 0.1528098573 | DE25: 0.8179168552 | DF25: 0.02308112959 | DG25: 0.7889163839 | DH25: 0.9995798835 | DI25: 0.08252970485 | DJ25: 0.3376739841 | DK25: 0.8493447841 | DL25: -0.06730978519 | DM25: 0.4576136905 | DN25: 0.9986115224 | DO25: -0.05574223371 | DP25: 0.5176505171 | DQ25: 0.8696161373 | DR25: 0.05375528623 | DS25: 0.5327091617 | DT25: 0.9496058162 | DU25: 0.04352796795 | DV25: 0.6161712316 | DW25: 0.9956070676 | DX25: 0.03260868278 | DY25: 0.708377615 | DZ25: 0.9640244828 | EA25: 0.1648460813 | EB25: 0.05605340943 | EC25: 0.5172295445 | ED25: -0.1538283718 | EE25: 0.07485984578 | EF25: 0.4296428566 | EG25: -0.008451140556 | EH25: 0.9225024361 | EI25: 0.9996757019 | EJ25: -0.1924921242 | EK25: 0.0258629514 | EL25: 0.565737985 | EM25: 0.02155865193 | EN25: 0.80254517 | EO25: 0.9967977033 | EP25: -0.08253942625 | EQ25: 0.3562414854 | ER25: 0.9973863525 | ES25: -0.02204164814 | ET25: 0.8019214831 | EU25: 0.9992844709 | EV25: 0.1228078926 | EW25: 0.1528098573 | EX25: 0.8179168552 | EY25: 0.02308112959 | EZ25: 0.7889163839 | FA25: 0.9995798835 | FB25: 0.08252970485 | FC25: 0.3376739841 | FD25: 0.8493447841 | FE25: -0.06730978519 | FF25: 0.4576136905 | FG25: 0.9986115224 | FH25: -0.05574223371 | FI25: 0.5176505171 | FJ25: 0.8696161373 | FK25: 0.05375528623 | FL25: 0.5327091617 | FM25: 0.9496058162 | FN25: -0.2184024072 | FO25: 0.001840905982 | FP25: 0.02010439169 | FQ25: -0.2412974192 | FR25: 0.000577271361 | FS25: 0.0390482842 | FT25: 0.02528962766 | FU25: 0.7215685743 | FV25: 0.8266985965 | FW25: -0.02591883386 | FX25: 0.7149378754 | FY25: 0.832467527 | FZ25: -0.2250651725 | GA25: 0.001316938487 | GB25: 0.01512995707 | GC25: -0.3205637808 | GD25: 3.696525583e-06 | GE25: 0.000675845949 | GF25: -0.1457007155 | GG25: 0.03758573239 | GH25: 0.1188720515 | GI25: -0.1375425197 | GJ25: 0.05646045042 | GK25: 0.3856262577 | GL25: -0.196075629 | GM25: 0.005631759737 | GN25: 0.0280277292 | GO25: 0.06088931256 | GP25: 0.3869661067 | GQ25: 0.728335696 | GR25: -0.1649880833 | GS25: 0.0183635424 | GT25: 0.152929551 | GU25: 0.04116980525 | GV25: 0.5587782948 | GW25: 0.9658079603 | GX25: 0.04522457885 | GY25: 0.5366235463 | GZ25: 0.8235125865 | HA25: 0.04052995734 | HB25: 0.5649105781 | HC25: 0.8088373175 | HD25: 0.09324001198 | HE25: 0.1846933496 | HF25: 0.4523955644 | HO25: COMPOUND_100_0759a2_03 | HP25: 333 | HQ25: 2.03 | HR25: 100.0759 | HS25: 5-Aminovaleric acid | HT25: [M+H]+ | HU25: adduct linked to 784_[M+Na]+; adduct linked to 2353_[2M+H]+ | HV25: 0.9702128 | HW25: TRUE | HX25: C5H11NO2 | HZ25: JJMDCOVWQOJGCB-UHFFFAOYSA-N | IA25: NCCCCC(O)=O | IC25: -1 | ID25: -1 | IE25: 659.1103 | IF25: 507.5027 | IG25: 428.5714 | IH25: 180706MR_Grainmark_RP_pos_234 | II25: 100.07552:9104 101.07887:429 102.08223:201 | IJ25: 44.01178:59 55.05342:194 55.08476:13 56.04821:140 56.08136:9 75.50387:9 87.26083:7 88.81213:9 | IK25: 254978 | IL25: 360441 | IM25: 89940 | IN25: 74105 | IO25: 164784 | IP25: 120069 | IQ25: 308853 | IR25: 105087 | IS25: 28157 | IT25: 50586 | IU25: 74986 | IV25: 609064 | IW25: 51954 | IX25: 46468 | IY25: 306479 | IZ25: 142924 | JA25: 274811 | JB25: 87940 | JC25: 230079 | JD25: 161726 | JE25: 18828 | JF25: 93206 | JG25: 187592 | JH25: 198002 | JI25: 391252 | JJ25: 116575 | JK25: 180744 | JL25: 63387 | JM25: 210644 | JN25: 41076 | JO25: 62988 | JP25: 1393635 | JQ25: 257430 | JR25: 42739 | JS25: 82766 | JT25: 35524 | JU25: 48675 | JV25: 24387 | JW25: 459223 | JX25: 33186 | JY25: 150516 | JZ25: 106681 | KA25: 517742 | KB25: 71494 | KC25: 1767345 | KD25: 310362 | KE25: 401518 | KF25: 133560 | KG25: 125103 | KH25: 17792 | KI25: 235402 | KJ25: 25692 | KK25: 314865 | KL25: 45202 | KM25: 49982 | KN25: 663540 | KO25: 287052 | KP25: 119623 | KQ25: 63908 | KR25: 74701 | KS25: 88075 | KT25: 132560 | KU25: 228446 | KV25: 204301 | KW25: 622694 | KX25: 139363 | KY25: 28916 | KZ25: 406820 | LA25: 126548 | LB25: 18943 | LC25: 59978 | LD25: 619787 | LE25: 13097 | LF25: 148886 | LG25: 269544 | LH25: 148051 | LI25: 189273 | LJ25: 141293 | LK25: 37100 | LL25: 62069 | LM25: 182219 | LN25: 36248 | LO25: 46069 | LP25: 126656 | LQ25: 34825 | LR25: 128188 | LS25: 114973 | LT25: 414946 | LU25: 201876 | LV25: 586244 | LW25: 85281 | LX25: 342938 | LY25: 59733 | LZ25: 208681 | MA25: 65788 | MB25: 942135 | MC25: 368659 | MD25: 172148 | ME25: 63401 | MF25: 261741 | MG25: 99862 | MH25: 41692 | MI25: 269895 | MJ25: 73919 | MK25: 280650 | ML25: 1041563 | MM25: 73779 | MN25: 142408 | MO25: 23608 | MP25: 178707 | MQ25: 47313 | MR25: 75543 | MS25: 110837 | MT25: 63614 | MU25: 214532 | MV25: 67624 | MW25: 43444 | MX25: 742004 | MY25: 78039 | MZ25: 53853 | NA25: 71037 | NB25: 36274 | NC25: 14527 | ND25: 127047 | NE25: 32410 | NF25: 102704 | NG25: 27241 | NH25: 279029 | NI25: 105897 | NJ25: 80736 | NK25: 337964 | NL25: 81003 | NM25: 239138 | NN25: 1535423 | NO25: 41699 | NP25: 70912 | NQ25: 65570 | NR25: 38131 | NS25: 71631 | NT25: 251589 | NU25: 36267 | NV25: 9234 | NW25: 95667 | NX25: 26523 | NY25: 40663 | NZ25: 82151 | OA25: 61195 | OB25: 156281 | OC25: 48427 | OD25: 220122 | OE25: 98643 | OF25: 206446 | OG25: 57476 | OH25: 132844 | OI25: 75342 | OJ25: 22242 | OK25: 86813 | OL25: 713040 | OM25: 331451 | ON25: 36459 | OO25: 129390 | OP25: 49020 | OQ25: 55947 | OR25: 62009 | OS25: 33555 | OT25: 46624 | OU25: 116759 | OV25: 176226 | OW25: 151205 | OX25: 13677 | OY25: 54523 | OZ25: 70153 | PA25: 123211 | PB25: 447463 | PC25: 31602 | PD25: 280016 | PE25: 102332 | PF25: 55609 | PG25: 101922 | PH25: 31945 | PI25: 73951 | PJ25: 141502 | PK25: 74252 | PL25: 34824 | PM25: 143151 | PN25: 149860 | PO25: 305783 | PP25: 26159 | PQ25: 83782 | PR25: 34246 | PS25: 69688 | PT25: 144126 | PU25: 52161 | PV25: 44550 | PW25: 66702 | PX25: 13436 | PY25: 104414 | PZ25: 33181 | QA25: 199178 | QB25: 42585 | QC25: 112253 | QD25: 132311 | QE25: 267702 | QF25: 607896 | QG25: 242230 | QH25: 216115 | QI25: 191588 | QJ25: 214823 | QK25: 244733 | QL25: 259767 | QM25: 243167 | QN25: 250606 | QO25: 247160 | QP25: 225856 | QQ25: 247310 | QR25: 234990 | QS25: 215563 | QT25: 194418 | QU25: 211054 | QV25: 204276 | QW25: 198119 | QX25: 229775 | QY25: 212773 | QZ25: 188772 | RA25: 191202 | RB25: 197534 | RC25: 185447 | RD25: 174564 | RE25: 173384 | RF25: 179744 | RG25: 193306 | RH25: 179244 | RI25: 150640 | RJ25: 101767 | RK25: 96170 | RL25: =AVERAGE(QG25:RH25) -> 212411.4286
A26: COMPOUND_104_0706a4_77 | B26: HILIC_POS | D26: 67 | E26: 4.77 | F26: 104.0706 | G26: N,N-Dimethylglycine | H26: Amino acid | I26: 2 | J26: HMDB0000092 | K26: x | L26: N,N-Dimethylglycine | M26: [M+H]+ | O26: 1 | P26: TRUE | Q26: C4H9NO2 | S26: FFDGPVCHZBVARC-UHFFFAOYSA-N | T26: CN(C)CC(O)=O | V26: -1 | W26: -1 | X26: 813.3551 | Y26: 879.8884 | Z26: 1000 | AA26: 180709MR_Grainmark_Hilic_pos_233 | AB26: 104.06954:3370 105.07289:415 106.07625:492 | AC26: 29.2844:11 58.06551:428 58.10035:7 97.59939:27 104.07098:106 | AD26: kept | AE26: COMPOUND_104_0706a4_77 | AF26: 0.2186157194 | AG26: 0.01591828598 | AH26: 0.6896883513 | AJ26: 0.238615646 | AK26: 0.008769726301 | AL26: 0.09920565811 | AM26: 0.02847746511 | AN26: 0.8268363277 | AO26: 0.9786605233 | AP26: =-LOG10(AO26) -> 0.009367929657 | AQ26: 0.2901713487 | AR26: 0.02869374297 | AS26: 0.1619532538 | AT26: -0.1901382543 | AU26: -0.5403080686 | AV26: 0.16003156 | AW26: 0.2910989466 | AX26: 0.9544650337 | AY26: -0.03593946167 | AZ26: -0.5120258103 | BA26: 0.440146887 | BB26: 0.8827228721 | BC26: 0.9865515007 | BD26: 0.2186157194 | BE26: -0.0253232695 | BF26: 0.4625547084 | BG26: 0.0836415426 | BH26: 0.8512094637 | BI26: -0.2658965304 | BJ26: -0.3328729028 | BK26: 0.0515557027 | BL26: -0.2201910795 | BM26: 0.3233024849 | BN26: 0.7112004413 | BO26: 0.987091979 | BP26: -0.03593946167 | BQ26: -0.517072708 | BR26: 0.4451937847 | BS26: 0.8839829859 | BT26: 0.9879487975 | BU26: 0.238615646 | BV26: 0.04930853668 | BW26: 0.4279227552 | BX26: 0.01608472168 | BY26: 0.1563425514 | BZ26: 0.09037947603 | CA26: -0.01614560837 | CB26: -0.1492273025 | CC26: 0.08409089833 | CD26: 0.7343307739 | CE26: -0.1367805714 | CF26: 0.1150414792 | CG26: 0.6459632743 | CH26: -0.0350171565 | CI26: 0.6867989663 | CJ26: 0.918416587 | CK26: -0.02446715188 | CL26: 0.7781879242 | CM26: 0.9474027088 | CN26: -0.1535162447 | CO26: 0.07545902717 | CP26: 0.752836216 | CQ26: -0.1391147149 | CR26: 0.1089153448 | CS26: 0.7490579874 | CT26: -0.001016281568 | CU26: 0.9905961258 | CV26: 0.9982526835 | CW26: -0.08153948413 | CX26: 0.3621181154 | CY26: 0.9973863525 | CZ26: -0.0467476327 | DA26: 0.5945374994 | DB26: 0.9992844709 | DC26: 0.03415883863 | DD26: 0.6919049334 | DE26: 0.9658251758 | DF26: 0.1126940453 | DG26: 0.1898088004 | DH26: 0.9995798835 | DI26: 0.06588380407 | DJ26: 0.4443215717 | DK26: 0.8933362192 | DL26: -0.002459394826 | DM26: 0.978372528 | DN26: 0.9994818503 | DO26: -0.007515372332 | DP26: 0.9305440053 | DQ26: 0.9898244181 | DR26: 0.07255180482 | DS26: 0.3994928658 | DT26: 0.9322354062 | DU26: -0.1492273025 | DV26: 0.08409089833 | DW26: 0.7343307739 | DX26: -0.1367805714 | DY26: 0.1150414792 | DZ26: 0.6459632743 | EA26: -0.0350171565 | EB26: 0.6867989663 | EC26: 0.918416587 | ED26: -0.02446715188 | EE26: 0.7781879242 | EF26: 0.9474027088 | EG26: -0.1535162447 | EH26: 0.07545902717 | EI26: 0.752836216 | EJ26: -0.1391147149 | EK26: 0.1089153448 | EL26: 0.7490579874 | EM26: -0.001016281568 | EN26: 0.9905961258 | EO26: 0.9982526835 | EP26: -0.08153948413 | EQ26: 0.3621181154 | ER26: 0.9973863525 | ES26: -0.0467476327 | ET26: 0.5945374994 | EU26: 0.9992844709 | EV26: 0.03415883863 | EW26: 0.6919049334 | EX26: 0.9658251758 | EY26: 0.1126940453 | EZ26: 0.1898088004 | FA26: 0.9995798835 | FB26: 0.06588380407 | FC26: 0.4443215717 | FD26: 0.8933362192 | FE26: -0.002459394826 | FF26: 0.978372528 | FG26: 0.9994818503 | FH26: -0.007515372332 | FI26: 0.9305440053 | FJ26: 0.9898244181 | FK26: 0.07255180482 | FL26: 0.3994928658 | FM26: 0.9322354062 | FN26: -0.07054902692 | FO26: 0.3196352741 | FP26: 0.5441351393 | FQ26: -0.04169897887 | FR26: 0.5576931814 | FS26: 0.8024632297 | FT26: -0.1107087354 | FU26: 0.1176787228 | FV26: 0.2331417466 | FW26: 0.03794800241 | FX26: 0.5927583759 | FY26: 0.7432997406 | FZ26: -0.02502816181 | GA26: 0.7243301058 | GB26: 0.8807525889 | GC26: 0.005480029335 | GD26: 0.9386123074 | GE26: 0.9804541481 | GF26: 0.2111697058 | GG26: 0.002430702245 | GH26: 0.0142091051 | GI26: -0.1071679347 | GJ26: 0.137960598 | GK26: 0.5612950745 | GL26: 0.2014513112 | GM26: 0.004427785519 | GN26: 0.02300297038 | GO26: 0.01594779231 | GP26: 0.820894394 | GQ26: 0.9453775438 | GR26: 0.005157684404 | GS26: 0.9416355961 | GT26: 0.9841266759 | GU26: 0.09588839568 | GV26: 0.1724762129 | GW26: 0.8538796232 | GX26: 0.2249734832 | GY26: 0.001856025003 | GZ26: 0.04033963852 | HA26: -0.06384227386 | HB26: 0.3643154412 | HC26: 0.6561588656 | HD26: 0.1439033846 | HE26: 0.04003169568 | HF26: 0.1822596914 | HH26: 1 | HO26: COMPOUND_104_0706a4_77 | HP26: 67 | HQ26: 4.77 | HR26: 104.0706 | HS26: N,N-Dimethylglycine | HT26: [M+H]+ | HV26: 1 | HW26: TRUE | HX26: C4H9NO2 | HZ26: FFDGPVCHZBVARC-UHFFFAOYSA-N | IA26: CN(C)CC(O)=O | IC26: -1 | ID26: -1 | IE26: 813.3551 | IF26: 879.8884 | IG26: 1000 | IH26: 180709MR_Grainmark_Hilic_pos_233 | II26: 104.06954:3370 105.07289:415 106.07625:492 | IJ26: 29.2844:11 58.06551:428 58.10035:7 97.59939:27 104.07098:106 | IK26: 66748 | IL26: 61767 | IM26: 49145 | IN26: 57189 | IO26: 71198 | IP26: 56736 | IQ26: 71116 | IR26: 99534 | IS26: 84961 | IT26: 67841 | IU26: 62180 | IV26: 47892 | IW26: 92759 | IX26: 54549 | IY26: 86142 | IZ26: 52102 | JA26: 53132 | JB26: 61394 | JC26: 74974 | JD26: 57323 | JE26: 70166 | JF26: 74356 | JG26: 66790 | JH26: 113688 | JI26: 69472 | JJ26: 84053 | JK26: 81330 | JL26: 38610 | JM26: 50510 | JN26: 50235 | JO26: 74481 | JP26: 61620 | JQ26: 78315 | JR26: 62101 | JS26: 47465 | JT26: 72439 | JU26: 45549 | JV26: 49192 | JW26: 57937 | JX26: 66913 | JY26: 61543 | JZ26: 75353 | KA26: 54190 | KB26: 83299 | KC26: 73649 | KD26: 61184 | KE26: 65240 | KF26: 44444 | KG26: 50167 | KH26: 54095 | KI26: 59886 | KJ26: 49008 | KK26: 49269 | KL26: 77631 | KM26: 66257 | KN26: 62948 | KO26: 54943 | KP26: 64114 | KQ26: 72482 | KR26: 67315 | KS26: 48627 | KT26: 76464 | KU26: 89107 | KV26: 59180 | KW26: 51352 | KX26: 74989 | KY26: 45987 | KZ26: 43914 | LA26: 87996 | LB26: 74923 | LC26: 57511 | LD26: 66515 | LE26: 57711 | LF26: 108615 | LG26: 149475 | LH26: 63677 | LI26: 52530 | LJ26: 71290 | LK26: 141788 | LL26: 52557 | LM26: 55024 | LN26: 116712 | LO26: 61427 | LP26: 48471 | LQ26: 78712 | LR26: 45359 | LS26: 45575 | LT26: 48756 | LU26: 46098 | LV26: 46496 | LW26: 50325 | LX26: 73861 | LY26: 77513 | LZ26: 47582 | MA26: 63617 | MB26: 54058 | MC26: 87983 | MD26: 43208 | ME26: 48639 | MF26: 108133 | MG26: 84003 | MH26: 72012 | MI26: 67891 | MJ26: 71507 | MK26: 33359 | ML26: 46310 | MM26: 42267 | MN26: 66105 | MO26: 64284 | MP26: 45442 | MQ26: 59254 | MR26: 71339 | MS26: 44440 | MT26: 39003 | MU26: 49689 | MV26: 49938 | MW26: 90299 | MX26: 43758 | MY26: 56803 | MZ26: 41943 | NA26: 45623 | NB26: 113526 | NC26: 48155 | ND26: 169011 | NE26: 57478 | NF26: 44359 | NG26: 70211 | NH26: 111660 | NI26: 72047 | NJ26: 41536 | NK26: 64887 | NL26: 59196 | NM26: 64351 | NN26: 50135 | NO26: 62841 | NP26: 39107 | NQ26: 41566 | NR26: 135501 | NS26: 40235 | NT26: 46450 | NU26: 75418 | NV26: 72272 | NW26: 46428 | NX26: 64776 | NY26: 104352 | NZ26: 46978 | OA26: 40845 | OB26: 101331 | OC26: 91682 | OD26: 56344 | OE26: 63367 | OF26: 43568 | OG26: 73687 | OH26: 46063 | OI26: 142589 | OJ26: 51853 | OK26: 84332 | OL26: 63147 | OM26: 45585 | ON26: 42903 | OO26: 44708 | OP26: 40125 | OQ26: 40532 | OR26: 49236 | OS26: 77248 | OT26: 45031 | OU26: 49374 | OV26: 50356 | OW26: 68915 | OX26: 69342 | OY26: 66822 | OZ26: 60604 | PA26: 111343 | PB26: 61142 | PC26: 58453 | PD26: 57595 | PE26: 72135 | PF26: 43705 | PG26: 43983 | PH26: 51993 | PI26: 95606 | PJ26: 218290 | PK26: 53085 | PL26: 65062 | PM26: 51631 | PN26: 50415 | PO26: 52224 | PP26: 43407 | PQ26: 47268 | PR26: 59647 | PS26: 76614 | PT26: 166514 | PU26: 106525 | PV26: 55169 | PW26: 70229 | PX26: 58004 | PY26: 52368 | PZ26: 59222 | QA26: 60816 | QB26: 42916 | QC26: 52995 | QD26: 59235 | QE26: 54235 | QF26: 37067 | QG26: 83855 | QH26: 74213 | QI26: 76841 | QJ26: 74719 | QK26: 79184 | QL26: 73772 | QM26: 66624 | QN26: 77506 | QO26: 68163 | QP26: 71230 | QQ26: 69322 | QR26: 66975 | QS26: 71344 | QT26: 63247 | QU26: 70171 | QV26: 63143 | QW26: 64854 | QX26: 58182 | QY26: 54478 | QZ26: 66338 | RA26: 61899 | RB26: 61762 | RC26: 63706 | RD26: 59299 | RE26: 62639 | RF26: 61115 | RG26: 64012 | RH26: 59338 | RI26: 29489 | RJ26: 30502 | RK26: 27174 | RL26: =AVERAGE(QG26:RH26) -> 67426.10714
A27: COMPOUND_104_107a1_52 | B27: HILIC_POS | D27: 71 | E27: 1.52 | F27: 104.1070 | G27: Choline | H27: Betaine | I27: 2 | J27: HMDB0000097 | K27: x | L27: Choline cation | M27: [M+H]+ | N27: similar chromatogram in higher mz_659 | O27: 1 | P27: TRUE | Q27: C5H14NO | S27: OEYIOHPDSNJKLS-UHFFFAOYSA-N | T27: C[N+](C)(C)CCO | V27: -1 | W27: -1 | X27: 877.1523 | Y27: 984.1448 | Z27: 1000 | AA27: 180709MR_Grainmark_Hilic_pos_234 | AB27: 104.10711:591486 105.11046:68270 106.11382:4117 | AC27: 42.0325:52 43.0175:98 43.0415:97 44.04907:423 44.11583:31 44.28781:12 44.33073:76 44.48335:17 44.89434:8 45.03319:2087 45.05705:395 45.09238:8 45.14836:7 45.15808:21 45.17756:14 45.28615:16 45.42186:20 56.04912:124 57.83302:30 58.06464:1076 58.09497:19 58.11243:8 58.20893:38 58.45378:19 58.73476:49 59.07239:223 60.08076:2842 60.11398:110 60.13255:9 60.16757:12 60.20276:7 60.22957:50 60.24852:42 60.27271:5 60.29157:9 60.31433:50 60.37834:58 60.54131:10 60.99906:71 62.82309:6 104.1076:812 104.16412:7 104.22793:17 104.24242:61 | AD27: kept | AE27: COMPOUND_104_107a1_52 | AF27: 0.09497249143 | AG27: 0.5016185041 | AH27: 0.9970396117 | AJ27: 0.008308047846 | AK27: 0.9530490419 | AL27: 0.9878524302 | AM27: -0.2280610964 | AN27: 0.06319295297 | AO27: 0.6299658629 | AP27: =-LOG10(AO27) -> 0.2006829838 | AQ27: -0.1840549162 | AR27: 0.1319679529 | AS27: 0.3841965567 | AT27: -0.3230335878 | AU27: -0.692703748 | AV27: 0.04663657227 | AW27: 0.0914623531 | AX27: 0.9327752903 | AY27: 0.4802697553 | AZ27: -0.005575974488 | BA27: 0.9661154851 | BB27: 0.05590553712 | BC27: 0.8121866033 | BD27: 0.09497249143 | BE27: -0.1625510341 | BF27: 0.3524960169 | BG27: 0.4723453629 | BH27: 0.9952354946 | BI27: -0.4198650732 | BJ27: -0.4084598827 | BK27: -0.192362964 | BL27: -0.5570884094 | BM27: 0.1723624814 | BN27: 0.3050394385 | BO27: 0.9622713341 | BP27: 0.4802697553 | BQ27: 0.02157996162 | BR27: 0.938959549 | BS27: 0.04305957875 | BT27: 0.8306648061 | BU27: 0.008308047846 | BV27: -0.2457708383 | BW27: 0.262386934 | BX27: 0.9490936615 | BY27: 0.9870461243 | BZ27: -0.2516254696 | CA27: -0.2365562191 | CB27: 0.1028513944 | CC27: 0.2352024935 | CD27: 0.891012849 | CE27: 0.1050747662 | CF27: 0.2269392191 | CG27: 0.7744204851 | CH27: 0.100094768 | CI27: 0.2480556534 | CJ27: 0.731387808 | CK27: -0.09423951039 | CL27: 0.27694676 | CM27: 0.7001830938 | CN27: 0.07965914628 | CO27: 0.3584045287 | CP27: 0.9431768775 | CQ27: 0.02406048184 | CR27: 0.7825858466 | CS27: 0.9741650197 | CT27: -0.1217651316 | CU27: 0.1563526717 | CV27: 0.9930104864 | CW27: -0.2446031157 | CX27: 0.005579642386 | CY27: 0.1573934016 | CZ27: -0.09331911815 | DA27: 0.2872009913 | DB27: 0.9992844709 | DC27: 0.2003349014 | DD27: 0.01891397543 | DE27: 0.5623403062 | DF27: 0.1318410686 | DG27: 0.1246039937 | DH27: 0.9995798835 | DI27: 0.09398526428 | DJ27: 0.2746529918 | DK27: 0.7902233865 | DL27: -0.1360364041 | DM27: 0.131936824 | DN27: 0.9986115224 | DO27: 0.03369967951 | DP27: 0.6958404266 | DQ27: 0.9320851949 | DR27: 0.172467223 | DS27: 0.04387234497 | DT27: 0.5715080075 | DU27: 0.1028513944 | DV27: 0.2352024935 | DW27: 0.891012849 | DX27: 0.1050747662 | DY27: 0.2269392191 | DZ27: 0.7744204851 | EA27: 0.100094768 | EB27: 0.2480556534 | EC27: 0.731387808 | ED27: -0.09423951039 | EE27: 0.27694676 | EF27: 0.7001830938 | EG27: 0.07965914628 | EH27: 0.3584045287 | EI27: 0.9431768775 | EJ27: 0.02406048184 | EK27: 0.7825858466 | EL27: 0.9741650197 | EM27: -0.1217651316 | EN27: 0.1563526717 | EO27: 0.9930104864 | EP27: -0.2446031157 | EQ27: 0.005579642386 | ER27: 0.1573934016 | ES27: -0.09331911815 | ET27: 0.2872009913 | EU27: 0.9992844709 | EV27: 0.2003349014 | EW27: 0.01891397543 | EX27: 0.5623403062 | EY27: 0.1318410686 | EZ27: 0.1246039937 | FA27: 0.9995798835 | FB27: 0.09398526428 | FC27: 0.2746529918 | FD27: 0.7902233865 | FE27: -0.1360364041 | FF27: 0.131936824 | FG27: 0.9986115224 | FH27: 0.03369967951 | FI27: 0.6958404266 | FJ27: 0.9320851949 | FK27: 0.172467223 | FL27: 0.04387234497 | FM27: 0.5715080075 | FN27: 0.05337203076 | FO27: 0.4517525698 | FP27: 0.6583134283 | FQ27: 0.05723710868 | FR27: 0.4207957345 | FS27: 0.7085229678 | FT27: -0.1037778957 | FU27: 0.1426235214 | FV27: 0.26806105 | FW27: 0.1293200057 | FX27: 0.06729728828 | FY27: 0.1595542647 | FZ27: 0.09413945749 | GA27: 0.1837532399 | GB27: 0.4350357954 | GC27: 0.1270118946 | GD27: 0.07309676347 | GE27: 0.3179517356 | GF27: 0.08197334296 | GG27: 0.2437835581 | GH27: 0.4409389376 | GI27: -0.2041368936 | GJ27: 0.004405222552 | GK27: 0.1187833103 | GL27: 0.1022087453 | GM27: 0.1518996691 | GN27: 0.3263726978 | GO27: -0.09303851238 | GP27: 0.1856482583 | GQ27: 0.5357693966 | GR27: -0.337870132 | GS27: 7.724179362e-07 | GT27: 0.0001219132976 | GU27: 0.1209800571 | GV27: 0.08476929956 | GW27: 0.7529539058 | GX27: -0.05040327616 | GY27: 0.4909670314 | GZ27: 0.8023667117 | HA27: -0.193443237 | HB27: 0.005568257023 | HC27: 0.04042932728 | HD27: -0.02239638601 | HE27: 0.7505163097 | HF27: 0.9106301042 | HO27: COMPOUND_104_107a1_52 | HP27: 71 | HQ27: 1.52 | HR27: 104.107 | HS27: Choline cation | HT27: [M+H]+ | HU27: similar chromatogram in higher mz_659 | HV27: 1 | HW27: TRUE | HX27: C5H14NO | HZ27: OEYIOHPDSNJKLS-UHFFFAOYSA-N | IA27: C[N+](C)(C)CCO | IC27: -1 | ID27: -1 | IE27: 877.1523 | IF27: 984.1448 | IG27: 1000 | IH27: 180709MR_Grainmark_Hilic_pos_234 | II27: 104.10711:591486 105.11046:68270 106.11382:4117 | IJ27: 42.0325:52 43.0175:98 43.0415:97 44.04907:423 44.11583:31 44.28781:12 44.33073:76 44.48335:17 44.89434:8 45.03319:2087 45.05705:395 45.09238:8 45.14836:7 45.15808:21 45.17756:14 45.28615:16 45.42186:20 56.04912:124 57.83302:30 58.06464:1076 58.09497:19 58.11243:8 58.20893:38 58.45378:19 58.73476:49 59.07239:223 60.08076:2842 60.11398:110 60.13255:9 60.16757:12 60.20276:7 60.22957:50 60.24852:42 60.27271:5 60.29157:9 60.31433:50 60.37834:58 60.54131:10 60.99906:71 62.82309:6 104.1076:812 104.16412:7 104.22793:17 104.24242:61 | IK27: 9902265 | IL27: 9454638 | IM27: 8810287 | IN27: 11357392 | IO27: 10611004 | IP27: 10357214 | IQ27: 11312255 | IR27: 11877085 | IS27: 10391125 | IT27: 9946367 | IU27: 12843509 | IV27: 10721173 | IW27: 11515708 | IX27: 8030700 | IY27: 11823199 | IZ27: 9682995 | JA27: 8438699 | JB27: 11776874 | JC27: 7813122 | JD27: 11027188 | JE27: 10796251 | JF27: 10351669 | JG27: 13764283 | JH27: 11336417 | JI27: 11353040 | JJ27: 12281658 | JK27: 14133660 | JL27: 9152901 | JM27: 10084865 | JN27: 7775682 | JO27: 10515019 | JP27: 9944730 | JQ27: 9423185 | JR27: 8091371 | JS27: 12385326 | JT27: 10453868 | JU27: 7928068 | JV27: 8671491 | JW27: 9812392 | JX27: 10237023 | JY27: 10665357 | JZ27: 12642512 | KA27: 9644905 | KB27: 9995213 | KC27: 9618245 | KD27: 9894332 | KE27: 10385706 | KF27: 9145893 | KG27: 8134804 | KH27: 8750890 | KI27: 8658497 | KJ27: 8838837 | KK27: 8443129 | KL27: 9624919 | KM27: 5793668 | KN27: 9505561 | KO27: 9628535 | KP27: 8403921 | KQ27: 9739278 | KR27: 10596698 | KS27: 9771204 | KT27: 7780039 | KU27: 7026526 | KV27: 7767738 | KW27: 10190234 | KX27: 13079868 | KY27: 7354542 | KZ27: 8263054 | LA27: 7567913 | LB27: 8079020 | LC27: 7953819 | LD27: 10697429 | LE27: 8220748 | LF27: 10417958 | LG27: 12211297 | LH27: 10108462 | LI27: 9498919 | LJ27: 11835471 | LK27: 9373660 | LL27: 10480220 | LM27: 6500574 | LN27: 8926356 | LO27: 10905570 | LP27: 11733357 | LQ27: 10451936 | LR27: 9204559 | LS27: 7543895 | LT27: 9829149 | LU27: 8588967 | LV27: 9045251 | LW27: 8198927 | LX27: 10065617 | LY27: 7303536 | LZ27: 8198510 | MA27: 7720169 | MB27: 8426736 | MC27: 6944244 | MD27: 10426947 | ME27: 6132436 | MF27: 10181718 | MG27: 10557275 | MH27: 9684805 | MI27: 8420601 | MJ27: 5793741 | MK27: 8651836 | ML27: 9900480 | MM27: 9167587 | MN27: 10591120 | MO27: 8122434 | MP27: 6280762 | MQ27: 9451588 | MR27: 9278448 | MS27: 6556606 | MT27: 9942524 | MU27: 7388314 | MV27: 10418122 | MW27: 9039419 | MX27: 8981762 | MY27: 8320162 | MZ27: 7769492 | NA27: 7163047 | NB27: 9304112 | NC27: 9565913 | ND27: 7602662 | NE27: 9123143 | NF27: 10184355 | NG27: 7820255 | NH27: 9802760 | NI27: 6871216 | NJ27: 8079879 | NK27: 10882176 | NL27: 7429754 | NM27: 9119346 | NN27: 9177976 | NO27: 7850041 | NP27: 8718649 | NQ27: 9707569 | NR27: 10659874 | NS27: 9479720 | NT27: 7331238 | NU27: 10005254 | NV27: 10473821 | NW27: 7479410 | NX27: 8441126 | NY27: 9374640 | NZ27: 6892804 | OA27: 7412590 | OB27: 9285098 | OC27: 6851560 | OD27: 7789092 | OE27: 11808550 | OF27: 7789430 | OG27: 9768811 | OH27: 7476496 | OI27: 10735403 | OJ27: 8001372 | OK27: 10591613 | OL27: 8797628 | OM27: 9548490 | ON27: 10094813 | OO27: 9824220 | OP27: 9038005 | OQ27: 9130130 | OR27: 6849582 | OS27: 7868952 | OT27: 7561947 | OU27: 7438008 | OV27: 7177188 | OW27: 6782508 | OX27: 9952351 | OY27: 10915291 | OZ27: 8974070 | PA27: 9631163 | PB27: 7674987 | PC27: 9389305 | PD27: 10922702 | PE27: 10101552 | PF27: 6201478 | PG27: 5809293 | PH27: 8059984 | PI27: 9214210 | PJ27: 8165338 | PK27: 10373829 | PL27: 9081714 | PM27: 10060204 | PN27: 8066266 | PO27: 8104918 | PP27: 9251763 | PQ27: 9739103 | PR27: 9617686 | PS27: 9303062 | PT27: 8413170 | PU27: 11117435 | PV27: 6857200 | PW27: 10081261 | PX27: 8070006 | PY27: 10850895 | PZ27: 7486990 | QA27: 9253376 | QB27: 8028133 | QC27: 9737500 | QD27: 8135910 | QE27: 9008538 | QF27: 8314090 | QG27: 12311153 | QH27: 11094514 | QI27: 10887643 | QJ27: 10722582 | QK27: 10698580 | QL27: 10576310 | QM27: 10578187 | QN27: 10387920 | QO27: 10400807 | QP27: 10306480 | QQ27: 9946307 | QR27: 9672087 | QS27: 9577647 | QT27: 9331168 | QU27: 9258508 | QV27: 9155287 | QW27: 8856601 | QX27: 8799382 | QY27: 8645620 | QZ27: 8567500 | RA27: 8450251 | RB27: 8401188 | RC27: 8355214 | RD27: 8293886 | RE27: 8316724 | RF27: 8228824 | RG27: 8196745 | RH27: 8095677 | RI27: 4100610 | RJ27: 4456785 | RK27: 4502992 | RL27: =AVERAGE(QG27:RH27) -> 9504028.286
A28: COMPOUND_114_0662a1_27 | B28: HILIC_POS | D28: 97 | E28: 1.27 | F28: 114.0662 | G28: Creatinine | H28: Amino acid | I28: 1 | J28: HMDB0000562 | K28: x | L28: Creatinine | M28: [M+H]+ | N28: adduct linked to 587_[2M+H]+; found in higher mz's MsMs_587; adduct linked to 239_[M+Na]+; similar chromatogram in higher mz_358; similar chromatogram in higher mz_751; similar chromatogram in higher mz_779; similar chromatogram in higher mz_1356 | O28: 1 | P28: TRUE | Q28: C4H7N3O | S28: DDRJAANPRJIHGJ-UHFFFAOYSA-N | V28: -1 | W28: -1 | X28: 920.7989 | Y28: 934.7081 | Z28: 1000 | AA28: 180709MR_Grainmark_Hilic_pos_234 | AB28: 114.06598:845130 115.06933:85116 116.07269:5051 | AC28: 42.03281:156 43.02831:471 43.04911:9 43.0605:10 43.6506:8 43.81805:31 44.04915:5774 44.0852:62 44.15756:28 44.26094:50 44.29235:38 44.3535:49 44.41925:19 44.45547:18 44.47131:20 44.59885:36 45.15787:29 57.04383:118 72.04182:101 86.06774:82 97.95946:27 114.06607:647 | AD28: kept | AE28: COMPOUND_114_0662a1_27 | AF28: 0.07812318477 | AG28: 0.369141206 | AH28: 0.9970396117 | AJ28: -0.048409252 | AK28: 0.5771704473 | AL28: 0.8689488798 | AM28: -0.1079353304 | AN28: 0.2052278422 | AO28: 0.8097948608 | AP28: =-LOG10(AO28) -> 0.0916249837 | AQ28: -0.04993208988 | AR28: 0.5558965017 | AS28: 0.7986644798 | AT28: -0.1860585152 | AU28: -0.4143174762 | AV28: 0.04220044576 | AW28: 0.1149077295 | AX28: 0.9492347666 | AY28: -0.1752449402 | AZ28: -0.6517237699 | BA28: 0.3012338895 | BB28: 0.473267689 | BC28: 0.940574013 | BD28: 0.07812318477 | BE28: -0.08088897983 | BF28: 0.2371353494 | BG28: 0.3390942474 | BH28: 0.9847132382 | BI28: -0.3884851151 | BJ28: -0.421109852 | BK28: -0.001522837889 | BL28: -0.23158615 | BM28: 0.2285404742 | BN28: 0.9896881378 | BO28: 0.9995140707 | BP28: -0.1752449402 | BQ28: -0.6511117636 | BR28: 0.3006218832 | BS28: 0.4726960469 | BT28: 0.9524622409 | BU28: -0.048409252 | BV28: -0.2086783827 | BW28: 0.1118598788 | BX28: 0.5558687769 | BY28: 0.8596197518 | BZ28: -0.00314894754 | CA28: -0.09651483773 | CB28: -0.02698563425 | CC28: 0.7560395747 | CD28: 0.9957477122 | CE28: 0.05997864369 | CF28: 0.4911893014 | CG28: 0.8967983565 | CH28: -0.05787791448 | CI28: 0.5049085131 | CJ28: 0.8495021659 | CK28: -0.1717517377 | CL28: 0.04638807566 | CM28: 0.3475256202 | CN28: -0.01001730491 | CO28: 0.9081985057 | CP28: 0.9996757019 | CQ28: -0.1026747714 | CR28: 0.2377878149 | CS28: 0.839436533 | CT28: -0.07717959626 | CU28: 0.3700258892 | CV28: 0.9967977033 | CW28: 0.1108997366 | CX28: 0.2145125724 | CY28: 0.9822166431 | CZ28: -0.1156281951 | DA28: 0.1867467114 | DB28: 0.9992844709 | DC28: -0.07292871693 | DD28: 0.3970419657 | DE28: 0.9186705726 | DF28: 0.06540542403 | DG28: 0.4476432222 | DH28: 0.9995798835 | DI28: -0.02142963782 | DJ28: 0.8037028646 | DK28: 0.9776884351 | DL28: 0.1232129239 | DM28: 0.1727733755 | DN28: 0.9986115224 | DO28: 0.0237586006 | DP28: 0.7828720655 | DQ28: 0.9565806609 | DR28: 0.1150803082 | DS28: 0.1805406937 | DT28: 0.8358313746 | DU28: -0.02698563425 | DV28: 0.7560395747 | DW28: 0.9957477122 | DX28: 0.05997864369 | DY28: 0.4911893014 | DZ28: 0.8967983565 | EA28: -0.05787791448 | EB28: 0.5049085131 | EC28: 0.8495021659 | ED28: -0.1717517377 | EE28: 0.04638807566 | EF28: 0.3475256202 | EG28: -0.01001730491 | EH28: 0.9081985057 | EI28: 0.9996757019 | EJ28: -0.1026747714 | EK28: 0.2377878149 | EL28: 0.839436533 | EM28: -0.07717959626 | EN28: 0.3700258892 | EO28: 0.9967977033 | EP28: 0.1108997366 | EQ28: 0.2145125724 | ER28: 0.9822166431 | ES28: -0.1156281951 | ET28: 0.1867467114 | EU28: 0.9992844709 | EV28: -0.07292871693 | EW28: 0.3970419657 | EX28: 0.9186705726 | EY28: 0.06540542403 | EZ28: 0.4476432222 | FA28: 0.9995798835 | FB28: -0.02142963782 | FC28: 0.8037028646 | FD28: 0.9776884351 | FE28: 0.1232129239 | FF28: 0.1727733755 | FG28: 0.9986115224 | FH28: 0.0237586006 | FI28: 0.7828720655 | FJ28: 0.9565806609 | FK28: 0.1150803082 | FL28: 0.1805406937 | FM28: 0.8358313746 | FN28: -0.141922763 | FO28: 0.04445894479 | FP28: 0.1590492957 | FQ28: -0.01870304434 | FR28: 0.7926538007 | FS28: 0.9185020271 | FT28: -0.3098882124 | FU28: 7.579842685e-06 | FV28: 8.380638274e-05 | FW28: 0.0007925096028 | FX28: 0.9910912539 | FY28: 0.9945419198 | FZ28: -0.01538884608 | GA28: 0.8283434168 | GB28: 0.9336997976 | GC28: 0.03572701152 | GD28: 0.615491913 | GE28: 0.8294563715 | GF28: 0.2432278919 | GG28: 0.0004558648738 | GH28: 0.003584731018 | GI28: 0.03689850198 | GJ28: 0.6104340602 | GK28: 0.8990484311 | GL28: 0.2351895303 | GM28: 0.0008518705755 | GN28: 0.006078120114 | GO28: 0.140814968 | GP28: 0.0445475008 | GQ28: 0.2883841629 | GR28: 0.2212320896 | GS28: 0.001473230624 | GT28: 0.02292499015 | GU28: 0.04038473501 | GV28: 0.5663068441 | GW28: 0.9658079603 | GX28: 0.2636483205 | GY28: 0.000246769176 | GZ28: 0.01090555245 | HA28: 0.05489474039 | HB28: 0.4354944156 | HC28: 0.7201028888 | HD28: 0.3825646399 | HE28: 1.634374523e-08 | HF28: 2.548180333e-06 | HO28: COMPOUND_114_0662a1_27 | HP28: 97 | HQ28: 1.27 | HR28: 114.0662 | HS28: Creatinine | HT28: [M+H]+ | HU28: adduct linked to 587_[2M+H]+; found in higher mz's MsMs_587; adduct linked to 239_[M+Na]+; similar chromatogram in higher mz_358; similar chromatogram in higher mz_751; similar chromatogram in higher mz_779; similar chromatogram in higher mz_1356 | HV28: 1 | HW28: TRUE | HX28: C4H7N3O | HZ28: DDRJAANPRJIHGJ-UHFFFAOYSA-N | IC28: -1 | ID28: -1 | IE28: 920.7989 | IF28: 934.7081 | IG28: 1000 | IH28: 180709MR_Grainmark_Hilic_pos_234 | II28: 114.06598:845130 115.06933:85116 116.07269:5051 | IJ28: 42.03281:156 43.02831:471 43.04911:9 43.0605:10 43.6506:8 43.81805:31 44.04915:5774 44.0852:62 44.15756:28 44.26094:50 44.29235:38 44.3535:49 44.41925:19 44.45547:18 44.47131:20 44.59885:36 45.15787:29 57.04383:118 72.04182:101 86.06774:82 97.95946:27 114.06607:647 | IK28: 10936854 | IL28: 9717661 | IM28: 11038134 | IN28: 7651070 | IO28: 8720893 | IP28: 9003187 | IQ28: 9664561 | IR28: 9650181 | IS28: 11396735 | IT28: 10552824 | IU28: 8845540 | IV28: 6040014 | IW28: 10466173 | IX28: 11352740 | IY28: 8778542 | IZ28: 10340672 | JA28: 9439285 | JB28: 9528534 | JC28: 11072147 | JD28: 7555186 | JE28: 9173526 | JF28: 9936445 | JG28: 8727996 | JH28: 13685682 | JI28: 10298247 | JJ28: 9372886 | JK28: 9615694 | JL28: 7710026 | JM28: 5921922 | JN28: 10323329 | JO28: 9021521 | JP28: 10828739 | JQ28: 8531623 | JR28: 10861271 | JS28: 6548617 | JT28: 8815223 | JU28: 11231001 | JV28: 10554958 | JW28: 9234922 | JX28: 11243170 | JY28: 10029354 | JZ28: 9080593 | KA28: 8247178 | KB28: 9081186 | KC28: 7984887 | KD28: 9856744 | KE28: 8882126 | KF28: 8088766 | KG28: 7941078 | KH28: 8778595 | KI28: 6852204 | KJ28: 9147655 | KK28: 8148337 | KL28: 10441525 | KM28: 9561388 | KN28: 8484704 | KO28: 7168696 | KP28: 7660854 | KQ28: 8489096 | KR28: 8018303 | KS28: 8603096 | KT28: 12491598 | KU28: 8344918 | KV28: 10577130 | KW28: 8370860 | KX28: 9109675 | KY28: 10356135 | KZ28: 8486135 | LA28: 10610477 | LB28: 11000759 | LC28: 8531074 | LD28: 9466768 | LE28: 7989123 | LF28: 10634242 | LG28: 12703764 | LH28: 9345433 | LI28: 7908774 | LJ28: 8412440 | LK28: 9125729 | LL28: 9361356 | LM28: 7402849 | LN28: 9117078 | LO28: 9450598 | LP28: 8568754 | LQ28: 10337840 | LR28: 8045262 | LS28: 9906232 | LT28: 6906338 | LU28: 8578910 | LV28: 7767391 | LW28: 8428815 | LX28: 9012251 | LY28: 9584462 | LZ28: 9245164 | MA28: 11552881 | MB28: 9898506 | MC28: 7654032 | MD28: 6752189 | ME28: 9073380 | MF28: 9837543 | MG28: 8487697 | MH28: 9624264 | MI28: 8402543 | MJ28: 8752149 | MK28: 6766309 | ML28: 5001833 | MM28: 6502820 | MN28: 8150483 | MO28: 9545159 | MP28: 8049994 | MQ28: 9541158 | MR28: 9050240 | MS28: 10648614 | MT28: 8977671 | MU28: 8402803 | MV28: 7996564 | MW28: 7269654 | MX28: 5674460 | MY28: 8185822 | MZ28: 7934590 | NA28: 7137104 | NB28: 7232764 | NC28: 7489906 | ND28: 10293458 | NE28: 7534500 | NF28: 7064387 | NG28: 10561789 | NH28: 11951382 | NI28: 10310928 | NJ28: 8245190 | NK28: 8330200 | NL28: 10285936 | NM28: 9239815 | NN28: 9724213 | NO28: 10262566 | NP28: 7541280 | NQ28: 5527594 | NR28: 9348700 | NS28: 5182884 | NT28: 8196671 | NU28: 8759443 | NV28: 7668596 | NW28: 9154963 | NX28: 10230433 | NY28: 7205482 | NZ28: 6785640 | OA28: 8853171 | OB28: 10202754 | OC28: 8269059 | OD28: 8571026 | OE28: 8751699 | OF28: 5951694 | OG28: 10141988 | OH28: 7714574 | OI28: 11995302 | OJ28: 8366735 | OK28: 9434204 | OL28: 9066728 | OM28: 6896418 | ON28: 7542398 | OO28: 8262332 | OP28: 7132211 | OQ28: 7577110 | OR28: 7883338 | OS28: 10901535 | OT28: 11269861 | OU28: 7370576 | OV28: 10328341 | OW28: 12535160 | OX28: 8383074 | OY28: 8618780 | OZ28: 8633424 | PA28: 9609119 | PB28: 9231779 | PC28: 7743532 | PD28: 9618626 | PE28: 8440332 | PF28: 8854738 | PG28: 8308371 | PH28: 7678329 | PI28: 8257568 | PJ28: 10807797 | PK28: 7416793 | PL28: 8215211 | PM28: 7088455 | PN28: 10585491 | PO28: 7673388 | PP28: 9882969 | PQ28: 10409778 | PR28: 9770632 | PS28: 8143511 | PT28: 11608799 | PU28: 10856734 | PV28: 8796648 | PW28: 8936582 | PX28: 8090802 | PY28: 7859643 | PZ28: 8517416 | QA28: 9618899 | QB28: 7242064 | QC28: 6981295 | QD28: 8587803 | QE28: 9359283 | QF28: 8130038 | QG28: 10970992 | QH28: 10545939 | QI28: 10491302 | QJ28: 10169928 | QK28: 10240485 | QL28: 10165894 | QM28: 9978636 | QN28: 10005219 | QO28: 9970763 | QP28: 10038567 | QQ28: 9810587 | QR28: 9461574 | QS28: 9276032 | QT28: 9102382 | QU28: 9114580 | QV28: 8852845 | QW28: 8791765 | QX28: 8766313 | QY28: 8572156 | QZ28: 8732901 | RA28: 8442232 | RB28: 8587605 | RC28: 8680088 | RD28: 8805065 | RE28: 8819460 | RF28: 9145455 | RG28: 9214866 | RH28: 9285874 | RI28: 4805074 | RJ28: 4969655 | RK28: 5134991 | RL28: =AVERAGE(QG28:RH28) -> 9429982.321
A29: COMPOUND_116_0706a4_92 | B29: HILIC_POS | D29: 105 | E29: 4.92 | F29: 116.0706 | G29: L-Proline | H29: Amino acid | I29: 1 | J29: HMDB0000162 | K29: x | L29: L-Proline | M29: [M+H]+ | N29: adduct linked to 248_[M+Na]+; adduct linked to 347_[M+K]+ | O29: 1 | P29: TRUE | Q29: C5H9NO2 | S29: ONIBWKKTOPOVIA-UHFFFAOYNA-N | T29: OC(=O)C1CCCN1 | V29: -1 | W29: -1 | X29: 880.4297 | Y29: 906.3467 | Z29: 1000 | AA29: 180709MR_Grainmark_Hilic_pos_234 | AB29: 116.07029:291281 117.07364:31304 118.077:92620 | AC29: 28.01732:121 41.03885:174 43.05444:274 68.04824:117 70.06539:3464 70.1112:69 70.13908:27 70.17067:40 70.18178:6 70.22002:37 70.24833:5 70.31001:8 70.42947:10 70.59295:22 71.52093:26 | AD29: kept | AE29: COMPOUND_116_0706a4_92 | AF29: 0.2078137479 | AG29: 0.06873930963 | AH29: 0.9159049964 | AJ29: 0.415075083 | AK29: 0.0004419150208 | AL29: 0.02708054878 | AM29: 0.2549859843 | AN29: 0.01647330904 | AO29: 0.496724577 | AP29: =-LOG10(AO29) -> 0.3038843514 | AQ29: 0.3857139801 | AR29: 0.0004139162979 | AS29: 0.01436571277 | AT29: 0.04717223634 | AU29: -0.1936795887 | AV29: 0.2880240613 | AW29: 0.7023084107 | AX29: 0.9907393313 | AY29: 0.06322480433 | AZ29: -0.3930990505 | BA29: 0.5195486592 | BB29: 0.7866999622 | BC29: 0.9819613259 | BD29: 0.2078137479 | BE29: 0.04002900956 | BF29: 0.3755984863 | BG29: 0.01793648277 | BH29: 0.5479306188 | BI29: 0.09315141882 | BJ29: 0.2134685168 | BK29: -0.02936110285 | BL29: -0.3595220111 | BM29: 0.3007998054 | BN29: 0.8621640636 | BO29: 0.9936932466 | BP29: 0.06322480433 | BQ29: -0.4183129573 | BR29: 0.544762566 | BS29: 0.7975520848 | BT29: 0.9849676532 | BU29: 0.415075083 | BV29: 0.1850749092 | BW29: 0.6450752568 | BX29: 0.0007458501009 | BY29: 0.04557670264 | BZ29: -0.04246018736 | CA29: -0.02195062559 | CB29: -0.2532411917 | CC29: 0.00304162546 | CD29: 0.3558972179 | CE29: -0.3499889568 | CF29: 3.39E-05 | CG29: 0.0286027763 | CH29: -0.08836244397 | CI29: 0.3081427473 | CJ29: 0.7732611424 | CK29: 0.2695389573 | CL29: 0.001570343585 | CM29: 0.06042030971 | CN29: -0.2505581329 | CO29: 0.003378132925 | CP29: 0.364144687 | CQ29: -0.04527828998 | CR29: 0.6034189248 | CS29: 0.9503480006 | CT29: 0.1570997712 | CU29: 0.06674922196 | CV29: 0.9181638968 | CW29: -0.1366166008 | CX29: 0.1256313787 | CY29: 0.8926156584 | CZ29: 0.1464753762 | DA29: 0.09375393652 | DB29: 0.9992844709 | DC29: 0.009983198255 | DD29: 0.9078248687 | DE29: 0.9869441067 | DF29: -0.06857622534 | DG29: 0.4258881441 | DH29: 0.9995798835 | DI29: 0.03759302886 | DJ29: 0.6627368568 | DK29: 0.9637022962 | DL29: 0.01919026883 | DM29: 0.8324588715 | DN29: 0.9986115224 | DO29: -0.1308015565 | DP29: 0.1276290759 | DQ29: 0.5051063547 | DR29: -0.04922268741 | DS29: 0.5678611773 | DT29: 0.9582508995 | DU29: -0.2532411917 | DV29: 0.00304162546 | DW29: 0.3558972179 | DX29: -0.3499889568 | DY29: 3.39E-05 | DZ29: 0.0286027763 | EA29: -0.08836244397 | EB29: 0.3081427473 | EC29: 0.7732611424 | ED29: 0.2695389573 | EE29: 0.001570343585 | EF29: 0.06042030971 | EG29: -0.2505581329 | EH29: 0.003378132925 | EI29: 0.364144687 | EJ29: -0.04527828998 | EK29: 0.6034189248 | EL29: 0.9503480006 | EM29: 0.1570997712 | EN29: 0.06674922196 | EO29: 0.9181638968 | EP29: -0.1366166008 | EQ29: 0.1256313787 | ER29: 0.8926156584 | ES29: 0.1464753762 | ET29: 0.09375393652 | EU29: 0.9992844709 | EV29: 0.009983198255 | EW29: 0.9078248687 | EX29: 0.9869441067 | EY29: -0.06857622534 | EZ29: 0.4258881441 | FA29: 0.9995798835 | FB29: 0.03759302886 | FC29: 0.6627368568 | FD29: 0.9637022962 | FE29: 0.01919026883 | FF29: 0.8324588715 | FG29: 0.9986115224 | FH29: -0.1308015565 | FI29: 0.1276290759 | FJ29: 0.5051063547 | FK29: -0.04922268741 | FL29: 0.5678611773 | FM29: 0.9582508995 | FN29: -0.2665390406 | FO29: 0.0001309326923 | FP29: 0.004821960098 | FQ29: -0.2131987784 | FR29: 0.002436532839 | FS29: 0.06419823093 | FT29: -0.3980868516 | FU29: 4.846723822e-09 | FV29: 1.574947658e-07 | FW29: 0.2849224924 | FX29: 4.13903854e-05 | FY29: 0.0003286085254 | FZ29: -0.1026501269 | GA29: 0.147038022 | GB29: 0.3807495121 | GC29: 0.1609398809 | GD29: 0.02280841266 | GE29: 0.1710144711 | GF29: 0.3151024506 | GG29: 4.424218348e-06 | GH29: 8.891499265e-05 | GI29: -0.1230258421 | GJ29: 0.08828620524 | GK29: 0.4644835353 | GL29: 0.3222941813 | GM29: 3.647349849e-06 | GN29: 7.579398792e-05 | GO29: 0.2068452151 | GP29: 0.002993975464 | GQ29: 0.1035798175 | GR29: 0.04656498481 | GS29: 0.5083858994 | GT29: 0.8567609591 | GU29: -0.001220554901 | GV29: 0.9861766276 | GW29: 0.9972285662 | GX29: 0.2693399494 | GY29: 0.0001784318147 | GZ29: 0.009029194656 | HA29: -0.06400071358 | HB29: 0.3631238483 | HC29: 0.6550062559 | HD29: 0.3332762027 | HE29: 1.111122722e-06 | HF29: 5.223852853e-05 | HG29: 1 | HH29: 1 | HK29: 1 | HO29: COMPOUND_116_0706a4_92 | HP29: 105 | HQ29: 4.92 | HR29: 116.0706 | HS29: L-Proline | HT29: [M+H]+ | HU29: adduct linked to 248_[M+Na]+; adduct linked to 347_[M+K]+ | HV29: 1 | HW29: TRUE | HX29: C5H9NO2 | HZ29: ONIBWKKTOPOVIA-UHFFFAOYNA-N | IA29: OC(=O)C1CCCN1 | IC29: -1 | ID29: -1 | IE29: 880.4297 | IF29: 906.3467 | IG29: 1000 | IH29: 180709MR_Grainmark_Hilic_pos_234 | II29: 116.07029:291281 117.07364:31304 118.077:92620 | IJ29: 28.01732:121 41.03885:174 43.05444:274 68.04824:117 70.06539:3464 70.1112:69 70.13908:27 70.17067:40 70.18178:6 70.22002:37 70.24833:5 70.31001:8 70.42947:10 70.59295:22 71.52093:26 | IK29: 4782450 | IL29: 5794721 | IM29: 2950867 | IN29: 4165847 | IO29: 4380610 | IP29: 3210095 | IQ29: 3984507 | IR29: 4589040 | IS29: 6078607 | IT29: 5358535 | IU29: 4190372 | IV29: 3189048 | IW29: 4503942 | IX29: 3669396 | IY29: 5279884 | IZ29: 4724708 | JA29: 5817276 | JB29: 3839074 | JC29: 3924058 | JD29: 4811168 | JE29: 3839600 | JF29: 3988331 | JG29: 4750252 | JH29: 4975966 | JI29: 3337743 | JJ29: 3538098 | JK29: 3433032 | JL29: 2870238 | JM29: 2241357 | JN29: 3494656 | JO29: 4597654 | JP29: 4849873 | JQ29: 3719374 | JR29: 4001384 | JS29: 4854694 | JT29: 3393616 | JU29: 3521722 | JV29: 3433594 | JW29: 3289518 | JX29: 3285022 | JY29: 3733272 | JZ29: 3888372 | KA29: 5777797 | KB29: 2568752 | KC29: 4279621 | KD29: 3137722 | KE29: 5263680 | KF29: 3959784 | KG29: 2878697 | KH29: 2932400 | KI29: 4521838 | KJ29: 2557526 | KK29: 3313750 | KL29: 4138817 | KM29: 3383974 | KN29: 5243266 | KO29: 3212740 | KP29: 4473967 | KQ29: 2708718 | KR29: 2387398 | KS29: 4406654 | KT29: 3373269 | KU29: 2998272 | KV29: 3721037 | KW29: 3088424 | KX29: 4226874 | KY29: 3214238 | KZ29: 2907735 | LA29: 3366603 | LB29: 3463966 | LC29: 3310418 | LD29: 3804430 | LE29: 3655992 | LF29: 3624324 | LG29: 4837312 | LH29: 3785510 | LI29: 3127584 | LJ29: 3853978 | LK29: 3417580 | LL29: 4550980 | LM29: 4420604 | LN29: 3699258 | LO29: 4062044 | LP29: 3362322 | LQ29: 3877006 | LR29: 4869952 | LS29: 4753736 | LT29: 4380550 | LU29: 3335496 | LV29: 3414289 | LW29: 2848128 | LX29: 4142805 | LY29: 4787775 | LZ29: 4279867 | MA29: 4151473 | MB29: 4638778 | MC29: 3555710 | MD29: 3027688 | ME29: 2093996 | MF29: 4355174 | MG29: 4032676 | MH29: 3598653 | MI29: 4998800 | MJ29: 4440593 | MK29: 3309495 | ML29: 3018092 | MM29: 3169541 | MN29: 3144548 | MO29: 5197861 | MP29: 2794116 | MQ29: 3363347 | MR29: 3259533 | MS29: 3525673 | MT29: 2963726 | MU29: 5298524 | MV29: 3223710 | MW29: 2578852 | MX29: 2533544 | MY29: 3524292 | MZ29: 2802707 | NA29: 3439925 | NB29: 3215688 | NC29: 4319096 | ND29: 4848857 | NE29: 3350992 | NF29: 4633060 | NG29: 5468956 | NH29: 4553615 | NI29: 4196903 | NJ29: 3478457 | NK29: 4125470 | NL29: 4141768 | NM29: 3898561 | NN29: 3983758 | NO29: 3742626 | NP29: 3213649 | NQ29: 2609046 | NR29: 3314522 | NS29: 2012566 | NT29: 5159831 | NU29: 3690910 | NV29: 4541966 | NW29: 2776564 | NX29: 2981202 | NY29: 3661583 | NZ29: 4038889 | OA29: 2744382 | OB29: 4144780 | OC29: 3988794 | OD29: 4798384 | OE29: 3917144 | OF29: 3782402 | OG29: 3957167 | OH29: 3305868 | OI29: 6740854 | OJ29: 3268254 | OK29: 3184727 | OL29: 4288873 | OM29: 4007935 | ON29: 4968606 | OO29: 2899030 | OP29: 2847438 | OQ29: 2925127 | OR29: 5091476 | OS29: 4263900 | OT29: 3461844 | OU29: 3076344 | OV29: 3863682 | OW29: 4105574 | OX29: 4207027 | OY29: 3352260 | OZ29: 5743755 | PA29: 4187189 | PB29: 4752364 | PC29: 3487857 | PD29: 3442930 | PE29: 4478626 | PF29: 2216806 | PG29: 2091584 | PH29: 2993892 | PI29: 3752540 | PJ29: 4836941 | PK29: 4058894 | PL29: 3822268 | PM29: 3444794 | PN29: 4027038 | PO29: 4016777 | PP29: 3743343 | PQ29: 2558984 | PR29: 3511062 | PS29: 3424697 | PT29: 4597095 | PU29: 4446112 | PV29: 2728440 | PW29: 4553684 | PX29: 4416205 | PY29: 5242771 | PZ29: 3107131 | QA29: 2538316 | QB29: 3222075 | QC29: 3132083 | QD29: 2993435 | QE29: 2665376 | QF29: 3326721 | QG29: 4761108 | QH29: 4590266 | QI29: 4461070 | QJ29: 4434339 | QK29: 4452798 | QL29: 4333320 | QM29: 4274896 | QN29: 4301398 | QO29: 4288016 | QP29: 4214884 | QQ29: 4080275 | QR29: 3985167 | QS29: 3990816 | QT29: 3765307 | QU29: 3760974 | QV29: 3707718 | QW29: 3893688 | QX29: 3745166 | QY29: 3545632 | QZ29: 3796881 | RA29: 3763383 | RB29: 3519220 | RC29: 3766245 | RD29: 3531983 | RE29: 3773706 | RF29: 3829667 | RG29: 3929372 | RH29: 3810507 | RI29: 2164756 | RJ29: 2143763 | RK29: 2206571 | RL29: =AVERAGE(QG29:RH29) -> 4010992.929
A30: COMPOUND_117_0192a1_13 | B30: HILIC_NEG | D30: 229 | E30: 1.13 | F30: 117.0192 | G30: Succinic acid | H30: Dicarboxylic acid | I30: 1 | J30: HMDB0000254 | K30: x | L30: w/o MS2:Succinic acid | M30: [M-H]- | O30: 0.9955357 | P30: FALSE | Q30: C4H6O4 | V30: -1 | W30: -1 | X30: -1 | Y30: -1 | Z30: -1 | AA30: 180718MR_Grainmark_Hilic_neg_170 | AB30: 117.01909:86824 118.02244:5580 119.0258:1391 | AD30: kept | AE30: COMPOUND_117_0192a1_13 | AF30: 0.08385287794 | AG30: 0.6928689138 | AH30: 0.9970396117 | AJ30: -0.3328019283 | AK30: 0.1151927724 | AL30: 0.4479482169 | AM30: 0.1687000351 | AN30: 0.3220742661 | AO30: 0.8693700641 | AP30: =-LOG10(AO30) -> 0.0607953184 | AQ30: -0.2346736803 | AR30: 0.1699359108 | AS30: 0.4411705804 | AT30: 0.08416969824 | AU30: -0.5067743696 | AV30: 0.6751137661 | AW30: 0.7810103283 | AX30: 0.9907393313 | AY30: -0.03332770971 | AZ30: -0.5118350886 | BA30: 0.4451796692 | BB30: 0.8916455364 | BC30: 0.9865515007 | BD30: 0.08632957917 | BE30: -0.3271034026 | BF30: 0.4997625609 | BG30: 0.6836894253 | BH30: 0.9952354946 | BI30: 0.09603553157 | BJ30: 0.2684734809 | BK30: 0.0913349427 | BL30: -0.4243697921 | BM30: 0.6070396775 | BN30: 0.7296221241 | BO30: 0.987091979 | BP30: -0.03429184706 | BQ30: -0.504932196 | BR30: 0.4363485019 | BS30: 0.8867004643 | BT30: 0.9879487975 | BU30: -0.3328019283 | BV30: -0.6907124482 | BW30: 0.02510859158 | BX30: 0.07305654892 | BY30: 0.3600682995 | BZ30: 0.08297913646 | CA30: 0.0544020345 | CB30: 0.008805885471 | CC30: 0.9192601787 | CD30: 0.9967045438 | CE30: -0.01248804305 | CF30: 0.8861236989 | CG30: 0.9936226253 | CH30: 0.02878495076 | CI30: 0.7403351488 | CJ30: 0.9344682431 | CK30: 0.01733569018 | CL30: 0.8418211986 | CM30: 0.9618014073 | CN30: -0.0001385705987 | CO30: 0.9987273164 | CP30: 0.9996757019 | CQ30: 0.04153145308 | CR30: 0.6337446241 | CS30: 0.9585633793 | CT30: -0.07492266449 | CU30: 0.3842260903 | CV30: 0.9967977033 | CW30: 0.1221501636 | CX30: 0.1712868085 | CY30: 0.9487894893 | CZ30: -0.05977150489 | DA30: 0.4959981807 | DB30: 0.9992844709 | DC30: -0.1257811964 | DD30: 0.143039682 | DE30: 0.8069872783 | DF30: 0.005952342038 | DG30: 0.9449636526 | DH30: 0.9995798835 | DI30: 0.3509863024 | DJ30: 2.61E-05 | DK30: 0.004982422278 | DL30: 0.0550829236 | DM30: 0.54343492 | DN30: 0.9986115224 | DO30: 0.06835842378 | DP30: 0.4273626946 | DQ30: 0.8278503302 | DR30: -0.07945702815 | DS30: 0.3560282863 | DT30: 0.9159281665 | DU30: 0.008805885471 | DV30: 0.9192601787 | DW30: 0.9967045438 | DX30: -0.01248804305 | DY30: 0.8861236989 | DZ30: 0.9936226253 | EA30: 0.02878495076 | EB30: 0.7403351488 | EC30: 0.9344682431 | ED30: 0.01733569018 | EE30: 0.8418211986 | EF30: 0.9618014073 | EG30: -0.0001385705987 | EH30: 0.9987273164 | EI30: 0.9996757019 | EJ30: 0.04153145308 | EK30: 0.6337446241 | EL30: 0.9585633793 | EM30: -0.07492266449 | EN30: 0.3842260903 | EO30: 0.9967977033 | EP30: 0.1221501636 | EQ30: 0.1712868085 | ER30: 0.9487894893 | ES30: -0.05977150489 | ET30: 0.4959981807 | EU30: 0.9992844709 | EV30: -0.1257811964 | EW30: 0.143039682 | EX30: 0.8069872783 | EY30: 0.005952342038 | EZ30: 0.9449636526 | FA30: 0.9995798835 | FB30: 0.3509863024 | FC30: 2.61E-05 | FD30: 0.004982422278 | FE30: 0.0550829236 | FF30: 0.54343492 | FG30: 0.9986115224 | FH30: 0.06835842378 | FI30: 0.4273626946 | FJ30: 0.8278503302 | FK30: -0.07945702815 | FL30: 0.3560282863 | FM30: 0.9159281665 | FN30: -0.02642001991 | FO30: 0.7146083314 | FP30: 0.8541540982 | FQ30: -0.06789434184 | FR30: 0.3481548905 | FS30: 0.643944167 | FT30: 0.02738722573 | FU30: 0.70463896 | FV30: 0.8121768391 | FW30: 0.06225332067 | FX30: 0.3885105416 | FY30: 0.5677769798 | FZ30: -0.03726021316 | GA30: 0.6059940902 | GB30: 0.8167401988 | GC30: 0.1247008108 | GD30: 0.08400683285 | GE30: 0.341017327 | GF30: 0.09709625735 | GG30: 0.1746707765 | GH30: 0.350982897 | GI30: 0.1006126192 | GJ30: 0.1718157311 | GK30: 0.6031504768 | GL30: 0.1010987474 | GM30: 0.1640408694 | GN30: 0.3447376477 | GO30: 0.09453353133 | GP30: 0.186381789 | GQ30: 0.5365661272 | GR30: 0.05880009621 | GS30: 0.4117846394 | GT30: 0.8014844549 | GU30: 0.03094133617 | GV30: 0.6660161354 | GW30: 0.9748856258 | GX30: 0.05526985844 | GY30: 0.4586567591 | GZ30: 0.7842479167 | HA30: 0.3460269234 | HB30: 6.340946308e-07 | HC30: 1.091795664e-05 | HD30: 0.1456272731 | HE30: 0.04116475067 | HF30: 0.1861687154 | HO30: COMPOUND_117_0192a1_13 | HP30: 229 | HQ30: 1.13 | HR30: 117.0192 | HS30: w/o MS2:Succinic acid | HT30: [M-H]- | HV30: 0.9955357 | HW30: FALSE | HX30: C4H6O4 | IC30: -1 | ID30: -1 | IE30: -1 | IF30: -1 | IG30: -1 | IH30: 180718MR_Grainmark_Hilic_neg_170 | II30: 117.01909:86824 118.02244:5580 119.0258:1391 | IK30: 133735 | IL30: 71550 | IM30: 80073 | IN30: 65983 | IO30: 54558 | IP30: 69588 | IQ30: 49538 | IR30: 49256 | IS30: 79856 | IT30: 40090 | IU30: 72085 | IV30: 40344 | IW30: 62847 | IX30: 59687 | IY30: 72194 | IZ30: 61101 | JA30: 76712 | JB30: 42581 | JC30: 49212 | JD30: 67214 | JE30: 48391 | JF30: 56222 | JG30: 107851 | JH30: 79668 | JI30: 60154 | JJ30: 55576 | JK30: 56868 | JL30: 56470 | JM30: 65529 | JN30: 67678 | JO30: 71679 | JP30: 62175 | JQ30: 48830 | JR30: 53704 | JS30: 57234 | JT30: 49311 | JU30: 56828 | JV30: 59800 | JW30: 57122 | JX30: 65065 | JY30: 54929 | JZ30: 60156 | KA30: 47221 | KB30: 47183 | KC30: 66475 | KD30: 42923 | KE30: 39331 | KF30: 76614 | KG30: 88441 | KH30: 40885 | KI30: 62264 | KJ30: 35722 | KK30: 43326 | KL30: 57039 | KM30: 48993 | KN30: 46178 | KO30: 46860 | KP30: 57439 | KQ30: 73850 | KR30: 44214 | KS30: 72380 | KT30: 51449 | KU30: 30063 | KV30: 111719 | KW30: 85703 | KX30: 65293 | KY30: 92843 | KZ30: 48581 | LA30: 67034 | LB30: 51109 | LC30: 59443 | LD30: 73259 | LE30: 51513 | LF30: 72080 | LG30: 60591 | LH30: 63038 | LI30: 73903 | LJ30: 59961 | LK30: 64910 | LL30: 87169 | LM30: 59637 | LN30: 48496 | LO30: 45651 | LP30: 53464 | LQ30: 79628 | LR30: 71360 | LS30: 30237 | LT30: 59121 | LU30: 51995 | LV30: 52057 | LW30: 51861 | LX30: 49172 | LY30: 57580 | LZ30: 35018 | MA30: 40575 | MB30: 55337 | MC30: 33025 | MD30: 37260 | ME30: 73888 | MF30: 46184 | MG30: 42605 | MH30: 55600 | MI30: 44765 | MJ30: 43308 | MK30: 45138 | ML30: 58917 | MM30: 38439 | MN30: 53790 | MO30: 37562 | MP30: 64239 | MQ30: 60858 | MR30: 39179 | MS30: 48072 | MT30: 54032 | MU30: 66941 | MV30: 88338 | MW30: 66534 | MX30: 66635 | MY30: 39152 | MZ30: 47874 | NA30: 39735 | NB30: 84486 | NC30: 31613 | ND30: 62336 | NE30: 56673 | NF30: 55047 | NG30: 54717 | NH30: 58414 | NI30: 106072 | NJ30: 73925 | NK30: 51977 | NL30: 43591 | NM30: 53934 | NN30: 50304 | NO30: 46516 | NP30: 91641 | NQ30: 98062 | NR30: 94550 | NS30: 45760 | NT30: 64700 | NU30: 30754 | NV30: 45924 | NW30: 54939 | NX30: 39643 | NY30: 52613 | NZ30: 42366 | OA30: 103839 | OB30: 359666 | OC30: 44980 | OD30: 61541 | OE30: 46879 | OF30: 39448 | OG30: 41050 | OH30: 40623 | OI30: 38538 | OJ30: 38398 | OK30: 50979 | OL30: 51727 | OM30: 38206 | ON30: 63861 | OO30: 42516 | OP30: 33439 | OQ30: 47275 | OR30: 27295 | OS30: 32152 | OT30: 42801 | OU30: 31511 | OV30: 97963 | OW30: 37859 | OX30: 34281 | OY30: 52530 | OZ30: 39111 | PA30: 63568 | PB30: 45647 | PC30: 32568 | PD30: 57211 | PE30: 38662 | PF30: 71410 | PG30: 26404 | PH30: 34809 | PI30: 30509 | PJ30: 51377 | PK30: 44478 | PL30: 34588 | PM30: 34249 | PN30: 46324 | PO30: 44029 | PP30: 68113 | PQ30: 48606 | PR30: 34147 | PS30: 41440 | PT30: 58172 | PU30: 54389 | PV30: 61727 | PW30: 36981 | PX30: 34655 | PY30: 74976 | QG30: 3197 | QH30: 93891 | QI30: 112087 | QJ30: 112336 | QK30: 122739 | QL30: 117432 | QM30: 126755 | QN30: 126432 | QO30: 142449 | QP30: 142411 | QQ30: 140472 | QR30: 91363 | QS30: 100859 | QT30: 88362 | QU30: 84991 | QV30: 82379 | QW30: 84891 | QX30: 75187 | QY30: 68747 | QZ30: 74336 | RA30: 68834 | RB30: 70497 | RC30: 57634 | RD30: 71552 | RE30: 74447 | RF30: 72506 | RG30: 67809 | RL30: =AVERAGE(QG30:RH30) -> 91651.66667
A31: COMPOUND_118_0863a3_82 | B31: HILIC_POS | D31: 115 | E31: 3.82 | F31: 118.0863 | G31: Glycine betaine | H31: Betaine | I31: 1 | J31: HMDB0000043 | K31: x | L31: Betaine | M31: [M+H]+ | N31: adduct linked to 257_[M+Na]+; adduct linked to 351_[M+K]+; similar chromatogram in higher mz_375; found in higher mz's MsMs_617 | O31: 1 | P31: TRUE | Q31: C5H11NO2 | V31: -1 | W31: -1 | X31: 805.8945 | Y31: 919.84 | Z31: 1000 | AA31: 180709MR_Grainmark_Hilic_pos_234 | AB31: 118.08592:1110733 119.08927:97242 120.09263:8084 | AC31: 44.04779:212 44.07648:21 58.0662:575 58.1064:10 58.22207:20 58.64954:30 59.07303:798 59.10531:26 59.41604:19 59.78285:13 118.08475:193 118.11617:16 | AD31: kept | AE31: COMPOUND_118_0863a3_82 | AF31: 0.1596622667 | AG31: 0.1261465027 | AH31: 0.9678532016 | AJ31: 0.1057592128 | AK31: 0.3086639834 | AL31: 0.6891658963 | AM31: -0.06217415041 | AN31: 0.5398907119 | AO31: 0.9268559794 | AP31: =-LOG10(AO31) -> 0.03298774395 | AQ31: 0.1070429476 | AR31: 0.292659644 | AS31: 0.5908585435 | AT31: -0.2218364171 | AU31: -0.4859845679 | AV31: 0.04231173373 | AW31: 0.1045153081 | AX31: 0.9431295265 | AY31: 0.09291037028 | AZ31: -0.3826919318 | BA31: 0.5685126724 | BB31: 0.7028606306 | BC31: 0.9741274269 | BD31: 0.1596622667 | BE31: -0.02435140386 | BF31: 0.3436759372 | BG31: 0.0937273599 | BH31: 0.8605521728 | BI31: -0.3994182844 | BJ31: -0.4723740954 | BK31: 0.001283734795 | BL31: -0.2851701078 | BM31: 0.2877375774 | BN31: 0.9930183487 | BO31: 0.9995140707 | BP31: 0.09291037028 | BQ31: -0.3847802056 | BR31: 0.5706009462 | BS31: 0.7040710032 | BT31: 0.9729714035 | BU31: 0.1057592128 | BV31: -0.09379328403 | BW31: 0.3053117096 | BX31: 0.3027137224 | BY31: 0.689820992 | BZ31: 0.002152493782 | CA31: 0.01426284831 | CB31: -0.1145324444 | CC31: 0.1859253927 | CD31: 0.8380616436 | CE31: -0.1218684226 | CF31: 0.1606923818 | CG31: 0.7217004056 | CH31: 0.07271308842 | CI31: 0.4019724664 | CJ31: 0.8168937575 | CK31: -0.05443488815 | CL31: 0.530619865 | CM31: 0.8645002318 | CN31: -0.1521064625 | CO31: 0.07821373149 | CP31: 0.752836216 | CQ31: -0.1169243522 | CR31: 0.1784842862 | CS31: 0.8027738482 | CT31: -0.1820400635 | CU31: 0.03325227573 | CV31: 0.8049149838 | CW31: -0.08757687624 | CX31: 0.3275475155 | CY31: 0.9973863525 | CZ31: -0.2535300355 | DA31: 0.003354717861 | DB31: 0.6818800245 | DC31: 0.1606282923 | DD31: 0.0607825563 | DE31: 0.6947026995 | DF31: 0.1469437376 | DG31: 0.0866228955 | DH31: 0.9995798835 | DI31: -0.0322594544 | DJ31: 0.7082369436 | DK31: 0.9652617666 | DL31: -0.03515146696 | DM31: 0.6983226506 | DN31: 0.9986115224 | DO31: -0.04724673341 | DP31: 0.5835215289 | DQ31: 0.9016775352 | DR31: 0.06304957966 | DS31: 0.4642031861 | DT31: 0.9439143154 | DU31: -0.1145324444 | DV31: 0.1859253927 | DW31: 0.8380616436 | DX31: -0.1218684226 | DY31: 0.1606923818 | DZ31: 0.7217004056 | EA31: 0.07271308842 | EB31: 0.4019724664 | EC31: 0.8168937575 | ED31: -0.05443488815 | EE31: 0.530619865 | EF31: 0.8645002318 | EG31: -0.1521064625 | EH31: 0.07821373149 | EI31: 0.752836216 | EJ31: -0.1169243522 | EK31: 0.1784842862 | EL31: 0.8027738482 | EM31: -0.1820400635 | EN31: 0.03325227573 | EO31: 0.8049149838 | EP31: -0.08757687624 | EQ31: 0.3275475155 | ER31: 0.9973863525 | ES31: -0.2535300355 | ET31: 0.003354717861 | EU31: 0.6818800245 | EV31: 0.1606282923 | EW31: 0.0607825563 | EX31: 0.6947026995 | EY31: 0.1469437376 | EZ31: 0.0866228955 | FA31: 0.9995798835 | FB31: -0.0322594544 | FC31: 0.7082369436 | FD31: 0.9652617666 | FE31: -0.03515146696 | FF31: 0.6983226506 | FG31: 0.9986115224 | FH31: -0.04724673341 | FI31: 0.5835215289 | FJ31: 0.9016775352 | FK31: 0.06304957966 | FL31: 0.4642031861 | FM31: 0.9439143154 | FN31: -0.1981730687 | FO31: 0.004801031306 | FP31: 0.03757501361 | FQ31: -0.1251050636 | FR31: 0.07754624741 | FS31: 0.3011455181 | FT31: -0.1458194259 | FU31: 0.03887505859 | FV31: 0.1000236667 | FW31: -0.06040208087 | FX31: 0.3943337072 | FY31: 0.5738832371 | FZ31: -0.1365389316 | GA31: 0.0532655507 | GB31: 0.1963424062 | GC31: -0.1050180821 | GD31: 0.138882253 | GE31: 0.4267163603 | GF31: -0.02812094504 | GG31: 0.6897028392 | GH31: 0.8340095076 | GI31: -0.227003963 | GJ31: 0.001499901072 | GK31: 0.07901175643 | GL31: -0.03851120349 | GM31: 0.5901149304 | GN31: 0.7574389363 | GO31: -0.04247016228 | GP31: 0.5464155153 | GQ31: 0.8267749428 | GR31: -0.03754119471 | GS31: 0.5939722004 | GT31: 0.8893970383 | GU31: 0.08481260341 | GV31: 0.2277800749 | GW31: 0.8759590045 | GX31: -0.3205766623 | GY31: 6.884499406e-06 | GZ31: 0.001133518351 | HA31: -0.04935418837 | HB31: 0.4832939131 | HC31: 0.7592725948 | HD31: 0.08580201218 | HE31: 0.222381871 | HF31: 0.5015939528 | HO31: COMPOUND_118_0863a3_82 | HP31: 115 | HQ31: 3.82 | HR31: 118.0863 | HS31: Betaine | HT31: [M+H]+ | HU31: adduct linked to 257_[M+Na]+; adduct linked to 351_[M+K]+; similar chromatogram in higher mz_375; found in higher mz's MsMs_617 | HV31: 1 | HW31: TRUE | HX31: C5H11NO2 | IC31: -1 | ID31: -1 | IE31: 805.8945 | IF31: 919.84 | IG31: 1000 | IH31: 180709MR_Grainmark_Hilic_pos_234 | II31: 118.08592:1110733 119.08927:97242 120.09263:8084 | IJ31: 44.04779:212 44.07648:21 58.0662:575 58.1064:10 58.22207:20 58.64954:30 59.07303:798 59.10531:26 59.41604:19 59.78285:13 118.08475:193 118.11617:16 | IK31: 24847672 | IL31: 29585384 | IM31: 21659808 | IN31: 24862230 | IO31: 28272254 | IP31: 20545696 | IQ31: 24266592 | IR31: 25226036 | IS31: 28629514 | IT31: 23306184 | IU31: 18708374 | IV31: 22247260 | IW31: 24888090 | IX31: 19897408 | IY31: 30743242 | IZ31: 20007904 | JA31: 22919490 | JB31: 18739158 | JC31: 19134690 | JD31: 24508128 | JE31: 27960328 | JF31: 22603664 | JG31: 28241456 | JH31: 23174046 | JI31: 22679332 | JJ31: 25864782 | JK31: 28213678 | JL31: 20039114 | JM31: 22429290 | JN31: 16511985 | JO31: 19084962 | JP31: 32948582 | JQ31: 30272156 | JR31: 19724430 | JS31: 22760574 | JT31: 23596698 | JU31: 16808746 | JV31: 14385574 | JW31: 18705118 | JX31: 23063708 | JY31: 27373888 | JZ31: 29415568 | KA31: 20916734 | KB31: 22213258 | KC31: 17073898 | KD31: 21112064 | KE31: 20562390 | KF31: 10267250 | KG31: 16158351 | KH31: 23349842 | KI31: 25312754 | KJ31: 22788480 | KK31: 17991392 | KL31: 19231376 | KM31: 17310286 | KN31: 19524766 | KO31: 32543008 | KP31: 23138798 | KQ31: 20699888 | KR31: 20058510 | KS31: 18216520 | KT31: 19007200 | KU31: 16267235 | KV31: 19907558 | KW31: 21622012 | KX31: 30345240 | KY31: 13812507 | KZ31: 16138282 | LA31: 20648538 | LB31: 24414454 | LC31: 26210444 | LD31: 21440890 | LE31: 23278650 | LF31: 26820064 | LG31: 23961324 | LH31: 20981152 | LI31: 17417652 | LJ31: 25297460 | LK31: 20897516 | LL31: 22707346 | LM31: 22890500 | LN31: 20148904 | LO31: 22385520 | LP31: 20514614 | LQ31: 21354940 | LR31: 21369606 | LS31: 16003883 | LT31: 12841039 | LU31: 14969716 | LV31: 15022910 | LW31: 23396668 | LX31: 21669758 | LY31: 17258194 | LZ31: 18683452 | MA31: 17093578 | MB31: 28181564 | MC31: 15773368 | MD31: 18515678 | ME31: 14831231 | MF31: 26479180 | MG31: 22510382 | MH31: 21868330 | MI31: 19008816 | MJ31: 16282362 | MK31: 14253376 | ML31: 15083750 | MM31: 30240390 | MN31: 22005282 | MO31: 21043298 | MP31: 15116161 | MQ31: 18730692 | MR31: 18068076 | MS31: 15858076 | MT31: 17200496 | MU31: 19239972 | MV31: 21386796 | MW31: 25213964 | MX31: 14235060 | MY31: 16370631 | MZ31: 21309152 | NA31: 15982416 | NB31: 24238628 | NC31: 18230844 | ND31: 14652167 | NE31: 17095112 | NF31: 16952714 | NG31: 22109220 | NH31: 19113698 | NI31: 15804844 | NJ31: 10917132 | NK31: 17957788 | NL31: 17297338 | NM31: 18609474 | NN31: 26431672 | NO31: 17401106 | NP31: 17961348 | NQ31: 14721202 | NR31: 23384376 | NS31: 18444096 | NT31: 19997932 | NU31: 23047206 | NV31: 16223852 | NW31: 17018376 | NX31: 21416162 | NY31: 21913614 | NZ31: 14849171 | OA31: 14907140 | OB31: 25682062 | OC31: 16445812 | OD31: 21765288 | OE31: 21370592 | OF31: 16563085 | OG31: 21720504 | OH31: 18131538 | OI31: 25837966 | OJ31: 20095124 | OK31: 24462122 | OL31: 18505510 | OM31: 12417247 | ON31: 20696450 | OO31: 16641155 | OP31: 15026700 | OQ31: 15730676 | OR31: 21540788 | OS31: 21741280 | OT31: 16076286 | OU31: 17798786 | OV31: 17351202 | OW31: 17757874 | OX31: 15566581 | OY31: 22610844 | OZ31: 14523683 | PA31: 22816798 | PB31: 16892304 | PC31: 19834226 | PD31: 21683216 | PE31: 26363076 | PF31: 12496994 | PG31: 11619122 | PH31: 17084356 | PI31: 22162888 | PJ31: 15462993 | PK31: 19191966 | PL31: 20376472 | PM31: 32577394 | PN31: 14440437 | PO31: 10792285 | PP31: 15941586 | PQ31: 17805754 | PR31: 18506222 | PS31: 18329144 | PT31: 15963683 | PU31: 24109152 | PV31: 15051966 | PW31: 26015772 | PX31: 13271047 | PY31: 20651348 | PZ31: 17234894 | QA31: 16986392 | QB31: 15013981 | QC31: 20421542 | QD31: 17696274 | QE31: 20716270 | QF31: 12840446 | QG31: 25848284 | QH31: 25216078 | QI31: 24988006 | QJ31: 24676356 | QK31: 24686358 | QL31: 24528968 | QM31: 24038968 | QN31: 23892870 | QO31: 23867300 | QP31: 23913802 | QQ31: 22581968 | QR31: 22177072 | QS31: 22017526 | QT31: 21319780 | QU31: 21163552 | QV31: 20825266 | QW31: 20142100 | QX31: 20060228 | QY31: 19607288 | QZ31: 19259104 | RA31: 19090278 | RB31: 19389266 | RC31: 18940502 | RD31: 19097674 | RE31: 19036236 | RF31: 18845310 | RG31: 18978028 | RH31: 18636964 | RI31: 10339616 | RJ31: 10651706 | RK31: 10981529 | RL31: =AVERAGE(QG31:RH31) -> 21672326.14
A32: COMPOUND_120_0626a5_81 | B32: HILIC_POS | D32: 134 | E32: 5.81 | F32: 120.0626 | G32: L-Threonine | H32: Amino acid | I32: 1 | K32: x | L32: L-Threonine | M32: [M+H]+ | N32: adduct linked to 40_[M+H-H2O]+ | O32: 1 | P32: TRUE | Q32: C4H9NO3 | S32: AYFVYJQAPQTCCC-UHFFFAOYNA-N | T32: CC(O)C(N)C(O)=O | V32: -1 | W32: -1 | X32: 809.6746 | Y32: 750.9386 | Z32: 750 | AA32: 180709MR_Grainmark_Hilic_pos_233 | AB32: 120.05843:21102 121.06178:5215 122.06514:2165 | AC32: 56.04836:106 56.07877:5 74.02205:165 74.06039:284 74.08408:22 74.09888:18 74.27239:7 74.52106:31 94.31155:15 97.76342:23 102.05459:110 | AD32: kept | AE32: COMPOUND_120_0626a5_81 | AF32: 0.4011218359 | AG32: 0.01938701791 | AH32: 0.6946840093 | AJ32: 0.05619067337 | AK32: 0.7382938262 | AL32: 0.9279768248 | AM32: -0.1791970724 | AN32: 0.2920869841 | AO32: 0.8620201622 | AP32: =-LOG10(AO32) -> 0.06448257616 | AQ32: 0.03798956796 | AR32: 0.8225346124 | AS32: 0.9354110225 | AT32: -0.5803189083 | AU32: -1.03198124 | AV32: -0.1286565763 | AW32: 0.01422633967 | AX32: 0.9131269428 | AY32: 0.3432363097 | AZ32: -0.1239150463 | BA32: 0.8103876657 | BB32: 0.1528851387 | BC32: 0.8324865753 | BD32: 0.4011218359 | BE32: 0.08648005887 | BF32: 0.7157636128 | BG32: 0.01496363932 | BH32: 0.5244771594 | BI32: -0.6122374966 | BJ32: -0.5852127926 | BK32: -0.01820110541 | BL32: -0.5009748676 | BM32: 0.4645726568 | BN32: 0.9413191741 | BO32: 0.9995140707 | BP32: 0.3432363097 | BQ32: -0.1530847918 | BR32: 0.8395574112 | BS32: 0.1782349337 | BT32: 0.8776151693 | BU32: 0.05619067337 | BV32: -0.2801242762 | BW32: 0.3925056229 | BX32: 0.7443519339 | BY32: 0.9335425563 | BZ32: -0.01805691345 | CA32: -0.2017511065 | CB32: -0.09850686364 | CC32: 0.2556761723 | CD32: 0.8951421132 | CE32: -0.1433382379 | CF32: 0.09848185478 | CG32: 0.6283312949 | CH32: -0.03041171194 | CI32: 0.7262281001 | CJ32: 0.9329963031 | CK32: 0.1239822007 | CL32: 0.1519489082 | CM32: 0.5583305698 | CN32: -0.09882634142 | CO32: 0.2541301844 | CP32: 0.9184179273 | CQ32: -0.08049904336 | CR32: 0.3551660388 | CS32: 0.8846468755 | CT32: 0.04091105891 | CU32: 0.6350272377 | CV32: 0.9967977033 | CW32: -0.1265254615 | CX32: 0.1563441466 | CY32: 0.9293270017 | CZ32: -0.01867956014 | DA32: 0.8316474478 | DB32: 0.9992844709 | DC32: -0.04642684995 | DD32: 0.5900773815 | DE32: 0.953615766 | DF32: -0.007532045488 | DG32: 0.9303903011 | DH32: 0.9995798835 | DI32: 0.098055868 | DJ32: 0.2543079912 | DK32: 0.7756451095 | DL32: 0.01458957708 | DM32: 0.8722305784 | DN32: 0.9986115224 | DO32: 0.01330314055 | DP32: 0.8773815661 | DQ32: 0.9770640995 | DR32: -0.01235470328 | DS32: 0.8860622832 | DT32: 0.9866801403 | DU32: -0.09850686364 | DV32: 0.2556761723 | DW32: 0.8951421132 | DX32: -0.1433382379 | DY32: 0.09848185478 | DZ32: 0.6283312949 | EA32: -0.03041171194 | EB32: 0.7262281001 | EC32: 0.9329963031 | ED32: 0.1239822007 | EE32: 0.1519489082 | EF32: 0.5583305698 | EG32: -0.09882634142 | EH32: 0.2541301844 | EI32: 0.9184179273 | EJ32: -0.08049904336 | EK32: 0.3551660388 | EL32: 0.8846468755 | EM32: 0.04091105891 | EN32: 0.6350272377 | EO32: 0.9967977033 | EP32: -0.1265254615 | EQ32: 0.1563441466 | ER32: 0.9293270017 | ES32: -0.01867956014 | ET32: 0.8316474478 | EU32: 0.9992844709 | EV32: -0.04642684995 | EW32: 0.5900773815 | EX32: 0.953615766 | EY32: -0.007532045488 | EZ32: 0.9303903011 | FA32: 0.9995798835 | FB32: 0.098055868 | FC32: 0.2543079912 | FD32: 0.7756451095 | FE32: 0.01458957708 | FF32: 0.8722305784 | FG32: 0.9986115224 | FH32: 0.01330314055 | FI32: 0.8773815661 | FJ32: 0.9770640995 | FK32: -0.01235470328 | FL32: 0.8860622832 | FM32: 0.9866801403 | FN32: -0.2074734065 | FO32: 0.00312341423 | FP32: 0.02844108919 | FQ32: -0.1435282878 | FR32: 0.04260275021 | FS32: 0.2239600564 | FT32: -0.08384039281 | FU32: 0.2366847272 | FV32: 0.3910559651 | FW32: -0.1357529861 | FX32: 0.05466467867 | FY32: 0.1368991896 | FZ32: -0.1705463114 | GA32: 0.01549526778 | GB32: 0.08646307248 | GC32: 0.03875195306 | GD32: 0.5858876619 | GE32: 0.8115021543 | GF32: 0.05882242381 | GG32: 0.4033160301 | GH32: 0.6029729282 | GI32: -0.2517551542 | GJ32: 0.000412690052 | GK32: 0.04784717871 | GL32: 0.05402367109 | GM32: 0.4496974257 | GN32: 0.6476307267 | GO32: 0.1617220372 | GP32: 0.02083881695 | GQ32: 0.2115475001 | GR32: 0.0635746854 | GS32: 0.3663334207 | GT32: 0.7656453714 | GU32: 0.1364974763 | GV32: 0.05156887859 | GW32: 0.6805476543 | GX32: -0.003279923866 | GY32: 0.9642727174 | GZ32: 0.9927530361 | HA32: -0.05684412065 | HB32: 0.4193434989 | HC32: 0.7062571276 | HD32: -0.1303737087 | HE32: 0.06308281638 | HF32: 0.243622912 | HG32: 1 | HI32: 1 | HO32: COMPOUND_120_0626a5_81 | HP32: 134 | HQ32: 5.81 | HR32: 120.0626 | HS32: L-Threonine | HT32: [M+H]+ | HU32: adduct linked to 40_[M+H-H2O]+ | HV32: 1 | HW32: TRUE | HX32: C4H9NO3 | HZ32: AYFVYJQAPQTCCC-UHFFFAOYNA-N | IA32: CC(O)C(N)C(O)=O | IC32: -1 | ID32: -1 | IE32: 809.6746 | IF32: 750.9386 | IG32: 750 | IH32: 180709MR_Grainmark_Hilic_pos_233 | II32: 120.05843:21102 121.06178:5215 122.06514:2165 | IJ32: 56.04836:106 56.07877:5 74.02205:165 74.06039:284 74.08408:22 74.09888:18 74.27239:7 74.52106:31 94.31155:15 97.76342:23 102.05459:110 | IK32: 348449 | IL32: 346567 | IM32: 315756 | IN32: 357356 | IO32: 204709 | IP32: 405188 | IQ32: 291269 | IR32: 433127 | IS32: 367572 | IT32: 377201 | IU32: 325083 | IV32: 436156 | IW32: 220465 | IX32: 290859 | IY32: 226568 | IZ32: 355874 | JA32: 355707 | JB32: 322849 | JC32: 402740 | JD32: 339884 | JE32: 442438 | JF32: 428648 | JG32: 357110 | JH32: 361135 | JI32: 296649 | JJ32: 426405 | JK32: 252641 | JL32: 318114 | JM32: 302301 | JN32: 266625 | JO32: 304295 | JP32: 290829 | JQ32: 361260 | JR32: 272279 | JS32: 327241 | JT32: 334349 | JU32: 254858 | JV32: 246415 | JW32: 241164 | JX32: 256957 | JY32: 230413 | JZ32: 275108 | KA32: 312945 | KB32: 323162 | KC32: 259711 | KD32: 283314 | KE32: 381662 | KF32: 491866 | KG32: 328608 | KH32: 323199 | KI32: 300526 | KJ32: 327512 | KK32: 447393 | KL32: 299285 | KM32: 379229 | KN32: 395928 | KO32: 315482 | KP32: 372286 | KQ32: 370937 | KR32: 372893 | KS32: 222980 | KT32: 328644 | KU32: 333536 | KV32: 373560 | KW32: 340254 | KX32: 301069 | KY32: 215172 | KZ32: 209525 | LA32: 411169 | LB32: 357071 | LC32: 308403 | LD32: 310288 | LE32: 301407 | LF32: 361366 | LG32: 297025 | LH32: 290283 | LI32: 315444 | LJ32: 273368 | LK32: 292988 | LL32: 240257 | LM32: 332988 | LN32: 356520 | LO32: 335997 | LP32: 284226 | LQ32: 317199 | LR32: 233113 | LS32: 342273 | LT32: 229154 | LU32: 393953 | LV32: 276449 | LW32: 359563 | LX32: 235952 | LY32: 297796 | LZ32: 263921 | MA32: 347111 | MB32: 224867 | MC32: 295105 | MD32: 297990 | ME32: 184845 | MF32: 288814 | MG32: 302449 | MH32: 267361 | MI32: 279185 | MJ32: 259937 | MK32: 252078 | ML32: 280438 | MM32: 247868 | MN32: 231069 | MO32: 280150 | MP32: 224589 | MQ32: 225901 | MR32: 172680 | MS32: 238665 | MT32: 224595 | MU32: 301578 | MV32: 306576 | MW32: 161572 | MX32: 246888 | MY32: 181107 | MZ32: 290777 | NA32: 223852 | NB32: 177026 | NC32: 302868 | ND32: 264513 | NE32: 176090 | NF32: 339054 | NG32: 273068 | NH32: 279699 | NI32: 206568 | NJ32: 153826 | NK32: 225727 | NL32: 220626 | NM32: 232794 | NN32: 206578 | NO32: 251071 | NP32: 234086 | NQ32: 342582 | NR32: 294674 | NS32: 275077 | NT32: 252071 | NU32: 224937 | NV32: 264048 | NW32: 255014 | NX32: 260549 | NY32: 280150 | NZ32: 256950 | OA32: 239820 | OB32: 372534 | OC32: 346956 | OD32: 294107 | OE32: 278739 | OF32: 227752 | OG32: 291451 | OH32: 376979 | OI32: 1388153 | OJ32: 330644 | OK32: 304342 | OL32: 360994 | OM32: 467167 | ON32: 286366 | OO32: 391913 | OP32: 225009 | OQ32: 228568 | OR32: 316718 | OS32: 295425 | OT32: 224193 | OU32: 366127 | OV32: 299673 | OW32: 384592 | OX32: 298453 | OY32: 302743 | OZ32: 370540 | PA32: 255502 | PB32: 317409 | PC32: 304381 | PD32: 285830 | PE32: 236884 | PF32: 206132 | PG32: 169513 | PH32: 211661 | PI32: 229709 | PJ32: 338191 | PK32: 382534 | PL32: 328604 | PM32: 363652 | PN32: 261396 | PO32: 356353 | PP32: 190349 | PQ32: 227340 | PR32: 297591 | PS32: 236450 | PT32: 324031 | PU32: 214265 | PV32: 328692 | PW32: 287732 | PX32: 359212 | PY32: 291896 | PZ32: 327620 | QA32: 255145 | QB32: 250343 | QC32: 324115 | QD32: 367758 | QE32: 415487 | QF32: 271402 | QG32: 379488 | QH32: 368595 | QI32: 362317 | QJ32: 352507 | QK32: 346421 | QL32: 345021 | QM32: 342364 | QN32: 337089 | QO32: 335568 | QP32: 326451 | QQ32: 317187 | QR32: 314633 | QS32: 330013 | QT32: 311158 | QU32: 302749 | QV32: 296104 | QW32: 286553 | QX32: 279323 | QY32: 271505 | QZ32: 268910 | RA32: 260960 | RB32: 282665 | RC32: 266029 | RD32: 270512 | RE32: 265879 | RF32: 268520 | RG32: 275253 | RH32: 276481 | RI32: 154594 | RJ32: 151242 | RK32: 163514 | RL32: =AVERAGE(QG32:RH32) -> 308580.5357
A33: COMPOUND_130_0864a5_03 | B33: HILIC_POS | D33: 217 | E33: 5.03 | F33: 130.0864 | G33: Pipecolic acid | H33: Amino acid | I33: 1 | J33: HMDB0000070 | K33: x | L33: DL-Pipecolinic acid; LC-ESI-QTOF; MS2; CE | M33: [M+H]+ | O33: 1 | P33: TRUE | Q33: C6H11NO2 | S33: HXEACLLIILLPRG-UHFFFAOYNA-N | T33: OC(=O)C1CCCCN1 | V33: -1 | W33: -1 | X33: 924.1848 | Y33: 864.3746 | Z33: 1000 | AA33: 180709MR_Grainmark_Hilic_pos_233 | AB33: 130.08633:13689 131.08968:1981 132.09304:1276 | AC33: 84.08021:944 84.11853:31 130.08604:630 130.13657:9 | AD33: kept | AE33: COMPOUND_130_0864a5_03 | AF33: -0.06960944546 | AG33: 0.7265791335 | AH33: 0.9970396117 | AJ33: 0.002954807279 | AK33: 0.9881518228 | AL33: 0.9967222205 | AM33: -0.1529406205 | AN33: 0.4295011161 | AO33: 0.9027520539 | AP33: =-LOG10(AO33) -> 0.0444315148 | AQ33: -0.0005401583302 | AR33: 0.9977681935 | AS33: 0.9985213397 | AT33: -0.08333117505 | AU33: -0.5677037848 | AV33: 0.4010414347 | AW33: 0.7370428742 | AX33: 0.9907393313 | AY33: 0.4448702 | AZ33: -0.01653702082 | BA33: 0.9062774209 | BB33: 0.06143167751 | BC33: 0.8121866033 | BD33: -0.06960944546 | BE33: -0.407038201 | BF33: 0.2678193101 | BG33: 0.6872785929 | BH33: 0.9952354946 | BI33: -0.0832638704 | BJ33: -0.1837849346 | BK33: -0.003494965609 | BL33: -0.6152882509 | BM33: 0.6082983197 | BN33: 0.9911003659 | BO33: 0.9995140707 | BP33: 0.4448702 | BQ33: -0.03708449912 | BR33: 0.9268248992 | BS33: 0.07278898673 | BT33: 0.8399668887 | BU33: 0.002954807279 | BV33: -0.4232390831 | BW33: 0.4291486977 | BX33: 0.9891993092 | BY33: 0.9961815605 | BZ33: -0.002715576968 | CA33: 0.1137758895 | CB33: -0.07394117727 | CC33: 0.3940490292 | CD33: 0.9572394415 | CE33: -0.05900087611 | CF33: 0.4982942001 | CG33: 0.9007088035 | CH33: -0.01796820771 | CI33: 0.8361293125 | CJ33: 0.9571879804 | CK33: -0.03500800351 | CL33: 0.6868765409 | CM33: 0.9251587603 | CN33: -0.07585377817 | CO33: 0.3818969929 | CP33: 0.9465170492 | CQ33: -0.08270945658 | CR33: 0.3420663007 | CS33: 0.8812568812 | CT33: -0.05431496876 | CU33: 0.5284453771 | CV33: 0.9967977033 | CW33: 0.06271476781 | CX33: 0.4836391416 | CY33: 0.9973863525 | CZ33: -0.08381653428 | DA33: 0.3393237956 | DB33: 0.9992844709 | DC33: -0.04305341811 | DD33: 0.6173977656 | DE33: 0.9540501249 | DF33: 0.07179213646 | DG33: 0.4044599345 | DH33: 0.9995798835 | DI33: -0.05463913215 | DJ33: 0.5259837132 | DK33: 0.9257717877 | DL33: -0.05131170206 | DM33: 0.5714147415 | DN33: 0.9986115224 | DO33: -0.2185880129 | DP33: 0.01028267995 | DQ33: 0.1060766824 | DR33: -0.03328453288 | DS33: 0.6994056744 | DT33: 0.9637285951 | DU33: -0.07394117727 | DV33: 0.3940490292 | DW33: 0.9572394415 | DX33: -0.05900087611 | DY33: 0.4982942001 | DZ33: 0.9007088035 | EA33: -0.01796820771 | EB33: 0.8361293125 | EC33: 0.9571879804 | ED33: -0.03500800351 | EE33: 0.6868765409 | EF33: 0.9251587603 | EG33: -0.07585377817 | EH33: 0.3818969929 | EI33: 0.9465170492 | EJ33: -0.08270945658 | EK33: 0.3420663007 | EL33: 0.8812568812 | EM33: -0.05431496876 | EN33: 0.5284453771 | EO33: 0.9967977033 | EP33: 0.06271476781 | EQ33: 0.4836391416 | ER33: 0.9973863525 | ES33: -0.08381653428 | ET33: 0.3393237956 | EU33: 0.9992844709 | EV33: -0.04305341811 | EW33: 0.6173977656 | EX33: 0.9540501249 | EY33: 0.07179213646 | EZ33: 0.4044599345 | FA33: 0.9995798835 | FB33: -0.05463913215 | FC33: 0.5259837132 | FD33: 0.9257717877 | FE33: -0.05131170206 | FF33: 0.5714147415 | FG33: 0.9986115224 | FH33: -0.2185880129 | FI33: 0.01028267995 | FJ33: 0.1060766824 | FK33: -0.03328453288 | FL33: 0.6994056744 | FM33: 0.9637285951 | FN33: -0.1988001427 | FO33: 0.004666528608 | FP33: 0.03697568441 | FQ33: -0.1487358911 | FR33: 0.03555637836 | FS33: 0.2027304627 | FT33: -0.1758786716 | FU33: 0.01250872616 | FV33: 0.04077368134 | FW33: 0.02721015367 | FX33: 0.701396843 | FY33: 0.8243900128 | FZ33: -0.1251014838 | GA33: 0.07680777949 | GB33: 0.2506936338 | GC33: 0.08401331665 | GD33: 0.2368992318 | GE33: 0.5446029307 | GF33: -0.06355058883 | GG33: 0.3665154804 | GH33: 0.5652934201 | GI33: 0.01457324052 | GJ33: 0.840578605 | GK33: 0.9723269872 | GL33: -0.04232096632 | GM33: 0.5538481692 | GN33: 0.7306387092 | GO33: 0.05989744745 | GP33: 0.3947614897 | GQ33: 0.7326702994 | GR33: -0.04473108174 | GS33: 0.5252458871 | GT33: 0.8642359188 | GU33: 0.0889968616 | GV33: 0.205573262 | GW33: 0.8714699211 | GX33: 0.02553977762 | GY33: 0.7272082839 | GZ33: 0.9097308387 | HA33: -0.2886549255 | HB33: 2.827211197e-05 | HC33: 0.0003896379007 | HD33: 0.01862057848 | HE33: 0.7915150595 | HF33: 0.9307619633 | HO33: COMPOUND_130_0864a5_03 | HP33: 217 | HQ33: 5.03 | HR33: 130.0864 | HS33: DL-Pipecolinic acid; LC-ESI-QTOF; MS2; CE | HT33: [M+H]+ | HV33: 1 | HW33: TRUE | HX33: C6H11NO2 | HZ33: HXEACLLIILLPRG-UHFFFAOYNA-N | IA33: OC(=O)C1CCCCN1 | IC33: -1 | ID33: -1 | IE33: 924.1848 | IF33: 864.3746 | IG33: 1000 | IH33: 180709MR_Grainmark_Hilic_pos_233 | II33: 130.08633:13689 131.08968:1981 132.09304:1276 | IJ33: 84.08021:944 84.11853:31 130.08604:630 130.13657:9 | IK33: 162444 | IL33: 189832 | IM33: 345137 | IN33: 300234 | IO33: 256718 | IP33: 302782 | IQ33: 304159 | IR33: 885205 | IS33: 237185 | IT33: 257012 | IU33: 346274 | IV33: 249976 | IW33: 254320 | IX33: 248139 | IY33: 288490 | IZ33: 235105 | JA33: 330156 | JB33: 272991 | JC33: 233281 | JD33: 165881 | JE33: 126747 | JF33: 238926 | JG33: 209878 | JH33: 206835 | JI33: 297413 | JJ33: 205411 | JK33: 605316 | JL33: 207021 | JM33: 192984 | JN33: 155783 | JO33: 223814 | JP33: 250114 | JQ33: 268212 | JR33: 198145 | JS33: 200369 | JT33: 823628 | JU33: 247241 | JV33: 192940 | JW33: 204858 | JX33: 151588 | JY33: 169732 | JZ33: 200499 | KA33: 187713 | KB33: 208513 | KC33: 221840 | KD33: 218661 | KE33: 231902 | KF33: 248895 | KG33: 152212 | KH33: 195763 | KI33: 251284 | KJ33: 272157 | KK33: 176106 | KL33: 244890 | KM33: 279275 | KN33: 214425 | KO33: 185136 | KP33: 153389 | KQ33: 366185 | KR33: 180234 | KS33: 159748 | KT33: 237701 | KU33: 180981 | KV33: 100200 | KW33: 200204 | KX33: 179410 | KY33: 186013 | KZ33: 210614 | LA33: 211621 | LB33: 194492 | LC33: 244126 | LD33: 300465 | LE33: 447294 | LF33: 432291 | LG33: 183575 | LH33: 527488 | LI33: 205454 | LJ33: 133995 | LK33: 168606 | LL33: 177807 | LM33: 326972 | LN33: 271821 | LO33: 193548 | LP33: 184026 | LQ33: 215550 | LR33: 208944 | LS33: 212607 | LT33: 179543 | LU33: 198314 | LV33: 161302 | LW33: 196180 | LX33: 608344 | LY33: 170697 | LZ33: 193592 | MA33: 185403 | MB33: 153585 | MC33: 202129 | MD33: 188594 | ME33: 128939 | MF33: 138657 | MG33: 308580 | MH33: 234837 | MI33: 233624 | MJ33: 168296 | MK33: 141281 | ML33: 127520 | MM33: 144736 | MN33: 234072 | MO33: 373734 | MP33: 271767 | MQ33: 171222 | MR33: 154211 | MS33: 117282 | MT33: 214533 | MU33: 329034 | MV33: 219050 | MW33: 139899 | MX33: 104921 | MY33: 167782 | MZ33: 178133 | NA33: 173864 | NB33: 141035 | NC33: 135007 | ND33: 122465 | NE33: 136265 | NF33: 132970 | NG33: 208963 | NH33: 132522 | NI33: 155376 | NJ33: 173077 | NK33: 264679 | NL33: 161042 | NM33: 217210 | NN33: 154457 | NO33: 152332 | NP33: 181163 | NQ33: 127478 | NR33: 172566 | NS33: 164082 | NT33: 162480 | NU33: 119995 | NV33: 134931 | NW33: 174034 | NX33: 150847 | NY33: 145770 | NZ33: 149083 | OA33: 228912 | OB33: 345573 | OC33: 188232 | OD33: 145992 | OE33: 216202 | OF33: 163814 | OG33: 187663 | OH33: 160819 | OI33: 320673 | OJ33: 162166 | OK33: 293087 | OL33: 178913 | OM33: 173069 | ON33: 217248 | OO33: 252255 | OP33: 192756 | OQ33: 123792 | OR33: 117746 | OS33: 135462 | OT33: 170949 | OU33: 153278 | OV33: 110795 | OW33: 182865 | OX33: 124350 | OY33: 181037 | OZ33: 194474 | PA33: 156400 | PB33: 194288 | PC33: 124333 | PD33: 213432 | PE33: 99580 | PF33: 140285 | PG33: 97650 | PH33: 194349 | PI33: 306961 | PJ33: 120529 | PK33: 195695 | PL33: 152459 | PM33: 182445 | PN33: 174756 | PO33: 194776 | PP33: 139762 | PQ33: 176835 | PR33: 147766 | PS33: 107363 | PT33: 127089 | PU33: 157193 | PV33: 130852 | PW33: 202959 | PX33: 135110 | PY33: 219790 | PZ33: 162610 | QA33: 249227 | QB33: 120330 | QC33: 401802 | QD33: 141866 | QE33: 107670 | QF33: 177066 | QG33: 356003 | QH33: 326790 | QI33: 338123 | QJ33: 312514 | QK33: 331184 | QL33: 305784 | QM33: 307963 | QN33: 317865 | QO33: 310223 | QP33: 302315 | QQ33: 281830 | QR33: 266953 | QS33: 270328 | QT33: 247947 | QU33: 240144 | QV33: 225968 | QW33: 234137 | QX33: 219377 | QY33: 203323 | QZ33: 218161 | RA33: 218467 | RB33: 180274 | RC33: 216797 | RD33: 192393 | RE33: 208057 | RF33: 209636 | RG33: 197075 | RH33: 197161 | RI33: 111699 | RJ33: 90319 | RK33: 103477 | RL33: =AVERAGE(QG33:RH33) -> 258456.8571
A34: COMPOUND_132_1022a4_06 | B34: HILIC_POS | D34: 229 | E34: 4.06 | F34: 132.1022 | G34: L-Leucine | H34: Amino acid | I34: 1 | J34: HMDB0000687 | K34: x | L34: Leucine | M34: [M+H]+ | N34: similar chromatogram in higher mz_466 | O34: 1 | P34: TRUE | Q34: C6H13NO2 | S34: ROHFNLRQFUQHCH-MLHKIVSYNA-N | T34: CC(C)C[C@H](N)C(O)=O | V34: -1 | W34: -1 | X34: 905.7206 | Y34: 918.6694 | Z34: 571.4286 | AA34: 180709MR_Grainmark_Hilic_pos_234 | AB34: 132.10138:165682 133.10473:20472 134.10809:2091 | AC34: 30.03373:430 30.05369:20 43.05451:273 43.08218:11 44.04952:818 44.07668:30 44.31668:5 44.44892:17 86.09589:718 86.13402:13 86.15175:9 86.20335:27 86.5639:22 86.75246:31 | AD34: kept | AE34: COMPOUND_132_1022a4_06 | AF34: 0.1591528198 | AG34: 0.2208232029 | AH34: 0.9918397361 | AJ34: 0.1570488334 | AK34: 0.2269199263 | AL34: 0.6083941315 | AM34: 0.06314759194 | AN34: 0.5676806756 | AO34: 0.9367657052 | AP34: =-LOG10(AO34) -> 0.02836901706 | AQ34: 0.04025868549 | AR34: 0.7154031986 | AS34: 0.8864077096 | AT34: -0.09600522784 | AU34: -0.4164740355 | AV34: 0.2244635799 | AW34: 0.5590989109 | AX34: 0.9802345096 | AY34: 0.1749785883 | AZ34: -0.2935491764 | BA34: 0.643506353 | BB34: 0.4662396906 | BC34: 0.940574013 | BD34: 0.1591528198 | BE34: -0.06409554071 | BF34: 0.3824011803 | BG34: 0.167018228 | BH34: 0.9097484253 | BI34: -0.1424204207 | BJ34: -0.113671532 | BK34: -0.1167901479 | BL34: -0.4553858724 | BM34: 0.2218055766 | BN34: 0.501376966 | BO34: 0.9759596019 | BP34: 0.1749785883 | BQ34: -0.2989576507 | BR34: 0.6489148274 | BS34: 0.4712855245 | BT34: 0.9524622409 | BU34: 0.1570488334 | BV34: -0.07882729103 | BW34: 0.3929249578 | BX34: 0.1964364003 | BY34: 0.5772060717 | BZ34: -0.1660630692 | CA34: -0.1839798722 | CB34: 0.009048851132 | CC34: 0.9170403109 | CD34: 0.9967045438 | CE34: -0.09571674986 | CF34: 0.2712671509 | CG34: 0.8011546482 | CH34: -0.03173680495 | CI34: 0.7148042898 | CJ34: 0.92937829 | CK34: 0.2816602063 | CL34: 0.0009348638352 | CM34: 0.0432899891 | CN34: 0.02096487252 | CO34: 0.809282928 | CP34: 0.9996757019 | CQ34: -0.1258358621 | CR34: 0.1474006992 | CS34: 0.7841377707 | CT34: 0.01427544918 | CU34: 0.8684974829 | CV34: 0.9967977033 | CW34: -0.08532009974 | CX34: 0.3402140593 | CY34: 0.9973863525 | CZ34: 0.000464944341 | DA34: 0.9957784151 | DB34: 0.9997052468 | DC34: -0.0190082268 | DD34: 0.8255075041 | DE34: 0.9799944922 | DF34: 0.01479309587 | DG34: 0.8637743084 | DH34: 0.9995798835 | DI34: 0.03328019525 | DJ34: 0.6994429604 | DK34: 0.9652617666 | DL34: -0.006006324307 | DM34: 0.9472131736 | DN34: 0.9986115224 | DO34: -0.01415454771 | DP34: 0.8696013019 | DQ34: 0.9766800634 | DR34: 0.1240632357 | DS34: 0.1486253141 | DT34: 0.8023104295 | DU34: 0.009048851132 | DV34: 0.9170403109 | DW34: 0.9967045438 | DX34: -0.09571674986 | DY34: 0.2712671509 | DZ34: 0.8011546482 | EA34: -0.03173680495 | EB34: 0.7148042898 | EC34: 0.92937829 | ED34: 0.2816602063 | EE34: 0.0009348638352 | EF34: 0.0432899891 | EG34: 0.02096487252 | EH34: 0.809282928 | EI34: 0.9996757019 | EJ34: -0.1258358621 | EK34: 0.1474006992 | EL34: 0.7841377707 | EM34: 0.01427544918 | EN34: 0.8684974829 | EO34: 0.9967977033 | EP34: -0.08532009974 | EQ34: 0.3402140593 | ER34: 0.9973863525 | ES34: 0.000464944341 | ET34: 0.9957784151 | EU34: 0.9997052468 | EV34: -0.0190082268 | EW34: 0.8255075041 | EX34: 0.9799944922 | EY34: 0.01479309587 | EZ34: 0.8637743084 | FA34: 0.9995798835 | FB34: 0.03328019525 | FC34: 0.6994429604 | FD34: 0.9652617666 | FE34: -0.006006324307 | FF34: 0.9472131736 | FG34: 0.9986115224 | FH34: -0.01415454771 | FI34: 0.8696013019 | FJ34: 0.9766800634 | FK34: 0.1240632357 | FL34: 0.1486253141 | FM34: 0.8023104295 | FN34: -0.08900776614 | FO34: 0.2089245457 | FP34: 0.4179566346 | FQ34: -0.02110302186 | FR34: 0.7667687147 | FS34: 0.9067006256 | FT34: -0.4656774176 | FU34: 3.263404897e-12 | FV34: 2.738368489e-10 | FW34: 0.3828498524 | FX34: 2.033092848e-08 | FY34: 3.377787591e-07 | FZ34: 0.09915873461 | GA34: 0.1613624831 | GB34: 0.4031933285 | GC34: 0.2639528837 | GD34: 0.0001589467656 | GE34: 0.01086245474 | GF34: 0.3403226931 | GG34: 6.346013029e-07 | GH34: 1.938604625e-05 | GI34: -0.02326509117 | GJ34: 0.7480945488 | GK34: 0.9516635509 | GL34: 0.3553997479 | GM34: 2.776963086e-07 | GN34: 9.791749093e-06 | GO34: 0.1699636073 | GP34: 0.01508390324 | GQ34: 0.1807634226 | GR34: -0.1000118097 | GS34: 0.1546643752 | GT34: 0.5309529483 | GU34: 0.03260743607 | GV34: 0.6433724721 | GW34: 0.9719498901 | GX34: 0.2136103902 | GY34: 0.003164221249 | GZ34: 0.05715428517 | HA34: -0.1865521796 | HB34: 0.007548616227 | HC34: 0.05064754754 | HD34: 0.2571823899 | HE34: 0.0002045052292 | HF34: 0.003330872639 | HO34: COMPOUND_132_1022a4_06 | HP34: 229 | HQ34: 4.06 | HR34: 132.1022 | HS34: Leucine | HT34: [M+H]+ | HU34: similar chromatogram in higher mz_466 | HV34: 1 | HW34: TRUE | HX34: C6H13NO2 | HZ34: ROHFNLRQFUQHCH-MLHKIVSYNA-N | IA34: CC(C)C[C@H](N)C(O)=O | IC34: -1 | ID34: -1 | IE34: 905.7206 | IF34: 918.6694 | IG34: 571.4286 | IH34: 180709MR_Grainmark_Hilic_pos_234 | II34: 132.10138:165682 133.10473:20472 134.10809:2091 | IJ34: 30.03373:430 30.05369:20 43.05451:273 43.08218:11 44.04952:818 44.07668:30 44.31668:5 44.44892:17 86.09589:718 86.13402:13 86.15175:9 86.20335:27 86.5639:22 86.75246:31 | IK34: 2755448 | IL34: 2741470 | IM34: 2387996 | IN34: 2945709 | IO34: 2621953 | IP34: 2773741 | IQ34: 3044642 | IR34: 4151903 | IS34: 3391038 | IT34: 3352864 | IU34: 3086194 | IV34: 2620859 | IW34: 2809247 | IX34: 2843107 | IY34: 2637591 | IZ34: 3255343 | JA34: 3061782 | JB34: 3118209 | JC34: 2630311 | JD34: 2372185 | JE34: 2780050 | JF34: 3956562 | JG34: 3628132 | JH34: 3387793 | JI34: 2972603 | JJ34: 2960297 | JK34: 3037939 | JL34: 1969234 | JM34: 1865016 | JN34: 2509145 | JO34: 3335675 | JP34: 2653524 | JQ34: 2702951 | JR34: 2700539 | JS34: 2882880 | JT34: 2477827 | JU34: 3031752 | JV34: 2483832 | JW34: 2521049 | JX34: 2626452 | JY34: 2589242 | JZ34: 3168620 | KA34: 2952882 | KB34: 2709054 | KC34: 2849172 | KD34: 2979370 | KE34: 3220203 | KF34: 2348990 | KG34: 2482198 | KH34: 2295199 | KI34: 1676873 | KJ34: 2138276 | KK34: 2394326 | KL34: 2567210 | KM34: 2697242 | KN34: 3456848 | KO34: 2363912 | KP34: 1737309 | KQ34: 2715768 | KR34: 2383312 | KS34: 3135261 | KT34: 2666147 | KU34: 1624251 | KV34: 2165880 | KW34: 2260449 | KX34: 3049914 | KY34: 2249419 | KZ34: 2259390 | LA34: 2581752 | LB34: 2412951 | LC34: 2482634 | LD34: 2610388 | LE34: 2267848 | LF34: 3507942 | LG34: 3104314 | LH34: 2645703 | LI34: 2185200 | LJ34: 2891408 | LK34: 2712043 | LL34: 3117424 | LM34: 2826784 | LN34: 2785998 | LO34: 3033956 | LP34: 2283363 | LQ34: 2608015 | LR34: 2864387 | LS34: 2774536 | LT34: 2981773 | LU34: 1974844 | LV34: 2721472 | LW34: 2246015 | LX34: 2523653 | LY34: 2299743 | LZ34: 2600316 | MA34: 2587783 | MB34: 2340057 | MC34: 1919332 | MD34: 2228272 | ME34: 2050759 | MF34: 3053847 | MG34: 3736057 | MH34: 2801422 | MI34: 3197278 | MJ34: 2230785 | MK34: 2382245 | ML34: 2364778 | MM34: 2084272 | MN34: 2312346 | MO34: 2421434 | MP34: 1912301 | MQ34: 2817642 | MR34: 2364964 | MS34: 2477666 | MT34: 1975609 | MU34: 2247008 | MV34: 2173184 | MW34: 1712686 | MX34: 1942170 | MY34: 2059542 | MZ34: 1834445 | NA34: 2086758 | NB34: 1990995 | NC34: 2454358 | ND34: 3013764 | NE34: 2117666 | NF34: 2499033 | NG34: 2501555 | NH34: 2841533 | NI34: 2128836 | NJ34: 2207976 | NK34: 2287342 | NL34: 2393279 | NM34: 2859046 | NN34: 2417373 | NO34: 2586626 | NP34: 2112976 | NQ34: 2299849 | NR34: 2447472 | NS34: 1818455 | NT34: 2255460 | NU34: 2375756 | NV34: 2686517 | NW34: 1948559 | NX34: 2241847 | NY34: 2183740 | NZ34: 1846286 | OA34: 1800198 | OB34: 3118592 | OC34: 1882108 | OD34: 2214044 | OE34: 2939888 | OF34: 2124425 | OG34: 2827512 | OH34: 2189742 | OI34: 4304586 | OJ34: 2095991 | OK34: 2486683 | OL34: 2694076 | OM34: 2193740 | ON34: 2907030 | OO34: 2125724 | OP34: 1902025 | OQ34: 2129594 | OR34: 1884500 | OS34: 2622917 | OT34: 2659064 | OU34: 1797461 | OV34: 1947517 | OW34: 2296168 | OX34: 2375010 | OY34: 2579505 | OZ34: 3210738 | PA34: 2399508 | PB34: 2697389 | PC34: 2018885 | PD34: 2781424 | PE34: 2924656 | PF34: 1643829 | PG34: 1338480 | PH34: 1818459 | PI34: 2120470 | PJ34: 2948791 | PK34: 2310765 | PL34: 2201015 | PM34: 2053552 | PN34: 2145143 | PO34: 2354182 | PP34: 2440416 | PQ34: 1826339 | PR34: 2449724 | PS34: 2047039 | PT34: 2869044 | PU34: 2161745 | PV34: 2065766 | PW34: 2785047 | PX34: 2269530 | PY34: 3157614 | PZ34: 1964252 | QA34: 2220788 | QB34: 1680866 | QC34: 2090598 | QD34: 2139518 | QE34: 2068021 | QF34: 2051389 | QG34: 3283521 | QH34: 3290507 | QI34: 3270766 | QJ34: 3179033 | QK34: 3169626 | QL34: 3141248 | QM34: 3138816 | QN34: 3071983 | QO34: 3032500 | QP34: 3076910 | QQ34: 2858686 | QR34: 2779069 | QS34: 2741030 | QT34: 2644458 | QU34: 2611705 | QV34: 2583516 | QW34: 2500688 | QX34: 2512660 | QY34: 2430588 | QZ34: 2398819 | RA34: 2338494 | RB34: 2412804 | RC34: 2363921 | RD34: 2358487 | RE34: 2366390 | RF34: 2287152 | RG34: 2325468 | RH34: 2284658 | RI34: 1209002 | RJ34: 1222925 | RK34: 1268749 | RL34: =AVERAGE(QG34:RH34) -> 2730482.25
A35: COMPOUND_132_1024a4_3 | B35: HILIC_POS | D35: 230 | E35: 4.30 | F35: 132.1024 | G35: L-Isoleucine | H35: Amino acid | I35: 1 | J35: HMDB0000172 | K35: x | L35: L-Norleucine | M35: [M+H]+ | O35: 1 | P35: TRUE | Q35: C6H13NO2 | V35: -1 | W35: -1 | X35: 940.713 | Y35: 900.6513 | Z35: 571.4286 | AA35: 180709MR_Grainmark_Hilic_pos_233 | AB35: 132.1024:89653 133.10575:11142 134.10911:1872 | AC35: 20.62675:9 33.67803:14 43.05385:245 43.07263:21 44.04933:166 44.54497:22 57.40109:32 66.57172:11 69.07022:627 69.1134:5 69.23347:31 69.35491:6 69.70546:15 86.09586:4552 86.13517:125 86.15771:13 86.2282:38 86.24499:100 86.27081:28 86.29963:11 86.34301:15 86.63551:18 87.15363:16 87.40022:23 103.95599:88 | AD35: kept | AE35: COMPOUND_132_1024a4_3 | AF35: 0.1546495392 | AG35: 0.2267909164 | AH35: 0.9952167623 | AJ35: 0.1984016753 | AK35: 0.1222786957 | AL35: 0.4605106941 | AM35: 0.04670215344 | AN35: 0.7116951062 | AO35: 0.9613370109 | AP35: =-LOG10(AO35) -> 0.01712433729 | AQ35: 0.08788928704 | AR35: 0.4873237971 | AS35: 0.7553519157 | AT35: -0.1079473858 | AU35: -0.4516495779 | AV35: 0.2357548063 | AW35: 0.5402949066 | AX35: 0.9795659505 | AY35: 0.1251140404 | AZ35: -0.3442851619 | BA35: 0.5945132428 | BB35: 0.6027285135 | BC35: 0.9562211002 | BD35: 0.1546495392 | BE35: -0.08478390654 | BF35: 0.394082985 | BG35: 0.2099861947 | BH35: 0.9334138224 | BI35: -0.1494900698 | BJ35: -0.125982026 | BK35: -0.1105123882 | BL35: -0.4759358231 | BM35: 0.2549110466 | BN35: 0.5553821614 | BO35: 0.978739558 | BP35: 0.1251140404 | BQ35: -0.355320001 | BR35: 0.6055480819 | BS35: 0.6110456067 | BT35: 0.9670820926 | BU35: 0.1984016753 | BV35: -0.05616345165 | BW35: 0.4529668022 | BX35: 0.1314036758 | BY35: 0.4801956819 | BZ35: -0.1443468476 | CA35: -0.1854123506 | CB35: -0.03931368465 | CC35: 0.6507567006 | CD35: 0.9956070676 | CE35: -0.1062953097 | CF35: 0.2215579493 | CG35: 0.7739376651 | CH35: -0.09458262639 | CI35: 0.2751936902 | CJ35: 0.7485619252 | CK35: 0.2377469599 | CL35: 0.005492887281 | CM35: 0.1201727716 | CN35: -0.01106036172 | CO35: 0.8986881809 | CP35: 0.9996757019 | CQ35: -0.1589502113 | CR35: 0.06659105066 | CS35: 0.7040383969 | CT35: 0.03771282857 | CU35: 0.6617281054 | CV35: 0.9967977033 | CW35: -0.04857860903 | CX35: 0.5875701039 | CY35: 0.9973863525 | CZ35: 0.004661567145 | DA35: 0.9576934886 | DB35: 0.9992844709 | DC35: -0.05019242744 | DD35: 0.5602490007 | DE35: 0.9461167676 | DF35: -0.01703069459 | DG35: 0.8434151369 | DH35: 0.9995798835 | DI35: -0.01381818683 | DJ35: 0.8726735606 | DK35: 0.9875391102 | DL35: -0.03683624274 | DM35: 0.6846142804 | DN35: 0.9986115224 | DO35: -0.03803796824 | DP35: 0.6589933896 | DQ35: 0.926201799 | DR35: 0.01721566421 | DS35: 0.8417365883 | DT35: 0.9844516309 | DU35: -0.03931368465 | DV35: 0.6507567006 | DW35: 0.9956070676 | DX35: -0.1062953097 | DY35: 0.2215579493 | DZ35: 0.7739376651 | EA35: -0.09458262639 | EB35: 0.2751936902 | EC35: 0.7485619252 | ED35: 0.2377469599 | EE35: 0.005492887281 | EF35: 0.1201727716 | EG35: -0.01106036172 | EH35: 0.8986881809 | EI35: 0.9996757019 | EJ35: -0.1589502113 | EK35: 0.06659105066 | EL35: 0.7040383969 | EM35: 0.03771282857 | EN35: 0.6617281054 | EO35: 0.9967977033 | EP35: -0.04857860903 | EQ35: 0.5875701039 | ER35: 0.9973863525 | ES35: 0.004661567145 | ET35: 0.9576934886 | EU35: 0.9992844709 | EV35: -0.05019242744 | EW35: 0.5602490007 | EX35: 0.9461167676 | EY35: -0.01703069459 | EZ35: 0.8434151369 | FA35: 0.9995798835 | FB35: -0.01381818683 | FC35: 0.8726735606 | FD35: 0.9875391102 | FE35: -0.03683624274 | FF35: 0.6846142804 | FG35: 0.9986115224 | FH35: -0.03803796824 | FI35: 0.6589933896 | FJ35: 0.926201799 | FK35: 0.01721566421 | FL35: 0.8417365883 | FM35: 0.9844516309 | FN35: -0.139315035 | FO35: 0.04855912066 | FP35: 0.1679177939 | FQ35: -0.06015440845 | FR35: 0.3974712589 | FS35: 0.6922502202 | FT35: -0.4759634853 | FU35: 9.264069754e-13 | FV35: 1.096634257e-10 | FW35: 0.3585346528 | FX35: 1.730282924e-07 | FY35: 2.436540205e-06 | FZ35: 0.05377781078 | GA35: 0.4483158009 | GB35: 0.7109773789 | GC35: 0.1943634157 | GD35: 0.005818565161 | GE35: 0.08609658136 | GF35: 0.3590574099 | GG35: 1.33644734e-07 | GH35: 5.715683497e-06 | GI35: 0.0006366297866 | GJ35: 0.9929891656 | GK35: 0.9993089592 | GL35: 0.3632627082 | GM35: 1.440593895e-07 | GN35: 6.08260951e-06 | GO35: 0.2117412176 | GP35: 0.002363947563 | GQ35: 0.09667980668 | GR35: -0.04387113081 | GS35: 0.5332485114 | GT35: 0.8673553825 | GU35: 0.06477851775 | GV35: 0.3573093217 | GW35: 0.9355321842 | GX35: 0.2507629202 | GY35: 0.0005008037899 | GZ35: 0.01747278065 | HA35: -0.1608749253 | HB35: 0.02152613735 | HC35: 0.1050165032 | HD35: 0.2168120428 | HE35: 0.001840685905 | HF35: 0.01868592169 | HO35: COMPOUND_132_1024a4_3 | HP35: 230 | HQ35: 4.3 | HR35: 132.1024 | HS35: L-Norleucine | HT35: [M+H]+ | HV35: 1 | HW35: TRUE | HX35: C6H13NO2 | IC35: -1 | ID35: -1 | IE35: 940.713 | IF35: 900.6513 | IG35: 571.4286 | IH35: 180709MR_Grainmark_Hilic_pos_233 | II35: 132.1024:89653 133.10575:11142 134.10911:1872 | IJ35: 20.62675:9 33.67803:14 43.05385:245 43.07263:21 44.04933:166 44.54497:22 57.40109:32 66.57172:11 69.07022:627 69.1134:5 69.23347:31 69.35491:6 69.70546:15 86.09586:4552 86.13517:125 86.15771:13 86.2282:38 86.24499:100 86.27081:28 86.29963:11 86.34301:15 86.63551:18 87.15363:16 87.40022:23 103.95599:88 | IK35: 1691376 | IL35: 2052427 | IM35: 1467989 | IN35: 1788676 | IO35: 1706546 | IP35: 1831427 | IQ35: 2044948 | IR35: 2725730 | IS35: 2275760 | IT35: 2337831 | IU35: 1910734 | IV35: 1700884 | IW35: 1505193 | IX35: 1683181 | IY35: 1954647 | IZ35: 2066519 | JA35: 1863297 | JB35: 2115647 | JC35: 1822708 | JD35: 1392865 | JE35: 1860191 | JF35: 2590879 | JG35: 2328870 | JH35: 2197372 | JI35: 1791804 | JJ35: 1772757 | JK35: 1815644 | JL35: 1269546 | JM35: 1173954 | JN35: 1400803 | JO35: 2255632 | JP35: 1789902 | JQ35: 1751339 | JR35: 1750390 | JS35: 1798359 | JT35: 1634746 | JU35: 2082213 | JV35: 1577520 | JW35: 1440482 | JX35: 1703697 | JY35: 1712500 | JZ35: 1815186 | KA35: 1949080 | KB35: 1541754 | KC35: 2021323 | KD35: 2043962 | KE35: 2267672 | KF35: 1594880 | KG35: 1570567 | KH35: 1525244 | KI35: 1035553 | KJ35: 1356432 | KK35: 1642870 | KL35: 1587056 | KM35: 1969836 | KN35: 2215470 | KO35: 1395939 | KP35: 1120248 | KQ35: 1689524 | KR35: 1323000 | KS35: 1886197 | KT35: 1749217 | KU35: 1077828 | KV35: 1469526 | KW35: 1395248 | KX35: 1901376 | KY35: 1375528 | KZ35: 1345480 | LA35: 1791979 | LB35: 1611226 | LC35: 1739704 | LD35: 1708702 | LE35: 1464185 | LF35: 2334978 | LG35: 1995576 | LH35: 1771775 | LI35: 1371481 | LJ35: 1799828 | LK35: 1704703 | LL35: 1940136 | LM35: 1914940 | LN35: 1739801 | LO35: 2073762 | LP35: 1308619 | LQ35: 1674866 | LR35: 1842761 | LS35: 1779708 | LT35: 1925466 | LU35: 1274516 | LV35: 1655379 | LW35: 1406735 | LX35: 1674728 | LY35: 1718998 | LZ35: 1694063 | MA35: 1574233 | MB35: 1557662 | MC35: 1422070 | MD35: 1286218 | ME35: 1135192 | MF35: 2119340 | MG35: 2432704 | MH35: 1732674 | MI35: 1945048 | MJ35: 1580724 | MK35: 1432385 | ML35: 1302607 | MM35: 1318971 | MN35: 1218852 | MO35: 1530207 | MP35: 1135434 | MQ35: 1689256 | MR35: 1646888 | MS35: 1677522 | MT35: 1144970 | MU35: 1352180 | MV35: 1357574 | MW35: 987197 | MX35: 1133721 | MY35: 1343259 | MZ35: 1088227 | NA35: 1229497 | NB35: 1177172 | NC35: 1532189 | ND35: 1888435 | NE35: 1307396 | NF35: 1562114 | NG35: 1575675 | NH35: 1837033 | NI35: 1326242 | NJ35: 1394351 | NK35: 1418550 | NL35: 1562502 | NM35: 1915607 | NN35: 1524961 | NO35: 1635331 | NP35: 1235829 | NQ35: 1341573 | NR35: 1460535 | NS35: 1124793 | NT35: 1321676 | NU35: 1396214 | NV35: 1698465 | NW35: 1016939 | NX35: 1481102 | NY35: 1275800 | NZ35: 1152040 | OA35: 971003 | OB35: 2074257 | OC35: 1294064 | OD35: 1502626 | OE35: 1711618 | OF35: 1184287 | OG35: 1824043 | OH35: 1373040 | OI35: 3273412 | OJ35: 1259339 | OK35: 1452966 | OL35: 1604438 | OM35: 1433868 | ON35: 1662017 | OO35: 1322574 | OP35: 1168756 | OQ35: 1238856 | OR35: 1304767 | OS35: 1797170 | OT35: 1708078 | OU35: 1202010 | OV35: 1198064 | OW35: 1511930 | OX35: 1482787 | OY35: 1533225 | OZ35: 2177346 | PA35: 1514794 | PB35: 1867453 | PC35: 1188168 | PD35: 1546045 | PE35: 1837295 | PF35: 818104 | PG35: 720829 | PH35: 1209652 | PI35: 1237547 | PJ35: 1853659 | PK35: 1337741 | PL35: 1390180 | PM35: 1211437 | PN35: 1394540 | PO35: 1485564 | PP35: 1422950 | PQ35: 1101547 | PR35: 1681893 | PS35: 1204731 | PT35: 1803956 | PU35: 1210223 | PV35: 1207024 | PW35: 1801090 | PX35: 1432912 | PY35: 2054611 | PZ35: 1178110 | QA35: 1303369 | QB35: 966399 | QC35: 1298915 | QD35: 1298917 | QE35: 1253762 | QF35: 1177371 | QG35: 2143427 | QH35: 2190759 | QI35: 2174906 | QJ35: 2109242 | QK35: 2114199 | QL35: 2103145 | QM35: 2069865 | QN35: 2016841 | QO35: 2043680 | QP35: 2033722 | QQ35: 1856178 | QR35: 1858809 | QS35: 1864708 | QT35: 1740144 | QU35: 1733364 | QV35: 1692910 | QW35: 1588758 | QX35: 1586472 | QY35: 1550965 | QZ35: 1558908 | RA35: 1553474 | RB35: 1547787 | RC35: 1524299 | RD35: 1505817 | RE35: 1558848 | RF35: 1488925 | RG35: 1573611 | RH35: 1502220 | RI35: 730686 | RJ35: 865935 | RK35: 974392 | RL35: =AVERAGE(QG35:RH35) -> 1795927.964
A36: COMPOUND_133_0974a7_19 | B36: HILIC_POS | D36: 234 | E36: 7.19 | F36: 133.0974 | G36: Ornithine | H36: Amino acid | I36: 1 | J36: HMDB0000214 | K36: x | L36: DL-Ornithine | M36: [M+H]+ | N36: adduct linked to 104_[M+H-H2O]+ | O36: 1 | P36: TRUE | Q36: C5H12N2O2 | S36: AHLPHDHHMVZTML-UHFFFAOYNA-N | T36: NCCCC(N)C(O)=O | V36: -1 | W36: -1 | X36: 919.343 | Y36: 857.0395 | Z36: 750 | AA36: 180709MR_Grainmark_Hilic_pos_233 | AB36: 133.09726:9529 134.10061:1060 135.10397:0 | AC36: 70.06514:1148 70.0989:31 70.54322:16 116.06972:427 116.09863:31 116.11286:14 133.09297:24 | AD36: kept | AE36: COMPOUND_133_0974a7_19 | AF36: 0.3745002262 | AG36: 0.08180348639 | AH36: 0.9476149915 | AJ36: -0.05469964798 | AK36: 0.7971764905 | AL36: 0.9467006369 | AM36: -0.2471878534 | AN36: 0.2817671419 | AO36: 0.8567523218 | AP36: =-LOG10(AO36) -> 0.06714470998 | AQ36: -0.06392332952 | AR36: 0.7798339659 | AS36: 0.917231966 | AT36: -0.6216880796 | AU36: -1.227585081 | AV36: -0.01579107781 | AW36: 0.04840827189 | AX36: 0.9131269428 | AY36: 0.4569424221 | AZ36: -0.007921543844 | BA36: 0.921806388 | BB36: 0.05623193771 | BC36: 0.8121866033 | BD36: 0.3745002262 | BE36: -0.04758613295 | BF36: 0.7965865854 | BG36: 0.08669780285 | BH36: 0.8512094637 | BI36: -0.4881803677 | BJ36: -0.4494715974 | BK36: -0.009223681537 | BL36: -0.6009593366 | BM36: 0.5825119736 | BN36: 0.9757198624 | BO36: 0.9995140707 | BP36: 0.4569424221 | BQ36: -0.02018205125 | BR36: 0.9340668954 | BS36: 0.0628351746 | BT36: 0.8399668887 | BU36: -0.05469964798 | BV36: -0.4669207805 | BW36: 0.3575214845 | BX36: 0.7956138285 | BY36: 0.9480657361 | BZ36: -0.007409685441 | CA36: -0.1975033127 | CB36: -0.07636856259 | CC36: 0.3786654581 | CD36: 0.9495645022 | CE36: -0.1116576486 | CF36: 0.1989873373 | CG36: 0.7541950021 | CH36: -0.04642689641 | CI36: 0.5928544799 | CJ36: 0.8850686473 | CK36: 0.1207586929 | CL36: 0.1629696559 | CM36: 0.5696760947 | CN36: -0.06875045465 | CO36: 0.4281752138 | CP36: 0.9624867725 | CQ36: -0.07931627318 | CR36: 0.3623023978 | CS36: 0.8873347662 | CT36: 0.06083042319 | CU36: 0.4801058339 | CV36: 0.9967977033 | CW36: -0.06846642893 | CX36: 0.4443628358 | CY36: 0.9973863525 | CZ36: 0.002389939431 | DA36: 0.9783024578 | DB36: 0.9992844709 | DC36: -0.03198119966 | DD36: 0.7106409366 | DE36: 0.9683648227 | DF36: 0.005041843362 | DG36: 0.9533719354 | DH36: 0.9995798835 | DI36: 0.1153368786 | DJ36: 0.1795643336 | DK36: 0.7031350856 | DL36: -0.01363520493 | DM36: 0.8805244196 | DN36: 0.9986115224 | DO36: 0.05073950144 | DP36: 0.5559763143 | DQ36: 0.8885117017 | DR36: -0.0144730504 | DS36: 0.8666939489 | DT36: 0.9856749477 | DU36: -0.07636856259 | DV36: 0.3786654581 | DW36: 0.9495645022 | DX36: -0.1116576486 | DY36: 0.1989873373 | DZ36: 0.7541950021 | EA36: -0.04642689641 | EB36: 0.5928544799 | EC36: 0.8850686473 | ED36: 0.1207586929 | EE36: 0.1629696559 | EF36: 0.5696760947 | EG36: -0.06875045465 | EH36: 0.4281752138 | EI36: 0.9624867725 | EJ36: -0.07931627318 | EK36: 0.3623023978 | EL36: 0.8873347662 | EM36: 0.06083042319 | EN36: 0.4801058339 | EO36: 0.9967977033 | EP36: -0.06846642893 | EQ36: 0.4443628358 | ER36: 0.9973863525 | ES36: 0.002389939431 | ET36: 0.9783024578 | EU36: 0.9992844709 | EV36: -0.03198119966 | EW36: 0.7106409366 | EX36: 0.9683648227 | EY36: 0.005041843362 | EZ36: 0.9533719354 | FA36: 0.9995798835 | FB36: 0.1153368786 | FC36: 0.1795643336 | FD36: 0.7031350856 | FE36: -0.01363520493 | FF36: 0.8805244196 | FG36: 0.9986115224 | FH36: 0.05073950144 | FI36: 0.5559763143 | FJ36: 0.8885117017 | FK36: -0.0144730504 | FL36: 0.8666939489 | FM36: 0.9856749477 | FN36: -0.05777393207 | FO36: 0.4152674547 | FP36: 0.6299017581 | FQ36: -0.03150181115 | FR36: 0.6578956582 | FS36: 0.8598561353 | FT36: -0.2067763497 | FU36: 0.003227734056 | FV36: 0.01392104688 | FW36: 0.1743188342 | FX36: 0.01332505405 | FY36: 0.04409974204 | FZ36: 0.02606902444 | GA36: 0.713358267 | GB36: 0.875065128 | GC36: 0.2038476643 | GD36: 0.003788757046 | GE36: 0.06786741599 | GF36: 0.1393453244 | GG36: 0.04684179857 | GH36: 0.1393065423 | GI36: -0.07765423992 | GJ36: 0.2830822881 | GK36: 0.7168696137 | GL36: 0.1554783745 | GM36: 0.02872493164 | GN36: 0.09785075635 | GO36: 0.1539988868 | GP36: 0.02786628396 | GQ36: 0.235076357 | GR36: -0.01280357122 | GS36: 0.8557747528 | GT36: 0.9711980097 | GU36: 0.1712364104 | GV36: 0.01433206531 | GW36: 0.6105161882 | GX36: 0.0929304233 | GY36: 0.2034225895 | GZ36: 0.5701009996 | HA36: 0.03480979725 | HB36: 0.6211097888 | HC36: 0.8484299604 | HD36: 3.428546628e-05 | HE36: 0.9996116813 | HF36: 0.99982533 | HI36: 1 | HO36: COMPOUND_133_0974a7_19 | HP36: 234 | HQ36: 7.19 | HR36: 133.0974 | HS36: DL-Ornithine | HT36: [M+H]+ | HU36: adduct linked to 104_[M+H-H2O]+ | HV36: 1 | HW36: TRUE | HX36: C5H12N2O2 | HZ36: AHLPHDHHMVZTML-UHFFFAOYNA-N | IA36: NCCCC(N)C(O)=O | IC36: -1 | ID36: -1 | IE36: 919.343 | IF36: 857.0395 | IG36: 750 | IH36: 180709MR_Grainmark_Hilic_pos_233 | II36: 133.09726:9529 134.10061:1060 135.10397:0 | IJ36: 70.06514:1148 70.0989:31 70.54322:16 116.06972:427 116.09863:31 116.11286:14 133.09297:24 | IK36: 60477 | IL36: 63528 | IM36: 50183 | IN36: 109205 | IO36: 22786 | IP36: 63280 | IQ36: 73674 | IR36: 139349 | IS36: 91151 | IT36: 103765 | IU36: 137209 | IV36: 144226 | IW36: 41270 | IX36: 52541 | IY36: 34314 | IZ36: 76958 | JA36: 76729 | JB36: 95280 | JC36: 115769 | JD36: 91922 | JE36: 108388 | JF36: 156494 | JG36: 163877 | JH36: 139050 | JI36: 98312 | JJ36: 96016 | JK36: 56918 | JL36: 81259 | JM36: 76201 | JN36: 61793 | JO36: 105436 | JP36: 101381 | JQ36: 168656 | JR36: 114648 | JS36: 157573 | JT36: 130310 | JU36: 108688 | JV36: 108116 | JW36: 52478 | JX36: 90805 | JY36: 72688 | JZ36: 105685 | KA36: 85463 | KB36: 101874 | KC36: 114252 | KD36: 143513 | KE36: 165560 | KF36: 191868 | KG36: 121870 | KH36: 158398 | KI36: 75488 | KJ36: 80686 | KK36: 112664 | KL36: 97987 | KM36: 196785 | KN36: 157318 | KO36: 151310 | KP36: 164355 | KQ36: 123536 | KR36: 210687 | KS36: 230480 | KT36: 124430 | KU36: 99880 | KV36: 142128 | KW36: 203885 | KX36: 138228 | KY36: 130412 | KZ36: 83929 | LA36: 259559 | LB36: 253527 | LC36: 138556 | LD36: 140825 | LE36: 111794 | LF36: 221122 | LG36: 126067 | LH36: 133493 | LI36: 127479 | LJ36: 147871 | LK36: 167404 | LL36: 198575 | LM36: 162522 | LN36: 158355 | LO36: 164669 | LP36: 83384 | LQ36: 141023 | LR36: 108332 | LS36: 115407 | LT36: 91492 | LU36: 135198 | LV36: 101024 | LW36: 152000 | LX36: 153552 | LY36: 140200 | LZ36: 96932 | MA36: 149188 | MB36: 98855 | MC36: 75340 | MD36: 110111 | ME36: 69260 | MF36: 141503 | MG36: 141560 | MH36: 95870 | MI36: 142413 | MJ36: 130856 | MK36: 84991 | ML36: 96285 | MM36: 86175 | MN36: 86862 | MO36: 105385 | MP36: 87359 | MQ36: 68706 | MR36: 92162 | MS36: 84280 | MT36: 54705 | MU36: 96737 | MV36: 197744 | MW36: 83532 | MX36: 59990 | MY36: 74291 | MZ36: 62399 | NA36: 81312 | NB36: 78533 | NC36: 93583 | ND36: 79692 | NE36: 60067 | NF36: 114160 | NG36: 100199 | NH36: 110391 | NI36: 103808 | NJ36: 69785 | NK36: 89892 | NL36: 71530 | NM36: 96584 | NN36: 90956 | NO36: 120788 | NP36: 114871 | NQ36: 166564 | NR36: 165308 | NS36: 156121 | NT36: 121244 | NU36: 104566 | NV36: 113534 | NW36: 100388 | NX36: 125054 | NY36: 221438 | NZ36: 144642 | OA36: 152514 | OB36: 235499 | OC36: 154995 | OD36: 203763 | OE36: 116881 | OF36: 103003 | OG36: 123458 | OH36: 108242 | OI36: 1405902 | OJ36: 188087 | OK36: 150788 | OL36: 228838 | OM36: 236235 | ON36: 231853 | OO36: 249976 | OP36: 153189 | OQ36: 145876 | OR36: 141848 | OS36: 112486 | OT36: 114757 | OU36: 123834 | OV36: 153058 | OW36: 157990 | OX36: 196298 | OY36: 151854 | OZ36: 337796 | PA36: 195286 | PB36: 243341 | PC36: 148264 | PD36: 115639 | PE36: 111610 | PF36: 63232 | PG36: 55532 | PH36: 100180 | PI36: 127150 | PJ36: 195214 | PK36: 209833 | PL36: 229769 | PM36: 223832 | PN36: 211485 | PO36: 176103 | PP36: 152870 | PQ36: 72935 | PR36: 144875 | PS36: 114419 | PT36: 171422 | PU36: 146059 | PV36: 201340 | PW36: 178427 | PX36: 268077 | PY36: 253202 | PZ36: 255852 | QA36: 191455 | QB36: 192401 | QC36: 298283 | QD36: 154787 | QE36: 180771 | QF36: 156090 | QG36: 41535 | QH36: 44382 | QI36: 46286 | QJ36: 44618 | QK36: 46966 | QL36: 44583 | QM36: 48401 | QN36: 48243 | QO36: 51648 | QP36: 53045 | QQ36: 69586 | QR36: 90051 | QS36: 105693 | QT36: 120607 | QU36: 121068 | QV36: 116069 | QW36: 126317 | QX36: 120427 | QY36: 123410 | QZ36: 109154 | RA36: 113725 | RB36: 114729 | RC36: 108253 | RD36: 106692 | RE36: 123030 | RF36: 131035 | RG36: 138983 | RH36: 130114 | RI36: 76465 | RJ36: 82235 | RK36: 65016 | RL36: =AVERAGE(QG36:RH36) -> 90666.07143
A37: COMPOUND_137_0711a2_25 | B37: HILIC_POS | D37: 247 | E37: 2.25 | F37: 137.0711 | G37: 1-Methylnicotinamide | H37: Vitamin metabolite | I37: 1 | J37: HMDB0000699 | K37: x | L37: 1-Methylnicotinamide | M37: [M+H]+ | O37: 1 | P37: TRUE | Q37: C7H9N2O | S37: LDHMAVIPBRSVRG-UHFFFAOYSA-O | V37: -1 | W37: -1 | X37: 909.183 | Y37: 885.0806 | Z37: 750 | AA37: 180709MR_Grainmark_Hilic_pos_233 | AB37: 137.07111:9452 138.07446:2037 139.07782:163 | AC37: 45.10369:34 92.04826:93 92.07896:5 94.06361:226 137.07156:995 137.11786:27 137.13681:10 | AD37: kept | AE37: COMPOUND_137_0711a2_25 | AF37: -0.004170586404 | AG37: 0.9799635718 | AH37: 0.9970396117 | AJ37: 0.2725144054 | AK37: 0.1041546922 | AL37: 0.4267252499 | AM37: -0.2971919597 | AN37: 0.0990715734 | AO37: 0.6835728882 | AP37: =-LOG10(AO37) -> 0.1652151706 | AQ37: -0.4143752358 | AR37: 0.02276790642 | AS37: 0.1422168862 | AT37: -0.2930213733 | AU37: -0.7774041707 | AV37: 0.191361424 | AW37: 0.2400094237 | AX37: 0.9492347666 | AY37: 0.6005672266 | AZ37: 0.1533367787 | BA37: 1.047797674 | BB37: 0.009678802406 | BC37: 0.8121866033 | BD37: -0.004170586404 | BE37: -0.341606439 | BF37: 0.3332652662 | BG37: 0.9807466661 | BH37: 0.9960731806 | BI37: -0.2875562004 | BJ37: -0.2796279327 | BK37: -0.6868896412 | BL37: -1.167522968 | BM37: -0.2062563142 | BN37: 0.006676242755 | BO37: 0.7669961387 | BP37: 0.6005672266 | BQ37: 0.1092096465 | BR37: 1.091924807 | BS37: 0.01838549534 | BT37: 0.829292552 | BU37: 0.2725144054 | BV37: -0.06230945159 | BW37: 0.6073382625 | BX37: 0.1154403843 | BY37: 0.4472555858 | BZ37: -0.679979382 | CA37: -0.6322174224 | CB37: 0.1642801069 | CC37: 0.05691414713 | CD37: 0.6849708726 | CE37: 0.1681893324 | CF37: 0.05207013105 | CG37: 0.4910005036 | CH37: 0.07485805834 | CI37: 0.3881948535 | CJ37: 0.8103758715 | CK37: -0.03665873293 | CL37: 0.6729394967 | CM37: 0.923251357 | CN37: 0.156502872 | CO37: 0.06988170469 | CP37: 0.7321884636 | CQ37: -0.1748568224 | CR37: 0.04330599385 | CS37: 0.6315852359 | CT37: -0.09549856787 | CU37: 0.266964762 | CV37: 0.9967977033 | CW37: -0.2679533141 | CX37: 0.002321224657 | CY37: 0.07634485019 | CZ37: -0.09826454328 | DA37: 0.2623087065 | DB37: 0.9992844709 | DC37: 0.07808779492 | DD37: 0.3644038549 | DE37: 0.9094195973 | DF37: 0.1074590948 | DG37: 0.2113453771 | DH37: 0.9995798835 | DI37: -0.004619809891 | DJ37: 0.9572711324 | DK37: 0.9917944577 | DL37: -0.1360523022 | DM37: 0.1318912435 | DN37: 0.9986115224 | DO37: -0.04751623506 | DP37: 0.5813739256 | DQ37: 0.9008944797 | DR37: 0.227568476 | DS37: 0.0074863177 | DT37: 0.2838427893 | DU37: 0.1642801069 | DV37: 0.05691414713 | DW37: 0.6849708726 | DX37: 0.1681893324 | DY37: 0.05207013105 | DZ37: 0.4910005036 | EA37: 0.07485805834 | EB37: 0.3881948535 | EC37: 0.8103758715 | ED37: -0.03665873293 | EE37: 0.6729394967 | EF37: 0.923251357 | EG37: 0.156502872 | EH37: 0.06988170469 | EI37: 0.7321884636 | EJ37: -0.1748568224 | EK37: 0.04330599385 | EL37: 0.6315852359 | EM37: -0.09549856787 | EN37: 0.266964762 | EO37: 0.9967977033 | EP37: -0.2679533141 | EQ37: 0.002321224657 | ER37: 0.07634485019 | ES37: -0.09826454328 | ET37: 0.2623087065 | EU37: 0.9992844709 | EV37: 0.07808779492 | EW37: 0.3644038549 | EX37: 0.9094195973 | EY37: 0.1074590948 | EZ37: 0.2113453771 | FA37: 0.9995798835 | FB37: -0.004619809891 | FC37: 0.9572711324 | FD37: 0.9917944577 | FE37: -0.1360523022 | FF37: 0.1318912435 | FG37: 0.9986115224 | FH37: -0.04751623506 | FI37: 0.5813739256 | FJ37: 0.9008944797 | FK37: 0.227568476 | FL37: 0.0074863177 | FM37: 0.2838427893 | FN37: 0.1549993467 | FO37: 0.02801437072 | FP37: 0.1162784586 | FQ37: 0.1645905932 | FR37: 0.01986019024 | FS37: 0.1567300013 | FT37: 0.04622124883 | FU37: 0.5146846074 | FV37: 0.6670622084 | FW37: -0.03173373208 | FX37: 0.6547234286 | FY37: 0.7928102856 | FZ37: 0.1339943811 | GA37: 0.05790570784 | GB37: 0.2086399024 | GC37: 0.1072654798 | GD37: 0.1305797173 | GE37: 0.4168467339 | GF37: -0.01258369389 | GG37: 0.8582252841 | GH37: 0.9323460191 | GI37: -0.2483604 | GJ37: 0.0004964814849 | GK37: 0.0508302897 | GL37: 0.006862436698 | GM37: 0.9235580763 | GN37: 0.9623394817 | GO37: -0.1772747321 | GP37: 0.01119495441 | GQ37: 0.1592900857 | GR37: -0.02987037779 | GS37: 0.6714874827 | GT37: 0.9206069519 | GU37: -0.005587012633 | GV37: 0.9367870275 | GW37: 0.9963979907 | GX37: -0.1576877006 | GY37: 0.03023163849 | GZ37: 0.2168891034 | HA37: -0.1717364322 | HB37: 0.01404580523 | HC37: 0.07844114818 | HD37: -0.06242261182 | HE37: 0.3751004088 | HF37: 0.6720171213 | HJ37: 1 | HN37: 1 | HO37: COMPOUND_137_0711a2_25 | HP37: 247 | HQ37: 2.25 | HR37: 137.0711 | HS37: 1-Methylnicotinamide | HT37: [M+H]+ | HV37: 1 | HW37: TRUE | HX37: C7H9N2O | HZ37: LDHMAVIPBRSVRG-UHFFFAOYSA-O | IC37: -1 | ID37: -1 | IE37: 909.183 | IF37: 885.0806 | IG37: 750 | IH37: 180709MR_Grainmark_Hilic_pos_233 | II37: 137.07111:9452 138.07446:2037 139.07782:163 | IJ37: 45.10369:34 92.04826:93 92.07896:5 94.06361:226 137.07156:995 137.11786:27 137.13681:10 | IK37: 246064 | IL37: 111077 | IM37: 147513 | IN37: 357134 | IO37: 78569 | IP37: 449486 | IQ37: 208574 | IR37: 126595 | IS37: 103229 | IT37: 220926 | IU37: 168464 | IV37: 165447 | IW37: 227704 | IX37: 284542 | IY37: 68098 | IZ37: 149390 | JA37: 155266 | JB37: 474087 | JC37: 146748 | JD37: 253639 | JE37: 170099 | JF37: 200231 | JG37: 127404 | JH37: 167203 | JI37: 184487 | JJ37: 255347 | JK37: 246154 | JL37: 142154 | JM37: 113030 | JN37: 186702 | JO37: 361832 | JP37: 170977 | JQ37: 238541 | JR37: 276478 | JS37: 256131 | JT37: 245701 | JU37: 194895 | JV37: 174562 | JW37: 362645 | JX37: 159335 | JY37: 85027 | JZ37: 109163 | KA37: 127790 | KB37: 153965 | KC37: 137692 | KD37: 247721 | KE37: 103118 | KF37: 188222 | KG37: 140033 | KH37: 128292 | KI37: 129958 | KJ37: 105668 | KK37: 163405 | KL37: 147022 | KM37: 48495 | KN37: 179890 | KO37: 257725 | KP37: 189385 | KQ37: 319822 | KR37: 170029 | KS37: 151166 | KT37: 202242 | KU37: 114270 | KV37: 194864 | KW37: 109830 | KX37: 125910 | KY37: 187375 | KZ37: 192896 | LA37: 148085 | LB37: 166950 | LC37: 241631 | LD37: 150077 | LE37: 183787 | LF37: 298331 | LG37: 253831 | LH37: 137427 | LI37: 116364 | LJ37: 62218 | LK37: 138787 | LL37: 152257 | LM37: 211044 | LN37: 134423 | LO37: 168506 | LP37: 193194 | LQ37: 173480 | LR37: 208749 | LS37: 134380 | LT37: 152158 | LU37: 103293 | LV37: 197077 | LW37: 282356 | LX37: 123331 | LY37: 70351 | LZ37: 121043 | MA37: 142555 | MB37: 138939 | MC37: 150229 | MD37: 182926 | ME37: 77318 | MF37: 162640 | MG37: 198530 | MH37: 145233 | MI37: 92571 | MJ37: 67689 | MK37: 122959 | ML37: 92541 | MM37: 230105 | MN37: 122581 | MO37: 114296 | MP37: 216109 | MQ37: 162246 | MR37: 119133 | MS37: 230971 | MT37: 178683 | MU37: 102950 | MV37: 122159 | MW37: 189638 | MX37: 176913 | MY37: 78708 | MZ37: 188561 | NA37: 291767 | NB37: 171343 | NC37: 168733 | ND37: 160928 | NE37: 237903 | NF37: 180976 | NG37: 219312 | NH37: 158642 | NI37: 115509 | NJ37: 82564 | NK37: 140191 | NL37: 218398 | NM37: 202180 | NN37: 156262 | NO37: 172655 | NP37: 125973 | NQ37: 115220 | NR37: 141872 | NS37: 176249 | NT37: 115028 | NU37: 109735 | NV37: 193775 | NW37: 155386 | NX37: 92754 | NY37: 170413 | NZ37: 135823 | OA37: 137829 | OB37: 132517 | OC37: 196350 | OD37: 91056 | OE37: 183787 | OF37: 207305 | OG37: 122687 | OH37: 155495 | OI37: 239336 | OJ37: 70241 | OK37: 185539 | OL37: 121044 | OM37: 220995 | ON37: 163664 | OO37: 203269 | OP37: 110258 | OQ37: 205293 | OR37: 64492 | OS37: 109098 | OT37: 160444 | OU37: 138460 | OV37: 155214 | OW37: 87813 | OX37: 134926 | OY37: 169290 | OZ37: 296924 | PA37: 167963 | PB37: 95715 | PC37: 138726 | PD37: 98079 | PE37: 74346 | PF37: 180320 | PG37: 134614 | PH37: 118033 | PI37: 218220 | PJ37: 122682 | PK37: 258458 | PL37: 167957 | PM37: 206967 | PN37: 210291 | PO37: 176789 | PP37: 160111 | PQ37: 190502 | PR37: 110676 | PS37: 208128 | PT37: 229561 | PU37: 116712 | PV37: 182777 | PW37: 108501 | PX37: 121442 | PY37: 212891 | PZ37: 241362 | QA37: 281729 | QB37: 152965 | QC37: 74160 | QD37: 213573 | QE37: 252886 | QF37: 104361 | QG37: 217425 | QH37: 211175 | QI37: 209485 | QJ37: 202853 | QK37: 199752 | QL37: 200543 | QM37: 202601 | QN37: 199765 | QO37: 191846 | QP37: 191481 | QQ37: 189592 | QR37: 186051 | QS37: 181746 | QT37: 172464 | QU37: 173759 | QV37: 171212 | QW37: 173504 | QX37: 160285 | QY37: 160919 | QZ37: 161614 | RA37: 161454 | RB37: 154854 | RC37: 154496 | RD37: 156819 | RE37: 157530 | RF37: 151695 | RG37: 148522 | RH37: 154267 | RI37: 79919 | RJ37: 86070 | RK37: 83492 | RL37: =AVERAGE(QG37:RH37) -> 178489.6071
A38: COMPOUND_138_0552a4_3 | B38: HILIC_POS | D38: 250 | E38: 4.30 | F38: 138.0552 | G38: Trigonelline | H38: Betaine | I38: 1 | J38: HMDB0000875 | K38: x | L38: Trigonelline | M38: [M+H]+ | N38: similar chromatogram in higher mz_638 | O38: 1 | P38: TRUE | Q38: C7H7NO2 | S38: WWNNZCOKKKDOPX-UHFFFAOYSA-N | V38: -1 | W38: -1 | X38: 838.6911 | Y38: 914.7864 | Z38: 1000 | AA38: 180709MR_Grainmark_Hilic_pos_234 | AB38: 138.05544:21212 139.05879:3371 140.06215:239 | AC38: 65.03957:56 67.28304:9 78.03405:74 92.04647:123 94.06325:135 138.05313:242 138.07675:25 138.10825:13 | AD38: kept | AE38: COMPOUND_138_0552a4_3 | AF38: 0.2252275646 | AG38: 0.09499088113 | AH38: 0.9572164152 | AJ38: 0.2023525141 | AK38: 0.1328345307 | AL38: 0.4783053253 | AM38: -0.1376999651 | AN38: 0.2142745233 | AO38: 0.8165567896 | AP38: =-LOG10(AO38) -> 0.0880136057 | AQ38: 0.2652235201 | AR38: 0.01855552176 | AS38: 0.1279806298 | AT38: -0.3629275297 | AU38: -0.6974355812 | AV38: -0.0284194782 | AW38: 0.03720684991 | AX38: 0.9131269428 | AY38: 0.06790368998 | AZ38: -0.4107091022 | BA38: 0.5465164822 | BB38: 0.7816403381 | BC38: 0.9819613259 | BD38: 0.2252275646 | BE38: -0.007800961973 | BF38: 0.4582560911 | BG38: 0.06256119777 | BH38: 0.8061527516 | BI38: -0.5354045466 | BJ38: -0.715301163 | BK38: 0.06287100603 | BL38: -0.2792743634 | BM38: 0.4050163755 | BN38: 0.7198822246 | BO38: 0.987091979 | BP38: 0.06790368998 | BQ38: -0.3961550454 | BR38: 0.5319624253 | BS38: 0.7749585942 | BT38: 0.9849676532 | BU38: 0.2023525141 | BV38: -0.03599640149 | BW38: 0.4407014296 | BX38: 0.1008613453 | BY38: 0.4197595312 | BZ38: 0.08784395882 | CA38: 0.1264060899 | CB38: -0.2135673492 | CC38: 0.01287825385 | CD38: 0.4592857682 | CE38: -0.2260723051 | CF38: 0.008625420454 | CG38: 0.2530949751 | CH38: -0.1266923541 | CI38: 0.1431254303 | CJ38: 0.6395253836 | CK38: 0.08622165616 | CL38: 0.3200561296 | CM38: 0.7414135749 | CN38: -0.1933446673 | CO38: 0.02465173341 | CP38: 0.5714823421 | CQ38: 0.02982500372 | CR38: 0.7322824218 | CS38: 0.9673472543 | CT38: 0.05216881392 | CU38: 0.5448880631 | CV38: 0.9967977033 | CW38: -0.03908071895 | CX38: 0.66267024 | CY38: 0.9973863525 | CZ38: 0.02898126769 | DA38: 0.7414968472 | DB38: 0.9992844709 | DC38: 0.03328981942 | DD38: 0.6993602325 | DE38: 0.966275447 | DF38: 0.082140577 | DG38: 0.3399645601 | DH38: 0.9995798835 | DI38: 0.02414878726 | DJ38: 0.7793967124 | DK38: 0.9774282151 | DL38: 0.1375361092 | DM38: 0.1276899265 | DN38: 0.9986115224 | DO38: 0.05605847092 | DP38: 0.5152740776 | DQ38: 0.8694832533 | DR38: -0.1452284471 | DS38: 0.09040416152 | DT38: 0.7047494523 | DU38: -0.2135673492 | DV38: 0.01287825385 | DW38: 0.4592857682 | DX38: -0.2260723051 | DY38: 0.008625420454 | DZ38: 0.2530949751 | EA38: -0.1266923541 | EB38: 0.1431254303 | EC38: 0.6395253836 | ED38: 0.08622165616 | EE38: 0.3200561296 | EF38: 0.7414135749 | EG38: -0.1933446673 | EH38: 0.02465173341 | EI38: 0.5714823421 | EJ38: 0.02982500372 | EK38: 0.7322824218 | EL38: 0.9673472543 | EM38: 0.05216881392 | EN38: 0.5448880631 | EO38: 0.9967977033 | EP38: -0.03908071895 | EQ38: 0.66267024 | ER38: 0.9973863525 | ES38: 0.02898126769 | ET38: 0.7414968472 | EU38: 0.9992844709 | EV38: 0.03328981942 | EW38: 0.6993602325 | EX38: 0.966275447 | EY38: 0.082140577 | EZ38: 0.3399645601 | FA38: 0.9995798835 | FB38: 0.02414878726 | FC38: 0.7793967124 | FD38: 0.9774282151 | FE38: 0.1375361092 | FF38: 0.1276899265 | FG38: 0.9986115224 | FH38: 0.05605847092 | FI38: 0.5152740776 | FJ38: 0.8694832533 | FK38: -0.1452284471 | FL38: 0.09040416152 | FM38: 0.7047494523 | FN38: 0.09824543653 | FO38: 0.1652767041 | FP38: 0.3612328623 | FQ38: 0.09251694241 | FR38: 0.1925807536 | FS38: 0.4758031296 | FT38: 0.1386024972 | FU38: 0.04973275103 | FV38: 0.1215180267 | FW38: -0.1218408091 | FX38: 0.08488064932 | FY38: 0.1906722549 | FZ38: 0.04109726514 | GA38: 0.5624102308 | GB38: 0.7907652148 | GC38: -0.1990039388 | GD38: 0.004727889181 | GE38: 0.0783499684 | GF38: -0.3165620431 | GG38: 3.972568584e-06 | GH38: 8.178309671e-05 | GI38: -0.03930516609 | GJ38: 0.5873312381 | GK38: 0.8897731898 | GL38: -0.3234875745 | GM38: 3.341056585e-06 | GN38: 7.131727257e-05 | GO38: -0.1843200889 | GP38: 0.008312862411 | GQ38: 0.1436433248 | GR38: -0.07862089521 | GS38: 0.2636686872 | GT38: 0.6788011532 | GU38: 0.005695538211 | GV38: 0.9355617676 | GW38: 0.9963979907 | GX38: 0.002312251718 | GY38: 0.9748090943 | GZ38: 0.9943591954 | HA38: -0.09216231383 | HB38: 0.189842723 | HC38: 0.4513899134 | HD38: -0.05922715481 | HE38: 0.4000825113 | HF38: 0.6958081727 | HI38: 1 | HO38: COMPOUND_138_0552a4_3 | HP38: 250 | HQ38: 4.3 | HR38: 138.0552 | HS38: Trigonelline | HT38: [M+H]+ | HU38: similar chromatogram in higher mz_638 | HV38: 1 | HW38: TRUE | HX38: C7H7NO2 | HZ38: WWNNZCOKKKDOPX-UHFFFAOYSA-N | IC38: -1 | ID38: -1 | IE38: 838.6911 | IF38: 914.7864 | IG38: 1000 | IH38: 180709MR_Grainmark_Hilic_pos_234 | II38: 138.05544:21212 139.05879:3371 140.06215:239 | IJ38: 65.03957:56 67.28304:9 78.03405:74 92.04647:123 94.06325:135 138.05313:242 138.07675:25 138.10825:13 | IK38: 83921 | IL38: 106686 | IM38: 467729 | IN38: 116835 | IO38: 636996 | IP38: 238262 | IQ38: 1617904 | IR38: 314654 | IS38: 397476 | IT38: 527412 | IU38: 263685 | IV38: 539054 | IW38: 125538 | IX38: 222189 | IY38: 668645 | IZ38: 40859 | JA38: 121426 | JB38: 142341 | JC38: 161100 | JD38: 101707 | JE38: 185402 | JF38: 102543 | JG38: 82494 | JH38: 268850 | JI38: 857583 | JJ38: 232138 | JK38: 390456 | JL38: 291473 | JM38: 533532 | JN38: 199546 | JO38: 133182 | JP38: 321640 | JQ38: 467923 | JR38: 192046 | JS38: 477170 | JT38: 390511 | JU38: 141596 | JV38: 404393 | JW38: 243112 | JX38: 536709 | JY38: 278737 | JZ38: 62738 | KA38: 337318 | KB38: 1125602 | KC38: 215217 | KD38: 565790 | KE38: 214407 | KF38: 105296 | KG38: 294340 | KH38: 332226 | KI38: 154146 | KJ38: 752476 | KK38: 34528 | KL38: 116630 | KM38: 153400 | KN38: 271445 | KO38: 258374 | KP38: 109606 | KQ38: 941264 | KR38: 1392447 | KS38: 324569 | KT38: 253701 | KU38: 130814 | KV38: 66891 | KW38: 153777 | KX38: 545418 | KY38: 396461 | KZ38: 201591 | LA38: 197298 | LB38: 570654 | LC38: 522798 | LD38: 312116 | LE38: 191383 | LF38: 104711 | LG38: 187792 | LH38: 270419 | LI38: 266544 | LJ38: 381432 | LK38: 358821 | LL38: 146718 | LM38: 593261 | LN38: 422020 | LO38: 416923 | LP38: 251681 | LQ38: 151860 | LR38: 54695 | LS38: 50906 | LT38: 89523 | LU38: 319750 | LV38: 124221 | LW38: 174313 | LX38: 667681 | LY38: 228141 | LZ38: 36418 | MA38: 370243 | MB38: 173263 | MC38: 157603 | MD38: 155037 | ME38: 279284 | MF38: 84596 | MG38: 120701 | MH38: 347409 | MI38: 171225 | MJ38: 464926 | MK38: 161383 | ML38: 954852 | MM38: 377135 | MN38: 266215 | MO38: 244283 | MP38: 542479 | MQ38: 135392 | MR38: 233320 | MS38: 261892 | MT38: 259039 | MU38: 145449 | MV38: 167909 | MW38: 185953 | MX38: 259127 | MY38: 157636 | MZ38: 305418 | NA38: 205697 | NB38: 179805 | NC38: 106058 | ND38: 88427 | NE38: 224256 | NF38: 264062 | NG38: 297794 | NH38: 198919 | NI38: 268454 | NJ38: 127115 | NK38: 82503 | NL38: 312953 | NM38: 274222 | NN38: 139393 | NO38: 371401 | NP38: 113893 | NQ38: 233198 | NR38: 414738 | NS38: 258175 | NT38: 102934 | NU38: 362998 | NV38: 127218 | NW38: 205948 | NX38: 404056 | NY38: 145315 | NZ38: 839753 | OA38: 844732 | OB38: 86569 | OC38: 129785 | OD38: 67721 | OE38: 167564 | OF38: 453929 | OG38: 151054 | OH38: 254946 | OI38: 242380 | OJ38: 973552 | OK38: 218402 | OL38: 218267 | OM38: 100821 | ON38: 37874 | OO38: 226019 | OP38: 194463 | OQ38: 298598 | OR38: 118924 | OS38: 451212 | OT38: 168432 | OU38: 56299 | OV38: 50370 | OW38: 253026 | OX38: 140857 | OY38: 136342 | OZ38: 163780 | PA38: 256544 | PB38: 384920 | PC38: 142624 | PD38: 172955 | PE38: 333182 | PF38: 1100296 | PG38: 850238 | PH38: 255504 | PI38: 325398 | PJ38: 70112 | PK38: 347764 | PL38: 167168 | PM38: 372983 | PN38: 356474 | PO38: 88138 | PP38: 166234 | PQ38: 287418 | PR38: 209678 | PS38: 200867 | PT38: 120732 | PU38: 692768 | PV38: 266949 | PW38: 100154 | PX38: 97247 | PY38: 45020 | PZ38: 281292 | QA38: 355726 | QB38: 372414 | QC38: 151435 | QD38: 123450 | QE38: 116331 | QF38: 172896 | QG38: 374376 | QH38: 363471 | QI38: 373158 | QJ38: 354275 | QK38: 351736 | QL38: 346011 | QM38: 341993 | QN38: 338344 | QO38: 346883 | QP38: 330936 | QQ38: 329528 | QR38: 315914 | QS38: 315242 | QT38: 316608 | QU38: 303427 | QV38: 293157 | QW38: 287113 | QX38: 291044 | QY38: 275950 | QZ38: 273677 | RA38: 258175 | RB38: 272069 | RC38: 271480 | RD38: 272024 | RE38: 265434 | RF38: 264675 | RG38: 268075 | RH38: 258650 | RI38: 140058 | RJ38: 163519 | RK38: 162989 | RL38: =AVERAGE(QG38:RH38) -> 309050.8929
A39: COMPOUND_144_102a4_19 | B39: HILIC_POS | D39: 272 | E39: 4.19 | F39: 144.1020 | G39: Aminocyclohexanecarboxylic acid | H39: Amino acid | I39: 2 | K39: x | L39: 1-Aminocyclohexanecarboxylic acid | M39: [M+H]+ | O39: 1 | P39: TRUE | Q39: C7H13NO2 | S39: WOXWUZCRWJWTRT-UHFFFAOYSA-N | T39: NC1(CCCCC1)C(O)=O | V39: -1 | W39: -1 | X39: 528.2757 | Y39: 827.8273 | Z39: 1000 | AA39: 180709MR_Grainmark_Hilic_pos_234 | AB39: 144.10234:7339 145.10569:881 146.10905:341 | AC39: 58.0631:45 66.95515:9 70.06322:166 96.51088:13 98.09446:423 98.12482:8 98.16263:37 98.33594:12 98.44766:33 127.34579:25 138.96259:10 144.08209:30 | AD39: kept | AE39: COMPOUND_144_102a4_19 | AF39: 0.151167768 | AG39: 0.03791428214 | AH39: 0.8462057951 | AJ39: 0.06901589763 | AK39: 0.337191647 | AL39: 0.7159652235 | AM39: 0.06624269289 | AN39: 0.2090933834 | AO39: 0.8116061178 | AP39: =-LOG10(AO39) -> 0.09065468796 | AQ39: 0.1457486162 | AR39: 0.006903732222 | AS39: 0.07401198206 | AT39: -0.08492507507 | AU39: -0.2527689995 | AV39: 0.08291884932 | AW39: 0.3249679395 | AX39: 0.9545196665 | AY39: 0.2363190766 | AZ39: -0.2501401566 | BA39: 0.7227783099 | BB39: 0.3443005109 | BC39: 0.9064617023 | BD39: 0.151167768 | BE39: 0.03424256327 | BF39: 0.2680929727 | BG39: 0.01365969438 | BH39: 0.5073505558 | BI39: -0.2548386225 | BJ39: -0.03963225499 | BK39: 0.07673271857 | BL39: -0.114924765 | BM39: 0.2683902021 | BN39: 0.435437862 | BO39: 0.9759596019 | BP39: 0.2363190766 | BQ39: -0.2459344521 | BR39: 0.7185726054 | BS39: 0.3400729543 | BT39: 0.9234409679 | BU39: 0.06901589763 | BV39: -0.06449855978 | BW39: 0.202530355 | BX39: 0.314693728 | BY39: 0.7018490424 | BZ39: 0.1928240909 | CA39: 0.1654142384 | CB39: -0.1959576392 | CC39: 0.02273967967 | CD39: 0.5481503146 | CE39: -0.2401740372 | CF39: 0.005186702244 | CG39: 0.222312698 | CH39: -3.05E-06 | CI39: 0.9999719572 | CJ39: 0.9999719572 | CK39: 0.048138732 | CL39: 0.5792763771 | CM39: 0.8899242419 | CN39: -0.2174175961 | CO39: 0.01130746538 | CP39: 0.4741441824 | CQ39: -0.03602561546 | CR39: 0.6794206214 | CS39: 0.9660143978 | CT39: -0.006292397297 | CU39: 0.9418248113 | CV39: 0.9976975119 | CW39: 0.03247705964 | CX39: 0.7169972786 | CY39: 0.9973863525 | CZ39: -0.0357596197 | DA39: 0.6839570592 | DB39: 0.9992844709 | DC39: 0.1525861036 | DD39: 0.0750679476 | DE39: 0.7263790877 | DF39: -0.1363007984 | DG39: 0.1122494106 | DH39: 0.9995798835 | DI39: 0.03658315441 | DJ39: 0.6712642191 | DK39: 0.9637022962 | DL39: -0.05784355652 | DM39: 0.5233892181 | DN39: 0.9986115224 | DO39: 0.03388642872 | DP39: 0.6942387981 | DQ39: 0.9316740814 | DR39: -0.0909372596 | DS39: 0.2905881818 | DT39: 0.8935314457 | DU39: -0.1959576392 | DV39: 0.02273967967 | DW39: 0.5481503146 | DX39: -0.2401740372 | DY39: 0.005186702244 | DZ39: 0.222312698 | EA39: -3.05E-06 | EB39: 0.9999719572 | EC39: 0.9999719572 | ED39: 0.048138732 | EE39: 0.5792763771 | EF39: 0.8899242419 | EG39: -0.2174175961 | EH39: 0.01130746538 | EI39: 0.4741441824 | EJ39: -0.03602561546 | EK39: 0.6794206214 | EL39: 0.9660143978 | EM39: -0.006292397297 | EN39: 0.9418248113 | EO39: 0.9976975119 | EP39: 0.03247705964 | EQ39: 0.7169972786 | ER39: 0.9973863525 | ES39: -0.0357596197 | ET39: 0.6839570592 | EU39: 0.9992844709 | EV39: 0.1525861036 | EW39: 0.0750679476 | EX39: 0.7263790877 | EY39: -0.1363007984 | EZ39: 0.1122494106 | FA39: 0.9995798835 | FB39: 0.03658315441 | FC39: 0.6712642191 | FD39: 0.9637022962 | FE39: -0.05784355652 | FF39: 0.5233892181 | FG39: 0.9986115224 | FH39: 0.03388642872 | FI39: 0.6942387981 | FJ39: 0.9316740814 | FK39: -0.0909372596 | FL39: 0.2905881818 | FM39: 0.8935314457 | FN39: -0.02186247801 | FO39: 0.7580383258 | FP39: 0.8817399652 | FQ39: 0.03282427255 | FR39: 0.6444972871 | FS39: 0.8530817524 | FT39: -0.04845406719 | FU39: 0.4945613834 | FV39: 0.6516492567 | FW39: -0.1077602115 | FX39: 0.1278403664 | FY39: 0.2579768002 | FZ39: -0.002082890156 | GA39: 0.9765887009 | GB39: 0.9934380064 | GC39: 0.0009104490374 | GD39: 0.989791353 | GE39: 0.9952562041 | GF39: -0.08865739146 | GG39: 0.2073144734 | GH39: 0.396963502 | GI39: -0.1703251705 | GJ39: 0.01787522991 | GK39: 0.2365167647 | GL39: -0.08484122307 | GM39: 0.2346730833 | GN39: 0.4338114527 | GO39: 0.0932074303 | GP39: 0.1848475095 | GQ39: 0.5342648504 | GR39: -0.1761345011 | GS39: 0.01173622072 | GT39: 0.1099586642 | GU39: 0.04075207126 | GV39: 0.5627782082 | GW39: 0.9658079603 | GX39: -0.02783391066 | GY39: 0.703805735 | GZ39: 0.898872024 | HA39: -0.05942026224 | HB39: 0.3985451843 | HC39: 0.6876315444 | HD39: -0.07636492013 | HE39: 0.2776590695 | HF39: 0.5672117017 | HG39: 1 | HO39: COMPOUND_144_102a4_19 | HP39: 272 | HQ39: 4.19 | HR39: 144.102 | HS39: 1-Aminocyclohexanecarboxylic acid | HT39: [M+H]+ | HV39: 1 | HW39: TRUE | HX39: C7H13NO2 | HZ39: WOXWUZCRWJWTRT-UHFFFAOYSA-N | IA39: NC1(CCCCC1)C(O)=O | IC39: -1 | ID39: -1 | IE39: 528.2757 | IF39: 827.8273 | IG39: 1000 | IH39: 180709MR_Grainmark_Hilic_pos_234 | II39: 144.10234:7339 145.10569:881 146.10905:341 | IJ39: 58.0631:45 66.95515:9 70.06322:166 96.51088:13 98.09446:423 98.12482:8 98.16263:37 98.33594:12 98.44766:33 127.34579:25 138.96259:10 144.08209:30 | IK39: 216096 | IL39: 79934 | IM39: 432845 | IN39: 100300 | IO39: 283077 | IP39: 51783 | IQ39: 200687 | IR39: 199769 | IS39: 129219 | IT39: 346182 | IU39: 171008 | IV39: 120528 | IW39: 92027 | IX39: 108248 | IY39: 306185 | IZ39: 81321 | JA39: 40597 | JB39: 118932 | JC39: 43299 | JD39: 90461 | JE39: 78724 | JF39: 223435 | JG39: 247413 | JH39: 80649 | JI39: 191457 | JJ39: 123608 | JK39: 178176 | JL39: 222040 | JM39: 152448 | JN39: 96436 | JO39: 116563 | JP39: 355622 | JQ39: 140038 | JR39: 140586 | JS39: 235248 | JT39: 109271 | JU39: 204691 | JV39: 119359 | JW39: 251162 | JX39: 497127 | JY39: 307267 | JZ39: 206605 | KA39: 212818 | KB39: 247221 | KC39: 65576 | KD39: 188003 | KE39: 250806 | KF39: 84264 | KG39: 59949 | KH39: 43454 | KI39: 106534 | KJ39: 41449 | KK39: 162487 | KL39: 109261 | KM39: 34469 | KN39: 157911 | KO39: 210113 | KP39: 89012 | KQ39: 255271 | KR39: 296349 | KS39: 87658 | KT39: 380065 | KU39: 48362 | KV39: 145396 | KW39: 298344 | KX39: 216837 | KY39: 114453 | KZ39: 278400 | LA39: 42603 | LB39: 539882 | LC39: 115183 | LD39: 153945 | LE39: 83526 | LF39: 47671 | LG39: 86526 | LH39: 143114 | LI39: 163740 | LJ39: 322852 | LK39: 54872 | LL39: 83954 | LM39: 113414 | LN39: 55108 | LO39: 334622 | LP39: 363369 | LQ39: 174216 | LR39: 50033 | LS39: 66796 | LT39: 96999 | LU39: 167792 | LV39: 89604 | LW39: 216234 | LX39: 151899 | LY39: 98214 | LZ39: 64786 | MA39: 379095 | MB39: 306844 | MC39: 53367 | MD39: 65143 | ME39: 64148 | MF39: 71875 | MG39: 202448 | MH39: 51371 | MI39: 93097 | MJ39: 108061 | MK39: 67799 | ML39: 54036 | MM39: 175657 | MN39: 249725 | MO39: 100623 | MP39: 87336 | MQ39: 60533 | MR39: 73945 | MS39: 186664 | MT39: 359904 | MU39: 42978 | MV39: 264824 | MW39: 49082 | MX39: 39822 | MY39: 89284 | MZ39: 197242 | NA39: 72827 | NB39: 63874 | NC39: 61357 | ND39: 91815 | NE39: 62724 | NF39: 155040 | NG39: 89516 | NH39: 62515 | NI39: 130257 | NJ39: 142531 | NK39: 205849 | NL39: 104485 | NM39: 112960 | NN39: 250746 | NO39: 123384 | NP39: 272064 | NQ39: 48738 | NR39: 46799 | NS39: 110745 | NT39: 40327 | NU39: 109129 | NV39: 175635 | NW39: 311229 | NX39: 414680 | NY39: 40808 | NZ39: 172629 | OA39: 353498 | OB39: 48136 | OC39: 46311 | OD39: 58219 | OE39: 160794 | OF39: 183623 | OG39: 64681 | OH39: 146568 | OI39: 219205 | OJ39: 58501 | OK39: 286090 | OL39: 144433 | OM39: 91955 | ON39: 56591 | OO39: 156500 | OP39: 64400 | OQ39: 81672 | OR39: 48350 | OS39: 138669 | OT39: 256624 | OU39: 147251 | OV39: 144529 | OW39: 316198 | OX39: 186379 | OY39: 252905 | OZ39: 131742 | PA39: 82727 | PB39: 35320 | PC39: 61062 | PD39: 177528 | PE39: 265478 | PF39: 70224 | PG39: 51602 | PH39: 81197 | PI39: 75340 | PJ39: 69023 | PK39: 151145 | PL39: 91223 | PM39: 174950 | PN39: 129206 | PO39: 91569 | PP39: 73528 | PQ39: 287454 | PR39: 280043 | PS39: 81592 | PT39: 58089 | PU39: 93295 | PV39: 43809 | PW39: 229698 | PX39: 145934 | PY39: 49700 | PZ39: 64461 | QA39: 241886 | QB39: 147386 | QC39: 46781 | QD39: 82958 | QE39: 93102 | QF39: 58391 | QG39: 193475 | QH39: 193741 | QI39: 186757 | QJ39: 183163 | QK39: 186955 | QL39: 193511 | QM39: 189291 | QN39: 184278 | QO39: 180084 | QP39: 192181 | QQ39: 165519 | QR39: 165829 | QS39: 167039 | QT39: 156570 | QU39: 152914 | QV39: 149877 | QW39: 168406 | QX39: 149691 | QY39: 151287 | QZ39: 154444 | RA39: 148446 | RB39: 142241 | RC39: 135164 | RD39: 140825 | RE39: 134417 | RF39: 133403 | RG39: 137698 | RH39: 134443 | RI39: 71313 | RJ39: 72828 | RK39: 71026 | RL39: =AVERAGE(QG39:RH39) -> 163273.1786
A40: COMPOUND_146_046a6_39 | B40: HILIC_NEG | D40: 485 | E40: 6.39 | F40: 146.0460 | G40: L-Glutamic acid | H40: Amino acid | I40: 1 | J40: HMDB0000148 | K40: x | L40: w/o MS2:L-Glutamic acid; LC-ESI-ITFT; MS2; m/z | M40: [M-H]- | N40: adduct linked to 280_[M-H2O-H]- | O40: 1 | P40: FALSE | Q40: C5H9NO4 | S40: WHUUTDBJXJRKMK-VKHMYHEASA-N | T40: N[C@@H](CCC(O)=O)C(O)=O | V40: -1 | W40: -1 | X40: -1 | Y40: -1 | Z40: -1 | AA40: 180718MR_Grainmark_Hilic_neg_034 | AB40: 146.04613:178217 147.04948:15871 148.05284:3238 | AD40: kept | AE40: COMPOUND_146_046a6_39 | AF40: -0.03308965695 | AG40: 0.8309173926 | AH40: 0.9970396117 | AJ40: -0.238451164 | AK40: 0.1204200177 | AL40: 0.4568816584 | AM40: 0.007266303713 | AN40: 0.962781035 | AO40: 0.9971702951 | AP40: =-LOG10(AO40) -> 0.001230667249 | AQ40: -0.2056289979 | AR40: 0.189756548 | AS40: 0.4671419665 | AT40: 0.08092597274 | AU40: -0.369557552 | AV40: 0.5314094975 | AW40: 0.7259329591 | AX40: 0.9907393313 | AY40: -0.02104051595 | AZ40: -0.5001037643 | BA40: 0.4580227324 | BB40: 0.9315749909 | BC40: 0.9905010012 | BD40: -0.04289710514 | BE40: -0.3584199778 | BF40: 0.2726257675 | BG40: 0.7907368753 | BH40: 0.9952354946 | BI40: 0.1219600038 | BJ40: 0.1479731032 | BK40: 0.01720058428 | BL40: -0.3881510619 | BM40: 0.4225522305 | BN40: 0.9339769612 | BO40: 0.9995140707 | BP40: 0.02796647806 | BQ40: -0.4486443461 | BR40: 0.5045773022 | BS40: 0.9086899104 | BT40: 0.9899556479 | BU40: -0.238451164 | BV40: -0.5192193783 | BW40: 0.0423170503 | BX40: 0.1009347854 | BY40: 0.4197595312 | BZ40: 0.01267145156 | CA40: -0.06717361646 | CB40: 0.0127278051 | CC40: 0.8835152454 | CD40: 0.9967045438 | CE40: 0.06505082695 | CF40: 0.455211802 | CG40: 0.890478253 | CH40: -0.2234672468 | CI40: 0.00917820386 | CJ40: 0.3530919015 | CK40: 0.07630020674 | CL40: 0.3790935979 | CM40: 0.7859198057 | CN40: 0.09104758107 | CO40: 0.2936154824 | CP40: 0.9217248378 | CQ40: 0.260002704 | CR40: 0.002414080896 | CS40: 0.3721614479 | CT40: 0.1437439893 | CU40: 0.09378153569 | CV40: 0.9584575148 | CW40: 0.04571283032 | CX40: 0.6098197362 | CY40: 0.9973863525 | CZ40: 0.2015336535 | DA40: 0.0204900032 | DB40: 0.8448079612 | DC40: -0.04639469951 | DD40: 0.5903351411 | DE40: 0.953615766 | DF40: 0.07413677617 | DG40: 0.3892471289 | DH40: 0.9995798835 | DI40: 0.2450294146 | DJ40: 0.00390364919 | DK40: 0.1209219181 | DL40: -0.04644214782 | DM40: 0.608513312 | DN40: 0.9986115224 | DO40: -0.03596713225 | DP40: 0.6764866139 | DQ40: 0.9311060816 | DR40: -0.07067170841 | DS40: 0.4118521214 | DT40: 0.9356297851 | DU40: 0.0127278051 | DV40: 0.8835152454 | DW40: 0.9967045438 | DX40: 0.06505082695 | DY40: 0.455211802 | DZ40: 0.890478253 | EA40: -0.2234672468 | EB40: 0.00917820386 | EC40: 0.3530919015 | ED40: 0.07630020674 | EE40: 0.3790935979 | EF40: 0.7859198057 | EG40: 0.09104758107 | EH40: 0.2936154824 | EI40: 0.9217248378 | EJ40: 0.260002704 | EK40: 0.002414080896 | EL40: 0.3721614479 | EM40: 0.1437439893 | EN40: 0.09378153569 | EO40: 0.9584575148 | EP40: 0.04571283032 | EQ40: 0.6098197362 | ER40: 0.9973863525 | ES40: 0.2015336535 | ET40: 0.0204900032 | EU40: 0.8448079612 | EV40: -0.04639469951 | EW40: 0.5903351411 | EX40: 0.953615766 | EY40: 0.07413677617 | EZ40: 0.3892471289 | FA40: 0.9995798835 | FB40: 0.2450294146 | FC40: 0.00390364919 | FD40: 0.1209219181 | FE40: -0.04644214782 | FF40: 0.608513312 | FG40: 0.9986115224 | FH40: -0.03596713225 | FI40: 0.6764866139 | FJ40: 0.9311060816 | FK40: -0.07067170841 | FL40: 0.4118521214 | FM40: 0.9356297851 | FN40: 0.1283691522 | FO40: 0.07445484728 | FP40: 0.2222797447 | FQ40: 0.1122025973 | FR40: 0.1202912658 | FS40: 0.377204731 | FT40: -0.2795711629 | FU40: 7.886547116e-05 | FV40: 0.0006229567308 | FW40: 0.4578428438 | FX40: 1.919486178e-11 | FY40: 4.912847055e-10 | FZ40: 0.2400455666 | GA40: 0.0007482265644 | GB40: 0.0107127298 | GC40: 0.3994968517 | GD40: 8.644317971e-09 | GE40: 3.370775519e-06 | GF40: 0.3377067528 | GG40: 1.215381723e-06 | GH40: 3.146372265e-05 | GI40: 0.01203482745 | GJ40: 0.8704927707 | GK40: 0.9761135079 | GL40: 0.3623635219 | GM40: 2.587683014e-07 | GN40: 9.373634264e-06 | GO40: 0.1313347211 | GP40: 0.06582458771 | GQ40: 0.3313473613 | GR40: -0.05134985758 | GS40: 0.4736110806 | GT40: 0.8401578124 | GU40: 0.0445118805 | GV40: 0.5345429361 | GW40: 0.9658079603 | GX40: 0.1055548532 | GY40: 0.156142179 | GZ40: 0.5081327956 | HA40: -0.01982525251 | HB40: 0.7821509503 | HC40: 0.9238914201 | HD40: 0.1302011025 | HE40: 0.0682125004 | HF40: 0.2538914459 | HO40: COMPOUND_146_046a6_39 | HP40: 485 | HQ40: 6.39 | HR40: 146.046 | HS40: w/o MS2:L-Glutamic acid; LC-ESI-ITFT; MS2; m/z | HT40: [M-H]- | HU40: adduct linked to 280_[M-H2O-H]- | HV40: 1 | HW40: FALSE | HX40: C5H9NO4 | HZ40: WHUUTDBJXJRKMK-VKHMYHEASA-N | IA40: N[C@@H](CCC(O)=O)C(O)=O | IC40: -1 | ID40: -1 | IE40: -1 | IF40: -1 | IG40: -1 | IH40: 180718MR_Grainmark_Hilic_neg_034 | II40: 146.04613:178217 147.04948:15871 148.05284:3238 | IK40: 316881 | IL40: 147819 | IM40: 185239 | IN40: 245098 | IO40: 169417 | IP40: 200993 | IQ40: 152449 | IR40: 366009 | IS40: 310319 | IT40: 186504 | IU40: 277804 | IV40: 152916 | IW40: 195376 | IX40: 187501 | IY40: 184345 | IZ40: 179397 | JA40: 187486 | JB40: 236814 | JC40: 139028 | JD40: 216760 | JE40: 219671 | JF40: 355654 | JG40: 646969 | JH40: 319862 | JI40: 180534 | JJ40: 371389 | JK40: 203270 | JL40: 166816 | JM40: 253252 | JN40: 242362 | JO40: 351903 | JP40: 307871 | JQ40: 144808 | JR40: 287602 | JS40: 182750 | JT40: 209864 | JU40: 343604 | JV40: 339346 | JW40: 126221 | JX40: 275624 | JY40: 230979 | JZ40: 256834 | KA40: 174837 | KB40: 193177 | KC40: 603010 | KD40: 172737 | KE40: 157159 | KF40: 318083 | KG40: 142117 | KH40: 159210 | KI40: 129881 | KJ40: 132468 | KK40: 232138 | KL40: 197822 | KM40: 138248 | KN40: 278882 | KO40: 226899 | KP40: 175006 | KQ40: 302457 | KR40: 285050 | KS40: 285706 | KT40: 173655 | KU40: 75595 | KV40: 311654 | KW40: 256958 | KX40: 145148 | KY40: 364423 | KZ40: 172144 | LA40: 145301 | LB40: 191504 | LC40: 146864 | LD40: 185859 | LE40: 176338 | LF40: 227789 | LG40: 278108 | LH40: 170203 | LI40: 266735 | LJ40: 283002 | LK40: 312534 | LL40: 254604 | LM40: 200535 | LN40: 203427 | LO40: 303429 | LP40: 194422 | LQ40: 232683 | LR40: 303541 | LS40: 120045 | LT40: 218400 | LU40: 150980 | LV40: 222564 | LW40: 102845 | LX40: 177421 | LY40: 149994 | LZ40: 109461 | MA40: 107146 | MB40: 158240 | MC40: 108561 | MD40: 146666 | ME40: 107880 | MF40: 212609 | MG40: 265844 | MH40: 195831 | MI40: 369506 | MJ40: 153543 | MK40: 209768 | ML40: 168740 | MM40: 184177 | MN40: 311342 | MO40: 190639 | MP40: 129864 | MQ40: 229748 | MR40: 229671 | MS40: 195597 | MT40: 148786 | MU40: 191005 | MV40: 289618 | MW40: 250164 | MX40: 180680 | MY40: 242919 | MZ40: 136313 | NA40: 261836 | NB40: 214342 | NC40: 216850 | ND40: 216365 | NE40: 225451 | NF40: 194870 | NG40: 176668 | NH40: 281021 | NI40: 217257 | NJ40: 212373 | NK40: 164713 | NL40: 139220 | NM40: 254212 | NN40: 161937 | NO40: 157211 | NP40: 184361 | NQ40: 273401 | NR40: 388918 | NS40: 190317 | NT40: 144470 | NU40: 155245 | NV40: 348807 | NW40: 184796 | NX40: 204201 | NY40: 230264 | NZ40: 231364 | OA40: 227780 | OB40: 446062 | OC40: 138383 | OD40: 154198 | OE40: 154306 | OF40: 145866 | OG40: 158893 | OH40: 159537 | OI40: 147915 | OJ40: 138358 | OK40: 244954 | OL40: 164955 | OM40: 169025 | ON40: 273583 | OO40: 113806 | OP40: 175553 | OQ40: 182433 | OR40: 103238 | OS40: 130823 | OT40: 232140 | OU40: 130065 | OV40: 271538 | OW40: 123396 | OX40: 338005 | OY40: 274532 | OZ40: 218822 | PA40: 126354 | PB40: 467670 | PC40: 175711 | PD40: 191801 | PE40: 176308 | PF40: 88062 | PG40: 54243 | PH40: 111961 | PI40: 109589 | PJ40: 268238 | PK40: 222766 | PL40: 147652 | PM40: 190597 | PN40: 248707 | PO40: 152003 | PP40: 173027 | PQ40: 140754 | PR40: 239761 | PS40: 146915 | PT40: 236049 | PU40: 124605 | PV40: 121958 | PW40: 204393 | PX40: 329204 | PY40: 422268 | QG40: 164311 | QH40: 310362 | QI40: 344022 | QJ40: 376876 | QK40: 376352 | QL40: 395971 | QM40: 407600 | QN40: 419958 | QO40: 433667 | QP40: 432234 | QQ40: 425337 | QR40: 355357 | QS40: 340299 | QT40: 331053 | QU40: 328674 | QV40: 331651 | QW40: 316147 | QX40: 213379 | QY40: 276423 | QZ40: 291274 | RA40: 282849 | RB40: 276533 | RC40: 251929 | RD40: 279583 | RE40: 285099 | RF40: 277514 | RG40: 292416 | RL40: =AVERAGE(QG40:RH40) -> 326550.7407
A41: COMPOUND_146_0602a2_56 | B41: RP_POS | D41: 1323 | E41: 2.56 | F41: 146.0602 | G41: Indole-3-carboxaldehyde | H41: Tryptophan metabolite | I41: 2 | J41: HMDB0029737 | K41: x | L41: 1H-Indole-4-carboxaldehyde | M41: [M+H]+ | N41: found in higher mz's MsMs_2440; found in higher mz's MsMs_2188 | O41: 1 | P41: TRUE | Q41: C9H7NO | S41: JFDDFGLNZWNJTK-UHFFFAOYSA-N | T41: O=CC1=C2C=CNC2=CC=C1 | V41: -1 | W41: -1 | X41: 781.2237 | Y41: 877.3231 | Z41: 1000 | AA41: 180706MR_Grainmark_RP_pos_233 | AB41: 146.05966:3849 147.06301:1145 148.06637:560 | AC41: 60.93959:105 60.95824:8 61.29032:16 101.28529:23 105.4222:18 115.56984:6 118.06519:662 118.11176:9 118.31087:20 146.0576:549 146.11066:35 | AD41: kept | AE41: COMPOUND_146_0602a2_56 | AF41: 0.3007626247 | AG41: 0.1458793046 | AH41: 0.9802651766 | AJ41: 0.5321994709 | AK41: 0.01133248424 | AL41: 0.1183039969 | AM41: 0.01929733677 | AN41: 0.9097079043 | AO41: 0.9898971926 | AP41: =-LOG10(AO41) -> 0.004409907406 | AQ41: 0.04159834957 | AR41: 0.8069048033 | AS41: 0.9287739555 | AT41: -0.281465288 | AU41: -0.7830640091 | AV41: 0.2201334332 | AW41: 0.2754116232 | AX41: 0.9492347666 | AY41: 0.2944619251 | AZ41: -0.1465582458 | BA41: 0.7354820961 | BB41: 0.1932146732 | BC41: 0.8683525891 | BD41: 0.3007626247 | BE41: -0.04866636626 | BF41: 0.6501916157 | BG41: 0.09632632155 | BH41: 0.8658569594 | BI41: -0.2722681059 | BJ41: -0.2670717575 | BK41: -0.4906011213 | BL41: -1.032119094 | BM41: 0.0509168519 | BN41: 0.08039625758 | BO41: 0.9075207974 | BP41: 0.2944619251 | BQ41: -0.2014892863 | BR41: 0.7904131366 | BS41: 0.2469893841 | BT41: 0.9112496662 | BU41: 0.5321994709 | BV41: 0.1549615095 | BW41: 0.9094374322 | BX41: 0.007371312552 | BY41: 0.1022268429 | BZ41: -0.4327832482 | CA41: -0.4267346094 | CB41: -0.01323200653 | CC41: 0.8789353026 | CD41: 0.9967045438 | CE41: -0.06419165302 | CF41: 0.4612008221 | CG41: 0.8912546313 | CH41: 0.008369076301 | CI41: 0.923252661 | CJ41: 0.9800573515 | CK41: 0.06745407027 | CL41: 0.4369561998 | CM41: 0.8207762088 | CN41: -0.01756210881 | CO41: 0.8397827518 | CP41: 0.9996757019 | CQ41: -0.1361285346 | CR41: 0.1167998105 | CS41: 0.7553181825 | CT41: -0.07263599764 | CU41: 0.3989446163 | CV41: 0.9967977033 | CW41: -0.0109121463 | CX41: 0.9030880044 | CY41: 0.9973863525 | CZ41: -0.05947734924 | DA41: 0.4981246783 | DB41: 0.9992844709 | DC41: 0.03512010679 | DD41: 0.6836925169 | DE41: 0.9655988183 | DF41: -0.07971306308 | DG41: 0.3544755529 | DH41: 0.9995798835 | DI41: -0.1579593153 | DJ41: 0.06525352031 | DK41: 0.5134007536 | DL41: 0.08787813169 | DM41: 0.3317783895 | DN41: 0.9986115224 | DO41: -0.1513794541 | DP41: 0.07742820931 | DQ41: 0.3917624382 | DR41: 0.1077396575 | DS41: 0.2101485994 | DT41: 0.8529904865 | DU41: -0.01323200653 | DV41: 0.8789353026 | DW41: 0.9967045438 | DX41: -0.06419165302 | DY41: 0.4612008221 | DZ41: 0.8912546313 | EA41: 0.008369076301 | EB41: 0.923252661 | EC41: 0.9800573515 | ED41: 0.06745407027 | EE41: 0.4369561998 | EF41: 0.8207762088 | EG41: -0.01756210881 | EH41: 0.8397827518 | EI41: 0.9996757019 | EJ41: -0.1361285346 | EK41: 0.1167998105 | EL41: 0.7553181825 | EM41: -0.07263599764 | EN41: 0.3989446163 | EO41: 0.9967977033 | EP41: -0.0109121463 | EQ41: 0.9030880044 | ER41: 0.9973863525 | ES41: -0.05947734924 | ET41: 0.4981246783 | EU41: 0.9992844709 | EV41: 0.03512010679 | EW41: 0.6836925169 | EX41: 0.9655988183 | EY41: -0.07971306308 | EZ41: 0.3544755529 | FA41: 0.9995798835 | FB41: -0.1579593153 | FC41: 0.06525352031 | FD41: 0.5134007536 | FE41: 0.08787813169 | FF41: 0.3317783895 | FG41: 0.9986115224 | FH41: -0.1513794541 | FI41: 0.07742820931 | FJ41: 0.3917624382 | FK41: 0.1077396575 | FL41: 0.2101485994 | FM41: 0.8529904865 | FN41: 0.05496476509 | FO41: 0.438347901 | FP41: 0.6470564908 | FQ41: 0.0544429311 | FR41: 0.4438659 | FS41: 0.7275636178 | FT41: -0.1001001018 | FU41: 0.157401105 | FV41: 0.2891939925 | FW41: 0.1465022064 | FX41: 0.03796023142 | FY41: 0.1039398489 | FZ41: 0.09423193023 | GA41: 0.1833210643 | GB41: 0.4343228503 | GC41: 0.09483975892 | GD41: 0.1816006592 | GE41: 0.4817692069 | GF41: 0.1814344906 | GG41: 0.009402279037 | GH41: 0.04194327573 | GI41: -0.1066516772 | GJ41: 0.1398791332 | GK41: 0.5637281054 | GL41: 0.1955780645 | GM41: 0.005756815272 | GN41: 0.02844284203 | GO41: 0.01633528101 | GP41: 0.8166185702 | GQ41: 0.9433835609 | GR41: -0.09501085001 | GS41: 0.1764560676 | GT41: 0.5627131415 | GU41: -0.112457284 | GV41: 0.1092827097 | GW41: 0.7919309917 | GX41: 0.1031999204 | GY41: 0.1576180189 | GZ41: 0.5091275043 | HA41: -0.2057511697 | HB41: 0.003154061524 | HC41: 0.02620084442 | HD41: 0.07292714306 | HE41: 0.2999277138 | HF41: 0.5912045241 | HH41: 1 | HK41: 1 | HO41: COMPOUND_146_0602a2_56 | HP41: 1323 | HQ41: 2.56 | HR41: 146.0602 | HS41: 1H-Indole-4-carboxaldehyde | HT41: [M+H]+ | HU41: found in higher mz's MsMs_2440; found in higher mz's MsMs_2188 | HV41: 1 | HW41: TRUE | HX41: C9H7NO | HZ41: JFDDFGLNZWNJTK-UHFFFAOYSA-N | IA41: O=CC1=C2C=CNC2=CC=C1 | IC41: -1 | ID41: -1 | IE41: 781.2237 | IF41: 877.3231 | IG41: 1000 | IH41: 180706MR_Grainmark_RP_pos_233 | II41: 146.05966:3849 147.06301:1145 148.06637:560 | IJ41: 60.93959:105 60.95824:8 61.29032:16 101.28529:23 105.4222:18 115.56984:6 118.06519:662 118.11176:9 118.31087:20 146.0576:549 146.11066:35 | IK41: 106874 | IL41: 93354 | IM41: 81764 | IN41: 118979 | IO41: 72611 | IP41: 107549 | IQ41: 141003 | IR41: 106713 | IS41: 110978 | IT41: 148664 | IU41: 80311 | IV41: 108273 | IW41: 77813 | IX41: 104461 | IY41: 93238 | IZ41: 119149 | JA41: 105504 | JB41: 99785 | JC41: 95306 | JD41: 84563 | JE41: 105865 | JF41: 118085 | JG41: 106377 | JH41: 106517 | JI41: 120400 | JJ41: 95724 | JK41: 109214 | JL41: 86621 | JM41: 84697 | JN41: 92650 | JO41: 101777 | JP41: 98604 | JQ41: 90434 | JR41: 80888 | JS41: 115284 | JT41: 96487 | JU41: 83066 | JV41: 95346 | JW41: 72542 | JX41: 75423 | JY41: 80912 | JZ41: 85485 | KA41: 99990 | KB41: 100898 | KC41: 109666 | KD41: 118084 | KE41: 106453 | KF41: 93846 | KG41: 79504 | KH41: 84182 | KI41: 84117 | KJ41: 88504 | KK41: 86883 | KL41: 110658 | KM41: 91691 | KN41: 105785 | KO41: 79130 | KP41: 71570 | KQ41: 105280 | KR41: 89547 | KS41: 94122 | KT41: 91874 | KU41: 97853 | KV41: 84530 | KW41: 93789 | KX41: 89345 | KY41: 76712 | KZ41: 86752 | LA41: 81655 | LB41: 75666 | LC41: 90953 | LD41: 92283 | LE41: 94090 | LF41: 101954 | LG41: 100236 | LH41: 109079 | LI41: 74036 | LJ41: 90509 | LK41: 103735 | LL41: 94783 | LM41: 83716 | LN41: 93444 | LO41: 94722 | LP41: 81397 | LQ41: 98283 | LR41: 88195 | LS41: 91165 | LT41: 77608 | LU41: 62085 | LV41: 97048 | LW41: 80644 | LX41: 88548 | LY41: 71451 | LZ41: 77028 | MA41: 91534 | MB41: 86840 | MC41: 111020 | MD41: 105976 | ME41: 67193 | MF41: 121197 | MG41: 92313 | MH41: 119228 | MI41: 95250 | MJ41: 80903 | MK41: 86512 | ML41: 100503 | MM41: 78272 | MN41: 73755 | MO41: 106190 | MP41: 117275 | MQ41: 109450 | MR41: 78158 | MS41: 106706 | MT41: 87979 | MU41: 90318 | MV41: 82847 | MW41: 74965 | MX41: 81818 | MY41: 84658 | MZ41: 69042 | NA41: 102008 | NB41: 73708 | NC41: 109613 | ND41: 88987 | NE41: 69772 | NF41: 91231 | NG41: 96421 | NH41: 99021 | NI41: 71964 | NJ41: 80538 | NK41: 77166 | NL41: 95974 | NM41: 97156 | NN41: 87562 | NO41: 93044 | NP41: 71425 | NQ41: 84639 | NR41: 87182 | NS41: 73051 | NT41: 85634 | NU41: 100322 | NV41: 99530 | NW41: 67765 | NX41: 78152 | NY41: 80808 | NZ41: 94544 | OA41: 63646 | OB41: 91514 | OC41: 96082 | OD41: 65321 | OE41: 76251 | OF41: 100684 | OG41: 117460 | OH41: 75102 | OI41: 93932 | OJ41: 104141 | OK41: 96654 | OL41: 93162 | OM41: 83590 | ON41: 98883 | OO41: 69819 | OP41: 87722 | OQ41: 99701 | OR41: 76050 | OS41: 87728 | OT41: 102058 | OU41: 71904 | OV41: 58389 | OW41: 79526 | OX41: 80407 | OY41: 90882 | OZ41: 94614 | PA41: 75327 | PB41: 76778 | PC41: 80775 | PD41: 95865 | PE41: 90655 | PF41: 63916 | PG41: 56782 | PH41: 89489 | PI41: 80213 | PJ41: 97005 | PK41: 71079 | PL41: 68855 | PM41: 73540 | PN41: 74593 | PO41: 80841 | PP41: 76037 | PQ41: 76685 | PR41: 87212 | PS41: 79867 | PT41: 110458 | PU41: 67120 | PV41: 60323 | PW41: 75339 | PX41: 135185 | PY41: 89583 | PZ41: 90691 | QA41: 74845 | QB41: 90758 | QC41: 67839 | QD41: 59321 | QE41: 75058 | QF41: 70775 | QG41: 61030 | QH41: 76484 | QI41: 82749 | QJ41: 76980 | QK41: 80697 | QL41: 101611 | QM41: 98434 | QN41: 106284 | QO41: 123981 | QP41: 90987 | QQ41: 104052 | QR41: 102895 | QS41: 88845 | QT41: 92869 | QU41: 98315 | QV41: 91395 | QW41: 78758 | QX41: 75947 | QY41: 77855 | QZ41: 85431 | RA41: 81182 | RB41: 85051 | RC41: 83242 | RD41: 83267 | RE41: 81542 | RF41: 84338 | RG41: 82651 | RH41: 101817 | RI41: 58192 | RJ41: 68171 | RK41: 40829 | RL41: =AVERAGE(QG41:RH41) -> 88524.60714
A42: COMPOUND_146_1178a3_41 | B42: HILIC_POS | D42: 309 | E42: 3.41 | F42: 146.1178 | G42: 4-Aminobutyric acid betaine (gamma-butyrobetaine) | H42: Betaine | I42: 1 | J42: HMDB0001161 | K42: x | L42: Acetylcholine cation | M42: [M+H]+ | N42: similar chromatogram in higher mz_721 | O42: 1 | P42: TRUE | Q42: C7H16NO2 | S42: OIPILFWXSMYKGL-UHFFFAOYSA-N | T42: CC(=O)OCC[N+](C)(C)C | V42: -1 | W42: -1 | X42: 809.5322 | Y42: 853.687 | Z42: 750 | AA42: 180709MR_Grainmark_Hilic_pos_233 | AB42: 146.11769:23331 147.12104:3951 148.1244:0 | AC42: 60.07898:53 60.85144:9 87.04429:776 87.09334:18 87.22898:10 122.28236:6 146.12004:111 146.25917:21 | AD42: kept | AE42: COMPOUND_146_1178a3_41 | AF42: 0.05230675487 | AG42: 0.7074356228 | AH42: 0.9970396117 | AJ42: -0.05553845028 | AK42: 0.6902886181 | AL42: 0.9185760933 | AM42: -0.02776508527 | AN42: 0.8426924871 | AO42: 0.981829961 | AP42: =-LOG10(AO42) -> 0.007963719326 | AQ42: 0.01680114319 | AR42: 0.9044056901 | AS42: 0.9680777199 | AT42: -0.08007184015 | AU42: -0.4997485049 | AV42: 0.3396048246 | AW42: 0.7096404572 | AX42: 0.9907393313 | AY42: 0.194263889 | AZ42: -0.2758238788 | BA42: 0.6643516568 | BB42: 0.4199496478 | BC42: 0.9346722725 | BD42: 0.05230675487 | BE42: -0.2400528292 | BF42: 0.344666339 | BG42: 0.7269588203 | BH42: 0.9952354946 | BI42: -0.09070512368 | BJ42: -0.09253593642 | BK42: 0.07233959347 | BL42: -0.325100957 | BM42: 0.469780144 | BN42: 0.7224243808 | BO42: 0.987091979 | BP42: 0.194263889 | BQ42: -0.2852080038 | BR42: 0.6737357818 | BS42: 0.4291733812 | BT42: 0.9439804398 | BU42: -0.05553845028 | BV42: -0.332407678 | BW42: 0.2213307774 | BX42: 0.6954698632 | BY42: 0.923710439 | BZ42: 0.08670353872 | CA42: -0.1654507563 | CB42: -0.05733365504 | CC42: 0.5089292091 | CD42: 0.9942608021 | CE42: -0.0972179151 | CF42: 0.263787088 | CG42: 0.7937874833 | CH42: -0.02974379145 | CI42: 0.7320094226 | CJ42: 0.9341157243 | CK42: 0.1235482234 | CL42: 0.1533990485 | CM42: 0.5584070561 | CN42: -0.05337382369 | CO42: 0.5386739002 | CP42: 0.9844149577 | CQ42: -0.1313983941 | CR42: 0.130186771 | CS42: 0.7756827562 | CT42: 0.02498348517 | CU42: 0.7719768485 | CV42: 0.9967977033 | CW42: -0.08409605646 | CX42: 0.3472121865 | CY42: 0.9973863525 | CZ42: -0.03729637141 | DA42: 0.6711466075 | DB42: 0.9992844709 | DC42: -0.03721069914 | DD42: 0.6659602342 | DE42: 0.9597518124 | DF42: -0.0480082566 | DG42: 0.5774625652 | DH42: 0.9995798835 | DI42: 0.07780222853 | DJ42: 0.3661658828 | DK42: 0.8632320165 | DL42: -0.02667237838 | DM42: 0.7687156332 | DN42: 0.9986115224 | DO42: 0.07529233088 | DP42: 0.3818779068 | DQ42: 0.800875455 | DR42: -0.01475426233 | DS42: 0.8641284733 | DT42: 0.9856749477 | DU42: -0.05733365504 | DV42: 0.5089292091 | DW42: 0.9942608021 | DX42: -0.0972179151 | DY42: 0.263787088 | DZ42: 0.7937874833 | EA42: -0.02974379145 | EB42: 0.7320094226 | EC42: 0.9341157243 | ED42: 0.1235482234 | EE42: 0.1533990485 | EF42: 0.5584070561 | EG42: -0.05337382369 | EH42: 0.5386739002 | EI42: 0.9844149577 | EJ42: -0.1313983941 | EK42: 0.130186771 | EL42: 0.7756827562 | EM42: 0.02498348517 | EN42: 0.7719768485 | EO42: 0.9967977033 | EP42: -0.08409605646 | EQ42: 0.3472121865 | ER42: 0.9973863525 | ES42: -0.03729637141 | ET42: 0.6711466075 | EU42: 0.9992844709 | EV42: -0.03721069914 | EW42: 0.6659602342 | EX42: 0.9597518124 | EY42: -0.0480082566 | EZ42: 0.5774625652 | FA42: 0.9995798835 | FB42: 0.07780222853 | FC42: 0.3661658828 | FD42: 0.8632320165 | FE42: -0.02667237838 | FF42: 0.7687156332 | FG42: 0.9986115224 | FH42: 0.07529233088 | FI42: 0.3818779068 | FJ42: 0.800875455 | FK42: -0.01475426233 | FL42: 0.8641284733 | FM42: 0.9856749477 | FN42: -0.02428652544 | FO42: 0.732182354 | FP42: 0.8660511779 | FQ42: 0.110296817 | FR42: 0.1199929936 | FS42: 0.376804147 | FT42: -0.410226675 | FU42: 1.466445858e-09 | FV42: 5.492129714e-08 | FW42: 0.139287953 | FX42: 0.04860330196 | FY42: 0.1256106389 | FZ42: 0.1406118241 | GA42: 0.04648239035 | GB42: 0.180194015 | GC42: 0.09681867719 | GD42: 0.1726158032 | GE42: 0.4693478914 | GF42: 0.1201552668 | GG42: 0.08692942127 | GH42: 0.2177834972 | GI42: -0.08561703088 | GJ42: 0.2364612346 | GK42: 0.682346995 | GL42: 0.1357964551 | GM42: 0.05644645818 | GN42: 0.1608699791 | GO42: -0.04333794102 | GP42: 0.5382408728 | GQ42: 0.8205081825 | GR42: -0.02696557876 | GS42: 0.7018321016 | GT42: 0.9320984106 | GU42: 0.1672223696 | GV42: 0.01682112386 | GW42: 0.6231455504 | GX42: 0.3105831798 | GY42: 1.364232971e-05 | GZ42: 0.001619035023 | HA42: -0.06899381461 | HB42: 0.3268184043 | HC42: 0.619321819 | HD42: 0.2453994904 | HE42: 0.0004035998577 | HF42: 0.005644617101 | HO42: COMPOUND_146_1178a3_41 | HP42: 309 | HQ42: 3.41 | HR42: 146.1178 | HS42: Acetylcholine cation | HT42: [M+H]+ | HU42: similar chromatogram in higher mz_721 | HV42: 1 | HW42: TRUE | HX42: C7H16NO2 | HZ42: OIPILFWXSMYKGL-UHFFFAOYSA-N | IA42: CC(=O)OCC[N+](C)(C)C | IC42: -1 | ID42: -1 | IE42: 809.5322 | IF42: 853.687 | IG42: 750 | IH42: 180709MR_Grainmark_Hilic_pos_233 | II42: 146.11769:23331 147.12104:3951 148.1244:0 | IJ42: 60.07898:53 60.85144:9 87.04429:776 87.09334:18 87.22898:10 122.28236:6 146.12004:111 146.25917:21 | IK42: 524046 | IL42: 716354 | IM42: 674628 | IN42: 690990 | IO42: 589625 | IP42: 628877 | IQ42: 803539 | IR42: 839658 | IS42: 674854 | IT42: 801923 | IU42: 803887 | IV42: 612787 | IW42: 701122 | IX42: 659505 | IY42: 560329 | IZ42: 545837 | JA42: 640820 | JB42: 721124 | JC42: 571961 | JD42: 579617 | JE42: 521523 | JF42: 920655 | JG42: 718132 | JH42: 1001167 | JI42: 764898 | JJ42: 610402 | JK42: 591301 | JL42: 519104 | JM42: 414855 | JN42: 563769 | JO42: 697787 | JP42: 513401 | JQ42: 610943 | JR42: 646174 | JS42: 516783 | JT42: 638217 | JU42: 629915 | JV42: 619977 | JW42: 544904 | JX42: 600418 | JY42: 563196 | JZ42: 622405 | KA42: 605403 | KB42: 660796 | KC42: 397382 | KD42: 713211 | KE42: 818769 | KF42: 543749 | KG42: 556808 | KH42: 726562 | KI42: 493191 | KJ42: 626646 | KK42: 373287 | KL42: 695507 | KM42: 453952 | KN42: 635905 | KO42: 511420 | KP42: 627457 | KQ42: 761556 | KR42: 689181 | KS42: 621142 | KT42: 503159 | KU42: 466320 | KV42: 486220 | KW42: 454186 | KX42: 724453 | KY42: 646400 | KZ42: 437008 | LA42: 626410 | LB42: 714128 | LC42: 544187 | LD42: 667376 | LE42: 499630 | LF42: 686590 | LG42: 772574 | LH42: 569820 | LI42: 473315 | LJ42: 615419 | LK42: 754585 | LL42: 639295 | LM42: 551181 | LN42: 821716 | LO42: 663196 | LP42: 526644 | LQ42: 818374 | LR42: 469077 | LS42: 487994 | LT42: 509501 | LU42: 453962 | LV42: 500880 | LW42: 694935 | LX42: 611028 | LY42: 752611 | LZ42: 469411 | MA42: 527137 | MB42: 470779 | MC42: 488112 | MD42: 380255 | ME42: 425413 | MF42: 626595 | MG42: 677211 | MH42: 567105 | MI42: 429055 | MJ42: 630002 | MK42: 420804 | ML42: 269092 | MM42: 414706 | MN42: 512970 | MO42: 501823 | MP42: 357052 | MQ42: 462197 | MR42: 479281 | MS42: 450335 | MT42: 508952 | MU42: 534249 | MV42: 408582 | MW42: 384958 | MX42: 267119 | MY42: 434452 | MZ42: 465777 | NA42: 362043 | NB42: 401751 | NC42: 377054 | ND42: 526153 | NE42: 388723 | NF42: 423391 | NG42: 573566 | NH42: 735494 | NI42: 690977 | NJ42: 489656 | NK42: 552285 | NL42: 660068 | NM42: 546621 | NN42: 423254 | NO42: 571139 | NP42: 401583 | NQ42: 336616 | NR42: 655842 | NS42: 437489 | NT42: 593748 | NU42: 570545 | NV42: 437313 | NW42: 487476 | NX42: 505181 | NY42: 485017 | NZ42: 493945 | OA42: 486714 | OB42: 671110 | OC42: 577994 | OD42: 696540 | OE42: 521200 | OF42: 422050 | OG42: 514668 | OH42: 349030 | OI42: 2180694 | OJ42: 629678 | OK42: 624010 | OL42: 590361 | OM42: 504183 | ON42: 500307 | OO42: 479369 | OP42: 355169 | OQ42: 390807 | OR42: 563362 | OS42: 621699 | OT42: 445966 | OU42: 383617 | OV42: 507292 | OW42: 495192 | OX42: 473724 | OY42: 578651 | OZ42: 717425 | PA42: 701560 | PB42: 501184 | PC42: 465456 | PD42: 580328 | PE42: 456639 | PF42: 356645 | PG42: 251467 | PH42: 304743 | PI42: 371577 | PJ42: 621054 | PK42: 404920 | PL42: 575739 | PM42: 464232 | PN42: 654349 | PO42: 450984 | PP42: 493860 | PQ42: 451569 | PR42: 592786 | PS42: 398347 | PT42: 621444 | PU42: 581703 | PV42: 438772 | PW42: 554971 | PX42: 472755 | PY42: 600650 | PZ42: 428564 | QA42: 651346 | QB42: 407592 | QC42: 393604 | QD42: 523296 | QE42: 580025 | QF42: 434680 | QG42: 787041 | QH42: 689066 | QI42: 676959 | QJ42: 672387 | QK42: 661849 | QL42: 650431 | QM42: 650900 | QN42: 648976 | QO42: 650988 | QP42: 649223 | QQ42: 598620 | QR42: 608969 | QS42: 602772 | QT42: 584747 | QU42: 537647 | QV42: 573217 | QW42: 546325 | QX42: 528432 | QY42: 521759 | QZ42: 536243 | RA42: 513060 | RB42: 519681 | RC42: 501107 | RD42: 505346 | RE42: 486296 | RF42: 492481 | RG42: 493352 | RH42: 491565 | RI42: 277507 | RJ42: 296668 | RK42: 288640 | RL42: =AVERAGE(QG42:RH42) -> 584979.9643
A43: COMPOUND_147_1133a7_13 | B43: HILIC_POS | D43: 326 | E43: 7.13 | F43: 147.1133 | G43: L-Lysine | H43: Amino acid | I43: 1 | J43: HMDB0000182 | K43: x | L43: L-Lysine | M43: [M+H]+ | N43: adduct linked to 219_[M+H-NH3]+; adduct linked to 208_[M+H-H2O]+ | O43: 1 | P43: TRUE | Q43: C6H14N2O2 | S43: KDXKERNSBIXSRK-UHFFFAOYNA-N | T43: NCCCCC(N)C(O)=O | V43: -1 | W43: -1 | X43: 787.3105 | Y43: 884.4841 | Z43: 800 | AA43: 180709MR_Grainmark_Hilic_pos_233 | AB43: 147.11293:40003 148.11628:7632 149.11964:698 | AC43: 56.12517:40 56.13605:14 57.03308:90 77.7632:32 84.08041:1570 84.11927:43 84.20846:34 84.26584:12 84.336:26 84.35514:30 84.48598:6 84.58588:28 84.94646:48 105.95492:116 129.10052:303 129.15088:5 130.05634:69 130.08589:869 130.13339:24 147.10855:77 147.12434:28 | AD43: kept | AE43: COMPOUND_147_1133a7_13 | AF43: 0.5429337167 | AG43: 0.01864317514 | AH43: 0.6946840093 | AJ43: 0.1156190512 | AK43: 0.6094004052 | AL43: 0.8818413635 | AM43: -0.1982044515 | AN43: 0.3708562413 | AO43: 0.8876045385 | AP43: =-LOG10(AO43) -> 0.05178048579 | AQ43: -0.007457421079 | AR43: 0.9730561364 | AS43: 0.9901603437 | AT43: -0.7411381682 | AU43: -1.363346947 | AV43: -0.1189293898 | AW43: 0.02261696014 | AX43: 0.9131269428 | AY43: 0.4970269158 | AZ43: 0.03370206128 | BA43: 0.9603517704 | BB43: 0.03742441234 | BC43: 0.8121866033 | BD43: 0.5429337167 | BE43: 0.1094840756 | BF43: 0.9763833578 | BG43: 0.01673045878 | BH43: 0.5368311013 | BI43: -0.5662075683 | BJ43: -0.503681328 | BK43: -0.1230764723 | BL43: -0.7437794333 | BM43: 0.4976264887 | BN43: 0.6987987905 | BO43: 0.987091979 | BP43: 0.4970269158 | BQ43: 0.00359072736 | BR43: 0.9904631043 | BS43: 0.05053496717 | BT43: 0.8306648061 | BU43: 0.1156190512 | BV43: -0.3167815914 | BW43: 0.5480196938 | BX43: 0.6019838867 | BY43: 0.8833892044 | BZ43: -0.09436689834 | CA43: -0.2384161113 | CB43: -0.06870982617 | CC43: 0.4284488579 | CD43: 0.9744235044 | CE43: -0.1155647944 | CF43: 0.1836217649 | CG43: 0.742671625 | CH43: -0.02656215597 | CI43: 0.7597504939 | CJ43: 0.9398595257 | CK43: 0.1340020168 | CL43: 0.1212660031 | CM43: 0.5158007702 | CN43: -0.06709113605 | CO43: 0.439432758 | CP43: 0.9632415446 | CQ43: -0.08477352707 | CR43: 0.3301134925 | CS43: 0.8812568812 | CT43: 0.04996396917 | CU43: 0.5620379213 | CV43: 0.9967977033 | CW43: -0.1172012424 | CX43: 0.1894326836 | CY43: 0.9593606414 | CZ43: -0.006664240658 | DA43: 0.939547271 | DB43: 0.9992844709 | DC43: -0.01460583268 | DD43: 0.8654824113 | DE43: 0.9828607708 | DF43: -0.01398612407 | DG43: 0.8711394123 | DH43: 0.9995798835 | DI43: 0.1231462826 | DJ43: 0.1516732446 | DK43: 0.6545228962 | DL43: -0.0196684843 | DM43: 0.8283472366 | DN43: 0.9986115224 | DO43: 0.03683435333 | DP43: 0.6691391328 | DQ43: 0.9300745782 | DR43: 7.67E-06 | DS43: 0.9999289973 | DT43: 0.9999289973 | DU43: -0.06870982617 | DV43: 0.4284488579 | DW43: 0.9744235044 | DX43: -0.1155647944 | DY43: 0.1836217649 | DZ43: 0.742671625 | EA43: -0.02656215597 | EB43: 0.7597504939 | EC43: 0.9398595257 | ED43: 0.1340020168 | EE43: 0.1212660031 | EF43: 0.5158007702 | EG43: -0.06709113605 | EH43: 0.439432758 | EI43: 0.9632415446 | EJ43: -0.08477352707 | EK43: 0.3301134925 | EL43: 0.8812568812 | EM43: 0.04996396917 | EN43: 0.5620379213 | EO43: 0.9967977033 | EP43: -0.1172012424 | EQ43: 0.1894326836 | ER43: 0.9593606414 | ES43: -0.006664240658 | ET43: 0.939547271 | EU43: 0.9992844709 | EV43: -0.01460583268 | EW43: 0.8654824113 | EX43: 0.9828607708 | EY43: -0.01398612407 | EZ43: 0.8711394123 | FA43: 0.9995798835 | FB43: 0.1231462826 | FC43: 0.1516732446 | FD43: 0.6545228962 | FE43: -0.0196684843 | FF43: 0.8283472366 | FG43: 0.9986115224 | FH43: 0.03683435333 | FI43: 0.6691391328 | FJ43: 0.9300745782 | FK43: 7.67E-06 | FL43: 0.9999289973 | FM43: 0.9999289973 | FN43: 0.03067433757 | FO43: 0.6655428142 | FP43: 0.824034986 | FQ43: 0.03186122287 | FR43: 0.6542432812 | FS43: 0.857958202 | FT43: -0.1838133047 | FU43: 0.009000251929 | FV43: 0.03145106486 | FW43: 0.2468566898 | FX43: 0.0004111789467 | FY43: 0.002380528592 | FZ43: 0.1038995894 | GA43: 0.1421532688 | GB43: 0.3741861766 | GC43: 0.1842539885 | GD43: 0.009006366208 | GE43: 0.106015762 | GF43: 0.1834264761 | GG43: 0.008637595732 | GH43: 0.03932597672 | GI43: -0.07822544575 | GJ43: 0.2795454645 | GK43: 0.7146574949 | GL43: 0.1966421752 | GM43: 0.005492332106 | GN43: 0.02743682708 | GO43: 0.1361063184 | GP43: 0.0522480848 | GQ43: 0.3039396891 | GR43: -0.04904630873 | GS43: 0.4860304636 | GT43: 0.8441610859 | GU43: 0.1159485429 | GV43: 0.09864161597 | GW43: 0.773927384 | GX43: 0.07383112015 | GY43: 0.3126604888 | GZ43: 0.6811128427 | HA43: -0.004896034104 | HB43: 0.9445915782 | HC43: 0.9834612175 | HD43: 0.03773608565 | HE43: 0.5920566168 | HF43: 0.8294317075 | HG43: 1 | HI43: 1 | HO43: COMPOUND_147_1133a7_13 | HP43: 326 | HQ43: 7.13 | HR43: 147.1133 | HS43: L-Lysine | HT43: [M+H]+ | HU43: adduct linked to 219_[M+H-NH3]+; adduct linked to 208_[M+H-H2O]+ | HV43: 1 | HW43: TRUE | HX43: C6H14N2O2 | HZ43: KDXKERNSBIXSRK-UHFFFAOYNA-N | IA43: NCCCCC(N)C(O)=O | IC43: -1 | ID43: -1 | IE43: 787.3105 | IF43: 884.4841 | IG43: 800 | IH43: 180709MR_Grainmark_Hilic_pos_233 | II43: 147.11293:40003 148.11628:7632 149.11964:698 | IJ43: 56.12517:40 56.13605:14 57.03308:90 77.7632:32 84.08041:1570 84.11927:43 84.20846:34 84.26584:12 84.336:26 84.35514:30 84.48598:6 84.58588:28 84.94646:48 105.95492:116 129.10052:303 129.15088:5 130.05634:69 130.08589:869 130.13339:24 147.10855:77 147.12434:28 | IK43: 610348 | IL43: 340314 | IM43: 338581 | IN43: 718054 | IO43: 163771 | IP43: 386815 | IQ43: 404772 | IR43: 587552 | IS43: 536972 | IT43: 684358 | IU43: 855988 | IV43: 965248 | IW43: 339710 | IX43: 342798 | IY43: 248741 | IZ43: 526807 | JA43: 532819 | JB43: 477224 | JC43: 583260 | JD43: 580330 | JE43: 561391 | JF43: 684866 | JG43: 719387 | JH43: 802497 | JI43: 518458 | JJ43: 617485 | JK43: 335441 | JL43: 313191 | JM43: 371973 | JN43: 318534 | JO43: 468889 | JP43: 459468 | JQ43: 744039 | JR43: 513962 | JS43: 735176 | JT43: 581543 | JU43: 637174 | JV43: 567704 | JW43: 339577 | JX43: 314872 | JY43: 399694 | JZ43: 389478 | KA43: 402596 | KB43: 524624 | KC43: 517369 | KD43: 632894 | KE43: 800253 | KF43: 864629 | KG43: 816378 | KH43: 656081 | KI43: 393776 | KJ43: 345452 | KK43: 581491 | KL43: 494773 | KM43: 573331 | KN43: 738874 | KO43: 724881 | KP43: 663544 | KQ43: 626171 | KR43: 838384 | KS43: 830412 | KT43: 597696 | KU43: 366734 | KV43: 645161 | KW43: 687799 | KX43: 652229 | KY43: 632825 | KZ43: 468278 | LA43: 899525 | LB43: 631573 | LC43: 507385 | LD43: 608726 | LE43: 460682 | LF43: 644473 | LG43: 556804 | LH43: 578141 | LI43: 513372 | LJ43: 594301 | LK43: 641882 | LL43: 710039 | LM43: 506406 | LN43: 697325 | LO43: 685557 | LP43: 548276 | LQ43: 643883 | LR43: 519283 | LS43: 589853 | LT43: 543569 | LU43: 582765 | LV43: 532941 | LW43: 519158 | LX43: 632787 | LY43: 439162 | LZ43: 431540 | MA43: 604038 | MB43: 315079 | MC43: 342908 | MD43: 377272 | ME43: 329771 | MF43: 380436 | MG43: 477037 | MH43: 451892 | MI43: 619738 | MJ43: 495770 | MK43: 432074 | ML43: 446844 | MM43: 380364 | MN43: 349808 | MO43: 336151 | MP43: 391483 | MQ43: 277313 | MR43: 368306 | MS43: 372654 | MT43: 346721 | MU43: 451678 | MV43: 568966 | MW43: 282998 | MX43: 294335 | MY43: 324212 | MZ43: 198899 | NA43: 360324 | NB43: 299972 | NC43: 406812 | ND43: 428230 | NE43: 285530 | NF43: 448925 | NG43: 416155 | NH43: 512649 | NI43: 308973 | NJ43: 316478 | NK43: 350729 | NL43: 307852 | NM43: 371455 | NN43: 362153 | NO43: 371842 | NP43: 406082 | NQ43: 645342 | NR43: 660407 | NS43: 618504 | NT43: 546392 | NU43: 450137 | NV43: 555199 | NW43: 420036 | NX43: 327610 | NY43: 851713 | NZ43: 644211 | OA43: 585431 | OB43: 745919 | OC43: 650264 | OD43: 627763 | OE43: 460717 | OF43: 559867 | OG43: 633260 | OH43: 562939 | OI43: 4849235 | OJ43: 676833 | OK43: 630847 | OL43: 833278 | OM43: 981199 | ON43: 990360 | OO43: 798109 | OP43: 524051 | OQ43: 574862 | OR43: 359038 | OS43: 383704 | OT43: 543602 | OU43: 540893 | OV43: 728764 | OW43: 641741 | OX43: 784120 | OY43: 585732 | OZ43: 966604 | PA43: 696143 | PB43: 807773 | PC43: 494153 | PD43: 443541 | PE43: 498618 | PF43: 333409 | PG43: 205789 | PH43: 437087 | PI43: 598671 | PJ43: 794174 | PK43: 894228 | PL43: 780527 | PM43: 841241 | PN43: 930331 | PO43: 813746 | PP43: 503555 | PQ43: 375008 | PR43: 539532 | PS43: 506263 | PT43: 676728 | PU43: 542580 | PV43: 978793 | PW43: 644321 | PX43: 895522 | PY43: 1014028 | PZ43: 977410 | QA43: 716278 | QB43: 894620 | QC43: 834923 | QD43: 775273 | QE43: 665065 | QF43: 706687 | QG43: 424098 | QH43: 426565 | QI43: 426754 | QJ43: 421726 | QK43: 437566 | QL43: 415823 | QM43: 408066 | QN43: 426628 | QO43: 422235 | QP43: 423248 | QQ43: 459856 | QR43: 470197 | QS43: 520752 | QT43: 524033 | QU43: 531561 | QV43: 519198 | QW43: 504048 | QX43: 464552 | QY43: 475287 | QZ43: 428613 | RA43: 423314 | RB43: 480717 | RC43: 448190 | RD43: 461451 | RE43: 467998 | RF43: 504174 | RG43: 523558 | RH43: 489170 | RI43: 294650 | RJ43: 312290 | RK43: 266186 | RL43: =AVERAGE(QG43:RH43) -> 461763.5
A44: COMPOUND_153_0193a0_51 | B44: HILIC_NEG | D44: 515 | E44: 0.51 | F44: 153.0193 | G44: Dihydroxybenzoic acid (DHBA) | H44: Phenolic acid | I44: 2 | K44: x | L44: w/o MS2:protocatechuic acid | M44: [M-H]- | N44: adduct linked to 969_[M+Cl]-; adduct linked to 1334_[3M-H]-; similar chromatogram in higher mz_2472; similar chromatogram in higher mz_2410; similar chromatogram in higher mz_2383; similar chromatogram in higher mz_2576 | O44: 0.9910714 | P44: FALSE | Q44: C7H6O4 | V44: -1 | W44: -1 | X44: -1 | Y44: -1 | Z44: -1 | AA44: 180718MR_Grainmark_Hilic_neg_058 | AB44: 153.01903:31989 154.02238:3722 155.02574:696 | AD44: kept | AE44: COMPOUND_153_0193a0_51 | AF44: 0.6759878666 | AG44: 7.187465713e-07 | AH44: 0.0004764571021 | AJ44: 1.315019007 | AK44: 3.696587135e-16 | AL44: 3.063084515e-13 | AM44: 0.3348779501 | AN44: 0.007974024136 | AO44: 0.4452642024 | AP44: =-LOG10(AO44) -> 0.3513822192 | AQ44: 0.754421593 | AR44: 5.666471596e-08 | AS44: 1.391223711e-05 | AT44: -0.3438369076 | AU44: -0.7270585938 | AV44: 0.03938477848 | AW44: 0.08355124116 | AX44: 0.9282309344 | AY44: -0.4397996498 | AZ44: -0.8557402838 | BA44: -0.02385901575 | BB44: 0.04088078079 | BC44: 0.8121866033 | BD44: 0.6774087574 | BE44: 0.4089800551 | BF44: 0.9458374597 | BG44: 5.958382595e-06 | BH44: 0.003949811822 | BI44: -0.3913718825 | BJ44: -0.2145505939 | BK44: -0.5570396542 | BL44: -0.9006679973 | BM44: -0.2134113111 | BN44: 0.002289307722 | BO44: 0.7049745942 | BP44: -0.4289862669 | BQ44: -0.8147745218 | BR44: -0.04319801208 | BS44: 0.03176960768 | BT44: 0.829292552 | BU44: 1.315019007 | BV44: 1.076934735 | BW44: 1.55310328 | BX44: 4.796738698e-16 | BY44: 7.949395208e-13 | BZ44: -0.7749053174 | CA44: -0.9188264964 | CB44: -0.1525099477 | CC44: 0.07741718259 | CD44: 0.7281016029 | CE44: -0.1962829598 | CF44: 0.02302552634 | CG44: 0.3639307498 | CH44: 0.1375244298 | CI44: 0.1117000521 | CJ44: 0.6103012427 | CK44: -0.1167421896 | CL44: 0.1775220725 | CM44: 0.5866369982 | CN44: -0.2165537143 | CO44: 0.01164446389 | CP44: 0.4741441824 | CQ44: -0.2083366654 | CR44: 0.01570732883 | CS44: 0.5478715531 | CT44: 0.09562534987 | CU44: 0.266327367 | CV44: 0.9967977033 | CW44: 0.01573856159 | CX44: 0.8605910888 | CY44: 0.9973863525 | CZ44: 0.08487504596 | DA44: 0.3332378678 | DB44: 0.9992844709 | DC44: 0.02099233964 | DD44: 0.8076300686 | DE44: 0.9794892254 | DF44: 0.004868961876 | DG44: 0.9549690714 | DH44: 0.9995798835 | DI44: 0.1726802543 | DJ44: 0.04360836816 | DK44: 0.4544023869 | DL44: 0.1027761735 | DM44: 0.2560038377 | DN44: 0.9986115224 | DO44: -0.1493701004 | DP44: 0.08149093976 | DQ44: 0.4036610076 | DR44: -0.03367546299 | DS44: 0.6960482146 | DT44: 0.9637285951 | DU44: -0.1525099477 | DV44: 0.07741718259 | DW44: 0.7281016029 | DX44: -0.1962829598 | DY44: 0.02302552634 | DZ44: 0.3639307498 | EA44: 0.1375244298 | EB44: 0.1117000521 | EC44: 0.6103012427 | ED44: -0.1167421896 | EE44: 0.1775220725 | EF44: 0.5866369982 | EG44: -0.2165537143 | EH44: 0.01164446389 | EI44: 0.4741441824 | EJ44: -0.2083366654 | EK44: 0.01570732883 | EL44: 0.5478715531 | EM44: 0.09562534987 | EN44: 0.266327367 | EO44: 0.9967977033 | EP44: 0.01573856159 | EQ44: 0.8605910888 | ER44: 0.9973863525 | ES44: 0.08487504596 | ET44: 0.3332378678 | EU44: 0.9992844709 | EV44: 0.02099233964 | EW44: 0.8076300686 | EX44: 0.9794892254 | EY44: 0.004868961876 | EZ44: 0.9549690714 | FA44: 0.9995798835 | FB44: 0.1726802543 | FC44: 0.04360836816 | FD44: 0.4544023869 | FE44: 0.1027761735 | FF44: 0.2560038377 | FG44: 0.9986115224 | FH44: -0.1493701004 | FI44: 0.08149093976 | FJ44: 0.4036610076 | FK44: -0.03367546299 | FL44: 0.6960482146 | FM44: 0.9637285951 | FN44: -0.2107757925 | FO44: 0.003177650223 | FP44: 0.02881620154 | FQ44: -0.2125382796 | FR44: 0.003002569288 | FS44: 0.0688720824 | FT44: -0.09524089378 | FU44: 0.1865066383 | FV44: 0.3286423459 | FW44: 0.05870322356 | FX44: 0.4161843697 | FY44: 0.5936918844 | FZ44: -0.1708965863 | GA44: 0.01719623704 | GB44: 0.09268433872 | GC44: -0.1003203648 | GD44: 0.1650926024 | GE44: 0.4605840838 | GF44: 0.2088341283 | GG44: 0.003229389881 | GH44: 0.01791433098 | GI44: 0.08109702761 | GJ44: 0.2711694162 | GK44: 0.7058011496 | GL44: 0.1955300559 | GM44: 0.006712990497 | GN44: 0.03210708081 | GO44: 0.1060466778 | GP44: 0.1380347379 | GQ44: 0.4656380891 | GR44: 0.1309099745 | GS44: 0.06671116029 | GT44: 0.3404374762 | GU44: 0.02711474947 | GV44: 0.7052661929 | GW44: 0.978896481 | GX44: 0.06860385995 | GY44: 0.3574553739 | GZ44: 0.7165215223 | HA44: 0.09716927379 | HB44: 0.174345286 | HC44: 0.4295379872 | HD44: 0.1294347959 | HE44: 0.06986637257 | HF44: 0.2570167502 | HG44: 1 | HH44: 1 | HJ44: 1 | HK44: 1 | HL44: 1 | HN44: 1 | HO44: COMPOUND_153_0193a0_51 | HP44: 515 | HQ44: 0.51 | HR44: 153.0193 | HS44: w/o MS2:protocatechuic acid | HT44: [M-H]- | HU44: adduct linked to 969_[M+Cl]-; adduct linked to 1334_[3M-H]-; similar chromatogram in higher mz_2472; similar chromatogram in higher mz_2410; similar chromatogram in higher mz_2383; similar chromatogram in higher mz_2576 | HV44: 0.9910714 | HW44: FALSE | HX44: C7H6O4 | IC44: -1 | ID44: -1 | IE44: -1 | IF44: -1 | IG44: -1 | IH44: 180718MR_Grainmark_Hilic_neg_058 | II44: 153.01903:31989 154.02238:3722 155.02574:696 | IK44: 58425 | IL44: 63134 | IM44: 28530 | IN44: 8312 | IO44: 51614 | IP44: 32947 | IQ44: 47159 | IR44: 35501 | IS44: 73037 | IT44: 56531 | IU44: 56231 | IV44: 34767 | IW44: 28195 | IX44: 35741 | IY44: 89220 | IZ44: 33850 | JA44: 25669 | JB44: 17258 | JC44: 23906 | JD44: 20217 | JE44: 23924 | JF44: 29640 | JG44: 21082 | JH44: 31856 | JI44: 24809 | JJ44: 49458 | JK44: 55430 | JL44: 19652 | JM44: 30614 | JN44: 10000 | JO44: 21877 | JP44: 24077 | JQ44: 28606 | JR44: 43139 | JS44: 41549 | JT44: 21028 | JU44: 30348 | JV44: 15858 | JW44: 22960 | JX44: 85341 | JY44: 36103 | JZ44: 23426 | KA44: 60027 | KB44: 7317 | KC44: 106596 | KD44: 14042 | KE44: 23776 | KF44: 10598 | KG44: 32717 | KH44: 60155 | KI44: 38963 | KJ44: 40152 | KK44: 19351 | KL44: 92661 | KM44: 4803 | KN44: 35533 | KO44: 26821 | KP44: 20383 | KQ44: 7914 | KR44: 7314 | KS44: 17777 | KT44: 13838 | KU44: 9362 | KV44: 33845 | KW44: 30703 | KX44: 53655 | KY44: 31599 | KZ44: 13719 | LA44: 14346 | LB44: 53091 | LC44: 17383 | LD44: 42879 | LE44: 15553 | LF44: 14343 | LG44: 18853 | LH44: 18697 | LI44: 17097 | LJ44: 20345 | LK44: 34625 | LL44: 10809 | LM44: 26652 | LN44: 16052 | LO44: 31330 | LP44: 10968 | LQ44: 35585 | LR44: 33769 | LS44: 28079 | LT44: 30494 | LU44: 21104 | LV44: 15958 | LW44: 20498 | LX44: 52907 | LY44: 51688 | LZ44: 12497 | MA44: 21441 | MB44: 23291 | MC44: 10471 | MD44: 16420 | ME44: 40825 | MF44: 30137 | MG44: 19580 | MH44: 35699 | MI44: 61711 | MJ44: 44960 | MK44: 23037 | ML44: 41937 | MM44: 24977 | MN44: 11387 | MO44: 42104 | MP44: 39707 | MQ44: 32784 | MR44: 9279 | MS44: 64352 | MT44: 9990 | MU44: 24928 | MV44: 26287 | MW44: 23027 | MX44: 35071 | MY44: 24135 | MZ44: 27393 | NA44: 31370 | NB44: 45827 | NC44: 41512 | ND44: 9281 | NE44: 33275 | NF44: 35557 | NG44: 33535 | NH44: 45592 | NI44: 34673 | NJ44: 43440 | NK44: 14117 | NL44: 12520 | NM44: 13862 | NN44: 45244 | NO44: 11210 | NP44: 32179 | NQ44: 18997 | NR44: 31446 | NS44: 18880 | NT44: 40167 | NU44: 41840 | NV44: 97017 | NW44: 32337 | NX44: 26156 | NY44: 22558 | NZ44: 17084 | OA44: 44185 | OB44: 95845 | OC44: 7633 | OD44: 35116 | OE44: 31941 | OF44: 12187 | OG44: 18968 | OH44: 21608 | OI44: 48316 | OJ44: 63171 | OK44: 13467 | OL44: 21057 | OM44: 18684 | ON44: 14566 | OO44: 8020 | OP44: 6698 | OQ44: 7062 | OR44: 53612 | OS44: 15676 | OT44: 72097 | OU44: 29057 | OV44: 10396 | OW44: 27044 | OX44: 29033 | OY44: 8181 | OZ44: 18314 | PA44: 21183 | PB44: 26884 | PC44: 11072 | PD44: 32909 | PE44: 24468 | PF44: 13157 | PG44: 12078 | PH44: 10325 | PI44: 44787 | PJ44: 18630 | PK44: 17151 | PL44: 12640 | PM44: 17513 | PN44: 46986 | PO44: 12206 | PP44: 14525 | PQ44: 13742 | PR44: 15557 | PS44: 29666 | PT44: 10696 | PU44: 28572 | PV44: 20951 | PW44: 22364 | PX44: 53919 | PY44: 11562 | QG44: 24141 | QH44: 28326 | QI44: 29522 | QJ44: 28416 | QK44: 32274 | QL44: 31264 | QM44: 30331 | QN44: 30810 | QO44: 31063 | QP44: 32625 | QQ44: 33704 | QR44: 32771 | QS44: 33542 | QT44: 32112 | QU44: 31563 | QV44: 31030 | QW44: 32109 | QX44: 26902 | QY44: 28857 | QZ44: 29451 | RA44: 27834 | RB44: 26268 | RC44: 27923 | RD44: 28315 | RE44: 25573 | RF44: 25500 | RG44: 23869 | RL44: =AVERAGE(QG44:RH44) -> 29485
A45: COMPOUND_156_0774a6_81 | B45: HILIC_POS | D45: 353 | E45: 6.81 | F45: 156.0774 | G45: L-Histidine | H45: Amino acid | I45: 1 | J45: HMDB0000177 | K45: x | L45: L-Histidine | M45: [M+H]+ | N45: adduct linked to 434_[M+Na]+ | O45: 1 | P45: TRUE | Q45: C6H9N3O2 | S45: HNDVDQJCIGZPNO-YFKPBYRVSA-N | T45: N[C@@H](CC1=CNC=N1)C(O)=O | V45: -1 | W45: -1 | X45: 919.9864 | Y45: 960.6693 | Z45: 875 | AA45: 180709MR_Grainmark_Hilic_pos_234 | AB45: 156.07748:109727 157.08083:12122 158.08419:1184 | AC45: 56.04959:192 56.22272:29 68.04819:44 82.05224:350 82.09012:12 83.06046:638 83.08721:32 83.24126:23 83.34743:34 85.19361:23 88.21109:36 93.04523:904 93.18652:26 95.06041:434 95.10681:5 109.88793:29 110.07098:2164 110.11379:34 110.13202:33 156.0755:40 | AD45: kept | AE45: COMPOUND_156_0774a6_81 | AF45: 0.5640148435 | AG45: 0.006517505744 | AH45: 0.5333894516 | AJ45: 0.24211023 | AK45: 0.2323956078 | AL45: 0.6132360763 | AM45: -0.001108769016 | AN45: 0.9955808235 | AO45: 0.9998974272 | AP45: =-LOG10(AO45) -> 4.454908831e-05 | AQ45: 0.2553898309 | AR45: 0.2049053749 | AS45: 0.4883617092 | AT45: -0.5651236125 | AU45: -1.101425982 | AV45: -0.02882124352 | AW45: 0.04282643145 | AX45: 0.9131269428 | AY45: 0.2867395749 | AZ45: -0.1850288475 | BA45: 0.7585079973 | BB45: 0.2359558443 | BC45: 0.8879474825 | BD45: 0.5640148435 | BE45: 0.1904102314 | BF45: 0.9376194557 | BG45: 0.004283397029 | BH45: 0.3358854824 | BI45: -0.5008974282 | BJ45: -0.5289408159 | BK45: 0.01327960089 | BL45: -0.5585442511 | BM45: 0.5851034528 | BN45: 0.9638328983 | BO45: 0.9995140707 | BP45: 0.2867395749 | BQ45: -0.189452055 | BR45: 0.7629312048 | BS45: 0.2402097493 | BT45: 0.910693648 | BU45: 0.24211023 | BV45: -0.1562397322 | BW45: 0.6404601922 | BX45: 0.2378287862 | BY45: 0.6235804535 | BZ45: 0.01103913905 | CA45: -0.1913292281 | CB45: -0.031610972 | CC45: 0.7158864492 | CD45: 0.9957477122 | CE45: -0.09747376205 | CF45: 0.2625264107 | CG45: 0.7937874833 | CH45: 0.007267345813 | CI45: 0.9333308673 | CJ45: 0.9829079504 | CK45: 0.1584467448 | CL45: 0.06643483918 | CM45: 0.4085311215 | CN45: -0.03757465586 | CO45: 0.6652536659 | CP45: 0.9984985385 | CQ45: -0.1286039491 | CR45: 0.1386310779 | CS45: 0.7824444225 | CT45: 0.0278728078 | CU45: 0.7464556023 | CV45: 0.9967977033 | CW45: -0.1759734175 | CX45: 0.04781787762 | CY45: 0.6482304923 | CZ45: -0.03287502671 | DA45: 0.7082450723 | DB45: 0.9992844709 | DC45: 0.005214336028 | DD45: 0.9517785759 | DE45: 0.9909651297 | DF45: -0.03835232314 | DG45: 0.6563536628 | DH45: 0.9995798835 | DI45: 0.1266948642 | DJ45: 0.1401346929 | DK45: 0.6374954266 | DL45: -0.02565691513 | DM45: 0.7772869451 | DN45: 0.9986115224 | DO45: 0.03949661586 | DP45: 0.6467806918 | DQ45: 0.9214505064 | DR45: 0.04482887918 | DS45: 0.6029503242 | DT45: 0.9637285951 | DU45: -0.031610972 | DV45: 0.7158864492 | DW45: 0.9957477122 | DX45: -0.09747376205 | DY45: 0.2625264107 | DZ45: 0.7937874833 | EA45: 0.007267345813 | EB45: 0.9333308673 | EC45: 0.9829079504 | ED45: 0.1584467448 | EE45: 0.06643483918 | EF45: 0.4085311215 | EG45: -0.03757465586 | EH45: 0.6652536659 | EI45: 0.9984985385 | EJ45: -0.1286039491 | EK45: 0.1386310779 | EL45: 0.7824444225 | EM45: 0.0278728078 | EN45: 0.7464556023 | EO45: 0.9967977033 | EP45: -0.1759734175 | EQ45: 0.04781787762 | ER45: 0.6482304923 | ES45: -0.03287502671 | ET45: 0.7082450723 | EU45: 0.9992844709 | EV45: 0.005214336028 | EW45: 0.9517785759 | EX45: 0.9909651297 | EY45: -0.03835232314 | EZ45: 0.6563536628 | FA45: 0.9995798835 | FB45: 0.1266948642 | FC45: 0.1401346929 | FD45: 0.6374954266 | FE45: -0.02565691513 | FF45: 0.7772869451 | FG45: 0.9986115224 | FH45: 0.03949661586 | FI45: 0.6467806918 | FJ45: 0.9214505064 | FK45: 0.04482887918 | FL45: 0.6029503242 | FM45: 0.9637285951 | FN45: 0.01727966377 | FO45: 0.8076399275 | FP45: 0.9084596517 | FQ45: 0.05732319672 | FR45: 0.4200962233 | FS45: 0.7077046669 | FT45: -0.2476081323 | FU45: 0.000394248852 | FV45: 0.002437943694 | FW45: 0.2060129148 | FX45: 0.003345594471 | FY45: 0.0138785643 | FZ45: 0.1163016567 | GA45: 0.1001429164 | GB45: 0.3006216861 | GC45: 0.1596015226 | GD45: 0.02398003995 | GE45: 0.1754916865 | GF45: 0.2473252943 | GG45: 0.0003619562181 | GH45: 0.002969564072 | GI45: -0.2763348195 | GJ45: 0.000100224389 | GK45: 0.03588162117 | GL45: 0.2626448188 | GM45: 0.0001853551951 | GN45: 0.001728156946 | GO45: 0.05153189041 | GP45: 0.4641768521 | GQ45: 0.7771449709 | GR45: -0.1359697214 | GS45: 0.05248701411 | GT45: 0.2981589276 | GU45: 0.0992940917 | GV45: 0.1576607277 | GW45: 0.83727014 | GX45: 0.07605753528 | GY45: 0.2982520333 | GZ45: 0.6669212756 | HA45: -0.08485608316 | HB45: 0.22754092 | HC45: 0.5026220456 | HD45: 0.1097758159 | HE45: 0.1180513735 | HF45: 0.3495256581 | HG45: 1 | HI45: 1 | HL45: 1 | HO45: COMPOUND_156_0774a6_81 | HP45: 353 | HQ45: 6.81 | HR45: 156.0774 | HS45: L-Histidine | HT45: [M+H]+ | HU45: adduct linked to 434_[M+Na]+ | HV45: 1 | HW45: TRUE | HX45: C6H9N3O2 | HZ45: HNDVDQJCIGZPNO-YFKPBYRVSA-N | IA45: N[C@@H](CC1=CNC=N1)C(O)=O | IC45: -1 | ID45: -1 | IE45: 919.9864 | IF45: 960.6693 | IG45: 875 | IH45: 180709MR_Grainmark_Hilic_pos_234 | II45: 156.07748:109727 157.08083:12122 158.08419:1184 | IJ45: 56.04959:192 56.22272:29 68.04819:44 82.05224:350 82.09012:12 83.06046:638 83.08721:32 83.24126:23 83.34743:34 85.19361:23 88.21109:36 93.04523:904 93.18652:26 95.06041:434 95.10681:5 109.88793:29 110.07098:2164 110.11379:34 110.13202:33 156.0755:40 | IK45: 1646915 | IL45: 1369224 | IM45: 1466646 | IN45: 1993700 | IO45: 1236972 | IP45: 1465627 | IQ45: 1659594 | IR45: 1805122 | IS45: 1689098 | IT45: 1817195 | IU45: 1731036 | IV45: 1994589 | IW45: 1910873 | IX45: 1602215 | IY45: 1314761 | IZ45: 1930746 | JA45: 1602961 | JB45: 1527071 | JC45: 1540772 | JD45: 1767943 | JE45: 1788829 | JF45: 1856865 | JG45: 1998004 | JH45: 1977592 | JI45: 1617396 | JJ45: 1767473 | JK45: 1656844 | JL45: 1485328 | JM45: 1389831 | JN45: 1583294 | JO45: 1687498 | JP45: 1589617 | JQ45: 1788399 | JR45: 1627421 | JS45: 1928589 | JT45: 1764792 | JU45: 1498889 | JV45: 1543440 | JW45: 1419120 | JX45: 1445291 | JY45: 1499311 | JZ45: 1593333 | KA45: 1551737 | KB45: 1640998 | KC45: 1578879 | KD45: 1647732 | KE45: 1981229 | KF45: 1819840 | KG45: 1801832 | KH45: 1560759 | KI45: 1526218 | KJ45: 1365738 | KK45: 1560729 | KL45: 1697750 | KM45: 1354153 | KN45: 1894981 | KO45: 1718415 | KP45: 1751985 | KQ45: 1722302 | KR45: 1727754 | KS45: 1826395 | KT45: 1476199 | KU45: 1412253 | KV45: 1614918 | KW45: 1697306 | KX45: 1679126 | KY45: 1529553 | KZ45: 1371278 | LA45: 1757080 | LB45: 1657290 | LC45: 1482890 | LD45: 1634923 | LE45: 1637667 | LF45: 1709319 | LG45: 1597608 | LH45: 1640745 | LI45: 1487074 | LJ45: 1633004 | LK45: 1707490 | LL45: 1665343 | LM45: 1461856 | LN45: 1794818 | LO45: 1641925 | LP45: 1613514 | LQ45: 1915556 | LR45: 1484247 | LS45: 1842943 | LT45: 1493878 | LU45: 1494681 | LV45: 1551956 | LW45: 1520690 | LX45: 1646700 | LY45: 1492582 | LZ45: 1605816 | MA45: 1497167 | MB45: 1372722 | MC45: 1375511 | MD45: 1333024 | ME45: 1338071 | MF45: 1542153 | MG45: 1528110 | MH45: 1516281 | MI45: 1764526 | MJ45: 1457149 | MK45: 1415752 | ML45: 1509322 | MM45: 1348527 | MN45: 1357581 | MO45: 1332964 | MP45: 1464179 | MQ45: 1390071 | MR45: 1175742 | MS45: 1232452 | MT45: 1348538 | MU45: 1460758 | MV45: 1422923 | MW45: 1154796 | MX45: 1275387 | MY45: 1108178 | MZ45: 1182078 | NA45: 1423193 | NB45: 1092398 | NC45: 1463121 | ND45: 1493883 | NE45: 1338992 | NF45: 1617959 | NG45: 1417047 | NH45: 1575430 | NI45: 1276718 | NJ45: 1047645 | NK45: 1291623 | NL45: 1323899 | NM45: 1348143 | NN45: 1381766 | NO45: 1400663 | NP45: 1412097 | NQ45: 1634617 | NR45: 1640552 | NS45: 1452890 | NT45: 1478755 | NU45: 1466786 | NV45: 1633038 | NW45: 1344343 | NX45: 1327962 | NY45: 1637652 | NZ45: 1320600 | OA45: 1384417 | OB45: 1626937 | OC45: 1549259 | OD45: 1435073 | OE45: 1632709 | OF45: 1428992 | OG45: 1547590 | OH45: 1437585 | OI45: 4415143 | OJ45: 1513870 | OK45: 1696463 | OL45: 1711418 | OM45: 1686108 | ON45: 1739332 | OO45: 1559212 | OP45: 1435663 | OQ45: 1574104 | OR45: 1324770 | OS45: 1463374 | OT45: 1450196 | OU45: 1399958 | OV45: 1533694 | OW45: 1507452 | OX45: 1795816 | OY45: 1587063 | OZ45: 1937576 | PA45: 1960833 | PB45: 1657983 | PC45: 1583340 | PD45: 1638035 | PE45: 1639804 | PF45: 1363335 | PG45: 1078162 | PH45: 1419264 | PI45: 1770612 | PJ45: 1919601 | PK45: 1861897 | PL45: 1781086 | PM45: 1771971 | PN45: 1650646 | PO45: 1715695 | PP45: 1382964 | PQ45: 1485259 | PR45: 1411991 | PS45: 1563620 | PT45: 1785402 | PU45: 1806916 | PV45: 1724641 | PW45: 1696497 | PX45: 1862088 | PY45: 1745049 | PZ45: 1944006 | QA45: 1522890 | QB45: 1608582 | QC45: 1530167 | QD45: 1813190 | QE45: 1686703 | QF45: 1562926 | QG45: 1771358 | QH45: 1669051 | QI45: 1658811 | QJ45: 1647068 | QK45: 1650528 | QL45: 1592694 | QM45: 1611199 | QN45: 1643611 | QO45: 1635928 | QP45: 1619140 | QQ45: 1609480 | QR45: 1578840 | QS45: 1615012 | QT45: 1610064 | QU45: 1617661 | QV45: 1603886 | QW45: 1561267 | QX45: 1482254 | QY45: 1526543 | QZ45: 1453018 | RA45: 1378375 | RB45: 1470144 | RC45: 1408539 | RD45: 1457842 | RE45: 1491272 | RF45: 1554645 | RG45: 1570471 | RH45: 1477604 | RI45: 872358 | RJ45: 918186 | RK45: 897316 | RL45: =AVERAGE(QG45:RH45) -> 1570225.179
A46: COMPOUND_158_1179a3_19 | B46: HILIC_POS | D46: 356 | E46: 3.19 | F46: 158.1179 | G46: Pipecolic acid betaine | H46: Betaine | I46: 1 | J46: HMDB0033433 | K46: x | L46: w/o MS2:Tropinone | M46: [M+H]+ | O46: 0.893617 | P46: FALSE | Q46: C8H13NO | S46: QQXLDOJGLXJCSE-UHFFFAOYNA-N | T46: CN1C2CCC1CC(=O)C2 | V46: -1 | W46: -1 | X46: -1 | Y46: -1 | Z46: -1 | AA46: 180709MR_Grainmark_Hilic_pos_168 | AB46: 158.11801:38970 159.12136:4519 160.12472:271 | AD46: kept | AE46: COMPOUND_158_1179a3_19 | AF46: 0.2842549586 | AG46: 0.02532020777 | AH46: 0.7643369006 | AJ46: 0.2984296289 | AK46: 0.01909398872 | AL46: 0.1589509328 | AM46: 1.316397939 | AN46: 1.721013865e-13 | AO46: 1.901433485e-10 | AP46: =-LOG10(AO46) -> 9.720918862 | AQ46: 1.767297906 | AR46: 8.382924314e-19 | AS46: 7.938629325e-16 | AT46: 1.03214298 | AU46: 0.6382527061 | AV46: 1.426033255 | AW46: 2.69E-06 | AX46: 0.007253142735 | AY46: 0.0002931480735 | AZ46: -0.3578658634 | BA46: 0.3584521596 | BB46: 0.9987228318 | BC46: 0.9997785641 | BD46: 0.2842549586 | BE46: 0.009858961756 | BF46: 0.5586509554 | BG46: 0.04635048189 | BH46: 0.7739479709 | BI46: 1.247139841 | BJ46: 1.251489667 | BK46: 1.468868277 | BL46: 1.056368576 | BM46: 1.881367978 | BN46: 1.763604181e-09 | BO46: 5.845466058e-06 | BP46: 0.0002931480735 | BQ46: -0.3814387753 | BR46: 0.3820250715 | BS46: 0.9988017385 | BT46: 0.999812697 | BU46: 0.2984296289 | BV46: 0.01106973695 | BW46: 0.5857895209 | BX46: 0.04582248415 | BY46: 0.2807368276 | BZ46: 1.697238487 | CA46: 2.124957182 | CB46: -0.2924104344 | CC46: 0.0005786182538 | CD46: 0.2948826421 | CE46: -0.2947805035 | CF46: 0.0005451737661 | CG46: 0.09817284414 | CH46: -0.1462024935 | CI46: 0.09064069983 | CJ46: 0.5735554984 | CK46: 0.0428767666 | CL46: 0.6214632463 | CM46: 0.9042317514 | CN46: -0.2741064126 | CO46: 0.001295115349 | CP46: 0.330500156 | CQ46: -0.06674125086 | CR46: 0.4435557579 | CS46: 0.91673445 | CT46: -0.03037788307 | CU46: 0.7245477067 | CV46: 0.9967977033 | CW46: -0.02499075081 | CX46: 0.7803289178 | CY46: 0.9973863525 | CZ46: -0.05380117104 | DA46: 0.5400791947 | DB46: 0.9992844709 | DC46: 0.0575159249 | DD46: 0.5043945406 | DE46: 0.9353555341 | DF46: -0.08277482733 | DG46: 0.3362361323 | DH46: 0.9995798835 | DI46: -0.119698235 | DJ46: 0.1635565383 | DK46: 0.6768381797 | DL46: 0.1051784894 | DM46: 0.244998256 | DN46: 0.9986115224 | DO46: -0.1518930877 | DP46: 0.07641631221 | DQ46: 0.3899139729 | DR46: -0.07201525164 | DS46: 0.4029973271 | DT46: 0.9323915336 | DU46: -0.2924104344 | DV46: 0.0005786182538 | DW46: 0.2948826421 | DX46: -0.2947805035 | DY46: 0.0005451737661 | DZ46: 0.09817284414 | EA46: -0.1462024935 | EB46: 0.09064069983 | EC46: 0.5735554984 | ED46: 0.0428767666 | EE46: 0.6214632463 | EF46: 0.9042317514 | EG46: -0.2741064126 | EH46: 0.001295115349 | EI46: 0.330500156 | EJ46: -0.06674125086 | EK46: 0.4435557579 | EL46: 0.91673445 | EM46: -0.03037788307 | EN46: 0.7245477067 | EO46: 0.9967977033 | EP46: -0.02499075081 | EQ46: 0.7803289178 | ER46: 0.9973863525 | ES46: -0.05380117104 | ET46: 0.5400791947 | EU46: 0.9992844709 | EV46: 0.0575159249 | EW46: 0.5043945406 | EX46: 0.9353555341 | EY46: -0.08277482733 | EZ46: 0.3362361323 | FA46: 0.9995798835 | FB46: -0.119698235 | FC46: 0.1635565383 | FD46: 0.6768381797 | FE46: 0.1051784894 | FF46: 0.244998256 | FG46: 0.9986115224 | FH46: -0.1518930877 | FI46: 0.07641631221 | FJ46: 0.3899139729 | FK46: -0.07201525164 | FL46: 0.4029973271 | FM46: 0.9323915336 | FN46: 0.006146355956 | FO46: 0.930991865 | FP46: 0.9693018805 | FQ46: 0.01108289909 | FR46: 0.8762236065 | FS46: 0.9561294301 | FT46: 0.1205284418 | FU46: 0.08831626113 | FV46: 0.1871040253 | FW46: -0.1655682762 | FX46: 0.01882740704 | FY46: 0.05912216071 | FZ46: -0.04228656635 | GA46: 0.5511463661 | GB46: 0.7821959616 | GC46: -0.1468542111 | GD46: 0.03797928141 | GE46: 0.2235575571 | GF46: -0.2922809087 | GG46: 2.215812296e-05 | GH46: 0.0003105416429 | GI46: -0.1676073296 | GJ46: 0.01981378953 | GK46: 0.2458025446 | GL46: -0.2974153843 | GM46: 2.088640092e-05 | GN46: 0.0003023055714 | GO46: -0.05635476692 | GP46: 0.4233646594 | GQ46: 0.7557146027 | GR46: -0.1203285972 | GS46: 0.08647184716 | GT46: 0.3977945002 | GU46: -0.09480766813 | GV46: 0.1773871506 | GW46: 0.8633622769 | GX46: 0.09845471501 | GY46: 0.1777142773 | GZ46: 0.5381763107 | HA46: -0.1341729509 | HB46: 0.05571511724 | HC46: 0.2027088431 | HD46: -0.005166799692 | HE46: 0.9415326307 | HF46: 0.9800574123 | HG46: 1 | HH46: 1 | HI46: 1 | HJ46: 1 | HM46: 1 | HN46: 1 | HO46: COMPOUND_158_1179a3_19 | HP46: 356 | HQ46: 3.19 | HR46: 158.1179 | HS46: w/o MS2:Tropinone | HT46: [M+H]+ | HV46: 0.893617 | HW46: FALSE | HX46: C8H13NO | HZ46: QQXLDOJGLXJCSE-UHFFFAOYNA-N | IA46: CN1C2CCC1CC(=O)C2 | IC46: -1 | ID46: -1 | IE46: -1 | IF46: -1 | IG46: -1 | IH46: 180709MR_Grainmark_Hilic_pos_168 | II46: 158.11801:38970 159.12136:4519 160.12472:271 | IK46: 16182 | IL46: 14006 | IM46: 29161 | IN46: 25151 | IO46: 40207 | IP46: 26513 | IQ46: 67560 | IR46: 76726 | IS46: 140041 | IT46: 25212 | IU46: 12586 | IV46: 41952 | IW46: 78544 | IX46: 20099 | IY46: 30363 | IZ46: 11559 | JA46: 26040 | JB46: 5098 | JC46: 37294 | JD46: 14477 | JE46: 11754 | JF46: 14634 | JG46: 30460 | JH46: 33893 | JI46: 39450 | JJ46: 24551 | JK46: 19724 | JL46: 75863 | JM46: 26342 | JN46: 13553 | JO46: 30697 | JP46: 29195 | JQ46: 122105 | JR46: 25774 | JS46: 74303 | JT46: 67228 | JU46: 13811 | JV46: 17470 | JW46: 145249 | JX46: 20959 | JY46: 20970 | JZ46: 19339 | KA46: 18361 | KB46: 73202 | KC46: 18523 | KD46: 21599 | KE46: 28246 | KF46: 20603 | KG46: 14748 | KH46: 115566 | KI46: 120526 | KJ46: 12953 | KK46: 16157 | KL46: 18287 | KM46: 8396 | KN46: 75670 | KO46: 142921 | KP46: 57708 | KQ46: 74933 | KR46: 20752 | KS46: 63910 | KT46: 16007 | KU46: 51623 | KV46: 12511 | KW46: 91952 | KX46: 52560 | KY46: 13113 | KZ46: 25229 | LA46: 73069 | LB46: 17719 | LC46: 71316 | LD46: 60023 | LE46: 10051 | LF46: 9678 | LG46: 26480 | LH46: 16339 | LI46: 34274 | LJ46: 9520 | LK46: 12163 | LL46: 56040 | LM46: 101564 | LN46: 19922 | LO46: 27342 | LP46: 40662 | LQ46: 20049 | LR46: 47088 | LS46: 12091 | LT46: 5444 | LU46: 37925 | LV46: 45071 | LW46: 12558 | LX46: 76219 | LY46: 29771 | LZ46: 9427 | MA46: 39727 | MB46: 24046 | MC46: 77996 | MD46: 23291 | ME46: 12788 | MF46: 131616 | MG46: 69635 | MH46: 60763 | MI46: 13855 | MJ46: 29385 | MK46: 19763 | ML46: 23746 | MM46: 139524 | MN46: 142218 | MO46: 15759 | MP46: 54148 | MQ46: 11302 | MR46: 23143 | MS46: 22113 | MT46: 13103 | MU46: 18706 | MV46: 17066 | MW46: 31273 | MX46: 16019 | MY46: 51768 | MZ46: 85378 | NA46: 13282 | NB46: 34506 | NC46: 14152 | ND46: 29875 | NE46: 13051 | NF46: 51802 | NG46: 45782 | NH46: 22455 | NI46: 33991 | NJ46: 13262 | NK46: 26053 | NL46: 67977 | NM46: 23648 | NN46: 19068 | NO46: 20554 | NP46: 60040 | NQ46: 14556 | NR46: 24138 | NS46: 30880 | NT46: 14392 | NU46: 77161 | NV46: 14668 | NW46: 29544 | NX46: 27368 | NY46: 39053 | NZ46: 233004 | OA46: 20650 | OB46: 67159 | OC46: 12161 | OD46: 9608 | OE46: 13425 | OF46: 155348 | OG46: 9548 | OH46: 8440 | OI46: 19370 | OJ46: 161038 | OK46: 92201 | OL46: 57784 | OM46: 114179 | ON46: 16638 | OO46: 11621 | OP46: 40834 | OQ46: 21888 | OR46: 13471 | OS46: 139232 | OT46: 20579 | OU46: 9518 | OV46: 8959 | OW46: 73386 | OX46: 11845 | OY46: 43024 | OZ46: 25413 | PA46: 80874 | PB46: 12376 | PC46: 9823 | PD46: 14402 | PE46: 13635 | PF46: 52689 | PG46: 32220 | PH46: 64385 | PI46: 19319 | PJ46: 62521 | PK46: 10047 | PL46: 44881 | PM46: 23076 | PN46: 16740 | PO46: 48297 | PP46: 7970 | PQ46: 54543 | PR46: 19977 | PS46: 13189 | PT46: 9528 | PU46: 157661 | PV46: 29338 | PW46: 52742 | PX46: 11198 | PY46: 8982 | PZ46: 29220 | QA46: 77612 | QB46: 28115 | QC46: 14466 | QD46: 11209 | QE46: 9959 | QF46: 54689 | QG46: 44804 | QH46: 49383 | QI46: 45232 | QJ46: 47716 | QK46: 45037 | QL46: 44903 | QM46: 42716 | QN46: 47848 | QO46: 43134 | QP46: 42460 | QQ46: 43598 | QR46: 43376 | QS46: 42568 | QT46: 37261 | QU46: 38111 | QV46: 38030 | QW46: 37181 | QX46: 34834 | QY46: 38653 | QZ46: 38355 | RA46: 35511 | RB46: 35514 | RC46: 32118 | RD46: 36425 | RE46: 35091 | RF46: 35523 | RG46: 34163 | RH46: 32112 | RI46: 17696 | RJ46: 18337 | RK46: 14219 | RL46: =AVERAGE(QG46:RH46) -> 40059.17857
A47: COMPOUND_160_1336a2_13 | B47: HILIC_POS | D47: 370 | E47: 2.13 | F47: 160.1336 | G47: 5-Aminovaleric acid betaine (5-AVAB) | H47: Betaine | I47: 1 | J47: HMDB0240732 | K47: x | L47: METHACHOLINE | M47: [M+H]+ | O47: 1 | P47: TRUE | Q47: C8H18NO2 | S47: NZWOPGCLSHLLPA-UHFFFAOYNA-N | T47: CC(C[N+](C)(C)C)OC(C)=O | V47: -1 | W47: -1 | X47: 807.4841 | Y47: 788.4408 | Z47: 600 | AA47: 180709MR_Grainmark_Hilic_pos_233 | AB47: 160.13327:33489 161.13662:5726 162.13998:397 | AC47: 42.81334:5 44.0487:82 55.05689:183 60.07976:128 60.2292:51 101.06062:763 101.10571:23 160.13301:1350 160.18465:30 160.20235:14 | AD47: kept | AE47: COMPOUND_160_1336a2_13 | AF47: 0.1735047862 | AG47: 0.1353336157 | AH47: 0.9755617995 | AJ47: 0.1601109645 | AK47: 0.1676526921 | AL47: 0.5320103858 | AM47: -0.01927278374 | AN47: 0.866983408 | AO47: 0.9841152417 | AP47: =-LOG10(AO47) -> 0.006954041897 | AQ47: 0.2655339511 | AR47: 0.02371955539 | AS47: 0.1454122003 | AT47: -0.1927775699 | AU47: -0.5091346896 | AV47: 0.1235795498 | AW47: 0.2366207978 | AX47: 0.9492347666 | AY47: -0.2060392736 | AZ47: -0.6817112901 | BA47: 0.2696327429 | BB47: 0.3983668117 | BC47: 0.9235000354 | BD47: 0.1735047862 | BE47: -0.04687924685 | BF47: 0.3938888192 | BG47: 0.1276006612 | BH47: 0.8781182252 | BI47: -0.2897386653 | BJ47: -0.2798150433 | BK47: 0.1054229866 | BL47: -0.2347473822 | BM47: 0.4455933555 | BN47: 0.545658481 | BO47: 0.9779451716 | BP47: -0.2060392736 | BQ47: -0.6863276276 | BR47: 0.2742490805 | BS47: 0.4028280577 | BT47: 0.9363200261 | BU47: 0.1601109645 | BV47: -0.07686210533 | BW47: 0.3970840343 | BX47: 0.189987593 | BY47: 0.5706076364 | BZ47: 0.147319503 | CA47: -0.1027378819 | CB47: -0.08186235511 | CC47: 0.345223159 | CD47: 0.9434937605 | CE47: -0.1348218446 | CF47: 0.120386262 | CG47: 0.6606295783 | CH47: -0.04264207557 | CI47: 0.623375247 | CJ47: 0.8952648329 | CK47: 0.157228932 | CL47: 0.06857765677 | CM47: 0.4144938534 | CN47: -0.07614879759 | CO47: 0.3800429815 | CP47: 0.9465170492 | CQ47: -0.1373311346 | CR47: 0.1135728765 | CS47: 0.7553181825 | CT47: 0.07100186895 | CU47: 0.4096656464 | CV47: 0.9967977033 | CW47: -0.1192979657 | CX47: 0.1815809363 | CY47: 0.9558127682 | CZ47: -0.001253962267 | DA47: 0.9886146479 | DB47: 0.9993247738 | DC47: -0.0391441819 | DD47: 0.6497230366 | DE47: 0.9578783572 | DF47: -0.02206241622 | DG47: 0.7980288181 | DH47: 0.9995798835 | DI47: 0.0834720637 | DJ47: 0.3321675843 | DK47: 0.8445248987 | DL47: -0.04059660876 | DM47: 0.6543906864 | DN47: 0.9986115224 | DO47: 0.003743020779 | DP47: 0.9653749759 | DQ47: 0.994364508 | DR47: -0.004688409263 | DS47: 0.9566372667 | DT47: 0.9958729286 | DU47: -0.08186235511 | DV47: 0.345223159 | DW47: 0.9434937605 | DX47: -0.1348218446 | DY47: 0.120386262 | DZ47: 0.6606295783 | EA47: -0.04264207557 | EB47: 0.623375247 | EC47: 0.8952648329 | ED47: 0.157228932 | EE47: 0.06857765677 | EF47: 0.4144938534 | EG47: -0.07614879759 | EH47: 0.3800429815 | EI47: 0.9465170492 | EJ47: -0.1373311346 | EK47: 0.1135728765 | EL47: 0.7553181825 | EM47: 0.07100186895 | EN47: 0.4096656464 | EO47: 0.9967977033 | EP47: -0.1192979657 | EQ47: 0.1815809363 | ER47: 0.9558127682 | ES47: -0.001253962267 | ET47: 0.9886146479 | EU47: 0.9993247738 | EV47: -0.0391441819 | EW47: 0.6497230366 | EX47: 0.9578783572 | EY47: -0.02206241622 | EZ47: 0.7980288181 | FA47: 0.9995798835 | FB47: 0.0834720637 | FC47: 0.3321675843 | FD47: 0.8445248987 | FE47: -0.04059660876 | FF47: 0.6543906864 | FG47: 0.9986115224 | FH47: 0.003743020779 | FI47: 0.9653749759 | FJ47: 0.994364508 | FK47: -0.004688409263 | FL47: 0.9566372667 | FM47: 0.9958729286 | FN47: 0.08637963602 | FO47: 0.2227359652 | FP47: 0.43671006 | FQ47: 0.01600223856 | FR47: 0.8220557203 | FS47: 0.9318042948 | FT47: 0.05399913494 | FU47: 0.446447516 | FV47: 0.6090760617 | FW47: 0.1622212846 | FX47: 0.02140289174 | FY47: 0.06529211658 | FZ47: 0.06334861084 | GA47: 0.3716334035 | GB47: 0.6455485282 | GC47: 0.1018732365 | GD47: 0.1511697737 | GE47: 0.4439984181 | GF47: 0.1792600379 | GG47: 0.01030488316 | GH47: 0.04500070517 | GI47: -0.01718713477 | GJ47: 0.8124723458 | GK47: 0.9675926575 | GL47: 0.1918785179 | GM47: 0.006767269054 | GN47: 0.03234335008 | GO47: -0.1506584833 | GP47: 0.03148384825 | GQ47: 0.2486995164 | GR47: 0.09079217602 | GS47: 0.1965399747 | GT47: 0.5968224883 | GU47: 0.09474345567 | GV47: 0.1776821587 | GW47: 0.8635300809 | GX47: 0.03515223031 | GY47: 0.6310810839 | GZ47: 0.8699327511 | HA47: 0.09068204008 | HB47: 0.197085686 | HC47: 0.4603527176 | HD47: 0.03981437423 | HE47: 0.5718065246 | HF47: 0.8148809682 | HO47: COMPOUND_160_1336a2_13 | HP47: 370 | HQ47: 2.13 | HR47: 160.1336 | HS47: METHACHOLINE | HT47: [M+H]+ | HV47: 1 | HW47: TRUE | HX47: C8H18NO2 | HZ47: NZWOPGCLSHLLPA-UHFFFAOYNA-N | IA47: CC(C[N+](C)(C)C)OC(C)=O | IC47: -1 | ID47: -1 | IE47: 807.4841 | IF47: 788.4408 | IG47: 600 | IH47: 180709MR_Grainmark_Hilic_pos_233 | II47: 160.13327:33489 161.13662:5726 162.13998:397 | IJ47: 42.81334:5 44.0487:82 55.05689:183 60.07976:128 60.2292:51 101.06062:763 101.10571:23 160.13301:1350 160.18465:30 160.20235:14 | IK47: 951214 | IL47: 406506 | IM47: 761484 | IN47: 1047907 | IO47: 673678 | IP47: 463571 | IQ47: 837452 | IR47: 889481 | IS47: 567231 | IT47: 810241 | IU47: 1050320 | IV47: 971344 | IW47: 754786 | IX47: 945741 | IY47: 618127 | IZ47: 690697 | JA47: 521601 | JB47: 626961 | JC47: 928527 | JD47: 890486 | JE47: 732787 | JF47: 847608 | JG47: 600242 | JH47: 788075 | JI47: 711332 | JJ47: 783888 | JK47: 868272 | JL47: 704524 | JM47: 659947 | JN47: 768234 | JO47: 676168 | JP47: 336881 | JQ47: 1036873 | JR47: 855930 | JS47: 842676 | JT47: 556728 | JU47: 1014313 | JV47: 788135 | JW47: 508431 | JX47: 1195839 | JY47: 512851 | JZ47: 524761 | KA47: 863754 | KB47: 670325 | KC47: 807092 | KD47: 739702 | KE47: 1003115 | KF47: 714370 | KG47: 841108 | KH47: 688207 | KI47: 812235 | KJ47: 517663 | KK47: 406818 | KL47: 747744 | KM47: 736276 | KN47: 647637 | KO47: 817541 | KP47: 874446 | KQ47: 812769 | KR47: 817924 | KS47: 1138276 | KT47: 424769 | KU47: 536512 | KV47: 887841 | KW47: 366455 | KX47: 757782 | KY47: 780795 | KZ47: 457407 | LA47: 1116674 | LB47: 1395417 | LC47: 749638 | LD47: 1034993 | LE47: 629583 | LF47: 535809 | LG47: 573998 | LH47: 841076 | LI47: 685234 | LJ47: 667537 | LK47: 722271 | LL47: 1045850 | LM47: 755599 | LN47: 799099 | LO47: 648631 | LP47: 695049 | LQ47: 826020 | LR47: 463910 | LS47: 551493 | LT47: 692655 | LU47: 629933 | LV47: 162096 | LW47: 815790 | LX47: 1057548 | LY47: 697042 | LZ47: 526038 | MA47: 439457 | MB47: 256067 | MC47: 573229 | MD47: 325530 | ME47: 589886 | MF47: 587993 | MG47: 691767 | MH47: 424831 | MI47: 853632 | MJ47: 581497 | MK47: 143549 | ML47: 697629 | MM47: 586337 | MN47: 454141 | MO47: 358100 | MP47: 680349 | MQ47: 351784 | MR47: 287475 | MS47: 788491 | MT47: 556267 | MU47: 568693 | MV47: 377748 | MW47: 479800 | MX47: 676107 | MY47: 333555 | MZ47: 554329 | NA47: 706018 | NB47: 509707 | NC47: 448980 | ND47: 503926 | NE47: 561845 | NF47: 509318 | NG47: 391088 | NH47: 589537 | NI47: 563542 | NJ47: 603397 | NK47: 667685 | NL47: 485541 | NM47: 473747 | NN47: 291767 | NO47: 455707 | NP47: 278814 | NQ47: 771800 | NR47: 649669 | NS47: 797785 | NT47: 604664 | NU47: 400061 | NV47: 572770 | NW47: 631383 | NX47: 1025227 | NY47: 561541 | NZ47: 912556 | OA47: 574171 | OB47: 568786 | OC47: 661125 | OD47: 397898 | OE47: 817055 | OF47: 804382 | OG47: 439977 | OH47: 396650 | OI47: 2925103 | OJ47: 697161 | OK47: 556506 | OL47: 607599 | OM47: 732364 | ON47: 546296 | OO47: 662213 | OP47: 714201 | OQ47: 822203 | OR47: 349732 | OS47: 579855 | OT47: 876329 | OU47: 501040 | OV47: 778548 | OW47: 477734 | OX47: 609320 | OY47: 549941 | OZ47: 718386 | PA47: 622132 | PB47: 690500 | PC47: 392423 | PD47: 814170 | PE47: 498509 | PF47: 604586 | PG47: 434051 | PH47: 708264 | PI47: 586193 | PJ47: 676344 | PK47: 600178 | PL47: 494924 | PM47: 698470 | PN47: 749384 | PO47: 616430 | PP47: 752790 | PQ47: 520748 | PR47: 558455 | PS47: 598980 | PT47: 563583 | PU47: 689059 | PV47: 689496 | PW47: 531134 | PX47: 560351 | PY47: 590992 | PZ47: 800276 | QA47: 517455 | QB47: 697547 | QC47: 329746 | QD47: 624018 | QE47: 596681 | QF47: 159910 | QG47: 834749 | QH47: 813694 | QI47: 797725 | QJ47: 781080 | QK47: 786588 | QL47: 761721 | QM47: 752281 | QN47: 750221 | QO47: 751778 | QP47: 754257 | QQ47: 709811 | QR47: 684635 | QS47: 714049 | QT47: 697147 | QU47: 669869 | QV47: 653437 | QW47: 629880 | QX47: 622471 | QY47: 604058 | QZ47: 597920 | RA47: 579552 | RB47: 587308 | RC47: 582815 | RD47: 574929 | RE47: 573268 | RF47: 557994 | RG47: 566277 | RH47: 552806 | RI47: 295557 | RJ47: 334803 | RK47: 334144 | RL47: =AVERAGE(QG47:RH47) -> 676511.4286
A48: COMPOUND_162_1129a4_91 | B48: HILIC_POS | D48: 374 | E48: 4.91 | F48: 162.1129 | G48: L-Carnitine | H48: Amino acid | I48: 1 | J48: HMDB0000062 | K48: x | L48: L-Carnitine | M48: [M+H]+ | N48: adduct linked to 460_[M+Na]+; adduct linked to 839_[2M+H]+; found in higher mz's MsMs_839 | O48: 1 | P48: TRUE | Q48: C7H15NO3 | S48: PHIQHXFUZVPYII-MDOHGIEYNA-N | T48: C[N+](C)(C)C[C@H](O)CC([O-])=O | V48: -1 | W48: -1 | X48: 967.7773 | Y48: 992.2645 | Z48: 923.0769 | AA48: 180709MR_Grainmark_Hilic_pos_234 | AB48: 162.11243:1297419 163.11578:169804 164.11914:14951 | AC48: 29.03864:203 29.04956:27 29.06104:20 41.03833:311 42.49719:42 43.01753:5998 43.04513:187 43.06258:9 43.10532:16 43.13077:21 43.1427:21 43.18697:53 43.19507:47 43.23729:38 43.30299:6 43.83216:27 44.04859:65 44.35801:20 44.52618:16 45.05555:174 57.03371:2304 57.06674:50 57.07522:22 57.09297:7 57.27421:24 57.28993:56 57.30645:7 57.32417:32 57.37151:13 58.06467:737 58.09973:18 59.07359:904 59.11821:15 59.18919:28 60.08068:8352 60.11312:269 60.12559:84 60.14301:19 60.15676:27 60.16685:17 60.21063:24 60.24239:23 60.24928:49 60.26698:12 60.37489:24 60.39649:29 60.4475:16 60.4937:9 60.73709:25 61.25511:25 67.84753:5 81.9115:48 84.53148:11 84.62362:19 85.02837:6667 85.06753:121 85.08044:64 85.09079:22 85.10999:39 85.16199:86 85.18106:139 85.21007:15 85.23204:12 85.29595:24 85.33987:95 85.37666:20 85.40827:13 85.45474:14 85.75502:34 85.99692:67 86.02582:55 101.86172:19 102.09149:5205 102.23016:9 102.24422:10 102.27225:29 102.33556:12 102.35409:11 102.38422:32 102.49372:27 102.64297:27 102.6837:29 103.03894:10232 103.09386:136 103.12133:30 103.14518:41 103.16447:27 103.18411:14 103.20548:22 103.22775:41 103.25099:48 103.26868:35 103.29:35 103.31469:17 103.51618:29 103.53371:21 103.57364:15 103.59734:24 103.71758:26 103.75683:39 103.78851:71 103.80953:11 104.04766:29 161.25511:10 162.11227:4680 162.16606:110 162.21175:20 162.27127:11 162.2933:24 162.39619:25 162.53239:41 162.58107:23 | AD48: kept | AE48: COMPOUND_162_1129a4_91 | AF48: 0.06913590982 | AG48: 0.6040777515 | AH48: 0.9970396117 | AJ48: 0.04163626766 | AK48: 0.7546714206 | AL48: 0.9333426954 | AM48: -0.07757653201 | AN48: 0.5436152423 | AO48: 0.9272151431 | AP48: =-LOG10(AO48) -> 0.03281948418 | AQ48: 0.007746971585 | AR48: 0.9515670089 | AS48: 0.9831997713 | AT48: -0.1467124418 | AU48: -0.4895633382 | AV48: 0.1961384545 | AW48: 0.4046617444 | AX48: 0.9574508458 | AY48: 0.3031812509 | AZ48: -0.1719756305 | BA48: 0.7783381324 | BB48: 0.2145045806 | BC48: 0.8804352436 | BD48: 0.06913590982 | BE48: -0.1697044973 | BF48: 0.3079763169 | BG48: 0.572407467 | BH48: 0.9952354946 | BI48: -0.2034428377 | BJ48: -0.2105283623 | BK48: -0.03388929608 | BL48: -0.4272558904 | BM48: 0.3594772983 | BN48: 0.8664273594 | BO48: 0.9936932466 | BP48: 0.3031812509 | BQ48: -0.1946936684 | BR48: 0.8010561703 | BS48: 0.2358157684 | BT48: 0.910693648 | BU48: 0.04163626766 | BV48: -0.2323949177 | BW48: 0.3156674531 | BX48: 0.7667937417 | BY48: 0.9395020336 | BZ48: -0.040971591 | CA48: -0.07297839929 | CB48: -0.0009912217045 | CC48: 0.9908964447 | CD48: 0.9997228204 | CE48: -0.05048996334 | CF48: 0.5623478687 | CG48: 0.9263851135 | CH48: -0.01561106087 | CI48: 0.8573814973 | CJ48: 0.9641347665 | CK48: 0.1736208534 | CL48: 0.04402476127 | CM48: 0.3385616502 | CN48: 0.0042741363 | CO48: 0.9607603866 | CP48: 0.9996757019 | CQ48: -0.05303711977 | CR48: 0.5427725161 | CS48: 0.9425617621 | CT48: 0.02876094071 | CU48: 0.7386642667 | CV48: 0.9967977033 | CW48: -0.1544070548 | CX48: 0.08304503125 | CY48: 0.8106889692 | CZ48: -0.01903556548 | DA48: 0.8284877396 | DB48: 0.9992844709 | DC48: -0.02701533876 | DD48: 0.7540023385 | DE48: 0.9738680528 | DF48: 0.01569612691 | DG48: 0.8555463724 | DH48: 0.9995798835 | DI48: 0.1423533225 | DJ48: 0.09703557405 | DK48: 0.5728582884 | DL48: -0.06340242531 | DM48: 0.4841937138 | DN48: 0.9986115224 | DO48: 0.04006626504 | DP48: 0.6420364369 | DQ48: 0.920610115 | DR48: 0.06119403068 | DS48: 0.4774802432 | DT48: 0.9439143154 | DU48: -0.0009912217045 | DV48: 0.9908964447 | DW48: 0.9997228204 | DX48: -0.05048996334 | DY48: 0.5623478687 | DZ48: 0.9263851135 | EA48: -0.01561106087 | EB48: 0.8573814973 | EC48: 0.9641347665 | ED48: 0.1736208534 | EE48: 0.04402476127 | EF48: 0.3385616502 | EG48: 0.0042741363 | EH48: 0.9607603866 | EI48: 0.9996757019 | EJ48: -0.05303711977 | EK48: 0.5427725161 | EL48: 0.9425617621 | EM48: 0.02876094071 | EN48: 0.7386642667 | EO48: 0.9967977033 | EP48: -0.1544070548 | EQ48: 0.08304503125 | ER48: 0.8106889692 | ES48: -0.01903556548 | ET48: 0.8284877396 | EU48: 0.9992844709 | EV48: -0.02701533876 | EW48: 0.7540023385 | EX48: 0.9738680528 | EY48: 0.01569612691 | EZ48: 0.8555463724 | FA48: 0.9995798835 | FB48: 0.1423533225 | FC48: 0.09703557405 | FD48: 0.5728582884 | FE48: -0.06340242531 | FF48: 0.4841937138 | FG48: 0.9986115224 | FH48: 0.04006626504 | FI48: 0.6420364369 | FJ48: 0.920610115 | FK48: 0.06119403068 | FL48: 0.4774802432 | FM48: 0.9439143154 | FN48: 0.1908833992 | FO48: 0.006640296278 | FP48: 0.04570978611 | FQ48: 0.2071533942 | FR48: 0.003248155854 | FS48: 0.07080922862 | FT48: -0.2502309638 | FU48: 0.0003400908349 | FV48: 0.002157380042 | FW48: 0.3432599274 | FX48: 6.081661284e-07 | FY48: 7.592341365e-06 | FZ48: 0.2881918052 | GA48: 3.34360352e-05 | GB48: 0.001217843282 | GC48: 0.1618645538 | GD48: 0.02202806377 | GE48: 0.1680410534 | GF48: 0.1560229542 | GG48: 0.02585218518 | GH48: 0.08963082402 | GI48: -0.03343334554 | GJ48: 0.6443805851 | GK48: 0.9154850603 | GL48: 0.1687613393 | GM48: 0.01746736128 | GN48: 0.06704756103 | GO48: -0.02542549295 | GP48: 0.7181177094 | GQ48: 0.9038242557 | GR48: -0.02874484057 | GS48: 0.6831855783 | GT48: 0.9250105662 | GU48: 0.1310302068 | GV48: 0.06175542156 | GW48: 0.7060139891 | GX48: 0.02003289115 | GY48: 0.7843865453 | GZ48: 0.9326813289 | HA48: -0.09642688139 | HB48: 0.1700672839 | HC48: 0.4236663002 | HD48: 0.2457062835 | HE48: 0.0003966811427 | HF48: 0.005583013365 | HO48: COMPOUND_162_1129a4_91 | HP48: 374 | HQ48: 4.91 | HR48: 162.1129 | HS48: L-Carnitine | HT48: [M+H]+ | HU48: adduct linked to 460_[M+Na]+; adduct linked to 839_[2M+H]+; found in higher mz's MsMs_839 | HV48: 1 | HW48: TRUE | HX48: C7H15NO3 | HZ48: PHIQHXFUZVPYII-MDOHGIEYNA-N | IA48: C[N+](C)(C)C[C@H](O)CC([O-])=O | IC48: -1 | ID48: -1 | IE48: 967.7773 | IF48: 992.2645 | IG48: 923.0769 | IH48: 180709MR_Grainmark_Hilic_pos_234 | II48: 162.11243:1297419 163.11578:169804 164.11914:14951 | IJ48: 29.03864:203 29.04956:27 29.06104:20 41.03833:311 42.49719:42 43.01753:5998 43.04513:187 43.06258:9 43.10532:16 43.13077:21 43.1427:21 43.18697:53 43.19507:47 43.23729:38 43.30299:6 43.83216:27 44.04859:65 44.35801:20 44.52618:16 45.05555:174 57.03371:2304 57.06674:50 57.07522:22 57.09297:7 57.27421:24 57.28993:56 57.30645:7 57.32417:32 57.37151:13 58.06467:737 58.09973:18 59.07359:904 59.11821:15 59.18919:28 60.08068:8352 60.11312:269 60.12559:84 60.14301:19 60.15676:27 60.16685:17 60.21063:24 60.24239:23 60.24928:49 60.26698:12 60.37489:24 60.39649:29 60.4475:16 60.4937:9 60.73709:25 61.25511:25 67.84753:5 81.9115:48 84.53148:11 84.62362:19 85.02837:6667 85.06753:121 85.08044:64 85.09079:22 85.10999:39 85.16199:86 85.18106:139 85.21007:15 85.23204:12 85.29595:24 85.33987:95 85.37666:20 85.40827:13 85.45474:14 85.75502:34 85.99692:67 86.02582:55 101.86172:19 102.09149:5205 102.23016:9 102.24422:10 102.27225:29 102.33556:12 102.35409:11 102.38422:32 102.49372:27 102.64297:27 102.6837:29 103.03894:10232 103.09386:136 103.12133:30 103.14518:41 103.16447:27 103.18411:14 103.20548:22 103.22775:41 103.25099:48 103.26868:35 103.29:35 103.31469:17 103.51618:29 103.53371:21 103.57364:15 103.59734:24 103.71758:26 103.75683:39 103.78851:71 103.80953:11 104.04766:29 161.25511:10 162.11227:4680 162.16606:110 162.21175:20 162.27127:11 162.2933:24 162.39619:25 162.53239:41 162.58107:23 | IK48: 16830498 | IL48: 15536316 | IM48: 18603852 | IN48: 17966892 | IO48: 12439022 | IP48: 14889985 | IQ48: 22827782 | IR48: 20083462 | IS48: 14420754 | IT48: 18273940 | IU48: 24331386 | IV48: 22818700 | IW48: 20559876 | IX48: 18032538 | IY48: 12404602 | IZ48: 17754416 | JA48: 19010440 | JB48: 16205918 | JC48: 15930701 | JD48: 17683084 | JE48: 16013099 | JF48: 18823108 | JG48: 19906668 | JH48: 18437718 | JI48: 22442664 | JJ48: 19657586 | JK48: 20932926 | JL48: 18445012 | JM48: 18542058 | JN48: 15885393 | JO48: 16383167 | JP48: 11294538 | JQ48: 17939868 | JR48: 15361925 | JS48: 15137653 | JT48: 18583096 | JU48: 18034686 | JV48: 20746550 | JW48: 11674052 | JX48: 16760882 | JY48: 14994029 | JZ48: 18266426 | KA48: 15582681 | KB48: 19450020 | KC48: 15925085 | KD48: 22508992 | KE48: 18592310 | KF48: 13457019 | KG48: 15955174 | KH48: 16366975 | KI48: 15696072 | KJ48: 14043539 | KK48: 15772801 | KL48: 14415516 | KM48: 12487981 | KN48: 18210352 | KO48: 22397762 | KP48: 17352340 | KQ48: 20111880 | KR48: 21759150 | KS48: 20687662 | KT48: 13284691 | KU48: 11597813 | KV48: 16436189 | KW48: 12421964 | KX48: 16420648 | KY48: 19616052 | KZ48: 12669092 | LA48: 16424879 | LB48: 17569856 | LC48: 15762887 | LD48: 19925590 | LE48: 14275847 | LF48: 18033256 | LG48: 16068620 | LH48: 17037294 | LI48: 17396536 | LJ48: 16778304 | LK48: 20095698 | LL48: 19392076 | LM48: 16046052 | LN48: 19842370 | LO48: 16969922 | LP48: 17433026 | LQ48: 15288864 | LR48: 15000236 | LS48: 14650597 | LT48: 17605296 | LU48: 16037372 | LV48: 11987752 | LW48: 21070228 | LX48: 19654070 | LY48: 14665735 | LZ48: 15034654 | MA48: 14012392 | MB48: 10210977 | MC48: 11958100 | MD48: 10931083 | ME48: 12713865 | MF48: 15711008 | MG48: 16043250 | MH48: 14188284 | MI48: 15805742 | MJ48: 13450791 | MK48: 10524019 | ML48: 11868027 | MM48: 16844894 | MN48: 15228573 | MO48: 10602397 | MP48: 11345277 | MQ48: 13356144 | MR48: 15215870 | MS48: 13688251 | MT48: 16106939 | MU48: 17585592 | MV48: 11389957 | MW48: 14275357 | MX48: 12048994 | MY48: 14647983 | MZ48: 15785995 | NA48: 12790986 | NB48: 13138420 | NC48: 11454857 | ND48: 14956640 | NE48: 12016142 | NF48: 12245854 | NG48: 11822845 | NH48: 15780761 | NI48: 12016761 | NJ48: 16961444 | NK48: 14682508 | NL48: 14730081 | NM48: 16784626 | NN48: 10247941 | NO48: 14116566 | NP48: 10139139 | NQ48: 15077901 | NR48: 18365066 | NS48: 18851166 | NT48: 17602198 | NU48: 16765174 | NV48: 15408644 | NW48: 15787246 | NX48: 14244659 | NY48: 14111353 | NZ48: 17600168 | OA48: 14360758 | OB48: 17054220 | OC48: 14017218 | OD48: 13071833 | OE48: 18887264 | OF48: 15772216 | OG48: 14217238 | OH48: 15989462 | OI48: 29900410 | OJ48: 16984254 | OK48: 17859360 | OL48: 18015754 | OM48: 13248454 | ON48: 17762284 | OO48: 17658174 | OP48: 14028468 | OQ48: 15571073 | OR48: 12379176 | OS48: 14344611 | OT48: 14782909 | OU48: 16664047 | OV48: 16381671 | OW48: 13675266 | OX48: 17188084 | OY48: 17929326 | OZ48: 15885671 | PA48: 16806880 | PB48: 16922112 | PC48: 14610545 | PD48: 18603612 | PE48: 13976443 | PF48: 12029585 | PG48: 8353078 | PH48: 13165343 | PI48: 12775620 | PJ48: 18151704 | PK48: 12601048 | PL48: 16602531 | PM48: 20800026 | PN48: 19419216 | PO48: 11525560 | PP48: 17112254 | PQ48: 15632191 | PR48: 15787024 | PS48: 13092870 | PT48: 16133946 | PU48: 17015318 | PV48: 13388282 | PW48: 15834816 | PX48: 16788270 | PY48: 19417774 | PZ48: 13702331 | QA48: 12711254 | QB48: 16644098 | QC48: 9897882 | QD48: 16659580 | QE48: 17561802 | QF48: 11912162 | QG48: 20149688 | QH48: 19629762 | QI48: 18977184 | QJ48: 18978516 | QK48: 19026946 | QL48: 18733988 | QM48: 18529408 | QN48: 18422932 | QO48: 18417296 | QP48: 18282326 | QQ48: 17488988 | QR48: 17111142 | QS48: 17135888 | QT48: 16444428 | QU48: 16531725 | QV48: 16239346 | QW48: 15649373 | QX48: 15450316 | QY48: 15019105 | QZ48: 15103930 | RA48: 15086151 | RB48: 15113118 | RC48: 15221751 | RD48: 15004048 | RE48: 15251903 | RF48: 15089493 | RG48: 15329025 | RH48: 14937607 | RI48: 9011688 | RJ48: 9059058 | RK48: 9391525 | RL48: =AVERAGE(QG48:RH48) -> 16869835.11
